Workbook

Sheet Cover Sheet

Sheet Input Description
D1: ＜Diffusion Index Method＞
C4: < Brief explanation for calculation of floor impact noise levels >
D6: The floor impact noise levels on the various types of slabs can be calculated with this program, that is the Diffusion Index Method. But It is not to guarantee the calculated result.
D8: 1. Data Input
D9: ■ For calculation, please input necessary data according to the example below.
D26: ■ On the impact point, please input the distance until nearest boundary/beam to the x and y direction.
D27: ■ On the impact point, please input unity in the small column of beam depth if the beam exists, input zero if the beam does not exist.
D28: ■ As to the condition on the beam, please input only the beam depth.
D29: ■ If the number of the impact points is less than five, please input too small value like o.oooooo1 in the corresponding column.
D31: ２．Reference values
D32: ■ Reference values are automaticcally calculated and shown.
D33: ■ Natural frequencies are the value of the plane slab, not to beam slab.
D35: ３．Calculation result
D36: ■ After inputting data, push the button (click left on a mouth) of , so the calculation results are displayed.
D38: ４．Miscellaneous
D39: ■ In case of the calculation for void slabs, please use the Void Slab Sheet. You can the values of a thickness of slab and weight per unit of the transformed plane slab from the void slab. Then, input the values to the column of the Calculation Sheet.
D40: ■This program is for calculation on floor impact noise of bare slabs. Therefore
D41: it is necessary to consider the effect of surface material for evaluating the actual floor impact noise levels. However if the surface material is thin like a carpet, the effect is almost disregarded.
D42: ■ You may change the values of impact force and the sound absorption coefficient in the Impact Force Sheet.
D43: ■ Refer to the book “Calculation of floor impact noise with the new diffusion index method (in Japanese)” for well-informed.
D48: Made by Hashimoto Lab., Hachinohe Institute of Technology

Sheet Calculation Sheet
J1: ＜Diffusion Index Method＞
C3: Title | D3: Example of Input Description Sheet
C5: ＜Input Data＞
C7: Young's Modulus (N/m2) | D7: 29000000000 | F7: Weight per Unit (kg/m3) | G7: 2400 | J7: Poisson's Ratio | L7: 0.16
C9: Slab Dimensions (m) | D9: 11 | E9: × | F9: 6 | J9: Thickness of Slab (mm) | L9: 200
C11: Boundary Condition | D11: 0.8 | E11: （Simply supported;0, Clamped;1, Newtral;0～1） | J11: Damping Ratio | L11: 0.03
C13: Room Dimension (m) | D13: 4.4 | E13: × | F13: 3.5 | J13: Ceiling Height (m) | L13: 2.4
C15: Num. of Impact Point | D15: 3
D16: （ｘ-direction） | F16: （ｙ-direction） | J16: （ｘ-direction） | L16: （ｙ-direction）
C17: Impact Point １ (m) | D17: 1.1 | F17: 0.88 | G17: Beam Depth (m) | I17: 1 | J17: 0.6 | K17: 0 | L17: 0
C19: Impact Point 2 (m) | D19: 2.2 | F19: 1.75 | G19: Beam Depth (m) | I19: 0 | J19: 0 | K19: 0 | L19: 0
C21: Impact Point 3 (m) | D21: 3.3 | F21: 2.63 | G21: Beam Depth (m) | I21: 0 | J21: 0 | K21: 0 | L21: 0
C23: Impact Point 4 (m) | D23: 1e-07 | F23: 1e-07 | G23: Beam Depth (m) | I23: 0 | J23: 0 | K23: 0 | L23: 0
C25: Impact Point 5 (m) | D25: 1e-07 | F25: 1e-07 | G25: Beam Depth (m) | I25: 0 | J25: 0 | K25: 0 | L25: 0
C27: ＜Reference Values＞
C29: Vertical Velocity (m/s) | D29: ='計算表（参考）'!Q36 -> 3521.476061 | F29: Natural Freq.(ss) (Hz) | G29: ='計算表（参考）'!Q37 -> 11.50470658 | J29: Natural Freq.(c) (Hz) | L29: ='計算表（参考）'!Q38 -> 23.22882452
C31: Coincidence Freq. (Hz) | D31: ='計算表（参考）'!Q39 -> 90.53866307 | F31: Equal Radius (m) | G31: ='計算表（参考）'!Q40 -> 2.214601228 | J31: (ss; simply supported, c; clamped)
C34: ＜Calculation Result＞
C36: Center Freq. | D36: Sound Level
C37: (Hz) | D37: (dB)
C38: 31.5 | D38: ='計算表（参考）'!C20 -> 79.83299757
C39: 63 | D39: ='計算表（参考）'!E20 -> 75.94633093
C40: 125 | D40: ='計算表（参考）'!F20 -> 56.39188696
C41: 250 | D41: ='計算表（参考）'!G20 -> 44.90470032
C42: 500 | D42: ='計算表（参考）'!H20 -> 38.32366055
C43: 1K | D43: ='計算表（参考）'!I20 -> 30.89697864
C44: 2K | D44: ='計算表（参考）'!J20 -> 22.89749307
C45: 4K | D45: ='計算表（参考）'!K20 -> 16.07505161
C47: Noise level (dB) | D47: ='計算表（参考）'!M20 -> 51.16135466
C51: L-Number | D51: ='計算表（参考）'!M22 -> 52.94633093 | F51: L-Classification | G51: ='計算表（参考）'!M24 -> 55 | J51: Determinate Freq. | L51: ='計算表（参考）'!M26 -> 63
G54: Made by Hashimoto Lab., Hachinohe Institute of Technology

Sheet Void Slab Sheet
B1: ＜Diffusion Index Method＞
C4: ボイドスラブ換算用シート | D4: Convert Sheet of void slab
D8: ⅰ） Slab with circular void ( one dimensional void )
G9: ｂ
H11: ｄ
I12: ｈ
G13: ｒ
G15: ｒ
E16: Input data
E17: b (mm) | F17: 250 | H17: d (mm) | I17: 125
E19: h (mm) | F19: 250 | H19: r (mm) | I19: 62.5
E22: Before convert
E23: Thickness(mm) | F23: =F19 -> 250 | H23: Weight per unit(kg/m3) | J23: 2300
E25: After convert
E26: Thickness(mm) | F26: =((F17*F19^3/12-(3.14*I19^4/4+(F19/2-I17)^2*3.14*I19^2))*12/F17)^(1/3) -> 246.8951941 | H26: Weight per unit(kg/m3) | J26: =((F17*F19-3.14*I19^2)*J23)/F17/F26 -> 1871.872199
D29: ⅱ） Slab with rectangular void （ two dimensional void )
E31: <ｘ方向> | I31: <ｙ方向>
L32: ｄ１
N33: ｈ
L34: ｄ２
F37: ｂｘ | J37: ｂｙ
F38: ｔｘ | J38: ｔｙ
E41: Input data
E42: tx (mm) | F42: 1350 | H42: ty (mm) | I42: 580 | K42: h (mm) | M42: 250
E44: bx (mm) | F44: 1200 | H44: by (mm) | I44: 430 | K44: d1 (mm) | M44: 60
K46: d2 (mm) | M46: 120
E47: Before convert
E48: Thickness(mm) | F48: =M42 -> 250 | H48: Weight per unit(kg/m3) | J48: 2400
E50: After convert
E51: Thickness(mm) | F51: =(12*((F42*I42-F44*I44)*M42^3/12+F44*I44*(M42^3/12-(M46^3/12+(M42/2-M44-M46/2)^2*M46)))/(F42*I42))^(1/3) -> 243.6396479 | H51: Weight per unit(kg/m3) | J51: =((F42*I42*M42-F44*I44*M46)*J48)/F42/I42/F51 -> 1683.662327
H63: Made by Hashimoto Lab., Hachinohe Institute of Technology

Sheet Impact Force
K1: ＜Diffusion Index Method＞
B3: ＜Setting sheet of impact force and sound absorption coefficient＞
C4: You can change freely in the value of impact force and sound absorption coefficient. These values automatically reflected to the calculation in the Calculation Sheet.
C5: ＜Table for input data＞
C6: Frequency (Hz) | F6: 31.5 | G6: 63 | H6: 125 | I6: 250 | J6: 500 | K6: 1000 | L6: 2000 | M6: 4000
C7: Impact force Levels (dB) | F7: 47 | G7: 40 | H7: 22 | I7: 11.5 | J7: 5.5 | K7: 0 | L7: -5 | M7: -10
C8: Sound absorption coefficient | F8: 0.1 | G8: 0.1 | H8: 0.1 | I8: 0.1 | J8: 0.15 | K8: 0.15 | L8: 0.2 | M8: 0.2
C9: ＜Notice＞ ■ Impact forces regulated in ＪＩＳ (Japanese Industrial Standards) are as follows. Upper table is the heavy type impact and lower table is light type impact.
G18: Made by Hashimoto Lab., Hachinohe Institute of Technology

Sheet 計算表（参考） (hidden)
B2: <L等級算出＞ | P2: <入力データ＞ | T2: ＜計算経過表＞ | AV2: ＜小梁拘束計算＞
E4: 63 | F4: 125 | G4: 250 | H4: 500 | I4: 1000 | J4: 2000 | K4: 4000 | Q4: ='Calculation Sheet'!D7 -> 29000000000 | T4: 周波数(Hz) | W4: 31.5 | X4: 63 | Y4: 125 | Z4: 250 | AA4: 500 | AB4: 1000 | AC4: 2000 | AD4: 4000 | AG4: 周波数(Hz) | AJ4: 31.5 | AK4: 63 | AL4: 125 | AM4: 250 | AN4: 500 | AO4: 1000 | AP4: 2000 | AQ4: 4000 | AV4: 周波数(Hz) | AY4: 31.5 | AZ4: 63 | BA4: 125 | BB4: 250 | BC4: 500 | BD4: 1000 | BE4: 2000 | BF4: 4000
C5: L-85 | E5: 108 | F5: 98 | G5: 91 | H5: 85 | I5: 82 | J5: 81 | K5: 81 | Q5: ='Calculation Sheet'!G7 -> 2400 | T5: 加振力(dB) | W5: ='Impact Force'!F7 -> 47 | X5: ='Impact Force'!G7 -> 40 | Y5: ='Impact Force'!H7 -> 22 | Z5: ='Impact Force'!I7 -> 11.5 | AA5: ='Impact Force'!J7 -> 5.5 | AB5: ='Impact Force'!K7 -> 0 | AC5: ='Impact Force'!L7 -> -5 | AD5: ='Impact Force'!M7 -> -10 | AE5: (可変） | AG5: 駆動点インピーダンス(dB) | AH5: ｓ | AI5: 1 | AJ5: =20*LOG10($Q$41)+W$49+AY$15 -> 111.0651714 | AK5: =20*LOG10($Q$41)+X$49+AZ$15 -> 114.4234923 | AL5: 118.2291925 | AM5: 117.8499067 | AN5: 117.8499067 | AO5: 117.8499067 | AP5: 117.8499067 | AQ5: 117.8499067 | AV5: 小梁による端部拘束 加振点１(dB) | AW5: s | AX5: x | AY5: =-3*$BG5*LOG10($Q$16/W$47)-1.2*$BG5 -> 2.175084106 | AZ5: 1.271994119 | BA5: 0.379285728 | BB5: -0.523804259 | BC5: -1.426894246 | BD5: -2.329984233 | BE5: -3.23307422 | BF5: -4.136164207 | BG5: =(Q18-$Q$7/1000)/($Q$7/1000) -> 2
C6: L-80 | E6: 103 | F6: 93 | G6: 86 | H6: 80 | I6: 77 | J6: 76 | K6: 76 | Q6: ='Calculation Sheet'!L7 -> 0.16 | T6: 室内平均吸音率 | W6: ='Impact Force'!F8 -> 0.1 | X6: ='Impact Force'!G8 -> 0.1 | Y6: ='Impact Force'!H8 -> 0.1 | Z6: ='Impact Force'!I8 -> 0.1 | AA6: ='Impact Force'!J8 -> 0.15 | AB6: ='Impact Force'!K8 -> 0.15 | AC6: ='Impact Force'!L8 -> 0.2 | AD6: ='Impact Force'!M8 -> 0.2 | AE6: (可変） | AH6: ｃ | AJ6: =20*LOG10($Q$41)+W$51+AY$26 -> 125.56033 | AK6: =20*LOG10($Q$41)+X$51+AZ$26 -> 113.7287944 | AL6: 117.7654184 | AM6: 117.8499067 | AN6: 117.8499067 | AO6: 117.8499067 | AP6: 117.8499067 | AQ6: 117.8499067 | AY6: =MAX(AY5,0) -> 2.175084106 | AZ6: =MAX(AZ5,0) -> 1.271994119 | BA6: 0.379285728 | BB6: 0 | BC6: 0 | BD6: 0 | BE6: 0 | BF6: 0
C7: L-75 | E7: 98 | F7: 88 | G7: 81 | H7: 75 | I7: 72 | J7: 71 | K7: 71 | Q7: ='Calculation Sheet'!L9 -> 200 | T7: モード数 | U7: s | V7: 1 | W7: ='計算表s-1'!C6 -> 0.70031866 | X7: ='計算表s-1'!D6 -> 2.598490493 | Y7: ='計算表s-1'!E6 -> 6.791470304 | Z7: ='計算表s-1'!F6 -> 9.735792214 | AA7: ='計算表s-1'!G6 -> 16.68038602 | AB7: ='計算表s-1'!H6 -> 35.27395575 | AC7: ='計算表s-1'!I6 -> 46.40922826 | AD7: ='計算表s-1'!J6 -> 93.72431953 | AH7: ｓ | AI7: 2 | AJ7: =20*LOG10($Q$41)+W$53+AY$37 -> 107.2637042 | AK7: =20*LOG10($Q$41)+X$53+AZ$37 -> 112.4594064 | AL7: 116.4544104 | AM7: 117.8499067 | AN7: 117.8499067 | AO7: 117.8499067 | AP7: 117.8499067 | AQ7: 117.8499067 | AY7: =IF($P$18=1,AY6) -> 2.175084106 | AZ7: =IF($P$18=1,AZ6) -> 1.271994119 | BA7: 0.379285728 | BB7: 0 | BC7: 0 | BD7: 0 | BE7: 0 | BF7: 0
C8: L-70 | E8: 93 | F8: 83 | G8: 76 | H8: 70 | I8: 67 | J8: 66 | K8: 66 | Q8: ='Calculation Sheet'!L11 -> 0.03 | U8: c | W8: ='計算表c-1'!C6 -> 0.331112671 | X8: ='計算表c-1'!D6 -> 1.595955042 | Y8: ='計算表c-1'!E6 -> 5.170398295 | Z8: ='計算表c-1'!F6 -> 10.06563398 | AA8: ='計算表c-1'!G6 -> 14.73949878 | AB8: ='計算表c-1'!H6 -> 34.57339353 | AC8: ='計算表c-1'!I6 -> 45.48751276 | AD8: ='計算表c-1'!J6 -> 91.86289753 | AH8: ｃ | AJ8: =20*LOG10($Q$41)+W$55+AY$48 -> 103.0736924 | AK8: =20*LOG10($Q$41)+X$55+AZ$48 -> 112.6454416 | AL8: 114.7506415 | AM8: 117.8499067 | AN8: 117.8499067 | AO8: 117.8499067 | AP8: 117.8499067 | AQ8: 117.8499067 | AY8: =IF($P$18=0,W69) -> FALSE | AZ8: =IF($P$18=0,X69) -> FALSE | BA8: FALSE | BB8: FALSE | BC8: FALSE | BD8: FALSE | BE8: FALSE | BF8: FALSE
C9: L-65 | E9: 88 | F9: 78 | G9: 71 | H9: 65 | I9: 62 | J9: 61 | K9: 61 | Q9: ='Calculation Sheet'!D9 -> 11 | U9: s | V9: 2 | W9: ='計算表s-2'!C6 -> 1.435641416 | X9: ='計算表s-2'!D6 -> 2.386578302 | Y9: ='計算表s-2'!E6 -> 4.298369149 | Z9: ='計算表s-2'!F6 -> 9.875556478 | AA9: ='計算表s-2'!G6 -> 18.46613442 | AB9: ='計算表s-2'!H6 -> 32.40787264 | AC9: ='計算表s-2'!I6 -> 42.63838083 | AD9: ='計算表s-2'!J6 -> 86.10902139 | AH9: ｓ | AI9: 3 | AJ9: =20*LOG10($Q$41)+W$57+AY$59 -> 106.2801373 | AK9: =20*LOG10($Q$41)+X$57+AZ$59 -> 112.9617595 | AL9: 117.3224175 | AM9: 117.8499067 | AN9: 117.8499067 | AO9: 117.8499067 | AP9: 117.8499067 | AQ9: 117.8499067 | AY9: =MAX(AY7,AY8) -> 2.175084106 | AZ9: =MAX(AZ7,AZ8) -> 1.271994119 | BA9: 0.379285728 | BB9: 0 | BC9: 0 | BD9: 0 | BE9: 0 | BF9: 0
C10: L-60 | E10: 83 | F10: 73 | G10: 66 | H10: 60 | I10: 57 | J10: 56 | K10: 56 | Q10: ='Calculation Sheet'!F9 -> 6 | U10: c | W10: ='計算表c-2'!C6 -> 0.9435303571 | X10: ='計算表c-2'!D6 -> 2.440491563 | Y10: ='計算表c-2'!E6 -> 3.238529802 | Z10: ='計算表c-2'!F6 -> 8.370917461 | AA10: ='計算表c-2'!G6 -> 16.55148876 | AB10: ='計算表c-2'!H6 -> 31.42631357 | AC10: ='計算表c-2'!I6 -> 41.34696347 | AD10: ='計算表c-2'!J6 -> 83.50097946 | AH10: ｃ | AJ10: =20*LOG10($Q$41)+W$59+AY$70 -> 104.7190084 | AK10: =20*LOG10($Q$41)+X$59+AZ$70 -> 106.9500383 | AL10: 116.2481213 | AM10: 117.8499067 | AN10: 117.8499067 | AO10: 117.8499067 | AP10: 117.8499067 | AQ10: 117.8499067 | AX10: y | AY10: =-3*$BG10*LOG10($Q$17/W$47)-1.2*$BG10 -> -1.378272092 | AZ10: -0.9267270983 | BA10: -0.480372903 | BB10: -0.02882790952 | BC10: 0.422717084 | BD10: 0.8742620775 | BE10: 1.325807071 | BF10: 1.777352064 | BG10: =(Q19-$Q$7/1000)/($Q$7/1000) -> -1
C11: L-55 | E11: 78 | F11: 68 | G11: 61 | H11: 55 | I11: 52 | J11: 51 | K11: 51 | Q11: ='Calculation Sheet'!D13 -> 4.4 | U11: s | V11: 3 | W11: ='計算表s-3'!C6 -> 0.7528268061 | X11: ='計算表s-3'!D6 -> 2.537205684 | Y11: ='計算表s-3'!E6 -> 5.101169132 | Z11: ='計算表s-3'!F6 -> 9.913325961 | AA11: ='計算表s-3'!G6 -> 18.94595547 | AB11: ='計算表s-3'!H6 -> 31.96660213 | AC11: ='計算表s-3'!I6 -> 42.05781017 | AD11: ='計算表s-3'!J6 -> 84.93654789 | AH11: ｓ | AI11: 4 | AJ11: =20*LOG10($Q$41)+W$61+AY$81 -> 422.8951288 | AK11: =20*LOG10($Q$41)+X$61+AZ$81 -> 416.3816021 | AL11: 409.9429525 | AM11: 403.4294257 | AN11: 396.915899 | AO11: 390.4023722 | AP11: 383.8888455 | AQ11: 377.3753187 | AY11: =MAX(AY10,0) -> 0 | AZ11: =MAX(AZ10,0) -> 0 | BA11: 0 | BB11: 0 | BC11: 0.422717084 | BD11: 0.8742620775 | BE11: 1.325807071 | BF11: 1.777352064
C12: L-50 | E12: 73 | F12: 63 | G12: 56 | H12: 50 | I12: 47 | J12: 46 | K12: 46 | Q12: ='Calculation Sheet'!F13 -> 3.5 | U12: c | W12: ='計算表c-3'!C6 -> 1.184368682 | X12: ='計算表c-3'!D6 -> 1.399815297 | Y12: ='計算表c-3'!E6 -> 4.139528898 | Z12: ='計算表c-3'!F6 -> 8.800687157 | AA12: ='計算表c-3'!G6 -> 18.11696321 | AB12: ='計算表c-3'!H6 -> 31.93897006 | AC12: ='計算表c-3'!I6 -> 42.02145522 | AD12: ='計算表c-3'!J6 -> 84.86312838 | AH12: ｃ | AJ12: =20*LOG10($Q$41)+W$63+AY$92 -> 526.3543587 | AK12: =20*LOG10($Q$41)+X$63+AZ$92 -> 517.8399446 | AL12: 509.4234092 | AM12: 500.9089952 | AN12: 492.3945811 | AO12: 483.8801671 | AP12: 475.365753 | AQ12: 466.851339 | AY12: =IF($P$19=1,AY11) -> FALSE | AZ12: =IF($P$19=1,AZ11) -> FALSE | BA12: FALSE | BB12: FALSE | BC12: FALSE | BD12: FALSE | BE12: FALSE | BF12: FALSE
C13: L-45 | E13: 68 | F13: 58 | G13: 51 | H13: 45 | I13: 42 | J13: 41 | K13: 41 | Q13: ='Calculation Sheet'!L13 -> 2.4 | U13: s | V13: 4 | W13: ='計算表s-4'!C6 -> 8.827352168e-15 | X13: ='計算表s-4'!D6 -> 3.963435725e-14 | Y13: ='計算表s-4'!E6 -> 1.620642453e-13 | Z13: ='計算表s-4'!F6 -> 6.503089895e-13 | AA13: ='計算表s-4'!G6 -> 2.566937431e-12 | AB13: ='計算表s-4'!H6 -> 9.184561307e-12 | AC13: ='計算表s-4'!I6 -> 1.208394106e-11 | AD13: ='計算表s-4'!J6 -> 2.44037489e-11 | AH13: ｓ | AI13: 5 | AJ13: =20*LOG10($Q$41)+W$65+AY$103 -> 422.8951288 | AK13: =20*LOG10($Q$41)+X$65+AZ$103 -> 416.3816021 | AL13: 409.9429525 | AM13: 403.4294257 | AN13: 396.915899 | AO13: 390.4023722 | AP13: 383.8888455 | AQ13: 377.3753187 | AY13: =IF($P$19=0,W71) -> 3.198375337 | AZ13: =IF($P$19=0,X71) -> 0 | BA13: 0 | BB13: 0 | BC13: 0 | BD13: 0 | BE13: 0 | BF13: 0
C14: L-40 | E14: 63 | F14: 53 | G14: 46 | H14: 40 | I14: 37 | J14: 36 | K14: 36 | Q14: ='Calculation Sheet'!D11 -> 0.8 | U14: c | W14: ='計算表c-4'!C6 -> 3.814770867e-15 | X14: ='計算表c-4'!D6 -> 2.180559432e-14 | Y14: ='計算表c-4'!E6 -> 1.020273073e-13 | Z14: ='計算表c-4'!F6 -> 4.774801877e-13 | AA14: ='計算表c-4'!G6 -> 2.091058489e-12 | AB14: ='計算表c-4'!H6 -> 8.227424471e-12 | AC14: ='計算表c-4'!I6 -> 1.082465553e-11 | AD14: ='計算表c-4'!J6 -> 2.186059782e-11 | AH14: ｃ | AJ14: =20*LOG10($Q$41)+W$67+AY$114 -> 526.3543587 | AK14: =20*LOG10($Q$41)+X$67+AZ$114 -> 517.8399446 | AL14: 509.4234092 | AM14: 500.9089952 | AN14: 492.3945811 | AO14: 483.8801671 | AP14: 475.365753 | AQ14: 466.851339 | AY14: =MAX(AY12,AY13) -> 3.198375337 | AZ14: =MAX(AZ12,AZ13) -> 0 | BA14: 0 | BB14: 0 | BC14: 0 | BD14: 0 | BE14: 0 | BF14: 0
C15: L-35 | E15: 58 | F15: 48 | G15: 41 | H15: 35 | I15: 32 | J15: 31 | K15: 31 | Q15: ='Calculation Sheet'!D15 -> 3 | U15: s | V15: 5 | W15: ='計算表s-5'!C6 -> 8.827352168e-15 | X15: ='計算表s-5'!D6 -> 3.963435725e-14 | Y15: ='計算表s-5'!E6 -> 1.620642453e-13 | Z15: ='計算表s-5'!F6 -> 6.503089895e-13 | AA15: ='計算表s-5'!G6 -> 2.566937431e-12 | AB15: ='計算表s-5'!H6 -> 9.184561307e-12 | AC15: ='計算表s-5'!I6 -> 1.208394106e-11 | AD15: ='計算表s-5'!J6 -> 2.44037489e-11 | AG15: cbの値 | AJ15: =SQRT(3.14*$Q$36*$Q$7/1000*AJ4/1.7320508) -> 200.5474556 | AK15: 283.6169316 | AL15: 399.500094 | AM15: 564.9784511 | AN15: 799.0001881 | AO15: 1129.956902 | AP15: 1598.000376 | AQ15: 2259.913805 | AY15: =SQRT(AY9^2+AY14^2) -> 3.867892923 | AZ15: =SQRT(AZ9^2+AZ14^2) -> 1.271994119 | BA15: 0.379285728 | BB15: 0 | BC15: 0 | BD15: 0 | BE15: 0 | BF15: 0
C16: L-30 | E16: 53 | F16: 43 | G16: 36 | H16: 30 | I16: 27 | J16: 26 | K16: 26 | Q16: ='Calculation Sheet'!D17 -> 1.1 | U16: c | W16: ='計算表c-5'!C6 -> 3.814770867e-15 | X16: ='計算表c-5'!D6 -> 2.180559432e-14 | Y16: ='計算表c-5'!E6 -> 1.020273073e-13 | Z16: ='計算表c-5'!F6 -> 4.774801877e-13 | AA16: ='計算表c-5'!G6 -> 2.091058489e-12 | AB16: ='計算表c-5'!H6 -> 8.227424471e-12 | AC16: ='計算表c-5'!I6 -> 1.082465553e-11 | AD16: ='計算表c-5'!J6 -> 2.186059782e-11 | AG16: ｋｒの値 | AJ16: =2*3.14*AJ4/AJ15*$Q$40 -> 2.184482539 | AK16: =2*3.14*AK4/AK15*$Q$40 -> 3.089324833 | AL16: 4.351593379 | AM16: 6.154082374 | AN16: 8.703186757 | AO16: 12.30816475 | AP16: 17.40637351 | AQ16: 24.6163295 | AW16: c | AX16: x | AY16: =-3*$BG16*LOG10($Q$16/W$47)-1.2*$BG16 -> 2.175084106 | AZ16: 1.271994119 | BA16: 0.379285728 | BB16: -0.523804259 | BC16: -1.426894246 | BD16: -2.329984233 | BE16: -3.23307422 | BF16: -4.136164207 | BG16: =(Q18-$Q$7/1000)/($Q$7/1000) -> 2
C17: 計算値 | E17: =E20 -> 75.94633093 | F17: =F20 -> 56.39188696 | G17: 44.90470032 | H17: 38.32366055 | I17: 30.89697864 | J17: 22.89749307 | K17: 16.07505161 | Q17: ='Calculation Sheet'!F17 -> 0.88 | U17: s | V17: 1 | W17: =1-W7^(-0.75) -> -0.3062557834 | X17: =1-X7^(-0.75) -> 0.5113936005 | Y17: 0.7623011145 | Z17: 0.8185648084 | AA17: 0.8788438603 | AB17: 0.9309109254 | AC17: 0.9437598151 | AD17: 0.9668020873 | AG17: αの値 | AJ17: =1-EXP(-12.5*3.14*$Q$9*$Q$10*$Q$8*AJ4/(2*($Q$9+$Q$10))/AJ15) -> 0.3016400139 | AK17: =1-EXP(-12.5*3.14*$Q$9*$Q$10*$Q$8*AK4/(2*($Q$9+$Q$10))/AK15) -> 0.3981408066 | AL17: 0.5108989154 | AM17: 0.6362999806 | AN17: 0.7607801291 | AO17: 0.8677222959 | AP17: 0.9427738533 | AQ17: 0.982502609 | AY17: =MAX(AY16,0) -> 2.175084106 | AZ17: =MAX(AZ16,0) -> 1.271994119 | BA17: 0.379285728 | BB17: 0 | BC17: 0 | BD17: 0 | BE17: 0 | BF17: 0
P18: ='Calculation Sheet'!I17 -> 1 | Q18: ='Calculation Sheet'!J17 -> 0.6 | W18: =1-(1/W7)^(-0.75) -> 0.2344531502 | X18: =1-(1/X7)^(-0.75) -> -1.046637132 | Y18: -3.207003318 | Z18: -4.511609909 | AA18: -7.253812002 | AB18: -13.47406852 | AC18: -16.78088037 | AD18: -29.12237577 | AG18: ｒ／ｐの値 | AJ18: =$Q$40/(2*($Q$9+$Q$10)*AJ17/(1-AJ17)) -> 0.15080197 | AK18: 0.09846339957 | AL18: 0.06235628948 | AM18: 0.0372304284 | AN18: 0.02048116755 | AO18: 0.009929388678 | AP18: 0.003953698914 | AQ18: 0.001159995232 | AY18: =IF($P$18=1,AY17) -> 2.175084106 | AZ18: =IF($P$18=1,AZ17) -> 1.271994119 | BA18: 0.379285728 | BB18: 0 | BC18: 0 | BD18: 0 | BE18: 0 | BF18: 0
C19: 31.5 | E19: 63 | F19: 125 | G19: 250 | H19: 500 | I19: 1000 | J19: 2000 | K19: 4000 | P19: ='Calculation Sheet'!K17 -> 0 | Q19: ='Calculation Sheet'!L17 -> 0 | T19: 拡散度指数 | W19: =MAX(W17,W18) -> 0.2344531502 | X19: =MAX(X17,X18) -> 0.5113936005 | Y19: 0.7623011145 | Z19: 0.8185648084 | AA19: 0.8788438603 | AB19: 0.9309109254 | AC19: 0.9437598151 | AD19: 0.9668020873 | AG19: 拡散板面平均レベル差(dB) | AJ19: =(-10.3*LOG10(AJ16)+1.3)*10^(-1.753*AJ18+0.001753) -> -1.199193083 | AK19: =(-10.3*LOG10(AK16)+1.3)*10^(-1.753*AK18+0.001753) -> -2.527362034 | AL19: -4.120199003 | AM19: -5.899373195 | AN19: -7.745071927 | AO19: -9.577494221 | AP19: -11.3432473 | AQ19: -13.02118803 | AY19: =IF($P$18=0,W74) -> FALSE | AZ19: =IF($P$18=0,X74) -> FALSE | BA19: FALSE | BB19: FALSE | BC19: FALSE | BD19: FALSE | BE19: FALSE | BF19: FALSE
C20: =AJ82 -> 79.83299757 | E20: =AK82 -> 75.94633093 | F20: 56.39188696 | G20: 44.90470032 | H20: 38.32366055 | I20: 30.89697864 | J20: 22.89749307 | K20: 16.07505161 | M20: =10*LOG10(10^((C20-39)/10)+10^((E20-26)/10)+10^((F20-16)/10)+10^((G20-9)/10)+10^((H20-3)/10)+10^(I20/10)+10^((J20+1)/10)+10^((K20+1)/10)) -> 51.16135466 | Q20: ='Calculation Sheet'!D19 -> 2.2 | U20: c | W20: =1-W8^(-0.75) -> -1.290963392 | X20: =1-X8^(-0.75) -> 0.2957375873 | Y20: 0.7083533447 | Z20: 0.8230424286 | AA20: 0.8670654213 | AB20: 0.9298635964 | AC20: 0.9429072638 | AD20: 0.9662988365 | AG20: 板面平均レベル差(dB) | AH20: s | AI20: 1 | AJ20: =(AJ19+3)*W19-3 -> -2.577795146 | AK20: =(AK19+3)*X19-3 -> -2.758295969 | AL20: -3.853928949 | AM20: -5.373324864 | AN20: -7.17017733 | AO20: -9.123061232 | AP20: -10.87402153 | AQ20: -12.6885055 | AY20: =MAX(AY18,AY19) -> 2.175084106 | AZ20: =MAX(AZ18,AZ19) -> 1.271994119 | BA20: 0.379285728 | BB20: 0 | BC20: 0 | BD20: 0 | BE20: 0 | BF20: 0
Q21: ='Calculation Sheet'!F19 -> 1.75 | W21: =1-(1/W8)^(-0.75) -> 0.5635024098 | X21: =1-(1/X8)^(-0.75) -> -0.419925275 | Y21: -2.42880668 | Z21: -4.651072129 | AA21: -6.522497232 | AB21: -13.25793095 | AC21: -16.51536302 | AD21: -28.67256602 | AJ21: =AJ20 -> -2.577795146 | AK21: =AK20 -> -2.758295969 | AL21: -3.853928949 | AM21: -5.373324864 | AN21: -7.17017733 | AO21: -9.123061232 | AP21: -10.87402153 | AQ21: -12.6885055 | AX21: y | AY21: =-3*$BG21*LOG10($Q$17/W$47)-1.2*$BG21 -> -1.378272092 | AZ21: -0.9267270983 | BA21: -0.480372903 | BB21: -0.02882790952 | BC21: 0.422717084 | BD21: 0.8742620775 | BE21: 1.325807071 | BF21: 1.777352064 | BG21: =(Q19-$Q$7/1000)/($Q$7/1000) -> -1
C22: L値 | E22: =30+E20-E16 -> 52.94633093 | F22: =30+F20-F16 -> 43.39188696 | G22: 38.90470032 | H22: 38.32366055 | I22: 33.89697864 | J22: 26.89749307 | K22: 20.07505161 | M22: =MAX(E22,F22,G22,H22,I22,J22,K22) -> 52.94633093 | P22: ='Calculation Sheet'!I19 -> 0 | Q22: ='Calculation Sheet'!J19 -> 0 | W22: =MAX(W20,W21) -> 0.5635024098 | X22: =MAX(X20,X21) -> 0.2957375873 | Y22: 0.7083533447 | Z22: 0.8230424286 | AA22: 0.8670654213 | AB22: 0.9298635964 | AC22: 0.9429072638 | AD22: 0.9662988365 | AH22: c | AJ22: =(AJ19+3)*W22-3 -> -1.985240963 | AK22: =(AK19+3)*X22-3 -> -2.860223188 | AL22: -3.793496711 | AM22: -5.386307156 | AN22: -7.11428779 | AO22: -9.116172431 | AP22: -10.86690848 | AQ22: -12.68346233 | AY22: =MAX(AY21,0) -> 0 | AZ22: =MAX(AZ21,0) -> 0 | BA22: 0 | BB22: 0 | BC22: 0.422717084 | BD22: 0.8742620775 | BE22: 1.325807071 | BF22: 1.777352064
E23: =ROUND(E22,0.1)-2 -> 51 | F23: 41 | G23: 37 | H23: 36 | I23: 32 | J23: 25 | K23: 18 | P23: ='Calculation Sheet'!K19 -> 0 | Q23: ='Calculation Sheet'!L19 -> 0 | U23: s | V23: 2 | W23: =1-W9^(-0.75) -> 0.2375427189 | X23: =1-X9^(-0.75) -> 0.4792032875 | Y23: 0.6650174247 | Z23: 0.8204940629 | AA23: 0.8877418177 | AB23: 0.9263772378 | AC23: 0.9400692832 | AD23: 0.9646236103 | AJ23: =AJ22 -> -1.985240963 | AK23: =AK22 -> -2.860223188 | AL23: -3.793496711 | AM23: -5.386307156 | AN23: -7.11428779 | AO23: -9.116172431 | AP23: -10.86690848 | AQ23: -12.68346233 | AY23: =IF($P$19=1,AY22) -> FALSE | AZ23: =IF($P$19=1,AZ22) -> FALSE | BA23: FALSE | BB23: FALSE | BC23: FALSE | BD23: FALSE | BE23: FALSE | BF23: FALSE
C24: L等級 | E24: =(ROUNDUP(E23/5,0.1))*5 -> 55 | F24: 45 | G24: 40 | H24: 40 | I24: 35 | J24: 25 | K24: 20 | M24: =MAX(E24,F24,G24,H24,I24,J24,K24) -> 55 | Q24: ='Calculation Sheet'!D21 -> 3.3 | W24: =1-(1/W9)^(-0.75) -> -0.3115488892 | X24: =1-(1/X9)^(-0.75) -> -0.9201350084 | Y24: -1.9852299 | Z24: -4.570846382 | AA24: -7.908036633 | AB24: -12.58275579 | AC24: -15.68593426 | AD24: -27.26744073 | AH24: s | AI24: 2 | AJ24: =(AJ19+3)*W25-3 -> -2.572231429 | AK24: =(AK19+3)*X25-3 -> -2.773510333 | AL24: -3.744951856 | AM24: -5.378918493 | AN24: -7.212398778 | AO24: -9.093240928 | AP24: -10.84323051 | AQ24: -12.66667457 | AY24: =IF($P$19=0,W76) -> 11.07696122 | AZ24: =IF($P$19=0,X76) -> 5.056361311 | BA24: 0 | BB24: 0 | BC24: 0 | BD24: 0 | BE24: 0 | BF24: 0
Q25: ='Calculation Sheet'!F21 -> 2.63 | W25: =MAX(W23,W24) -> 0.2375427189 | X25: 0.4792032875 | Y25: 0.6650174247 | Z25: 0.8204940629 | AA25: 0.8877418177 | AB25: 0.9263772378 | AC25: 0.9400692832 | AD25: 0.9646236103 | AJ25: =AJ24 -> -2.572231429 | AK25: =AK24 -> -2.773510333 | AL25: -3.744951856 | AM25: -5.378918493 | AN25: -7.212398778 | AO25: -9.093240928 | AP25: -10.84323051 | AQ25: -12.66667457 | AY25: =MAX(AY23,AY24) -> 11.07696122 | AZ25: =MAX(AZ23,AZ24) -> 5.056361311 | BA25: 0 | BB25: 0 | BC25: 0 | BD25: 0 | BE25: 0 | BF25: 0
C26: 決定ｆ | E26: =IF(E24=$M$24,63) -> 63 | F26: =IF(F24=$M$24,125) -> FALSE | G26: =IF(G24=$M$24,250) -> FALSE | H26: =IF(H24=$M$24,500) -> FALSE | I26: =IF(I24=$M$24,1000) -> FALSE | J26: =IF(J24=$M$24,2000) -> FALSE | K26: =IF(K24=$M$24,4000) -> FALSE | M26: =MIN(E26,F26,G26,H26,I26,J26,K26) -> 63 | P26: ='Calculation Sheet'!I21 -> 0 | Q26: ='Calculation Sheet'!J21 -> 0 | U26: c | W26: =1-W10^(-0.75) -> -0.04455927992 | X26: =1-X10^(-0.75) -> 0.4878560851 | Y26: 0.5857723581 | Z26: 0.7968016368 | AA26: 0.8781369054 | AB26: 0.9246592533 | AC26: 0.9386708021 | AD26: 0.9637981035 | AH26: c | AJ26: =(AJ19+3)*W28-3 -> -2.923180368 | AK26: =(AK19+3)*X28-3 -> -2.769420692 | AL26: -3.656181612 | AM26: -5.310225308 | AN26: -7.166822778 | AO26: -9.081940894 | AP26: -10.83156264 | AQ26: -12.65840201 | AY26: =SQRT(AY20^2+AY25^2) -> 11.28849241 | AZ26: =SQRT(AZ20^2+AZ25^2) -> 5.213900531 | BA26: 0.379285728 | BB26: 0 | BC26: 0 | BD26: 0 | BE26: 0 | BF26: 0
P27: ='Calculation Sheet'!K21 -> 0 | Q27: ='Calculation Sheet'!L21 -> 0 | W27: =1-(1/W10)^(-0.75) -> 0.0426584501 | X27: =1-(1/X10)^(-0.75) -> -0.9525761624 | Y27: -1.414131503 | Z27: -3.921299485 | AA27: -7.205929803 | AB27: -12.27303011 | AC27: -15.30544723 | AD27: -26.62286223 | AJ27: =AJ26 -> -2.923180368 | AK27: =AK26 -> -2.769420692 | AL27: -3.656181612 | AM27: -5.310225308 | AN27: -7.166822778 | AO27: -9.081940894 | AP27: -10.83156264 | AQ27: -12.65840201 | AV27: 小梁による端部拘束 加振点2(dB) | AW27: s | AX27: x | AY27: =-3*$BG27*LOG10($Q$20/W$47)-1.2*$BG27 -> -0.1844520658 | AZ27: 0.2670929277 | BA27: 0.713447123 | BB27: 1.164992116 | BC27: 1.61653711 | BD27: 2.068082103 | BE27: 2.519627097 | BF27: 2.97117209 | BG27: =(Q22-$Q$7/1000)/($Q$7/1000) -> -1
Q28: ='Calculation Sheet'!D23 -> 1e-07 | W28: =MAX(W26,W27) -> 0.0426584501 | X28: 0.4878560851 | Y28: 0.5857723581 | Z28: 0.7968016368 | AA28: 0.8781369054 | AB28: 0.9246592533 | AC28: 0.9386708021 | AD28: 0.9637981035 | AH28: s | AI28: 3 | AJ28: =(AJ19+3)*W31-3 -> -2.654613477 | AK28: =(AK19+3)*X31-3 -> -2.762467024 | AL28: -3.790177005 | AM28: -5.38040639 | AN28: -7.222548922 | AO28: -9.088236015 | AP28: -10.83806268 | AQ28: -12.66301056 | AY28: =MAX(AY27,0) -> 0 | AZ28: =MAX(AZ27,0) -> 0.2670929277 | BA28: 0.713447123 | BB28: 1.164992116 | BC28: 1.61653711 | BD28: 2.068082103 | BE28: 2.519627097 | BF28: 2.97117209
Q29: ='Calculation Sheet'!F23 -> 1e-07 | U29: s | V29: 3 | W29: =1-W11^(-0.75) -> -0.2373104872 | X29: =1-X11^(-0.75) -> 0.5025685462 | Y29: 0.7053898483 | Z29: 0.8210072419 | AA29: 0.8898809095 | AB29: 0.9256163229 | AC29: 0.9394498801 | AD29: 0.9642579839 | AJ29: =AJ28 -> -2.654613477 | AK29: =AK28 -> -2.762467024 | AL29: -3.790177005 | AM29: -5.38040639 | AN29: -7.222548922 | AO29: -9.088236015 | AP29: -10.83806268 | AQ29: -12.66301056 | AY29: =IF($P$22=1,AY28) -> FALSE | AZ29: =IF($P$22=1,AZ28) -> FALSE | BA29: FALSE | BB29: FALSE | BC29: FALSE | BD29: FALSE | BE29: FALSE | BF29: FALSE
P30: ='Calculation Sheet'!I23 -> 0 | Q30: ='Calculation Sheet'!J23 -> 0 | W30: =1-(1/W11)^(-0.75) -> 0.1917954221 | X30: =1-(1/X11)^(-0.75) -> -1.010327237 | Y30: -2.394316164 | Z30: -4.586818208 | AA30: -8.081077546 | AB30: -12.44380971 | AC30: -15.51524392 | AD30: -26.97827628 | AH30: c | AJ30: =(AJ19+3)*W34-3 -> -2.785371236 | AK30: =(AK19+3)*X34-3 -> -2.894623661 | AL30: -3.734203724 | AM30: -5.331937461 | AN30: -7.204717457 | AO30: -9.087918587 | AP30: -10.83773492 | AQ30: -12.66277818 | AY30: =IF($P$22=0,W79) -> 0 | AZ30: =IF($P$22=0,X79) -> 0 | BA30: 0 | BB30: 0 | BC30: 0 | BD30: 0 | BE30: 0 | BF30: 0
P31: ='Calculation Sheet'!K23 -> 0 | Q31: ='Calculation Sheet'!L23 -> 0 | W31: =MAX(W29,W30) -> 0.1917954221 | X31: 0.5025685462 | Y31: 0.7053898483 | Z31: 0.8210072419 | AA31: 0.8898809095 | AB31: 0.9256163229 | AC31: 0.9394498801 | AD31: 0.9642579839 | AJ31: =AJ30 -> -2.785371236 | AK31: =AK30 -> -2.894623661 | AL31: -3.734203724 | AM31: -5.331937461 | AN31: -7.204717457 | AO31: -9.087918587 | AP31: -10.83773492 | AQ31: -12.66277818 | AY31: =MAX(AY29,AY30) -> 0 | AZ31: 0 | BA31: 0 | BB31: 0 | BC31: 0 | BD31: 0 | BE31: 0 | BF31: 0
Q32: ='Calculation Sheet'!D25 -> 1e-07 | U32: c | W32: =1-W12^(-0.75) -> 0.1191847733 | X32: =1-X12^(-0.75) -> 0.2229536072 | Y32: 0.6554225832 | Z32: 0.8042902047 | AA32: 0.8861230182 | AB32: 0.9255680633 | AC32: 0.9394105955 | AD32: 0.9642347947 | AH32: s | AI32: 4 | AJ32: =(AJ19+3)*W37-3 -> -1.199193083 | AK32: =(AK19+3)*X37-3 -> -2.527362034 | AL32: -4.120199003 | AM32: -5.899373193 | AN32: -7.745071917 | AO32: -9.577494186 | AP32: -11.34324725 | AQ32: -13.02118792 | AX32: y | AY32: =-3*$BG32*LOG10($Q$21/W$47)-1.2*$BG32 -> -0.4826059622 | AZ32: -0.03106096874 | BA32: 0.4152932266 | BB32: 0.8668382201 | BC32: 1.318383214 | BD32: 1.769928207 | BE32: 2.221473201 | BF32: 2.673018194 | BG32: =(Q23-$Q$7/1000)/($Q$7/1000) -> -1
Q33: ='Calculation Sheet'!F25 -> 1e-07 | W33: =1-(1/W12)^(-0.75) -> -0.1353118902 | X33: =1-(1/X12)^(-0.75) -> -0.2869244478 | Y33: -1.902105452 | Z33: -4.109606285 | AA33: -7.781405898 | AB33: -12.43509311 | AC33: -15.50453588 | AD33: -26.96013591 | AJ33: =AJ32 -> -1.199193083 | AK33: =AK32 -> -2.527362034 | AL33: -4.120199003 | AM33: -5.899373193 | AN33: -7.745071917 | AO33: -9.577494186 | AP33: -11.34324725 | AQ33: -13.02118792 | AY33: =MAX(AY32,0) -> 0 | AZ33: =MAX(AZ32,0) -> 0 | BA33: 0.4152932266 | BB33: 0.8668382201 | BC33: 1.318383214 | BD33: 1.769928207 | BE33: 2.221473201 | BF33: 2.673018194
N34: =SQRT(Q4*(Q7/1000)^3/12/(1-Q6^2)/(Q5*Q7/1000)) -> 203.3125152 | P34: ='Calculation Sheet'!I25 -> 0 | Q34: ='Calculation Sheet'!J25 -> 0 | W34: =MAX(W32,W33) -> 0.1191847733 | X34: 0.2229536072 | Y34: 0.6554225832 | Z34: 0.8042902047 | AA34: 0.8861230182 | AB34: 0.9255680633 | AC34: 0.9394105955 | AD34: 0.9642347947 | AH34: c | AJ34: =(AJ19+3)*W40-3 -> -1.199193083 | AK34: =(AK19+3)*X40-3 -> -2.527362034 | AL34: -4.120199003 | AM34: -5.899373193 | AN34: -7.745071919 | AO34: -9.577494189 | AP34: -11.34324725 | AQ34: -13.02118792 | AY34: =IF($P$23=1,AY33) -> FALSE | AZ34: =IF($P$23=1,AZ33) -> FALSE | BA34: FALSE | BB34: FALSE | BC34: FALSE | BD34: FALSE | BE34: FALSE | BF34: FALSE
P35: ='Calculation Sheet'!K25 -> 0 | Q35: ='Calculation Sheet'!L25 -> 0 | U35: s | V35: 4 | W35: =1-W13^(-0.75) -> -3.472379312e+10 | X35: =1-X13^(-0.75) -> -1.125760834e+10 | Y35: -3915025467 | Z35: -1380893488 | AA35: -493104013.1 | AB35: -189542316.7 | AC35: -154292049.7 | AD35: -91076762.53 | AJ35: =AJ34 -> -1.199193083 | AK35: =AK34 -> -2.527362034 | AL35: -4.120199003 | AM35: -5.899373193 | AN35: -7.745071919 | AO35: -9.577494189 | AP35: -11.34324725 | AQ35: -13.02118792 | AY35: =IF($P$23=0,W81) -> 0 | AZ35: =IF($P$23=0,X81) -> 0 | BA35: 0 | BB35: 0 | BC35: 0 | BD35: 0 | BE35: 0 | BF35: 0
N36: 340 | Q36: =SQRT(Q4/Q5/(1-Q6^2)) -> 3521.476061 | W36: =1-(1/W13)^(-0.75) -> 1 | X36: =1-(1/X13)^(-0.75) -> 0.9999999999 | Y36: 0.9999999997 | Z36: 0.9999999993 | AA36: 0.999999998 | AB36: 0.9999999947 | AC36: 0.9999999935 | AD36: 0.999999989 | AH36: s | AI36: 5 | AJ36: =(AJ19+3)*W43-3 -> -1.199193083 | AK36: =(AK19+3)*X43-3 -> -2.527362034 | AL36: -4.120199003 | AM36: -5.899373193 | AN36: -7.745071917 | AO36: -9.577494186 | AP36: -11.34324725 | AQ36: -13.02118792 | AY36: =MAX(AY34,AY35) -> 0 | AZ36: 0 | BA36: 0 | BB36: 0 | BC36: 0 | BD36: 0 | BE36: 0 | BF36: 0
Q37: =3.14/2*N34*(1/Q9^2+1/Q10^2) -> 11.50470658 | W37: =MAX(W35,W36) -> 1 | X37: 0.9999999999 | Y37: 0.9999999997 | Z37: 0.9999999993 | AA37: 0.999999998 | AB37: 0.9999999947 | AC37: 0.9999999935 | AD37: 0.999999989 | AJ37: =AJ36 -> -1.199193083 | AK37: =AK36 -> -2.527362034 | AL37: -4.120199003 | AM37: -5.899373193 | AN37: -7.745071917 | AO37: -9.577494186 | AP37: -11.34324725 | AQ37: -13.02118792 | AY37: =SQRT(AY31^2+AY36^2) -> 0 | AZ37: 0 | BA37: 0 | BB37: 0 | BC37: 0 | BD37: 0 | BE37: 0 | BF37: 0
Q38: =2*3.14/3*N34*SQRT((1/Q9^2+1/Q10^2)^2+2*(1/Q9^4+1/Q10^4)) -> 23.22882452 | U38: c | W38: =1-W14^(-0.75) -> -6.514763538e+10 | X38: =1-X14^(-0.75) -> -1.762276516e+10 | Y38: -5539399419 | Z38: -1740938713 | AA38: -575076159.6 | AB38: -205850568.1 | AC38: -167567362.4 | AD38: -98913021.82 | AH38: c | AJ38: =(AJ19+3)*W46-3 -> -1.199193083 | AK38: =(AK19+3)*X46-3 -> -2.527362034 | AL38: -4.120199003 | AM38: -5.899373193 | AN38: -7.745071919 | AO38: -9.577494189 | AP38: -11.34324725 | AQ38: -13.02118792 | AW38: c | AX38: x | AY38: =-3*$BG38*LOG10($Q$20/W$47)-1.2*$BG38 -> -0.1844520658 | AZ38: 0.2670929277 | BA38: 0.713447123 | BB38: 1.164992116 | BC38: 1.61653711 | BD38: 2.068082103 | BE38: 2.519627097 | BF38: 2.97117209 | BG38: =(Q22-$Q$7/1000)/($Q$7/1000) -> -1
Q39: =N36^2/2/3.14/N34 -> 90.53866307 | W39: =1-(1/W14)^(-0.75) -> 1 | X39: =1-(1/X14)^(-0.75) -> 0.9999999999 | Y39: 0.9999999998 | Z39: 0.9999999994 | AA39: 0.9999999983 | AB39: 0.9999999951 | AC39: 0.999999994 | AD39: 0.9999999899 | AJ39: =AJ38 -> -1.199193083 | AK39: =AK38 -> -2.527362034 | AL39: -4.120199003 | AM39: -5.899373193 | AN39: -7.745071919 | AO39: -9.577494189 | AP39: -11.34324725 | AQ39: -13.02118792 | AY39: =MAX(AY38,0) -> 0 | AZ39: =MAX(AZ38,0) -> 0.2670929277 | BA39: 0.713447123 | BB39: 1.164992116 | BC39: 1.61653711 | BD39: 2.068082103 | BE39: 2.519627097 | BF39: 2.97117209
Q40: =SQRT(Q11*Q12/3.14) -> 2.214601228 | W40: =MAX(W38,W39) -> 1 | X40: 0.9999999999 | Y40: 0.9999999998 | Z40: 0.9999999994 | AA40: 0.9999999983 | AB40: 0.9999999951 | AC40: 0.999999994 | AD40: 0.9999999899 | AG40: 音響放射率 | AJ40: =$Q$43+20*LOG10(AJ4/$Q$37) -> -4.274074567 | AK40: 1.746525346 | AL40: 7.697914617 | AM40: 13.71851453 | AN40: 19.73911444 | AO40: 25.75971436 | AP40: 31.78031427 | AQ40: 37.80091418 | AY40: =IF($P$22=1,AY39) -> FALSE | AZ40: =IF($P$22=1,AZ39) -> FALSE | BA40: FALSE | BB40: FALSE | BC40: FALSE | BD40: FALSE | BE40: FALSE | BF40: FALSE
Q41: =8*SQRT(Q4*(Q7/1000)^3/(12*(1-Q6^2))*Q5*Q7/1000) -> 780720.0584 | U41: s | V41: 1 | W41: =1-W15^(-0.75) -> -3.472379312e+10 | X41: =1-X15^(-0.75) -> -1.125760834e+10 | Y41: -3915025467 | Z41: -1380893488 | AA41: -493104013.1 | AB41: -189542316.7 | AC41: -154292049.7 | AD41: -91076762.53 | AJ41: =MIN(AJ40,0) -> -4.274074567 | AK41: =MIN(AK40,0) -> 0 | AL41: 0 | AM41: 0 | AN41: 0 | AO41: 0 | AP41: 0 | AQ41: 0 | AR41: =Q11*Q12 -> 15.4 | AY41: =IF($P$22=0,W84) -> 0 | AZ41: =IF($P$22=0,X84) -> 0 | BA41: 0 | BB41: 0 | BC41: 0 | BD41: 0 | BE41: 0 | BF41: 0
N42: ramd | Q42: =N36/Q39 -> 3.755301751 | W42: =1-(1/W15)^(-0.75) -> 1 | X42: =1-(1/X15)^(-0.75) -> 0.9999999999 | Y42: 0.9999999997 | Z42: 0.9999999993 | AA42: 0.999999998 | AB42: 0.9999999947 | AC42: 0.9999999935 | AD42: 0.999999989 | AJ42: =$Q$43*LOG10($Q$39/AJ4)/(LOG10($Q$39/$Q$37)) -> -6.664648353 | AK42: -2.289171497 | AL42: 2.036006457 | AM42: 6.411483313 | AN42: 10.78696017 | AO42: 15.16243702 | AP42: 19.53791388 | AQ42: 23.91339074 | AY42: =MAX(AY40,AY41) -> 0 | AZ42: =MAX(AZ40,AZ41) -> 0 | BA42: 0 | BB42: 0 | BC42: 0 | BD42: 0 | BE42: 0 | BF42: 0
N43: sig0 | P43: =10*LOG10(Q42^2*Q11*Q12/(Q9*Q10)^2) -> -13.02277471 | Q43: =MIN($P$43,0) -> -13.02277471 | W43: =MAX(W41,W42) -> 1 | X43: 0.9999999999 | Y43: 0.9999999997 | Z43: 0.9999999993 | AA43: 0.999999998 | AB43: 0.9999999947 | AC43: 0.9999999935 | AD43: 0.999999989 | AJ43: =MIN(AJ42,0) -> -6.664648353 | AK43: =MIN(AK42,0) -> -2.289171497 | AL43: 0 | AM43: 0 | AN43: 0 | AO43: 0 | AP43: 0 | AQ43: 0 | AX43: y | AY43: =-3*$BG43*LOG10($Q$21/W$47)-1.2*$BG43 -> -0.4826059622 | AZ43: -0.03106096874 | BA43: 0.4152932266 | BB43: 0.8668382201 | BC43: 1.318383214 | BD43: 1.769928207 | BE43: 2.221473201 | BF43: 2.673018194 | BG43: =(Q23-$Q$7/1000)/($Q$7/1000) -> -1
N44: lx/ly | P44: =Q9/Q10 -> 1.833333333 | Q44: =MIN(P44,3) -> 1.833333333 | U44: c | W44: =1-W16^(-0.75) -> -6.514763538e+10 | X44: =1-X16^(-0.75) -> -1.762276516e+10 | Y44: -5539399419 | Z44: -1740938713 | AA44: -575076159.6 | AB44: -205850568.1 | AC44: -167567362.4 | AD44: -98913021.82 | AJ44: =MIN(AJ41,AJ43) -> -6.664648353 | AK44: =MIN(AK41,AK43) -> -2.289171497 | AL44: 0 | AM44: 0 | AN44: 0 | AO44: 0 | AP44: 0 | AQ44: 0 | AY44: =MAX(AY43,0) -> 0 | AZ44: =MAX(AZ43,0) -> 0 | BA44: 0.4152932266 | BB44: 0.8668382201 | BC44: 1.318383214 | BD44: 1.769928207 | BE44: 2.221473201 | BF44: 2.673018194
W45: =1-(1/W16)^(-0.75) -> 1 | X45: =1-(1/X16)^(-0.75) -> 0.9999999999 | Y45: 0.9999999998 | Z45: 0.9999999994 | AA45: 0.9999999983 | AB45: 0.9999999951 | AC45: 0.999999994 | AD45: 0.9999999899 | AG45: 10log(F/A) | AJ45: =10*LOG10($Q$11*$Q$12/(W6*($Q$11*$Q$12+$Q$12*$Q$13+$Q$11*$Q$13)*2)) -> 3.5043757 | AK45: =10*LOG10($Q$11*$Q$12/(X6*($Q$11*$Q$12+$Q$12*$Q$13+$Q$11*$Q$13)*2)) -> 3.5043757 | AL45: 3.5043757 | AM45: 3.5043757 | AN45: 1.74346311 | AO45: 1.74346311 | AP45: 0.4940757435 | AQ45: 0.4940757435 | AY45: =IF($P$23=1,AY44) -> FALSE | AZ45: =IF($P$23=1,AZ44) -> FALSE | BA45: FALSE | BB45: FALSE | BC45: FALSE | BD45: FALSE | BE45: FALSE | BF45: FALSE
W46: =MAX(W44,W45) -> 1 | X46: 0.9999999999 | Y46: 0.9999999998 | Z46: 0.9999999994 | AA46: 0.9999999983 | AB46: 0.9999999951 | AC46: 0.999999994 | AD46: 0.9999999899 | AG46: 床衝撃音レベル(dB) 補正前 | AH46: s | AI46: 1 | AJ46: =AJ$44+W$5-AJ5+AJ$21+AJ$45+152.1 -> 82.29676078 | AK46: =AK$44+X$5-AK5+AK$21+AK$45+152.1 -> 76.13341593 | AL46: 55.52125427 | AM46: 43.88114409 | AN46: 34.32337903 | AO46: 26.87049513 | AP46: 18.87014746 | AQ46: 12.05566349 | AY46: =IF($P$23=0,W86) -> 0 | AZ46: =IF($P$23=0,X86) -> 0 | BA46: 0 | BB46: 0 | BC46: 0 | BD46: 0 | BE46: 0 | BF46: 0
T47: 曲げ波の波長(m) | W47: =SQRT(3.14*$Q$36*$Q$7/1000/W4/1.73205) -> 6.366587361 | X47: 4.501857096 | Y47: 3.19600149 | Z47: 2.259914326 | AA47: 1.598000745 | AB47: 1.129957163 | AC47: 0.7990003726 | AD47: 0.5649785816 | AH47: c | AJ47: =AJ$44+W$5-AJ6+AJ$23+AJ$45+152.1 -> 68.3941564 | AK47: =AK$44+X$5-AK6+AK$23+AK$45+152.1 -> 76.72618659 | AL47: 56.04546058 | AM47: 43.8681618 | AN47: 34.37926857 | AO47: 26.87738393 | AP47: 18.87726051 | AQ47: 12.06070666 | AY47: =MAX(AY45,AY46) -> 0 | AZ47: =MAX(AZ45,AZ46) -> 0 | BA47: 0 | BB47: 0 | BC47: 0 | BD47: 0 | BE47: 0 | BF47: 0
T48: 共振による低下量(dB) | U48: s | V48: 1 | W48: =21.5*W19-20*LOG10(2.2925*($Q$44/(1+$Q$44^2))*LN(1/2/$Q$8^2)) -> -10.65262825 | X48: =21.5*X19-20*LOG10(2.2925*($Q$44/(1+$Q$44^2))*LN(1/2/$Q$8^2)) -> -4.698408568 | Y48: 0.6961029819 | Z48: 1.905772401 | AA48: 3.201772017 | AB48: 4.321213916 | AC48: 4.597465044 | AD48: 5.092873898 | AH48: s | AI48: 2 | AJ48: =AJ$44+W$5-AJ7+AJ$25+AJ$45+152.1 -> 86.10379169 | AK48: =AK$44+X$5-AK7+AK$25+AK$45+152.1 -> 78.08228742 | AL48: 57.40501344 | AM48: 43.87555046 | AN48: 34.28115758 | AO48: 26.90031543 | AP48: 18.90093848 | AQ48: 12.07749442 | AY48: =SQRT(AY42^2+AY47^2) -> 0 | AZ48: =SQRT(AZ42^2+AZ47^2) -> 0 | BA48: 0 | BB48: 0 | BC48: 0 | BD48: 0 | BE48: 0 | BF48: 0
W49: =MIN(W48,0) -> -10.65262825 | X49: -4.698408568 | Y49: 0 | Z49: 0 | AA49: 0 | AB49: 0 | AC49: 0 | AD49: 0 | AH49: c | AJ49: =AJ$44+W$5-AJ8+AJ$27+AJ$45+152.1 -> 89.94285453 | AK49: =AK$44+X$5-AK8+AK$27+AK$45+152.1 -> 77.90034191 | AL49: 59.19755262 | AM49: 43.94424364 | AN49: 34.32673358 | AO49: 26.91161547 | AP49: 18.91260636 | AQ49: 12.08576698 | AV49: 小梁による端部拘束 加振点3(dB) | AW49: s | AX49: x | AY49: =-3*$BG49*LOG10($Q$24/W$47)-1.2*$BG49 -> 0.3438217113 | AZ49: 0.7953667048 | BA49: 1.2417209 | BB49: 1.693265894 | BC49: 2.144810887 | BD49: 2.596355881 | BE49: 3.047900874 | BF49: 3.499445868 | BG49: =(Q26-$Q$7/1000)/($Q$7/1000) -> -1
U50: c | W50: =21.5*W22-20*LOG10(2.2925*($Q$44/(1+$Q$44^2))*LN(1/2/$Q$8^2)) -> -3.578069169 | X50: =21.5*X22-20*LOG10(2.2925*($Q$44/(1+$Q$44^2))*LN(1/2/$Q$8^2)) -> -9.335012852 | Y50: -0.4637740696 | Z50: 2.002041234 | AA50: 2.948535579 | AB50: 4.298696342 | AC50: 4.579135192 | AD50: 5.082054004 | AH50: s | AI50: 3 | AJ50: =AJ$44+W$5-AJ9+AJ$29+AJ$45+152.1 -> 87.00497652 | AK50: =AK$44+X$5-AK9+AK$29+AK$45+152.1 -> 77.59097767 | AL50: 56.49178119 | AM50: 43.87406256 | AN50: 34.27100744 | AO50: 26.90532035 | AP50: 18.90610632 | AQ50: 12.08115843 | AY50: =MAX(AY49,0) -> 0.3438217113 | AZ50: =MAX(AZ49,0) -> 0.7953667048 | BA50: 1.2417209 | BB50: 1.693265894 | BC50: 2.144810887 | BD50: 2.596355881 | BE50: 3.047900874 | BF50: 3.499445868
W51: =MIN(W50,0) -> -3.578069169 | X51: -9.335012852 | Y51: -0.4637740696 | Z51: 0 | AA51: 0 | AB51: 0 | AC51: 0 | AD51: 0 | AH51: c | AJ51: =AJ$44+W$5-AJ10+AJ$31+AJ$45+152.1 -> 88.43534772 | AK51: =AK$44+X$5-AK10+AK$31+AK$45+152.1 -> 83.47054222 | AL51: 57.62205067 | AM51: 43.92253149 | AN51: 34.2888389 | AO51: 26.90563777 | AP51: 18.90643408 | AQ51: 12.08139081 | AY51: =IF($P$26=1,AY50) -> FALSE | AZ51: =IF($P$26=1,AZ50) -> FALSE | BA51: FALSE | BB51: FALSE | BC51: FALSE | BD51: FALSE | BE51: FALSE | BF51: FALSE
U52: s | V52: 2 | W52: =21.5*W25-20*LOG10(2.2925*($Q$44/(1+$Q$44^2))*LN(1/2/$Q$8^2)) -> -10.58620252 | X52: =21.5*X25-20*LOG10(2.2925*($Q$44/(1+$Q$44^2))*LN(1/2/$Q$8^2)) -> -5.3905003 | Y52: -1.39549635 | Z52: 1.947251373 | AA52: 3.393078102 | AB52: 4.223739633 | AC52: 4.51811861 | AD52: 5.046036641 | AH52: s | AI52: 4 | AJ52: =AJ$44+W$5-AJ11+AJ$33+AJ$45+152.1 -> -228.1545946 | AK52: =AK$44+X$5-AK11+AK$33+AK$45+152.1 -> -225.5937599 | AL52: -236.4587758 | AM52: -242.2244232 | AN52: -245.3175078 | AO52: -246.1364033 | AP52: -247.638017 | AQ52: -247.8024309 | AY52: =IF($P$26=0,W89) -> 0 | AZ52: =IF($P$26=0,X89) -> 0 | BA52: 0 | BB52: 0 | BC52: 0 | BD52: 0 | BE52: 0 | BF52: 0
W53: =MIN(W52,0) -> -10.58620252 | X53: -5.3905003 | Y53: -1.39549635 | Z53: 0 | AA53: 0 | AB53: 0 | AC53: 0 | AD53: 0 | AH53: c | AJ53: =AJ$44+W$5-AJ12+AJ$35+AJ$45+152.1 -> -331.6138244 | AK53: =AK$44+X$5-AK12+AK$35+AK$45+152.1 -> -327.0521025 | AL53: -335.9392325 | AM53: -339.7039927 | AN53: -340.7961899 | AO53: -339.6141981 | AP53: -339.1149245 | AQ53: -337.2784511 | AY53: =MAX(AY51,AY52) -> 0 | AZ53: =MAX(AZ51,AZ52) -> 0 | BA53: 0 | BB53: 0 | BC53: 0 | BD53: 0 | BE53: 0 | BF53: 0
U54: c | W54: =21.5*W28-20*LOG10(2.2925*($Q$44/(1+$Q$44^2))*LN(1/2/$Q$8^2)) -> -14.7762143 | X54: =21.5*X28-20*LOG10(2.2925*($Q$44/(1+$Q$44^2))*LN(1/2/$Q$8^2)) -> -5.204465151 | Y54: -3.099265281 | Z54: 1.437864212 | AA54: 3.186572486 | AB54: 4.186802965 | AC54: 4.488051265 | AD54: 5.028288245 | AH54: s | AI54: 5 | AJ54: =AJ$44+W$5-AJ13+AJ$37+AJ$45+152.1 -> -228.1545946 | AK54: =AK$44+X$5-AK13+AK$37+AK$45+152.1 -> -225.5937599 | AL54: -236.4587758 | AM54: -242.2244232 | AN54: -245.3175078 | AO54: -246.1364033 | AP54: -247.638017 | AQ54: -247.8024309 | AX54: y | AY54: =-3*$BG54*LOG10($Q$25/W$47)-1.2*$BG54 -> 0.04814713718 | AZ54: 0.4996921307 | BA54: 0.946046326 | BB54: 1.39759132 | BC54: 1.849136313 | BD54: 2.300681306 | BE54: 2.7522263 | BF54: 3.203771293 | BG54: =(Q27-$Q$7/1000)/($Q$7/1000) -> -1
W55: =MIN(W54,0) -> -14.7762143 | X55: -5.204465151 | Y55: -3.099265281 | Z55: 0 | AA55: 0 | AB55: 0 | AC55: 0 | AD55: 0 | AH55: c | AJ55: =AJ$44+W$5-AJ14+AJ$39+AJ$45+152.1 -> -331.6138244 | AK55: =AK$44+X$5-AK14+AK$39+AK$45+152.1 -> -327.0521025 | AL55: -335.9392325 | AM55: -339.7039927 | AN55: -340.7961899 | AO55: -339.6141981 | AP55: -339.1149245 | AQ55: -337.2784511 | AY55: =MAX(AY54,0) -> 0.04814713718 | AZ55: =MAX(AZ54,0) -> 0.4996921307 | BA55: 0.946046326 | BB55: 1.39759132 | BC55: 1.849136313 | BD55: 2.300681306 | BE55: 2.7522263 | BF55: 3.203771293
U56: s | V56: 3 | W56: =21.5*W31-20*LOG10(2.2925*($Q$44/(1+$Q$44^2))*LN(1/2/$Q$8^2)) -> -11.5697694 | X56: =21.5*X31-20*LOG10(2.2925*($Q$44/(1+$Q$44^2))*LN(1/2/$Q$8^2)) -> -4.888147236 | Y56: -0.5274892415 | Z56: 1.958284721 | AA56: 3.439068575 | AB56: 4.207379964 | AC56: 4.504801442 | AD56: 5.038175675 | AG56: Fast-Peak補正(dB) | AJ56: 4 | AK56: 4 | AL56: 4 | AM56: 4 | AN56: 4 | AO56: 4 | AP56: 4 | AQ56: 4 | AY56: =IF($P$27=1,AY55) -> FALSE | AZ56: =IF($P$27=1,AZ55) -> FALSE | BA56: FALSE | BB56: FALSE | BC56: FALSE | BD56: FALSE | BE56: FALSE | BF56: FALSE
W57: =MIN(W56,0) -> -11.5697694 | X57: -4.888147236 | Y57: -0.5274892415 | Z57: 0 | AA57: 0 | AB57: 0 | AC57: 0 | AD57: 0 | AG57: 音場補正(dB) | AJ57: -7 | AK57: -7 | AL57: -5 | AM57: -3 | AN57: -1 | AO57: 0 | AP57: 0 | AQ57: 0 | AR57: =Q11*Q12 -> 15.4 | AY57: =IF($P$27=0,W91) -> 0 | AZ57: =IF($P$27=0,X91) -> 0 | BA57: 0 | BB57: 0 | BC57: 0 | BD57: 0 | BE57: 0 | BF57: 0
U58: c | W58: =21.5*W34-20*LOG10(2.2925*($Q$44/(1+$Q$44^2))*LN(1/2/$Q$8^2)) -> -13.13089835 | X58: =21.5*X34-20*LOG10(2.2925*($Q$44/(1+$Q$44^2))*LN(1/2/$Q$8^2)) -> -10.89986843 | Y58: -1.601785442 | Z58: 1.598868422 | AA58: 3.358273911 | AB58: 4.206342381 | AC58: 4.503956824 | AD58: 5.037677107 | AJ58: =IF(AR57<15,-20) -> FALSE | AK58: -7 | AL58: -5 | AM58: -3 | AN58: -1 | AO58: 0 | AP58: 0 | AQ58: 0 | AY58: =MAX(AY56,AY57) -> 0 | AZ58: =MAX(AZ56,AZ57) -> 0 | BA58: 0 | BB58: 0 | BC58: 0 | BD58: 0 | BE58: 0 | BF58: 0
W59: =MIN(W58,0) -> -13.13089835 | X59: -10.89986843 | Y59: -1.601785442 | Z59: 0 | AA59: 0 | AB59: 0 | AC59: 0 | AD59: 0 | AJ59: =MIN(AJ57,AJ58) -> -7 | AK59: -7 | AL59: -5 | AM59: -3 | AN59: 0 | AO59: 0 | AP59: 0 | AQ59: 0 | AY59: =SQRT(AY53^2+AY58^2) -> 0 | AZ59: =SQRT(AZ53^2+AZ58^2) -> 0 | BA59: 0 | BB59: 0 | BC59: 0 | BD59: 0 | BE59: 0 | BF59: 0
U60: s | V60: 4 | W60: =21.5*W37-20*LOG10(2.2925*($Q$44/(1+$Q$44^2))*LN(1/2/$Q$8^2)) -> 5.80662902 | X60: =21.5*X37-20*LOG10(2.2925*($Q$44/(1+$Q$44^2))*LN(1/2/$Q$8^2)) -> 5.806629018 | Y60: 5.806629015 | Z60: 5.806629005 | AA60: 5.806628977 | AB60: 5.806628907 | AC60: 5.806628881 | AD60: 5.806628784 | AG60: 床衝撃音レベル(dB) 補正後 | AH60: s | AI60: 1 | AJ60: =AJ46+AJ$56+AJ$59 -> 79.29676078 | AK60: 73.13341593 | AL60: 54.52125427 | AM60: 44.88114409 | AN60: 38.32337903 | AO60: 30.87049513 | AP60: 22.87014746 | AQ60: 16.05566349 | AW60: c | AX60: x | AY60: =-3*$BG60*LOG10($Q$24/W$47)-1.2*$BG60 -> 0.3438217113 | AZ60: 0.7953667048 | BA60: 1.2417209 | BB60: 1.693265894 | BC60: 2.144810887 | BD60: 2.596355881 | BE60: 3.047900874 | BF60: 3.499445868 | BG60: =(Q26-$Q$7/1000)/($Q$7/1000) -> -1
W61: =MIN(W60,0) -> 0 | X61: 0 | Y61: 0 | Z61: 0 | AA61: 0 | AB61: 0 | AC61: 0 | AD61: 0 | AI61: 2 | AJ61: =AJ48+AJ$56+AJ$59 -> 83.10379169 | AK61: 75.08228742 | AL61: 56.40501344 | AM61: 44.87555046 | AN61: 38.28115758 | AO61: 30.90031543 | AP61: 22.90093848 | AQ61: 16.07749442 | AY61: =MAX(AY60,0) -> 0.3438217113 | AZ61: =MAX(AZ60,0) -> 0.7953667048 | BA61: 1.2417209 | BB61: 1.693265894 | BC61: 2.144810887 | BD61: 2.596355881 | BE61: 3.047900874 | BF61: 3.499445868
U62: c | W62: =21.5*W40-20*LOG10(2.2925*($Q$44/(1+$Q$44^2))*LN(1/2/$Q$8^2)) -> 5.80662902 | X62: =21.5*X40-20*LOG10(2.2925*($Q$44/(1+$Q$44^2))*LN(1/2/$Q$8^2)) -> 5.806629019 | Y62: 5.806629016 | Z62: 5.806629008 | AA62: 5.806628983 | AB62: 5.806628916 | AC62: 5.806628892 | AD62: 5.806628803 | AI62: 3 | AJ62: =AJ50+AJ$56+AJ$59 -> 84.00497652 | AK62: 74.59097767 | AL62: 55.49178119 | AM62: 44.87406256 | AN62: 38.27100744 | AO62: 30.90532035 | AP62: 22.90610632 | AQ62: 16.08115843 | AY62: =IF($P$26=1,AY61) -> FALSE | AZ62: =IF($P$26=1,AZ61) -> FALSE | BA62: FALSE | BB62: FALSE | BC62: FALSE | BD62: FALSE | BE62: FALSE | BF62: FALSE
W63: =MIN(W62,0) -> 0 | X63: 0 | Y63: 0 | Z63: 0 | AA63: 0 | AB63: 0 | AC63: 0 | AD63: 0 | AI63: 4 | AJ63: =AJ52+AJ$56+AJ$59 -> -231.1545946 | AK63: -228.5937599 | AL63: -237.4587758 | AM63: -241.2244232 | AN63: -241.3175078 | AO63: -242.1364033 | AP63: -243.638017 | AQ63: -243.8024309 | AY63: =IF($P$26=0,W94) -> 0 | AZ63: =IF($P$26=0,X94) -> 0 | BA63: 0 | BB63: 0 | BC63: 0 | BD63: 0 | BE63: 0 | BF63: 0
U64: s | V64: 5 | W64: =21.5*W43-20*LOG10(2.2925*($Q$44/(1+$Q$44^2))*LN(1/2/$Q$8^2)) -> 5.80662902 | X64: =21.5*X43-20*LOG10(2.2925*($Q$44/(1+$Q$44^2))*LN(1/2/$Q$8^2)) -> 5.806629018 | Y64: 5.806629015 | Z64: 5.806629005 | AA64: 5.806628977 | AB64: 5.806628907 | AC64: 5.806628881 | AD64: 5.806628784 | AI64: 5 | AJ64: =AJ54+AJ$56+AJ$59 -> -231.1545946 | AK64: -228.5937599 | AL64: -237.4587758 | AM64: -241.2244232 | AN64: -241.3175078 | AO64: -242.1364033 | AP64: -243.638017 | AQ64: -243.8024309 | AY64: =MAX(AY62,AY63) -> 0 | AZ64: =MAX(AZ62,AZ63) -> 0 | BA64: 0 | BB64: 0 | BC64: 0 | BD64: 0 | BE64: 0 | BF64: 0
W65: =MIN(W64,0) -> 0 | X65: =MIN(X64,0) -> 0 | Y65: 0 | Z65: 0 | AA65: 0 | AB65: 0 | AC65: 0 | AD65: 0 | AH65: c | AI65: 1 | AJ65: =AJ47+AJ$56+AJ$59 -> 65.3941564 | AK65: 73.72618659 | AL65: 55.04546058 | AM65: 44.8681618 | AN65: 38.37926857 | AO65: 30.87738393 | AP65: 22.87726051 | AQ65: 16.06070666 | AX65: y | AY65: =-3*$BG65*LOG10($Q$25/W$47)-1.2*$BG65 -> 0.04814713718 | AZ65: 0.4996921307 | BA65: 0.946046326 | BB65: 1.39759132 | BC65: 1.849136313 | BD65: 2.300681306 | BE65: 2.7522263 | BF65: 3.203771293 | BG65: =(Q27-$Q$7/1000)/($Q$7/1000) -> -1
U66: c | W66: =21.5*W46-20*LOG10(2.2925*($Q$44/(1+$Q$44^2))*LN(1/2/$Q$8^2)) -> 5.80662902 | X66: =21.5*X46-20*LOG10(2.2925*($Q$44/(1+$Q$44^2))*LN(1/2/$Q$8^2)) -> 5.806629019 | Y66: 5.806629016 | Z66: 5.806629008 | AA66: 5.806628983 | AB66: 5.806628916 | AC66: 5.806628892 | AD66: 5.806628803 | AI66: 2 | AJ66: =AJ49+AJ$56+AJ$59 -> 86.94285453 | AK66: 74.90034191 | AL66: 58.19755262 | AM66: 44.94424364 | AN66: 38.32673358 | AO66: 30.91161547 | AP66: 22.91260636 | AQ66: 16.08576698 | AY66: =MAX(AY65,0) -> 0.04814713718 | AZ66: =MAX(AZ65,0) -> 0.4996921307 | BA66: 0.946046326 | BB66: 1.39759132 | BC66: 1.849136313 | BD66: 2.300681306 | BE66: 2.7522263 | BF66: 3.203771293
W67: =MIN(W66,0) -> 0 | X67: =MIN(X66,0) -> 0 | Y67: 0 | Z67: 0 | AA67: 0 | AB67: 0 | AC67: 0 | AD67: 0 | AI67: 3 | AJ67: =AJ51+AJ$56+AJ$59 -> 85.43534772 | AK67: 80.47054222 | AL67: 56.62205067 | AM67: 44.92253149 | AN67: 38.2888389 | AO67: 30.90563777 | AP67: 22.90643408 | AQ67: 16.08139081 | AY67: =IF($P$27=1,AY66) -> FALSE | AZ67: =IF($P$27=1,AZ66) -> FALSE | BA67: FALSE | BB67: FALSE | BC67: FALSE | BD67: FALSE | BE67: FALSE | BF67: FALSE
T68: 拘束による増加量(dB) | U68: s | V68: 1 | W68: =-30.6*LOG10($Q$16/W$47)-23.1 -> 0.2329289387 | X68: -4.372829995 | Y68: -8.925642787 | Z68: -13.53140172 | AA68: -18.13716065 | AB68: -22.74291959 | AC68: -27.34867852 | AD68: -31.95443746 | AI68: 4 | AJ68: =AJ53+AJ$56+AJ$59 -> -334.6138244 | AK68: -330.0521025 | AL68: -336.9392325 | AM68: -338.7039927 | AN68: -336.7961899 | AO68: -335.6141981 | AP68: -335.1149245 | AQ68: -333.2784511 | AY68: =IF($P$27=0,W96) -> 0 | AZ68: =IF($P$27=0,X96) -> 0 | BA68: 0 | BB68: 0 | BC68: 0 | BD68: 0 | BE68: 0 | BF68: 0
W69: =MAX(W68,0) -> 0.2329289387 | X69: =MAX(X68,0) -> 0 | Y69: 0 | Z69: 0 | AA69: 0 | AB69: 0 | AC69: 0 | AD69: 0 | AI69: 5 | AJ69: =AJ55+AJ$56+AJ$59 -> -334.6138244 | AK69: -330.0521025 | AL69: -336.9392325 | AM69: -338.7039927 | AN69: -336.7961899 | AO69: -335.6141981 | AP69: -335.1149245 | AQ69: -333.2784511 | AY69: =MAX(AY67,AY68) -> 0 | AZ69: =MAX(AZ67,AZ68) -> 0 | BA69: 0 | BB69: 0 | BC69: 0 | BD69: 0 | BE69: 0 | BF69: 0
W70: =-30.6*LOG10($Q$17/W$47)-23.1 -> 3.198375337 | X70: -1.407383597 | Y70: -5.960196389 | Z70: -10.56595532 | AA70: -15.17171426 | AB70: -19.77747319 | AC70: -24.38323212 | AD70: -28.98899106 | AG70: 床衝撃音レベル(dB) 補正後 | AH70: s | AI70: 1 | AJ70: =MAX(AJ60,0) -> 79.29676078 | AK70: =MAX(AK60,0) -> 73.13341593 | AL70: 54.52125427 | AM70: 44.88114409 | AN70: 38.32337903 | AO70: 30.87049513 | AP70: 22.87014746 | AQ70: 16.05566349 | AY70: =SQRT(AY64^2+AY69^2) -> 0 | AZ70: =SQRT(AZ64^2+AZ69^2) -> 0 | BA70: 0 | BB70: 0 | BC70: 0 | BD70: 0 | BE70: 0 | BF70: 0
W71: =MAX(W70,0) -> 3.198375337 | X71: =MAX(X70,0) -> 0 | Y71: 0 | Z71: 0 | AA71: 0 | AB71: 0 | AC71: 0 | AD71: 0 | AI71: 2 | AJ71: =MAX(AJ61,0) -> 83.10379169 | AK71: 75.08228742 | AL71: 56.40501344 | AM71: 44.87555046 | AN71: 38.28115758 | AO71: 30.90031543 | AP71: 22.90093848 | AQ71: 16.07749442 | AV71: 小梁による端部拘束 加振点4(dB) | AW71: s | AX71: x | AY71: =-3*$BG71*LOG10($Q$28/W$47)-1.2*$BG71 -> -22.21172011 | AZ71: -21.76017511 | BA71: -21.31382092 | BB71: -20.86227593 | BC71: -20.41073093 | BD71: -19.95918594 | BE71: -19.50764095 | BF71: -19.05609595 | BG71: =(Q30-$Q$7/1000)/($Q$7/1000) -> -1
W72: =SQRT(W69^2+W71^2) -> 3.206845909 | X72: =SQRT(X69^2+X71^2) -> 0 | Y72: 0 | Z72: 0 | AA72: 0 | AB72: 0 | AC72: 0 | AD72: 0 | AI72: 3 | AJ72: 84.00497652 | AK72: 74.59097767 | AL72: 55.49178119 | AM72: 44.87406256 | AN72: 38.27100744 | AO72: 30.90532035 | AP72: 22.90610632 | AQ72: 16.08115843 | AY72: =MAX(AY71,0) -> 0 | AZ72: =MAX(AZ71,0) -> 0 | BA72: 0 | BB72: 0 | BC72: 0 | BD72: 0 | BE72: 0 | BF72: 0
U73: c | W73: =-40*LOG10($Q$16/W$47)-23.3 -> 7.200560704 | X73: 1.179960791 | Y73: -4.77142848 | Z73: -10.79202839 | AA73: -16.81262831 | AB73: -22.83322822 | AC73: -28.85382813 | AD73: -34.87442805 | AI73: 4 | AJ73: 0 | AK73: 0 | AL73: 0 | AM73: 0 | AN73: 0 | AO73: 0 | AP73: 0 | AQ73: 0 | AY73: =IF($P$30=1,AY72) -> FALSE | AZ73: =IF($P$30=1,AZ72) -> FALSE | BA73: FALSE | BB73: FALSE | BC73: FALSE | BD73: FALSE | BE73: FALSE | BF73: FALSE
W74: =MAX(W73,0) -> 7.200560704 | X74: =MAX(X73,0) -> 1.179960791 | Y74: 0 | Z74: 0 | AA74: 0 | AB74: 0 | AC74: 0 | AD74: 0 | AI74: 5 | AJ74: =MAX(AJ64,0) -> 0 | AK74: =MAX(AK64,0) -> 0 | AL74: 0 | AM74: 0 | AN74: 0 | AO74: 0 | AP74: 0 | AQ74: 0 | AY74: =IF($P$30=0,W99) -> 215.6995451 | AZ74: =IF($P$30=0,X99) -> 211.0937862 | BA74: 206.5409734 | BB74: 201.9352144 | BC74: 197.3294555 | BD74: 192.7236966 | BE74: 188.1179376 | BF74: 183.5121787
W75: =-40*LOG10($Q$17/W$47)-23.3 -> 11.07696122 | X75: 5.056361311 | Y75: -0.8950279598 | Z75: -6.915627873 | AA75: -12.93622779 | AB75: -18.9568277 | AC75: -24.97742761 | AD75: -30.99802753 | AH75: c | AI75: 1 | AJ75: =MAX(AJ65,0) -> 65.3941564 | AK75: =MAX(AK65,0) -> 73.72618659 | AL75: 55.04546058 | AM75: 44.8681618 | AN75: 38.37926857 | AO75: 30.87738393 | AP75: 22.87726051 | AQ75: 16.06070666 | AY75: =MAX(AY73,AY74) -> 215.6995451 | AZ75: =MAX(AZ73,AZ74) -> 211.0937862 | BA75: 206.5409734 | BB75: 201.9352144 | BC75: 197.3294555 | BD75: 192.7236966 | BE75: 188.1179376 | BF75: 183.5121787
W76: =MAX(W75,0) -> 11.07696122 | X76: =MAX(X75,0) -> 5.056361311 | Y76: 0 | Z76: 0 | AA76: 0 | AB76: 0 | AC76: 0 | AD76: 0 | AI76: 2 | AJ76: =MAX(AJ66,0) -> 86.94285453 | AK76: 74.90034191 | AL76: 58.19755262 | AM76: 44.94424364 | AN76: 38.32673358 | AO76: 30.91161547 | AP76: 22.91260636 | AQ76: 16.08576698 | AX76: y | AY76: =-3*$BG76*LOG10($Q$29/W$47)-1.2*$BG76 -> -22.21172011 | AZ76: -21.76017511 | BA76: -21.31382092 | BB76: -20.86227593 | BC76: -20.41073093 | BD76: -19.95918594 | BE76: -19.50764095 | BF76: -19.05609595 | BG76: =(Q31-$Q$7/1000)/($Q$7/1000) -> -1
W77: =SQRT(W74^2+W76^2) -> 13.21162914 | X77: =SQRT(X74^2+X76^2) -> 5.192215055 | Y77: 0 | Z77: 0 | AA77: 0 | AB77: 0 | AC77: 0 | AD77: 0 | AI77: 3 | AJ77: 85.43534772 | AK77: 80.47054222 | AL77: 56.62205067 | AM77: 44.92253149 | AN77: 38.2888389 | AO77: 30.90563777 | AP77: 22.90643408 | AQ77: 16.08139081 | AY77: =MAX(AY76,0) -> 0 | AZ77: =MAX(AZ76,0) -> 0 | BA77: 0 | BB77: 0 | BC77: 0 | BD77: 0 | BE77: 0 | BF77: 0
U78: s | V78: 2 | W78: =-30.6*LOG10($Q$20/W$47)-23.1 -> -8.978588929 | X78: -13.58434786 | Y78: -18.13716065 | Z78: -22.74291959 | AA78: -27.34867852 | AB78: -31.95443746 | AC78: -36.56019639 | AD78: -41.16595532 | AI78: 4 | AJ78: 0 | AK78: 0 | AL78: 0 | AM78: 0 | AN78: 0 | AO78: 0 | AP78: 0 | AQ78: 0 | AY78: =IF($P$31=1,AY77) -> FALSE | AZ78: =IF($P$31=1,AZ77) -> FALSE | BA78: FALSE | BB78: FALSE | BC78: FALSE | BD78: FALSE | BE78: FALSE | BF78: FALSE
W79: =MAX(W78,0) -> 0 | X79: 0 | Y79: 0 | Z79: 0 | AA79: 0 | AB79: 0 | AC79: 0 | AD79: 0 | AI79: 5 | AJ79: 0 | AK79: 0 | AL79: 0 | AM79: 0 | AN79: 0 | AO79: 0 | AP79: 0 | AQ79: 0 | AY79: =IF($P$31=0,W101) -> 215.6995451 | AZ79: =IF($P$31=0,X101) -> 211.0937862 | BA79: 206.5409734 | BB79: 201.9352144 | BC79: 197.3294555 | BD79: 192.7236966 | BE79: 188.1179376 | BF79: 183.5121787
W80: =-30.6*LOG10($Q$21/W$47)-23.1 -> -5.937419185 | X80: -10.54317812 | Y80: -15.09599091 | Z80: -19.70174984 | AA80: -24.30750878 | AB80: -28.91326771 | AC80: -33.51902665 | AD80: -38.12478558 | AG80: 平均床衝撃音レベル(dB) | AI80: ｓ | AJ80: =SUM(AJ70:AJ74)/$Q$15 -> 82.13517633 | AK80: =SUM(AK70:AK74)/$Q$15 -> 74.26889367 | AL80: 55.47268297 | AM80: 44.87691904 | AN80: 38.29184802 | AO80: 30.89204364 | AP80: 22.89239742 | AQ80: 16.07143878 | AY80: =MAX(AY78,AY79) -> 215.6995451 | AZ80: =MAX(AZ78,AZ79) -> 211.0937862 | BA80: 206.5409734 | BB80: 201.9352144 | BC80: 197.3294555 | BD80: 192.7236966 | BE80: 188.1179376 | BF80: 183.5121787
W81: =MAX(W80,0) -> 0 | X81: 0 | Y81: 0 | Z81: 0 | AA81: 0 | AB81: 0 | AC81: 0 | AD81: 0 | AI81: ｃ | AJ81: =SUM(AJ75:AJ79)/$Q$15 -> 79.25745288 | AK81: =SUM(AK75:AK79)/$Q$15 -> 76.36569024 | AL81: 56.62168796 | AM81: 44.91164564 | AN81: 38.33161369 | AO81: 30.89821239 | AP81: 22.89876698 | AQ81: 16.07595482 | AY81: =SQRT(AY75^2+AY80^2) -> 305.0452221 | AZ81: =SQRT(AZ75^2+AZ80^2) -> 298.5316953 | BA81: 292.0930457 | BB81: 285.579519 | BC81: 279.0659922 | BD81: 272.5524655 | BE81: 266.0389387 | BF81: 259.525412
W82: =SQRT(W79^2+W81^2) -> 0 | X82: 0 | Y82: 0 | Z82: 0 | AA82: 0 | AB82: 0 | AC82: 0 | AD82: 0 | AG82: 拘束条件考慮 | AJ82: =AJ80+$Q$14*(AJ81-AJ80) -> 79.83299757 | AK82: =AK80+$Q$14*(AK81-AK80) -> 75.94633093 | AL82: 56.39188696 | AM82: 44.90470032 | AN82: 38.32366055 | AO82: 30.89697864 | AP82: 22.89749307 | AQ82: 16.07505161 | AW82: c | AX82: x | AY82: =-3*$BG82*LOG10($Q$28/W$47)-1.2*$BG82 -> -22.21172011 | AZ82: -21.76017511 | BA82: -21.31382092 | BB82: -20.86227593 | BC82: -20.41073093 | BD82: -19.95918594 | BE82: -19.50764095 | BF82: -19.05609595 | BG82: =(Q30-$Q$7/1000)/($Q$7/1000) -> -1
U83: c | W83: =-40*LOG10($Q$20/W$47)-23.3 -> -4.840639122 | X83: -10.86123904 | Y83: -16.81262831 | Z83: -22.83322822 | AA83: -28.85382813 | AB83: -34.87442805 | AC83: -40.89502796 | AD83: -46.91562787 | AY83: =MAX(AY82,0) -> 0 | AZ83: =MAX(AZ82,0) -> 0 | BA83: 0 | BB83: 0 | BC83: 0 | BD83: 0 | BE83: 0 | BF83: 0
W84: =MAX(W83,0) -> 0 | X84: 0 | Y84: 0 | Z84: 0 | AA84: 0 | AB84: 0 | AC84: 0 | AD84: 0 | AY84: =IF($P$30=1,AY83) -> FALSE | AZ84: =IF($P$30=1,AZ83) -> FALSE | BA84: FALSE | BB84: FALSE | BC84: FALSE | BD84: FALSE | BE84: FALSE | BF84: FALSE
W85: =-40*LOG10($Q$21/W$47)-23.3 -> -0.8652538369 | X85: -6.88585375 | Y85: -12.83724302 | Z85: -18.85784293 | AA85: -24.87844285 | AB85: -30.89904276 | AC85: -36.91964267 | AD85: -42.94024259 | AY85: =IF($P$30=0,W104) -> 288.8562681 | AZ85: =IF($P$30=0,X104) -> 282.8356682 | BA85: 276.8842789 | BB85: 270.863679 | BC85: 264.8430791 | BD85: 258.8224792 | BE85: 252.8018793 | BF85: 246.7812794
W86: =MAX(W85,0) -> 0 | X86: 0 | Y86: 0 | Z86: 0 | AA86: 0 | AB86: 0 | AC86: 0 | AD86: 0 | AY86: =MAX(AY84,AY85) -> 288.8562681 | AZ86: =MAX(AZ84,AZ85) -> 282.8356682 | BA86: 276.8842789 | BB86: 270.863679 | BC86: 264.8430791 | BD86: 258.8224792 | BE86: 252.8018793 | BF86: 246.7812794
W87: =SQRT(W84^2+W86^2) -> 0 | X87: 0 | Y87: 0 | Z87: 0 | AA87: 0 | AB87: 0 | AC87: 0 | AD87: 0 | AX87: y | AY87: =-3*$BG87*LOG10($Q$29/W$47)-1.2*$BG87 -> -22.21172011 | AZ87: -21.76017511 | BA87: -21.31382092 | BB87: -20.86227593 | BC87: -20.41073093 | BD87: -19.95918594 | BE87: -19.50764095 | BF87: -19.05609595 | BG87: =(Q31-$Q$7/1000)/($Q$7/1000) -> -1
U88: s | V88: 3 | W88: =-30.6*LOG10($Q$24/W$47)-23.1 -> -14.36698146 | X88: -18.97274039 | Y88: -23.52555318 | Z88: -28.13131212 | AA88: -32.73707105 | AB88: -37.34282998 | AC88: -41.94858892 | AD88: -46.55434785 | AY88: =MAX(AY87,0) -> 0 | AZ88: =MAX(AZ87,0) -> 0 | BA88: 0 | BB88: 0 | BC88: 0 | BD88: 0 | BE88: 0 | BF88: 0
W89: =MAX(W88,0) -> 0 | X89: 0 | Y89: 0 | Z89: 0 | AA89: 0 | AB89: 0 | AC89: 0 | AD89: 0 | AY89: =IF($P$31=1,AY88) -> FALSE | AZ89: =IF($P$31=1,AZ88) -> FALSE | BA89: FALSE | BB89: FALSE | BC89: FALSE | BD89: FALSE | BE89: FALSE | BF89: FALSE
W90: =-30.6*LOG10($Q$25/W$47)-23.1 -> -11.3511008 | X90: -15.95685973 | Y90: -20.50967253 | Z90: -25.11543146 | AA90: -29.72119039 | AB90: -34.32694933 | AC90: -38.93270826 | AD90: -43.53846719 | AY90: =IF($P$31=0,W106) -> 288.8562681 | AZ90: =IF($P$31=0,X106) -> 282.8356682 | BA90: 276.8842789 | BB90: 270.863679 | BC90: 264.8430791 | BD90: 258.8224792 | BE90: 252.8018793 | BF90: 246.7812794
W91: =MAX(W90,0) -> 0 | X91: 0 | Y91: 0 | Z91: 0 | AA91: 0 | AB91: 0 | AC91: 0 | AD91: 0 | AY91: =MAX(AY89,AY90) -> 288.8562681 | AZ91: =MAX(AZ89,AZ90) -> 282.8356682 | BA91: 276.8842789 | BB91: 270.863679 | BC91: 264.8430791 | BD91: 258.8224792 | BE91: 252.8018793 | BF91: 246.7812794
W92: =SQRT(W89^2+W91^2) -> 0 | X92: 0 | Y92: 0 | Z92: 0 | AA92: 0 | AB92: 0 | AC92: 0 | AD92: 0 | AY92: =SQRT(AY86^2+AY91^2) -> 408.5044519 | AZ92: =SQRT(AZ86^2+AZ91^2) -> 399.9900379 | BA92: 391.5735025 | BB92: 383.0590884 | BC92: 374.5446744 | BD92: 366.0302603 | BE92: 357.5158463 | BF92: 349.0014322
U93: c | W93: =-40*LOG10($Q$24/W$47)-23.3 -> -11.88428948 | X93: -17.9048894 | Y93: -23.85627867 | Z93: -29.87687858 | AA93: -35.8974785 | AB93: -41.91807841 | AC93: -47.93867832 | AD93: -53.95927824 | AV93: 小梁による端部拘束 加振点5(dB) | AW93: s | AX93: x | AY93: =-3*$BG93*LOG10($Q$32/W$47)-1.2*$BG93 -> -22.21172011 | AZ93: -21.76017511 | BA93: -21.31382092 | BB93: -20.86227593 | BC93: -20.41073093 | BD93: -19.95918594 | BE93: -19.50764095 | BF93: -19.05609595 | BG93: =(Q34-$Q$7/1000)/($Q$7/1000) -> -1
W94: =MAX(W93,0) -> 0 | X94: 0 | Y94: 0 | Z94: 0 | AA94: 0 | AB94: 0 | AC94: 0 | AD94: 0 | AY94: =MAX(AY93,0) -> 0 | AZ94: =MAX(AZ93,0) -> 0 | BA94: 0 | BB94: 0 | BC94: 0 | BD94: 0 | BE94: 0 | BF94: 0
W95: =-40*LOG10($Q$25/W$47)-23.3 -> -7.941961829 | X95: -13.96256174 | Y95: -19.91395101 | Z95: -25.93455093 | AA95: -31.95515084 | AB95: -37.97575075 | AC95: -43.99635067 | AD95: -50.01695058 | AY95: =IF($P$34=1,AY94) -> FALSE | AZ95: =IF($P$34=1,AZ94) -> FALSE | BA95: FALSE | BB95: FALSE | BC95: FALSE | BD95: FALSE | BE95: FALSE | BF95: FALSE
W96: =MAX(W95,0) -> 0 | X96: 0 | Y96: 0 | Z96: 0 | AA96: 0 | AB96: 0 | AC96: 0 | AD96: 0 | AY96: =IF($P$34=0,W109) -> 215.6995451 | AZ96: =IF($P$34=0,X109) -> 211.0937862 | BA96: 206.5409734 | BB96: 201.9352144 | BC96: 197.3294555 | BD96: 192.7236966 | BE96: 188.1179376 | BF96: 183.5121787
W97: =SQRT(W94^2+W96^2) -> 0 | X97: 0 | Y97: 0 | Z97: 0 | AA97: 0 | AB97: 0 | AC97: 0 | AD97: 0 | AY97: =MAX(AY95,AY96) -> 215.6995451 | AZ97: =MAX(AZ95,AZ96) -> 211.0937862 | BA97: 206.5409734 | BB97: 201.9352144 | BC97: 197.3294555 | BD97: 192.7236966 | BE97: 188.1179376 | BF97: 183.5121787
U98: s | V98: 4 | W98: =-30.6*LOG10($Q$28/W$47)-23.1 -> 215.6995451 | X98: 211.0937862 | Y98: 206.5409734 | Z98: 201.9352144 | AA98: 197.3294555 | AB98: 192.7236966 | AC98: 188.1179376 | AD98: 183.5121787 | AX98: y | AY98: =-3*$BG98*LOG10($Q$33/W$47)-1.2*$BG98 -> -22.21172011 | AZ98: -21.76017511 | BA98: -21.31382092 | BB98: -20.86227593 | BC98: -20.41073093 | BD98: -19.95918594 | BE98: -19.50764095 | BF98: -19.05609595 | BG98: =(Q35-$Q$7/1000)/($Q$7/1000) -> -1
W99: =MAX(W98,0) -> 215.6995451 | X99: 211.0937862 | Y99: 206.5409734 | Z99: 201.9352144 | AA99: 197.3294555 | AB99: 192.7236966 | AC99: 188.1179376 | AD99: 183.5121787 | AY99: =MAX(AY98,0) -> 0 | AZ99: =MAX(AZ98,0) -> 0 | BA99: 0 | BB99: 0 | BC99: 0 | BD99: 0 | BE99: 0 | BF99: 0
W100: =-30.6*LOG10($Q$29/W$47)-23.1 -> 215.6995451 | X100: 211.0937862 | Y100: 206.5409734 | Z100: 201.9352144 | AA100: 197.3294555 | AB100: 192.7236966 | AC100: 188.1179376 | AD100: 183.5121787 | AY100: =IF($P$35=1,AY99) -> FALSE | AZ100: =IF($P$35=1,AZ99) -> FALSE | BA100: FALSE | BB100: FALSE | BC100: FALSE | BD100: FALSE | BE100: FALSE | BF100: FALSE
W101: =MAX(W100,0) -> 215.6995451 | X101: 211.0937862 | Y101: 206.5409734 | Z101: 201.9352144 | AA101: 197.3294555 | AB101: 192.7236966 | AC101: 188.1179376 | AD101: 183.5121787 | AY101: =IF($P$35=0,W111) -> 215.6995451 | AZ101: =IF($P$35=0,X111) -> 211.0937862 | BA101: 206.5409734 | BB101: 201.9352144 | BC101: 197.3294555 | BD101: 192.7236966 | BE101: 188.1179376 | BF101: 183.5121787
W102: =SQRT(W99^2+W101^2) -> 305.0452221 | X102: 298.5316953 | Y102: 292.0930457 | Z102: 285.579519 | AA102: 279.0659922 | AB102: 272.5524655 | AC102: 266.0389387 | AD102: 259.525412 | AY102: =MAX(AY100,AY101) -> 215.6995451 | AZ102: =MAX(AZ100,AZ101) -> 211.0937862 | BA102: 206.5409734 | BB102: 201.9352144 | BC102: 197.3294555 | BD102: 192.7236966 | BE102: 188.1179376 | BF102: 183.5121787
U103: c | W103: =-40*LOG10($Q$28/W$47)-23.3 -> 288.8562681 | X103: 282.8356682 | Y103: 276.8842789 | Z103: 270.863679 | AA103: 264.8430791 | AB103: 258.8224792 | AC103: 252.8018793 | AD103: 246.7812794 | AY103: =SQRT(AY97^2+AY102^2) -> 305.0452221 | AZ103: =SQRT(AZ97^2+AZ102^2) -> 298.5316953 | BA103: 292.0930457 | BB103: 285.579519 | BC103: 279.0659922 | BD103: 272.5524655 | BE103: 266.0389387 | BF103: 259.525412
W104: =MAX(W103,0) -> 288.8562681 | X104: 282.8356682 | Y104: 276.8842789 | Z104: 270.863679 | AA104: 264.8430791 | AB104: 258.8224792 | AC104: 252.8018793 | AD104: 246.7812794 | AW104: c | AX104: x | AY104: =-3*$BG104*LOG10($Q$32/W$47)-1.2*$BG104 -> -22.21172011 | AZ104: -21.76017511 | BA104: -21.31382092 | BB104: -20.86227593 | BC104: -20.41073093 | BD104: -19.95918594 | BE104: -19.50764095 | BF104: -19.05609595 | BG104: =(Q34-$Q$7/1000)/($Q$7/1000) -> -1
W105: =-40*LOG10($Q$29/W$47)-23.3 -> 288.8562681 | X105: 282.8356682 | Y105: 276.8842789 | Z105: 270.863679 | AA105: 264.8430791 | AB105: 258.8224792 | AC105: 252.8018793 | AD105: 246.7812794 | AY105: =MAX(AY104,0) -> 0 | AZ105: =MAX(AZ104,0) -> 0 | BA105: 0 | BB105: 0 | BC105: 0 | BD105: 0 | BE105: 0 | BF105: 0
W106: =MAX(W105,0) -> 288.8562681 | X106: 282.8356682 | Y106: 276.8842789 | Z106: 270.863679 | AA106: 264.8430791 | AB106: 258.8224792 | AC106: 252.8018793 | AD106: 246.7812794 | AY106: =IF($P$34=1,AY105) -> FALSE | AZ106: =IF($P$34=1,AZ105) -> FALSE | BA106: FALSE | BB106: FALSE | BC106: FALSE | BD106: FALSE | BE106: FALSE | BF106: FALSE
W107: =SQRT(W104^2+W106^2) -> 408.5044519 | X107: 399.9900379 | Y107: 391.5735025 | Z107: 383.0590884 | AA107: 374.5446744 | AB107: 366.0302603 | AC107: 357.5158463 | AD107: 349.0014322 | AY107: =IF($P$34=0,W114) -> 288.8562681 | AZ107: =IF($P$34=0,X114) -> 282.8356682 | BA107: 276.8842789 | BB107: 270.863679 | BC107: 264.8430791 | BD107: 258.8224792 | BE107: 252.8018793 | BF107: 246.7812794
U108: s | V108: 5 | W108: =-30.6*LOG10($Q$32/W$47)-23.1 -> 215.6995451 | X108: 211.0937862 | Y108: 206.5409734 | Z108: 201.9352144 | AA108: 197.3294555 | AB108: 192.7236966 | AC108: 188.1179376 | AD108: 183.5121787 | AY108: =MAX(AY106,AY107) -> 288.8562681 | AZ108: =MAX(AZ106,AZ107) -> 282.8356682 | BA108: 276.8842789 | BB108: 270.863679 | BC108: 264.8430791 | BD108: 258.8224792 | BE108: 252.8018793 | BF108: 246.7812794
W109: =MAX(W108,0) -> 215.6995451 | X109: 211.0937862 | Y109: 206.5409734 | Z109: 201.9352144 | AA109: 197.3294555 | AB109: 192.7236966 | AC109: 188.1179376 | AD109: 183.5121787 | AX109: y | AY109: =-3*$BG109*LOG10($Q$33/W$47)-1.2*$BG109 -> -22.21172011 | AZ109: -21.76017511 | BA109: -21.31382092 | BB109: -20.86227593 | BC109: -20.41073093 | BD109: -19.95918594 | BE109: -19.50764095 | BF109: -19.05609595 | BG109: =(Q35-$Q$7/1000)/($Q$7/1000) -> -1
W110: =-30.6*LOG10($Q$33/W$47)-23.1 -> 215.6995451 | X110: 211.0937862 | Y110: 206.5409734 | Z110: 201.9352144 | AA110: 197.3294555 | AB110: 192.7236966 | AC110: 188.1179376 | AD110: 183.5121787 | AY110: =MAX(AY109,0) -> 0 | AZ110: =MAX(AZ109,0) -> 0 | BA110: 0 | BB110: 0 | BC110: 0 | BD110: 0 | BE110: 0 | BF110: 0
W111: =MAX(W110,0) -> 215.6995451 | X111: 211.0937862 | Y111: 206.5409734 | Z111: 201.9352144 | AA111: 197.3294555 | AB111: 192.7236966 | AC111: 188.1179376 | AD111: 183.5121787 | AY111: =IF($P$35=1,AY110) -> FALSE | AZ111: =IF($P$35=1,AZ110) -> FALSE | BA111: FALSE | BB111: FALSE | BC111: FALSE | BD111: FALSE | BE111: FALSE | BF111: FALSE
W112: =SQRT(W109^2+W111^2) -> 305.0452221 | X112: 298.5316953 | Y112: 292.0930457 | Z112: 285.579519 | AA112: 279.0659922 | AB112: 272.5524655 | AC112: 266.0389387 | AD112: 259.525412 | AY112: =IF($P$35=0,W116) -> 288.8562681 | AZ112: =IF($P$35=0,X116) -> 282.8356682 | BA112: 276.8842789 | BB112: 270.863679 | BC112: 264.8430791 | BD112: 258.8224792 | BE112: 252.8018793 | BF112: 246.7812794
U113: c | W113: =-40*LOG10($Q$32/W$47)-23.3 -> 288.8562681 | X113: 282.8356682 | Y113: 276.8842789 | Z113: 270.863679 | AA113: 264.8430791 | AB113: 258.8224792 | AC113: 252.8018793 | AD113: 246.7812794 | AY113: =MAX(AY111,AY112) -> 288.8562681 | AZ113: =MAX(AZ111,AZ112) -> 282.8356682 | BA113: 276.8842789 | BB113: 270.863679 | BC113: 264.8430791 | BD113: 258.8224792 | BE113: 252.8018793 | BF113: 246.7812794
W114: =MAX(W113,0) -> 288.8562681 | X114: 282.8356682 | Y114: 276.8842789 | Z114: 270.863679 | AA114: 264.8430791 | AB114: 258.8224792 | AC114: 252.8018793 | AD114: 246.7812794 | AY114: =SQRT(AY108^2+AY113^2) -> 408.5044519 | AZ114: =SQRT(AZ108^2+AZ113^2) -> 399.9900379 | BA114: 391.5735025 | BB114: 383.0590884 | BC114: 374.5446744 | BD114: 366.0302603 | BE114: 357.5158463 | BF114: 349.0014322
W115: =-40*LOG10($Q$33/W$47)-23.3 -> 288.8562681 | X115: 282.8356682 | Y115: 276.8842789 | Z115: 270.863679 | AA115: 264.8430791 | AB115: 258.8224792 | AC115: 252.8018793 | AD115: 246.7812794
W116: =MAX(W115,0) -> 288.8562681 | X116: 282.8356682 | Y116: 276.8842789 | Z116: 270.863679 | AA116: 264.8430791 | AB116: 258.8224792 | AC116: 252.8018793 | AD116: 246.7812794
W117: =SQRT(W114^2+W116^2) -> 408.5044519 | X117: 399.9900379 | Y117: 391.5735025 | Z117: 383.0590884 | AA117: 374.5446744 | AB117: 366.0302603 | AC117: 357.5158463 | AD117: 349.0014322

Sheet 計算表s-1 (hidden)
B1: ヤング率 | C1: 辺長ｘ | D1: 辺長ｙ | E1: 板厚 | F1: ポアソン比 | G1: 密度 | H1: 曲げ剛性 | I1: 面密度 | J1: 加振点ｘ | K1: 加振点ｙ | L1: 縮退重み | M1: 周波数重み
B2: ='Calculation Sheet'!D7 -> 29000000000 | C2: ='Calculation Sheet'!D9 -> 11 | D2: ='Calculation Sheet'!F9 -> 6 | E2: =('Calculation Sheet'!L9)/1000 -> 0.2 | F2: ='Calculation Sheet'!L7 -> 0.16 | G2: ='Calculation Sheet'!G7 -> 2400 | H2: =B2*E2^3/12/(1-F2^2) -> 19841269.84 | I2: =G2*E2 -> 480 | J2: ='Calculation Sheet'!D17 -> 1.1 | K2: ='Calculation Sheet'!F17 -> 0.88 | L2: 1 | M2: 0
B4: 周波数 | C4: 31.5Hz | D4: 63Hz | E4: 125Hz | F4: 250Hz | G4: 500Hz | H4: 1000Hz | I4: (2000Hz) | J4: (4000Hz)
B5: モード数１ | C5: =M8 -> 1.079472075 | D5: =S8 -> 4.005316557 | E5: =Y8 -> 10.46838098 | F5: =AE8 -> 15.00676252 | G5: =AK8 -> 25.71116826 | H5: =AQ8 -> 54.37132033 | I5: =H6*I7/H7 -> 71.53524356 | J5: =H6*J7/H7 -> 144.4667855
B6: モード数２ | C6: =C5*($D$7^2+$C$7^2)/2/$D$7^2 -> 0.70031866 | D6: =D5*($D$7^2+$C$7^2)/2/$D$7^2 -> 2.598490493 | E6: 6.791470304 | F6: 9.735792214 | G6: 16.68038602 | H6: 35.27395575 | I6: 46.40922826 | J6: 93.72431953
C7: =MIN(C2,D2) -> 6 | D7: =MAX(C2,D2) -> 11 | H7: =0.354*SQRT(I2/H2)*C2*D2*1000-0.139*SQRT(SQRT(I2/H2*1000^2))*(C2+D2) -> 109.6760758 | I7: =0.354*SQRT(I2/H2)*C2*D2*2000-0.139*SQRT(SQRT(I2/H2*2000^2))*(C2+D2) -> 222.4220287 | J7: =0.354*SQRT(I2/H2)*C2*D2*4000-0.139*SQRT(SQRT(I2/H2*4000^2))*(C2+D2) -> 449.185519
M8: =M9+O9+Q9 -> 1.079472075 | S8: =S9+U9+W9 -> 4.005316557 | Y8: =Y9+AA9+AC9 -> 10.46838098 | AE8: =AE9+AG9+AI9 -> 15.00676252 | AK8: =AK9+AM9+AO9 -> 25.71116826 | AQ8: =AQ9+AS9+AU9 -> 54.37132033
B9: m | C9: n | D9: fi | F9: No. | G9: m | H9: n | I9: fi | J9: 縮退ﾁｪｯｸ | K9: 周波数重み | L9: 重み | M9: =SUM(N10:N409) -> 0.05352318287 | O9: =SUM(P10:P409) -> 0.6058610134 | Q9: =SUM(R10:R409) -> 0.4200878785 | S9: =SUM(T10:T409) -> 0.04989946909 | U9: =SUM(V10:V409) -> 3.041200487 | W9: =SUM(X10:X409) -> 0.9142166008 | Y9: =SUM(Z10:Z409) -> 0.3438658132 | AA9: =SUM(AB10:AB409) -> 8.846828176 | AC9: =SUM(AD10:AD409) -> 1.277686989 | AE9: =SUM(AF10:AF409) -> 1.76946474 | AG9: =SUM(AH10:AH409) -> 11.72012386 | AI9: =SUM(AJ10:AJ409) -> 1.517173919 | AK9: =SUM(AL10:AL409) -> 1.486614183 | AM9: =SUM(AN10:AN409) -> 18.56813758 | AO9: =SUM(AP10:AP409) -> 5.656416493 | AQ9: =SUM(AR10:AR409) -> 3.436341258 | AS9: =SUM(AT10:AT409) -> 46.28273958 | AU9: =SUM(AV10:AV409) -> 4.652239491
B10: 1 | C10: 1 | D10: =3.1416/2*SQRT($H$2/$I$2)*(B10^2/$C$2^2+C10^2/$D$2^2) -> 11.51056885 | F10: 1 | G10: 1 | H10: 1 | I10: 11.51056885 | J10: =1 -> 1 | K10: =ABS(SIN(G10*3.1416*$J$2/$C$2)*SIN(H10*3.1416*$K$2/$D$2))*(1/F10^$M$2)+(1-1/F10^$M$2) -> 0.1374004356 | L10: =$J10*$K10 -> 0.1374004356 | M10: =10^(LOG10($I10/22.27)/LOG10(2)*70/20)*$L10 -> 6.389834686e-05 | N10: =IF($I10<22.27,M10,0) -> 6.389834686e-05 | O10: =AND($I10>22.27,$I10<44.45) -> FALSE | P10: =IF($O10=TRUE,$L10,0) -> 0 | Q10: =10^(LOG10(44.45/$I10)/LOG10(2)*70/20)*$L10 -> 912584.5452 | R10: =IF($I10>44.45,Q10,0) -> 0 | S10: =10^(LOG10($I10/44.548)/LOG10(2)*70/20)*$L10 -> 2.01642817e-08 | T10: =IF($I10<44.528,S10,0) -> 2.01642817e-08 | U10: =AND($I10>44.548,$I10<89.095) -> FALSE | V10: =IF($U10=TRUE,$L10,0) -> 0 | W10: =10^(LOG10(89.095/$I10)/LOG10(2)*70/20)*$L10 -> 2960307248 | X10: =IF($I10>89.095,W10,0) -> 0 | Y10: =10^(LOG10($I10/89.09)/LOG10(2)*70/20)*$L10 -> 6.381500563e-12 | Z10: =IF($I10<89.09,Y10,0) -> 6.381500563e-12 | AA10: =AND($I10>89.09,$I10<176.78) -> FALSE | AB10: =IF($AA10=TRUE,$L10,0) -> 0 | AC10: =10^(LOG10(176.78/$I10)/LOG10(2)*70/20)*$L10 -> 8.53536704e+12 | AD10: =IF($I10>176.78,AC10,0) -> 0 | AE10: =10^(LOG10($I10/176.78)/LOG10(2)*70/20)*$L10 -> 2.211841577e-15 | AF10: =IF($I10<176.78,AE10,0) -> 2.211841577e-15 | AG10: =AND($I10>176.78,$I10<353.55) -> FALSE | AH10: =IF($AG10=TRUE,$L10,0) -> 0 | AI10: =10^(LOG10(353.55/$I10)/LOG10(2)*70/20)*$L10 -> 2.698232584e+16 | AJ10: =IF($I10>353.55,AI10,0) -> 0 | AK10: =10^(LOG10($I10/353.55)/LOG10(2)*70/20)*$L10 -> 6.99675773e-19 | AL10: =IF($I10<353.55,AK10,0) -> 6.99675773e-19 | AM10: =AND($I10>353.55,$I10<707.1) -> FALSE | AN10: =IF($AM10=TRUE,$L10,0) -> 0 | AO10: =10^(LOG10(707.1/$I10)/LOG10(2)*70/20)*$L10 -> 8.532560624e+19 | AP10: =IF($I10>707.1,AO10,0) -> 0 | AQ10: =10^(LOG10($I10/707.1)/LOG10(2)*70/20)*$L10 -> 2.212569066e-22 | AR10: =IF($I10<707.1,AQ10,0) -> 2.212569066e-22 | AS10: =AND($I10>707.1,$I10<1414.2) -> FALSE | AT10: =IF($AS10=TRUE,$L10,0) -> 0 | AU10: =10^(LOG10(1414.2/$I10)/LOG10(2)*70/20)*$L10 -> 2.698232584e+23 | AV10: =IF($I10>1414.2,AU10,0) -> 0
B11: 1 | C11: 2 | D11: 38.12417709 | F11: 2 | G11: 2 | H11: 1 | I11: 19.42866717 | J11: =IF(ABS(I11-I10)>0.0001,1,$L$2) -> 1 | K11: 0.2613510968 | L11: =$J11*$K11 -> 0.2613510968 | M11: =10^(LOG10($I11/22.27)/LOG10(2)*70/20)*$L11 -> 0.05345928452 | N11: =IF($I11<22.27,M11,0) -> 0.05345928452 | O11: =AND($I11>22.27,$I11<44.45) -> FALSE | P11: =IF($O11=TRUE,$L11,0) -> 0 | Q11: =10^(LOG10(44.45/$I11)/LOG10(2)*70/20)*$L11 -> 3946.499256 | R11: =IF($I11>44.45,Q11,0) -> 0 | S11: =10^(LOG10($I11/44.548)/LOG10(2)*70/20)*$L11 -> 1.687004634e-05 | T11: =IF($I11<44.528,S11,0) -> 1.687004634e-05 | U11: FALSE | V11: =IF($U11=TRUE,$L11,0) -> 0 | W11: =10^(LOG10(89.095/$I11)/LOG10(2)*70/20)*$L11 -> 12801937.54 | X11: 0 | Y11: =10^(LOG10($I11/89.09)/LOG10(2)*70/20)*$L11 -> 5.338955873e-09 | Z11: =IF($I11<89.09,Y11,0) -> 5.338955873e-09 | AA11: =AND($I11>89.09,$I11<176.78) -> FALSE | AB11: =IF($AA11=TRUE,$L11,0) -> 0 | AC11: =10^(LOG10(176.78/$I11)/LOG10(2)*70/20)*$L11 -> 3.691145094e+10 | AD11: =IF($I11>176.78,AC11,0) -> 0 | AE11: =10^(LOG10($I11/176.78)/LOG10(2)*70/20)*$L11 -> 1.850493385e-12 | AF11: =IF($I11<176.78,AE11,0) -> 1.850493385e-12 | AG11: =AND($I11>176.78,$I11<353.55) -> FALSE | AH11: =IF($AG11=TRUE,$L11,0) -> 0 | AI11: =10^(LOG10(353.55/$I11)/LOG10(2)*70/20)*$L11 -> 1.16685878e+14 | AJ11: =IF($I11>353.55,AI11,0) -> 0 | AK11: =10^(LOG10($I11/353.55)/LOG10(2)*70/20)*$L11 -> 5.853698578e-16 | AL11: =IF($I11<353.55,AK11,0) -> 5.853698578e-16 | AM11: =AND($I11>353.55,$I11<707.1) -> FALSE | AN11: =IF($AM11=TRUE,$L11,0) -> 0 | AO11: =10^(LOG10(707.1/$I11)/LOG10(2)*70/20)*$L11 -> 3.689931451e+17 | AP11: =IF($I11>707.1,AO11,0) -> 0 | AQ11: =10^(LOG10($I11/707.1)/LOG10(2)*70/20)*$L11 -> 1.851102024e-19 | AR11: =IF($I11<707.1,AQ11,0) -> 1.851102024e-19 | AS11: =AND($I11>707.1,$I11<1414.2) -> FALSE | AT11: =IF($AS11=TRUE,$L11,0) -> 0 | AU11: =10^(LOG10(1414.2/$I11)/LOG10(2)*70/20)*$L11 -> 1.16685878e+21 | AV11: =IF($I11>1414.2,AU11,0) -> 0
B12: 1 | C12: 3 | D12: 82.48019082 | F12: 3 | G12: 3 | H12: 1 | I12: 32.6254977 | J12: 1 | K12: 0.359718773 | L12: 0.359718773 | M12: 30.4864837 | N12: 0 | O12: TRUE | P12: 0.359718773 | Q12: 13.11008128 | R12: 0 | S12: 0.009620562589 | T12: 0.009620562589 | U12: FALSE | V12: 0 | W12: 42527.42263 | X12: 0 | Y12: 3.044672083e-06 | Z12: 3.044672083e-06 | AA12: FALSE | AB12: 0 | AC12: 122618070 | AD12: 0 | AE12: 1.055289776e-09 | AF12: 1.055289776e-09 | AG12: FALSE | AH12: 0 | AI12: 3.876248911e+11 | AJ12: 0 | AK12: 3.338216886e-13 | AL12: 3.338216886e-13 | AM12: FALSE | AN12: 0 | AO12: 1.225777534e+15 | AP12: 0 | AQ12: 1.055636868e-16 | AR12: 1.055636868e-16 | AS12: FALSE | AT12: 0 | AU12: 3.876248911e+18 | AV12: 0
B13: 1 | C13: 4 | D13: 144.57861 | F13: 4 | G13: 1 | H13: 2 | I13: 38.12417709 | J13: 1 | K13: 0.2461422403 | L13: 0.2461422403 | M13: 127.5858134 | N13: 0 | O13: TRUE | P13: 0.2461422403 | Q13: 1.466751108 | R13: 0 | S13: 0.04026201629 | T13: 0.04026201629 | U13: FALSE | V13: 0 | W13: 4757.952518 | X13: 0 | Y13: 1.27419406e-05 | Z13: 1.27419406e-05 | AA13: FALSE | AB13: 0 | AC13: 13718464.91 | AD13: 0 | AE13: 4.41638353e-09 | AF13: 4.41638353e-09 | AG13: FALSE | AH13: 0 | AI13: 4.336733131e+10 | AJ13: 0 | AK13: 1.397042443e-12 | AL13: 1.397042443e-12 | AM13: FALSE | AN13: 0 | AO13: 1.37139543e+14 | AP13: 0 | AQ13: 4.417836108e-16 | AR13: 4.417836108e-16 | AS13: FALSE | AT13: 0 | AU13: 4.336733131e+17 | AV13: 0
B14: 1 | C14: 5 | D14: 224.4194348 | F14: 5 | G14: 2 | H14: 2 | I14: 46.04227541 | J14: 1 | K14: 0.4681902515 | L14: 0.4681902515 | M14: 2177.328111 | N14: 0 | O14: FALSE | P14: 0 | Q14: 0.3109620329 | R14: 0.3109620329 | S14: 0.6870953561 | T14: 0 | U14: TRUE | V14: 0.4681902515 | W14: 1008.720962 | X14: 0 | Y14: 0.0002174488269 | Z14: 0.0002174488269 | AA14: FALSE | AB14: 0 | AC14: 2908415.555 | AD14: 0 | AE14: 7.53682228e-08 | AF14: 7.53682228e-08 | AG14: FALSE | AH14: 0 | AI14: 9194193505 | AJ14: 0 | AK14: 2.384136373e-11 | AL14: 2.384136373e-11 | AM14: FALSE | AN14: 0 | AO14: 2.907459272e+13 | AP14: 0 | AQ14: 7.539301191e-15 | AR14: 7.539301191e-15 | AS14: FALSE | AT14: 0 | AU14: 9.194193505e+16 | AV14: 0
B15: 1 | C15: 6 | D15: 322.002665 | F15: 6 | G15: 4 | H15: 1 | I15: 51.10106045 | J15: 1 | K15: 0.4228745062 | L15: 0.4228745062 | M15: 6608.339646 | N15: 0 | O15: FALSE | P15: 0 | Q15: 0.08358284785 | R15: 0.08358284785 | S15: 2.085381371 | T15: 0 | U15: TRUE | V15: 0.4228745062 | W15: 271.132041 | X15: 0 | Y15: 0.0006599720531 | Z15: 0.0006599720531 | AA15: FALSE | AB15: 0 | AC15: 781747.0594 | AD15: 0 | AE15: 2.287477079e-07 | AF15: 2.287477079e-07 | AG15: FALSE | AH15: 0 | AI15: 2471288438 | AJ15: 0 | AK15: 7.236016856e-11 | AL15: 7.236016856e-11 | AM15: FALSE | AN15: 0 | AO15: 7.814900221e+12 | AP15: 0 | AQ15: 2.288229445e-14 | AR15: 2.288229445e-14 | AS15: FALSE | AT15: 0 | AU15: 2.471288438e+16 | AV15: 0
B16: 1 | C16: 7 | D16: 437.3283007 | F16: 7 | G16: 3 | H16: 2 | I16: 59.23910594 | J16: 1 | K16: 0.6444083261 | L16: 0.6444083261 | M16: 56134.54731 | N16: 0 | O16: FALSE | P16: 0 | Q16: 0.02284959858 | R16: 0.02284959858 | S16: 17.71427401 | T16: 0 | U16: TRUE | V16: 0.6444083261 | W16: 74.12116789 | X16: 0 | Y16: 0.005606133223 | Z16: 0.005606133223 | AA16: FALSE | AB16: 0 | AC16: 213711.3888 | AD16: 0 | AE16: 1.943097619e-06 | AF16: 1.943097619e-06 | AG16: FALSE | AH16: 0 | AI16: 675592543.7 | AJ16: 0 | AK16: 6.146635196e-10 | AL16: 6.146635196e-10 | AM16: FALSE | AN16: 0 | AO16: 2.136411208e+12 | AP16: 0 | AQ16: 1.943736717e-13 | AR16: 1.943736717e-13 | AS16: FALSE | AT16: 0 | AU16: 6755925437400206 | AV16: 0
B17: 1 | C17: 8 | D17: 570.3963419 | F17: 8 | G17: 5 | H17: 1 | I17: 74.85535541 | J17: 1 | K17: 0.4446361443 | L17: 0.4446361443 | M17: 588191.4177 | N17: 0 | O17: FALSE | P17: 0 | Q17: 0.001038191232 | R17: 0.001038191232 | S17: 185.6144646 | T17: 0 | U17: TRUE | V17: 0.4446361443 | W17: 3.367759233 | X17: 0 | Y17: 0.05874242523 | Z17: 0.05874242523 | AA17: FALSE | AB17: 0 | AC17: 9710.161396 | AD17: 0 | AE17: 2.036024869e-05 | AF17: 2.036024869e-05 | AG17: FALSE | AH17: 0 | AI17: 30696130.3 | AJ17: 0 | AK17: 6.440593616e-09 | AL17: 6.440593616e-09 | AM17: FALSE | AN17: 0 | AO17: 9.706968709e+10 | AP17: 0 | AQ17: 2.036694531e-12 | AR17: 2.036694531e-12 | AS17: FALSE | AT17: 0 | AU17: 3.06961303e+14 | AV17: 0
B18: 1 | C18: 9 | D18: 721.2067886 | F18: 9 | G18: 4 | H18: 2 | I18: 77.71466869 | J18: 1 | K18: 0.7575469314 | L18: 0.7575469314 | M18: 1549559.862 | N18: 0 | O18: FALSE | P18: 0 | Q18: 0.001143924184 | R18: 0.001143924184 | S18: 488.9917048 | T18: 0 | U18: TRUE | V18: 0.7575469314 | W18: 3.710743372 | X18: 0 | Y18: 0.1547538804 | Z18: 0.1547538804 | AA18: FALSE | AB18: 0 | AC18: 10699.0775 | AD18: 0 | AE18: 5.363802189e-05 | AF18: 5.363802189e-05 | AG18: FALSE | AH18: 0 | AI18: 33822329.37 | AJ18: 0 | AK18: 1.69674107e-08 | AL18: 1.69674107e-08 | AM18: FALSE | AN18: 0 | AO18: 1.069555966e+11 | AP18: 0 | AQ18: 5.36556638e-12 | AR18: 5.36556638e-12 | AS18: FALSE | AT18: 0 | AU18: 3.382232937e+14 | AV18: 0
B19: 1 | C19: 10 | D19: 889.7596408 | F19: 10 | G19: 1 | H19: 3 | I19: 82.48019082 | J19: 1 | K19: 0.3035443273 | L19: 0.3035443273 | M19: 1240319.337 | N19: 0 | O19: FALSE | P19: 0 | Q19: 0.0002294548496 | R19: 0.0002294548496 | S19: 391.4052512 | T19: 0 | U19: TRUE | V19: 0.3035443273 | W19: 0.7443221101 | X19: 0 | Y19: 0.1238701615 | Z19: 0.1238701615 | AA19: FALSE | AB19: 0 | AC19: 2146.082104 | AD19: 0 | AE19: 4.293365966e-05 | AF19: 4.293365966e-05 | AG19: FALSE | AH19: 0 | AI19: 6784276.099 | AJ19: 0 | AK19: 1.358128079e-08 | AL19: 1.358128079e-08 | AM19: FALSE | AN19: 0 | AO19: 2.145376475e+10 | AP19: 0 | AQ19: 4.294778083e-12 | AR19: 4.294778083e-12 | AS19: FALSE | AT19: 0 | AU19: 6.784276099e+13 | AV19: 0
B20: 1 | C20: 11 | D20: 1076.054898 | F20: 11 | G20: 2 | H20: 3 | I20: 90.39828914 | J20: 1 | K20: 0.5773754831 | L20: 0.5773754831 | M20: 6849155.495 | N20: 0 | O20: FALSE | P20: 0 | Q20: 0.0001503370986 | R20: 0.0001503370986 | S20: 2161.375178 | T20: 0 | U20: FALSE | V20: 0 | W20: 0.487674271 | X20: 0.487674271 | Y20: 0.6840222289 | Z20: 0 | AA20: TRUE | AB20: 0.5773754831 | AC20: 1406.096918 | AD20: 0 | AE20: 0.0002370835496 | AF20: 0.0002370835496 | AG20: FALSE | AH20: 0 | AI20: 4445006.88 | AJ20: 0 | AK20: 7.499706018e-08 | AL20: 7.499706018e-08 | AM20: FALSE | AN20: 0 | AO20: 1.405634596e+10 | AP20: 0 | AQ20: 2.37161528e-11 | AR20: 2.37161528e-11 | AS20: FALSE | AT20: 0 | AU20: 4.44500688e+13 | AV20: 0
B21: 1 | C21: 12 | D21: 1280.092562 | F21: 12 | G21: 5 | H21: 2 | I21: 101.4689636 | J21: 1 | K21: 0.7965312209 | L21: 0.7965312209 | M21: 36201827.26 | N21: 0 | O21: FALSE | P21: 0 | Q21: 5.413294163e-05 | R21: 5.413294163e-05 | S21: 11424.14286 | T21: 0 | U21: FALSE | V21: 0 | W21: 0.1756003214 | X21: 0.1756003214 | Y21: 3.615461 | Z21: 0 | AA21: TRUE | AB21: 0.7965312209 | AC21: 506.3032551 | AD21: 0 | AE21: 0.001253126421 | AF21: 0.001253126421 | AG21: FALSE | AH21: 0 | AI21: 1600545.043 | AJ21: 0 | AK21: 3.964037055e-07 | AL21: 3.964037055e-07 | AM21: FALSE | AN21: 0 | AO21: 5061367833 | AP21: 0 | AQ21: 1.253538582e-10 | AR21: 1.253538582e-10 | AS21: FALSE | AT21: 0 | AU21: 1.600545043e+13 | AV21: 0
B22: 1 | C22: 13 | D22: 1501.87263 | F22: 13 | G22: 3 | H22: 3 | I22: 103.5951197 | J22: 1 | K22: 0.7946888417 | L22: 0.7946888417 | M22: 45965938.66 | N22: 0 | O22: FALSE | P22: 0 | Q22: 4.24369937e-05 | R22: 4.24369937e-05 | S22: 14505.38521 | T22: 0 | U22: FALSE | V22: 0 | W22: 0.1376601661 | X22: 0.1376601661 | Y22: 4.590598628 | Z22: 0 | AA22: TRUE | AB22: 0.7946888417 | AC22: 396.9115182 | AD22: 0 | AE22: 0.001591111183 | AF22: 0.001591111183 | AG22: FALSE | AH22: 0 | AI22: 1254731.737 | AJ22: 0 | AK22: 5.033190254e-07 | AL22: 5.033190254e-07 | AM22: FALSE | AN22: 0 | AO22: 3967810142 | AP22: 0 | AQ22: 1.59163451e-10 | AR22: 1.59163451e-10 | AS22: FALSE | AT22: 0 | AU22: 1.254731737e+13 | AV22: 0
B23: 1 | C23: 14 | D23: 1741.395104 | F23: 14 | G23: 6 | H23: 1 | I23: 103.8883826 | J23: 1 | K23: 0.4228734968 | L23: 0.4228734968 | M23: 25276882.47 | N23: 0 | O23: FALSE | P23: 0 | Q23: 2.185163502e-05 | R23: 2.185163502e-05 | S23: 7976.578482 | T23: 0 | U23: FALSE | V23: 0 | W23: 0.07088390207 | X23: 0.07088390207 | Y23: 2.524391438 | Z23: 0 | AA23: TRUE | AB23: 0.4228734968 | AC23: 204.3774753 | AD23: 0 | AE23: 0.0008749594055 | AF23: 0.0008749594055 | AG23: FALSE | AH23: 0 | AI23: 646085.8224 | AJ23: 0 | AK23: 2.767774622e-07 | AL23: 2.767774622e-07 | AM23: FALSE | AN23: 0 | AO23: 2043102763 | AP23: 0 | AQ23: 8.752471855e-11 | AR23: 8.752471855e-11 | AS23: FALSE | AT23: 0 | AU23: 6.460858224e+12 | AV23: 0
B24: 1 | C24: 15 | D24: 1998.659984 | F24: 15 | G24: 4 | H24: 3 | I24: 122.0706824 | J24: 1 | K24: 0.9342121587 | L24: 0.9342121587 | M24: 364205939.6 | N24: 0 | O24: FALSE | P24: 0 | Q24: 7.401683658e-06 | R24: 7.401683658e-06 | S24: 114931.7865 | T24: 0 | U24: FALSE | V24: 0 | W24: 0.0240101127 | X24: 0.0240101127 | Y24: 36.37309136 | Z24: 0 | AA24: TRUE | AB24: 0.9342121587 | AC24: 69.22765356 | AD24: 0 | AE24: 0.01260699031 | AF24: 0.01260699031 | AG24: FALSE | AH24: 0 | AI24: 218845.0827 | AJ24: 0 | AK24: 3.987991627e-06 | AL24: 3.987991627e-06 | AM24: FALSE | AN24: 0 | AO24: 692048916 | AP24: 0 | AQ24: 1.261113683e-09 | AR24: 1.261113683e-09 | AS24: FALSE | AT24: 0 | AU24: 2.188450827e+12 | AV24: 0
B25: 1 | C25: 16 | D25: 2273.667269 | F25: 16 | G25: 6 | H25: 2 | I25: 130.5019908 | J25: 1 | K25: 0.7575451231 | L25: 0.7575451231 | M25: 642026182 | N25: 0 | O25: FALSE | P25: 0 | Q25: 2.760900704e-06 | R25: 2.760900704e-06 | S25: 202603.0004 | T25: 0 | U25: FALSE | V25: 0 | W25: 0.008956007866 | X25: 0.008956007866 | Y25: 64.11888011 | Z25: 0 | AA25: TRUE | AB25: 0.7575451231 | AC25: 25.82259473 | AD25: 0 | AE25: 0.02222373931 | AF25: 0.02222373931 | AG25: FALSE | AH25: 0 | AI25: 81631.36535 | AJ25: 0 | AK25: 7.030074912e-06 | AL25: 7.030074912e-06 | AM25: FALSE | AN25: 0 | AO25: 258141043 | AP25: 0 | AQ25: 2.223104884e-09 | AR25: 2.223104884e-09 | AS25: FALSE | AT25: 0 | AU25: 8.163136535e+11 | AV25: 0
B26: 1 | C26: 17 | D26: 2566.41696 | F26: 17 | G26: 7 | H26: 1 | I26: 138.200142 | J26: 1 | K26: 0.359716853 | L26: 0.359716853 | M26: 593622708.1 | N26: 0 | O26: FALSE | P26: 0 | Q26: 6.732828902e-07 | R26: 6.732828902e-07 | S26: 187328.4067 | T26: 0 | U26: FALSE | V26: 0 | W26: 0.002184043364 | X26: 0.002184043364 | Y26: 59.28484588 | Z26: 0 | AA26: TRUE | AB26: 0.359716853 | AC26: 6.297188157 | AD26: 0 | AE26: 0.02054825283 | AF26: 0.02054825283 | AG26: FALSE | AH26: 0 | AI26: 19906.90991 | AJ26: 0 | AK26: 6.5000653e-06 | AL26: 6.5000653e-06 | AM26: FALSE | AN26: 0 | AO26: 62951176.51 | AP26: 0 | AQ26: 2.055501129e-09 | AR26: 2.055501129e-09 | AS26: FALSE | AT26: 0 | AU26: 1.990690991e+11 | AV26: 0
B27: 1 | C27: 18 | D27: 2876.909056 | F27: 18 | G27: 1 | H27: 4 | I27: 144.57861 | J27: 1 | K27: 0.2976339163 | L27: 0.2976339163 | M27: 829974478.5 | N27: 0 | O27: FALSE | P27: 0 | Q27: 3.296754539e-07 | R27: 3.296754539e-07 | S27: 261913.4924 | T27: 0 | U27: FALSE | V27: 0 | W27: 0.0010694249 | X27: 0.0010694249 | Y27: 82.88919606 | Z27: 0 | AA27: TRUE | AB27: 0.2976339163 | AC27: 3.083441439 | AD27: 0 | AE27: 0.02872957047 | AF27: 0.02872957047 | AG27: FALSE | AH27: 0 | AI27: 9747.491964 | AJ27: 0 | AK27: 9.088076035e-06 | AL27: 9.088076035e-06 | AM27: FALSE | AN27: 0 | AO27: 30824276.08 | AP27: 0 | AQ27: 2.873901982e-09 | AR27: 2.873901982e-09 | AS27: FALSE | AT27: 0 | AU27: 9.747491964e+10 | AV27: 0
B28: 1 | C28: 19 | D28: 3205.143558 | F28: 19 | G28: 5 | H28: 3 | I28: 145.8249774 | J28: 1 | K28: 0.9822878564 | L28: 0.9822878564 | M28: 3026663434 | N28: 0 | O28: FALSE | P28: 0 | Q28: 9.846909206e-07 | R28: 9.846909206e-07 | S28: 955118.5139 | T28: 0 | U28: FALSE | V28: 0 | W28: 0.003194211084 | X28: 0.003194211084 | Y28: 302.2715822 | Z28: 0 | AA28: TRUE | AB28: 0.9822878564 | AC28: 9.209775108 | AD28: 0 | AE28: 0.104767969 | AF28: 0.104767969 | AG28: FALSE | AH28: 0 | AI28: 29114.29019 | AJ28: 0 | AK28: 3.314143764e-05 | AL28: 3.314143764e-05 | AM28: FALSE | AN28: 0 | AO28: 92067469.47 | AP28: 0 | AQ28: 1.048024279e-08 | AR28: 1.048024279e-08 | AS28: FALSE | AT28: 0 | AU28: 2.911429019e+11 | AV28: 0
B29: 1 | C29: 20 | D29: 3551.120465 | F29: 20 | G29: 2 | H29: 4 | I29: 152.4967084 | J29: 1 | K29: 0.566133216 | L29: 0.566133216 | M29: 2934505136 | N29: 0 | O29: FALSE | P29: 0 | Q29: 3.373563678e-07 | R29: 3.373563678e-07 | S29: 926036.2923 | T29: 0 | U29: FALSE | V29: 0 | W29: 0.001094340799 | X29: 0.001094340799 | Y29: 293.0677724 | Z29: 0 | AA29: TRUE | AB29: 0.566133216 | AC29: 3.155280722 | AD29: 0 | AE29: 0.1015779091 | AF29: 0.1015779091 | AG29: FALSE | AH29: 0 | AI29: 9974.593027 | AJ29: 0 | AK29: 3.213232032e-05 | AL29: 3.213232032e-05 | AM29: FALSE | AN29: 0 | AO29: 31542432.7 | AP29: 0 | AQ29: 1.016113187e-08 | AR29: 1.016113187e-08 | AS29: FALSE | AT29: 0 | AU29: 9.974593027e+10 | AV29: 0
B30: 2 | C30: 1 | D30: 19.42866717 | F30: 21 | G30: 7 | H30: 2 | I30: 164.8137502 | J30: 1 | K30: 0.6444048866 | L30: 0.6444048866 | M30: 8240998551 | N30: 0 | O30: FALSE | P30: 0 | Q30: 1.556411122e-07 | R30: 1.556411122e-07 | S30: 2600596.485 | T30: 0 | U30: FALSE | V30: 0 | W30: 0.0005048798108 | X30: 0.0005048798108 | Y30: 823.0249994 | Z30: 0 | AA30: TRUE | AB30: 0.6444048866 | AC30: 1.455705147 | AD30: 0 | AE30: 0.2852622036 | AF30: 0.2852622036 | AG30: FALSE | AH30: 0 | AI30: 4601.830292 | AJ30: 0 | AK30: 9.023749932e-05 | AL30: 9.023749932e-05 | AM30: FALSE | AN30: 0 | AO30: 14552265.13 | AP30: 0 | AQ30: 2.853560282e-08 | AR30: 2.853560282e-08 | AS30: FALSE | AT30: 0 | AU30: 4.601830292e+10 | AV30: 0
B31: 2 | C31: 2 | D31: 46.04227541 | F31: 22 | G31: 3 | H31: 4 | I31: 165.6935389 | J31: 1 | K31: 0.7792151949 | L31: 0.7792151949 | M31: 1.060134591e+10 | N31: 0 | O31: FALSE | P31: 0 | Q31: 1.769050919e-07 | R31: 1.769050919e-07 | S31: 3345446.883 | T31: 0 | U31: FALSE | V31: 0 | W31: 0.0005738574345 | X31: 0.0005738574345 | Y31: 1058.75188 | Z31: 0 | AA31: TRUE | AB31: 0.7792151949 | AC31: 1.654586305 | AD31: 0 | AE31: 0.3669656385 | AF31: 0.3669656385 | AG31: FALSE | AH31: 0 | AI31: 5230.54095 | AJ31: 0 | AK31: 0.000116082892 | AL31: 0.000116082892 | AM31: FALSE | AN31: 0 | AO31: 16540422.8 | AP31: 0 | AQ31: 3.67086336e-08 | AR31: 3.67086336e-08 | AS31: FALSE | AT31: 0 | AU31: 5.23054095e+10 | AV31: 0
B32: 2 | C32: 3 | D32: 90.39828914 | F32: 23 | G32: 6 | H32: 3 | I32: 174.8580045 | J32: 1 | K32: 0.9342099287 | L32: 0.9342099287 | M32: 2.376735203e+10 | N32: 0 | O32: FALSE | P32: 0 | Q32: 1.134213133e-07 | R32: 1.134213133e-07 | S32: 7500218.786 | T32: 0 | U32: FALSE | V32: 0 | W32: 0.000367924197 | X32: 0.000367924197 | Y32: 2373.635278 | Z32: 0 | AA32: TRUE | AB32: 0.9342099287 | AC32: 1.060825043 | AD32: 0 | AE32: 0.822707002 | AF32: 0.822707002 | AG32: FALSE | AH32: 0 | AI32: 3353.52034 | AJ32: 0 | AK32: 0.0002602483666 | AL32: 0.0002602483666 | AM32: FALSE | AN32: 0 | AO32: 10604762.45 | AP32: 0 | AQ32: 8.229775959e-08 | AR32: 8.229775959e-08 | AS32: FALSE | AT32: 0 | AU32: 3.35352034e+10 | AV32: 0
B33: 2 | C33: 4 | D33: 152.4967084 | F33: 24 | G33: 8 | H33: 1 | I33: 177.7906336 | J33: 1 | K33: 0.2613484541 | L33: 0.2613484541 | M33: 8067527220 | N33: 0 | O33: FALSE | P33: 0 | Q33: 2.615085815e-08 | R33: 2.615085815e-08 | S33: 2545854.462 | T33: 0 | U33: FALSE | V33: 0 | W33: 8.483003065e-05 | X33: 8.483003065e-05 | Y33: 805.7004919 | Z33: 0 | AA33: FALSE | AB33: 0 | AC33: 0.2445879387 | AD33: 0.2445879387 | AE33: 0.2792574926 | AF33: 0 | AG33: TRUE | AH33: 0.2613484541 | AI33: 773.2006635 | AJ33: 0 | AK33: 8.833801845e-05 | AL33: 8.833801845e-05 | AM33: FALSE | AN33: 0 | AO33: 2445075.185 | AP33: 0 | AQ33: 2.793493423e-08 | AR33: 2.793493423e-08 | AS33: FALSE | AT33: 0 | AU33: 7732006635 | AV33: 0
B34: 2 | C34: 5 | D34: 232.3375331 | F34: 25 | G34: 4 | H34: 4 | I34: 184.1691016 | J34: 1 | K34: 0.9160218077 | L34: 0.9160218077 | M34: 4.259977704e+10 | N34: 0 | O34: FALSE | P34: 0 | Q34: 6.084022524e-08 | R34: 6.084022524e-08 | S34: 13443131.89 | T34: 0 | U34: FALSE | V34: 0 | W34: 0.0001973578894 | X34: 0.0001973578894 | Y34: 4254.421507 | Z34: 0 | AA34: FALSE | AB34: 0 | AC34: 0.5690362126 | AD34: 0.5690362126 | AE34: 1.474591482 | AF34: 0 | AG34: TRUE | AH34: 0.9160218077 | AI34: 1798.858846 | AJ34: 0 | AK34: 0.0004664601417 | AL34: 0.0004664601417 | AM34: FALSE | AN34: 0 | AO34: 5688491.143 | AP34: 0 | AQ34: 1.475076485e-07 | AR34: 1.475076485e-07 | AS34: FALSE | AT34: 0 | AU34: 1.798858846e+10 | AV34: 0
B35: 2 | C35: 6 | D35: 329.9207633 | F35: 26 | G35: 8 | H35: 2 | I35: 204.4042418 | J35: 1 | K35: 0.4681855174 | L35: 0.4681855174 | M35: 7.316423362e+10 | N35: 0 | O35: FALSE | P35: 0 | Q35: 9.253875155e-09 | R35: 9.253875155e-09 | S35: 23088300.24 | T35: 0 | U35: FALSE | V35: 0 | W35: 3.001838442e-05 | X35: 3.001838442e-05 | Y35: 7306.880708 | Z35: 0 | AA35: FALSE | AB35: 0 | AC35: 0.08655112713 | AD35: 0.08655112713 | AE35: 2.53258029 | AF35: 0 | AG35: TRUE | AH35: 0.4681855174 | AI35: 273.6087041 | AJ35: 0 | AK35: 0.0008011356197 | AL35: 0.0008011356197 | AM35: FALSE | AN35: 0 | AO35: 865226.6925 | AP35: 0 | AQ35: 2.533413273e-07 | AR35: 2.533413273e-07 | AS35: FALSE | AT35: 0 | AU35: 2736087041 | AV35: 0
B36: 2 | C36: 7 | D36: 445.246399 | F36: 27 | G36: 5 | H36: 4 | I36: 207.9233966 | J36: 1 | K36: 0.9631614078 | L36: 0.9631614078 | M36: 1.83558426e+11 | N36: 0 | O36: FALSE | P36: 0 | Q36: 1.561026709e-08 | R36: 1.561026709e-08 | S36: 57925188.88 | T36: 0 | U36: FALSE | V36: 0 | W36: 5.06377048e-05 | X36: 5.06377048e-05 | Y36: 18331.90147 | Z36: 0 | AA36: FALSE | AB36: 0 | AC36: 0.1460022087 | AD36: 0.1460022087 | AE36: 6.35387578 | AF36: 0 | AG36: TRUE | AH36: 0.9631614078 | AI36: 461.5477167 | AJ36: 0 | AK36: 0.002009932806 | AL36: 0.002009932806 | AM36: FALSE | AN36: 0 | AO36: 1459542.033 | AP36: 0 | AQ36: 6.355965612e-07 | AR36: 6.355965612e-07 | AS36: FALSE | AT36: 0 | AU36: 4615477167 | AV36: 0
B37: 2 | C37: 8 | D37: 578.3144402 | F37: 28 | G37: 7 | H37: 3 | I37: 209.1697639 | J37: 1 | K37: 0.7946846001 | L37: 0.7946846001 | M37: 1.623483203e+11 | N37: 0 | O37: FALSE | P37: 0 | Q37: 1.20151254e-08 | R37: 1.20151254e-08 | S37: 51231955.5 | T37: 0 | U37: FALSE | V37: 0 | W37: 3.897552615e-05 | X37: 3.897552615e-05 | Y37: 16213.65728 | Z37: 0 | AA37: FALSE | AB37: 0 | AC37: 0.1123769911 | AD37: 0.1123769911 | AE37: 5.619687868 | AF37: 0 | AG37: TRUE | AH37: 0.7946846001 | AI37: 355.2504043 | AJ37: 0 | AK37: 0.001777685841 | AL37: 0.001777685841 | AM37: FALSE | AN37: 0 | AO37: 1123400.417 | AP37: 0 | AQ37: 5.621536221e-07 | AR37: 5.621536221e-07 | AS37: FALSE | AT37: 0 | AU37: 3552504043 | AV37: 0
B38: 2 | C38: 9 | D38: 729.1248869 | F38: 29 | G38: 9 | H38: 1 | I38: 222.6598574 | J38: 1 | K38: 0.137397329 | L38: 0.137397329 | M38: 5.805188924e+10 | N38: 0 | O38: FALSE | P38: 0 | Q38: 1.004446327e-09 | R38: 1.004446327e-09 | S38: 18319326.01 | T38: 0 | U38: FALSE | V38: 0 | W38: 3.258295091e-06 | X38: 3.258295091e-06 | Y38: 5797.617342 | Z38: 0 | AA38: FALSE | AB38: 0 | AC38: 0.009394546645 | AD38: 0.009394546645 | AE38: 2.009466419 | AF38: 0 | AG38: TRUE | AH38: 0.137397329 | AI38: 29.69839698 | AJ38: 0 | AK38: 0.00063565808 | AL38: 0.00063565808 | AM38: FALSE | AN38: 0 | AO38: 93914.57731 | AP38: 0 | AQ38: 2.010127346e-07 | AR38: 2.010127346e-07 | AS38: FALSE | AT38: 0 | AU38: 296983969.8 | AV38: 0
B39: 2 | C39: 10 | D39: 897.6777391 | F39: 30 | G39: 1 | H39: 5 | I39: 224.4194348 | J39: 1 | K39: 0.2296437856 | L39: 0.2296437856 | M39: 1.063259429e+11 | N39: 0 | O39: FALSE | P39: 0 | Q39: 1.531992593e-09 | R39: 1.531992593e-09 | S39: 33553078.76 | T39: 0 | U39: FALSE | V39: 0 | W39: 4.96958753e-06 | X39: 4.96958753e-06 | Y39: 10618.72643 | Z39: 0 | AA39: FALSE | AB39: 0 | AC39: 0.01432866593 | AD39: 0.01432866593 | AE39: 3.680473013 | AF39: 0 | AG39: TRUE | AH39: 0.2296437856 | AI39: 45.29632191 | AJ39: 0 | AK39: 0.001164250563 | AL39: 0.001164250563 | AM39: FALSE | AN39: 0 | AO39: 143239.5469 | AP39: 0 | AQ39: 3.681683545e-07 | AR39: 3.681683545e-07 | AS39: FALSE | AT39: 0 | AU39: 452963219.1 | AV39: 0
B40: 2 | C40: 11 | D40: 1083.972997 | F40: 31 | G40: 2 | H40: 5 | I40: 232.3375331 | J40: 1 | K40: 0.4368083332 | L40: 0.4368083332 | M40: 3.026645888e+11 | N40: 0 | O40: FALSE | P40: 0 | Q40: 1.947182828e-09 | R40: 1.947182828e-09 | S40: 95511297.7 | T40: 0 | U40: FALSE | V40: 0 | W40: 6.316411417e-06 | X40: 6.316411417e-06 | Y40: 30226.98299 | Z40: 0 | AA40: FALSE | AB40: 0 | AC40: 0.01821192373 | AD40: 0.01821192373 | AE40: 10.47673616 | AF40: 0 | AG40: TRUE | AH40: 0.4368083332 | AI40: 57.57222367 | AJ40: 0 | AK40: 0.003314124551 | AL40: 0.003314124551 | AM40: FALSE | AN40: 0 | AO40: 182059.3568 | AP40: 0 | AQ40: 1.048018203e-06 | AR40: 1.048018203e-06 | AS40: FALSE | AT40: 0 | AU40: 575722236.7 | AV40: 0
B41: 2 | C41: 12 | D41: 1288.01066 | F41: 32 | G41: 6 | H41: 4 | I41: 236.9564238 | J41: 1 | K41: 0.9160196212 | L41: 0.9160196212 | M41: 7.97946654e+11 | N41: 0 | O41: FALSE | P41: 0 | Q41: 3.248046275e-09 | R41: 3.248046275e-09 | S41: 251806531.8 | T41: 0 | U41: FALSE | V41: 0 | W41: 1.053624563e-05 | X41: 1.053624563e-05 | Y41: 79690.59094 | Z41: 0 | AA41: FALSE | AB41: 0 | AC41: 0.03037884793 | AD41: 0.03037884793 | AE41: 27.62092718 | AF41: 0 | AG41: TRUE | AH41: 0.9160196212 | AI41: 96.03476568 | AJ41: 0 | AK41: 0.008737376933 | AL41: 0.008737376933 | AM41: FALSE | AN41: 0 | AO41: 303688.5941 | AP41: 0 | AQ41: 2.763001188e-06 | AR41: 2.763001188e-06 | AS41: FALSE | AT41: 0 | AU41: 960347656.8 | AV41: 0
B42: 2 | C42: 13 | D42: 1509.790729 | F42: 33 | G42: 3 | H42: 5 | I42: 245.5343636 | J42: 1 | K42: 0.6012148394 | L42: 0.6012148394 | M42: 7.918809508e+11 | N42: 0 | O42: FALSE | P42: 0 | Q42: 1.4098925e-09 | R42: 1.4098925e-09 | S42: 249892389.2 | T42: 0 | U42: FALSE | V42: 0 | W42: 4.573510486e-06 | X42: 4.573510486e-06 | Y42: 79084.81176 | Z42: 0 | AA42: FALSE | AB42: 0 | AC42: 0.01318666861 | AD42: 0.01318666861 | AE42: 27.41096283 | AF42: 0 | AG42: TRUE | AH42: 0.6012148394 | AI42: 41.68619668 | AJ42: 0 | AK42: 0.008670958539 | AL42: 0.008670958539 | AM42: FALSE | AN42: 0 | AO42: 131823.3285 | AP42: 0 | AQ42: 2.741997848e-06 | AR42: 2.741997848e-06 | AS42: FALSE | AT42: 0 | AU42: 416861966.8 | AV42: 0
B43: 2 | C43: 14 | D43: 1749.313203 | F43: 34 | G43: 8 | H43: 3 | I43: 248.7602555 | J43: 1 | K43: 0.577369645 | L43: 0.577369645 | M43: 8.851010189e+11 | N43: 0 | O43: FALSE | P43: 0 | Q43: 1.163326355e-09 | R43: 1.163326355e-09 | S43: 279309671.6 | T43: 0 | U43: FALSE | V43: 0 | W43: 3.773681528e-06 | X43: 3.773681528e-06 | Y43: 88394.66008 | Z43: 0 | AA43: FALSE | AB43: 0 | AC43: 0.01088054524 | AD43: 0.01088054524 | AE43: 30.63777593 | AF43: 0 | AG43: TRUE | AH43: 0.577369645 | AI43: 34.39599207 | AJ43: 0 | AK43: 0.009691702055 | AL43: 0.009691702055 | AM43: FALSE | AN43: 0 | AO43: 108769.6773 | AP43: 0 | AQ43: 3.06478529e-06 | AR43: 3.06478529e-06 | AS43: FALSE | AT43: 0 | AU43: 343959920.7 | AV43: 0
B44: 2 | C44: 15 | D44: 2006.578082 | F44: 35 | G44: 9 | H44: 2 | I44: 249.2734656 | J44: 1 | K44: 0.2461366751 | L44: 0.2461366751 | M44: 3.864753776e+11 | N44: 0 | O44: FALSE | P44: 0 | Q44: 4.841917021e-10 | R44: 4.841917021e-10 | S44: 121959311.4 | T44: 0 | U44: FALSE | V44: 0 | W44: 1.570655796e-06 | X44: 1.570655796e-06 | Y44: 38597.13061 | Z44: 0 | AA44: FALSE | AB44: 0 | AC44: 0.004528625777 | AD44: 0.004528625777 | AE44: 13.37784701 | AF44: 0 | AG44: TRUE | AH44: 0.2461366751 | AI44: 14.31606348 | AJ44: 0 | AK44: 0.004231838097 | AL44: 0.004231838097 | AM44: FALSE | AN44: 0 | AO44: 45271.36772 | AP44: 0 | AQ44: 1.338224708e-06 | AR44: 1.338224708e-06 | AS44: FALSE | AT44: 0 | AU44: 143160634.8 | AV44: 0
B45: 2 | C45: 16 | D45: 2281.585368 | F45: 36 | G45: 4 | H45: 5 | I45: 264.0099264 | J45: 1 | K45: 0.7067699752 | L45: 0.7067699752 | M45: 2.163931846e+12 | N45: 0 | O45: FALSE | P45: 0 | Q45: 7.130157419e-10 | R45: 7.130157419e-10 | S45: 682867921.6 | T45: 0 | U45: FALSE | V45: 0 | W45: 2.31293164e-06 | X45: 2.31293164e-06 | Y45: 216110.9476 | Z45: 0 | AA45: FALSE | AB45: 0 | AC45: 0.006668807942 | AD45: 0.006668807942 | AE45: 74.904511 | AF45: 0 | AG45: TRUE | AH45: 0.7067699752 | AI45: 21.08168847 | AJ45: 0 | AK45: 0.02369467695 | AL45: 0.02369467695 | AM45: FALSE | AN45: 0 | AO45: 66666.15248 | AP45: 0 | AQ45: 7.492914759e-06 | AR45: 7.492914759e-06 | AS45: FALSE | AT45: 0 | AU45: 210816884.7 | AV45: 0
B46: 2 | C46: 17 | D46: 2574.335058 | F46: 37 | G46: 7 | H46: 4 | I46: 271.2681832 | J46: 1 | K46: 0.7792110359 | L46: 0.7792110359 | M46: 3.270148168e+12 | N46: 0 | O46: FALSE | P46: 0 | Q46: 5.734945197e-10 | R46: 5.734945197e-10 | S46: 1031954536 | T46: 0 | U46: FALSE | V46: 0 | W46: 1.860342685e-06 | X46: 1.860342685e-06 | Y46: 326588.2984 | Z46: 0 | AA46: FALSE | AB46: 0 | AC46: 0.005363871487 | AD46: 0.005363871487 | AE46: 113.1961942 | AF46: 0 | AG46: TRUE | AH46: 0.7792110359 | AI46: 16.95647388 | AJ46: 0 | AK46: 0.03580755308 | AL46: 0.03580755308 | AM46: FALSE | AN46: 0 | AO46: 53621.07854 | AP46: 0 | AQ46: 1.132334252e-05 | AR46: 1.132334252e-05 | AS46: FALSE | AT46: 0 | AU46: 169564738.8 | AV46: 0
B47: 2 | C47: 18 | D47: 2884.827154 | F47: 38 | G47: 10 | H47: 1 | I47: 272.8078134 | J47: 1 | K47: 3.266479509e-06 | L47: 3.266479509e-06 | M47: 14640981.54 | N47: 0 | O47: FALSE | P47: 0 | Q47: 2.251003636e-15 | R47: 2.251003636e-15 | S47: 4620.227136 | T47: 0 | U47: FALSE | V47: 0 | W47: 7.301967159e-12 | X47: 7.301967159e-12 | Y47: 1.462188562 | Z47: 0 | AA47: FALSE | AB47: 0 | AC47: 2.105354769e-08 | AD47: 2.105354769e-08 | AE47: 0.0005067976447 | AF47: 0 | AG47: TRUE | AH47: 3.266479509e-06 | AI47: 6.655527304e-05 | AJ47: 0 | AK47: 1.603161987e-07 | AL47: 1.603161987e-07 | AM47: FALSE | AN47: 0 | AO47: 0.2104662531 | AP47: 0 | AQ47: 5.069643338e-11 | AR47: 5.069643338e-11 | AS47: FALSE | AT47: 0 | AU47: 665.5527304 | AV47: 0
B48: 2 | C48: 19 | D48: 3213.061656 | F48: 39 | G48: 5 | H48: 5 | I48: 287.7642213 | J48: 1 | K48: 0.7431412206 | L48: 0.7431412206 | M48: 6.195402529e+12 | N48: 0 | O48: FALSE | P48: 0 | Q48: 2.753339006e-10 | R48: 2.753339006e-10 | S48: 1955071578 | T48: 0 | U48: FALSE | V48: 0 | W48: 8.931478688e-07 | X48: 8.931478688e-07 | Y48: 618732.1999 | Z48: 0 | AA48: FALSE | AB48: 0 | AC48: 0.002575187047 | AD48: 0.002575187047 | AE48: 214.4538877 | AF48: 0 | AG48: TRUE | AH48: 0.7431412206 | AI48: 8.140778914 | AJ48: 0 | AK48: 0.06783857903 | AL48: 0.06783857903 | AM48: FALSE | AN48: 0 | AO48: 25743.4033 | AP48: 0 | AQ48: 2.14524423e-05 | AR48: 2.14524423e-05 | AS48: FALSE | AT48: 0 | AU48: 81407789.14 | AV48: 0
B49: 2 | C49: 20 | D49: 3559.038563 | F49: 40 | G49: 9 | H49: 3 | I49: 293.6294793 | J49: 1 | K49: 0.3035374642 | L49: 0.3035374642 | M49: 3.199587851e+12 | N49: 0 | O49: FALSE | P49: 0 | Q49: 8.894408617e-11 | R49: 8.894408617e-11 | S49: 1009687949 | T49: 0 | U49: FALSE | V49: 0 | W49: 2.885232106e-07 | X49: 2.885232106e-07 | Y49: 319541.4698 | Z49: 0 | AA49: FALSE | AB49: 0 | AC49: 0.0008318905086 | AD49: 0.0008318905086 | AE49: 110.7537485 | AF49: 0 | AG49: TRUE | AH49: 0.3035374642 | AI49: 2.629803811 | AJ49: 0 | AK49: 0.0350349299 | AL49: 0.0350349299 | AM49: FALSE | AN49: 0 | AO49: 8316.169843 | AP49: 0 | AQ49: 1.107901762e-05 | AR49: 1.107901762e-05 | AS49: FALSE | AT49: 0 | AU49: 26298038.11 | AV49: 0
B50: 3 | C50: 1 | D50: 32.6254977 | F50: 41 | G50: 10 | H50: 2 | I50: 299.4214216 | J50: 1 | K50: 5.851645091e-06 | L50: 5.851645091e-06 | M50: 77409078.55 | N50: 0 | O50: FALSE | P50: 0 | Q50: 1.366314166e-15 | R50: 1.366314166e-15 | S50: 24427.83801 | T50: 0 | U50: FALSE | V50: 0 | W50: 4.432147957e-12 | X50: 4.432147957e-12 | Y50: 7.730811556 | Z50: 0 | AA50: FALSE | AB50: 0 | AC50: 1.277908218e-08 | AD50: 1.277908218e-08 | AE50: 0.002679515618 | AF50: 0 | AG50: TRUE | AH50: 5.851645091e-06 | AI50: 4.039771901e-05 | AJ50: 0 | AK50: 8.476159327e-07 | AL50: 8.476159327e-07 | AM50: FALSE | AN50: 0 | AO50: 0.1277488043 | AP50: 0 | AQ50: 2.680396928e-10 | AR50: 2.680396928e-10 | AS50: FALSE | AT50: 0 | AU50: 403.9771901 | AV50: 0
B51: 3 | C51: 2 | D51: 59.23910594 | F51: 42 | G51: 8 | H51: 4 | I51: 310.8586748 | J51: 1 | K51: 0.5661274915 | L51: 0.5661274915 | M51: 1.158012001e+13 | N51: 0 | O51: FALSE | P51: 0 | Q51: 8.548736743e-11 | R51: 8.548736743e-11 | S51: 3654316792 | T51: 0 | U51: FALSE | V51: 0 | W51: 2.773100583e-07 | X51: 2.773100583e-07 | Y51: 1156501.63 | Z51: 0 | AA51: FALSE | AB51: 0 | AC51: 0.0007995599554 | AD51: 0.0007995599554 | AE51: 400.8459084 | AF51: 0 | AG51: TRUE | AH51: 0.5661274915 | AI51: 2.527599241 | AJ51: 0 | AK51: 0.1268002979 | AL51: 0.1268002979 | AM51: FALSE | AN51: 0 | AO51: 7992.970613 | AP51: 0 | AQ51: 4.009777493e-05 | AR51: 4.009777493e-05 | AS51: FALSE | AT51: 0 | AU51: 25275992.41 | AV51: 0
B52: 3 | C52: 3 | D52: 103.5951197 | F52: 43 | G52: 6 | H52: 5 | I52: 316.7972485 | J52: 1 | K52: 0.7067682882 | L52: 0.7067682882 | M52: 1.801479198e+13 | N52: 0 | O52: FALSE | P52: 0 | Q52: 8.564684547e-11 | R52: 8.564684547e-11 | S52: 5684894180 | T52: 0 | U52: FALSE | V52: 0 | W52: 2.778273846e-07 | X52: 2.778273846e-07 | Y52: 1799129.567 | Z52: 0 | AA52: FALSE | AB52: 0 | AC52: 0.0008010515473 | AD52: 0.0008010515473 | AE52: 623.5821089 | AF52: 0 | AG52: TRUE | AH52: 0.7067682882 | AI52: 2.532314517 | AJ52: 0 | AK52: 0.1972588356 | AL52: 0.1972588356 | AM52: FALSE | AN52: 0 | AO52: 8007.881627 | AP52: 0 | AQ52: 6.237872092e-05 | AR52: 6.237872092e-05 | AS52: FALSE | AT52: 0 | AU52: 25323145.17 | AV52: 0
B53: 3 | C53: 4 | D53: 165.6935389 | F53: 44 | G53: 1 | H53: 6 | I53: 322.002665 | J53: 1 | K53: 0.1137551426 | L53: 0.1137551426 | M53: 3.504435875e+12 | N53: 0 | O53: FALSE | P53: 0 | Q53: 1.140539876e-11 | R53: 1.140539876e-11 | S53: 1105888269 | T53: 0 | U53: FALSE | V53: 0 | W53: 3.699765112e-08 | X53: 3.699765112e-08 | Y53: 349986.5115 | Z53: 0 | AA53: FALSE | AB53: 0 | AC53: 0.000106674242 | AD53: 0.000106674242 | AE53: 121.3060643 | AF53: 0 | AG53: TRUE | AH53: 0.1137551426 | AI53: 0.3372226577 | AJ53: 0 | AK53: 0.03837296268 | AL53: 0.03837296268 | AM53: FALSE | AN53: 0 | AO53: 1066.391677 | AP53: 0 | AQ53: 1.213459626e-05 | AR53: 1.213459626e-05 | AS53: FALSE | AT53: 0 | AU53: 3372226.577 | AV53: 0
B54: 3 | C54: 5 | D54: 245.5343636 | F54: 45 | G54: 11 | H54: 1 | I54: 328.2345016 | J54: 1 | K54: 0.1374035422 | L54: 0.1374035422 | M54: 5.289747363e+12 | N54: 0 | O54: FALSE | P54: 0 | Q54: 1.102420904e-11 | R54: 1.102420904e-11 | S54: 1669275673 | T54: 0 | U54: FALSE | V54: 0 | W54: 3.576112055e-08 | X54: 3.576112055e-08 | Y54: 528284.806 | Z54: 0 | AA54: FALSE | AB54: 0 | AC54: 0.0001031089897 | AD54: 0.0001031089897 | AE54: 183.1046298 | AF54: 0 | AG54: TRUE | AH54: 0.1374035422 | AI54: 0.325952047 | AJ54: 0 | AK54: 0.05792181265 | AL54: 0.05792181265 | AM54: FALSE | AN54: 0 | AO54: 1030.750877 | AP54: 0 | AQ54: 1.831648542e-05 | AR54: 1.831648542e-05 | AS54: FALSE | AT54: 0 | AU54: 3259520.47 | AV54: 0
B55: 3 | C55: 6 | D55: 343.1175938 | F55: 46 | G55: 2 | H55: 6 | I55: 329.9207633 | J55: 1 | K55: 0.2163750875 | L55: 0.2163750875 | M55: 8.841351358e+12 | N55: 0 | O55: FALSE | P55: 0 | Q55: 1.635619865e-11 | R55: 1.635619865e-11 | S55: 2790048697 | T55: 0 | U55: FALSE | V55: 0 | W55: 5.305741114e-08 | X55: 5.305741114e-08 | Y55: 882981.9774 | Z55: 0 | AA55: FALSE | AB55: 0 | AC55: 0.000152978877 | AD55: 0.000152978877 | AE55: 306.0434188 | AF55: 0 | AG55: TRUE | AH55: 0.2163750875 | AI55: 0.483602625 | AJ55: 0 | AK55: 0.09681125803 | AL55: 0.09681125803 | AM55: FALSE | AN55: 0 | AO55: 1529.285777 | AP55: 0 | AQ55: 3.061440785e-05 | AR55: 3.061440785e-05 | AS55: FALSE | AT55: 0 | AU55: 4836026.25 | AV55: 0
B56: 3 | C56: 7 | D56: 458.4432295 | F56: 47 | G56: 3 | H56: 6 | I56: 343.1175938 | J56: 1 | K56: 0.2978146331 | L56: 0.2978146331 | M56: 1.919993576e+13 | N56: 0 | O56: FALSE | P56: 0 | Q56: 1.426851591e-11 | R56: 1.426851591e-11 | S56: 6058887785 | T56: 0 | U56: FALSE | V56: 0 | W56: 4.628523601e-08 | X56: 4.628523601e-08 | Y56: 1917489.37 | Z56: 0 | AA56: FALSE | AB56: 0 | AC56: 0.0001334528631 | AD56: 0.0001334528631 | AE56: 664.6058665 | AF56: 0 | AG56: TRUE | AH56: 0.2978146331 | AI56: 0.4218762497 | AJ56: 0 | AK56: 0.2102359537 | AL56: 0.2102359537 | AM56: FALSE | AN56: 0 | AO56: 1334.08984 | AP56: 0 | AQ56: 6.648244598e-05 | AR56: 6.648244598e-05 | AS56: FALSE | AT56: 0 | AU56: 4218762.497 | AV56: 0
B57: 3 | C57: 8 | D57: 591.5112707 | F57: 48 | G57: 10 | H57: 3 | I57: 343.7774354 | J57: 1 | K57: 7.216289534e-06 | L57: 7.216289534e-06 | M57: 475739065.1 | N57: 0 | O57: FALSE | P57: 0 | Q57: 3.381003327e-16 | R57: 3.381003327e-16 | S57: 150128.0862 | T57: 0 | U57: FALSE | V57: 0 | W57: 1.096754126e-12 | X57: 1.096754126e-12 | Y57: 47.51185689 | Z57: 0 | AA57: FALSE | AB57: 0 | AC57: 3.162238996e-09 | AD57: 3.162238996e-09 | AE57: 0.01646770997 | AF57: 0 | AG57: TRUE | AH57: 7.216289534e-06 | AI57: 9.996589787e-06 | AJ57: 0 | AK57: 5.209259933e-06 | AL57: 5.209259933e-06 | AM57: FALSE | AN57: 0 | AO57: 0.03161199256 | AP57: 0 | AQ57: 1.647312631e-09 | AR57: 1.647312631e-09 | AS57: FALSE | AT57: 0 | AU57: 99.96589787 | AV57: 0
B58: 3 | C58: 9 | D58: 742.3217174 | F58: 49 | G58: 7 | H58: 5 | I58: 351.1090079 | J58: 1 | K58: 0.6012116304 | L58: 0.6012116304 | M58: 5.065668736e+13 | N58: 0 | O58: FALSE | P58: 0 | Q58: 2.203963886e-11 | R58: 2.203963886e-11 | S58: 1.5985636e+10 | T58: 0 | U58: FALSE | V58: 0 | W58: 7.149376241e-08 | X58: 7.149376241e-08 | Y58: 5059061.694 | Z58: 0 | AA58: FALSE | AB58: 0 | AC58: 0.0002061358677 | AD58: 0.0002061358677 | AE58: 1753.481471 | AF58: 0 | AG58: TRUE | AH58: 0.6012116304 | AI58: 0.6516445192 | AJ58: 0 | AK58: 0.5546819069 | AL58: 0.5546819069 | AM58: FALSE | AN58: 0 | AO58: 2060.680905 | AP58: 0 | AQ58: 0.0001754058203 | AR58: 0.0001754058203 | AS58: FALSE | AT58: 0 | AU58: 6516445.192 | AV58: 0
B59: 3 | C59: 10 | D59: 910.8745696 | F59: 50 | G59: 11 | H59: 2 | I59: 354.8481099 | J59: 1 | K59: 0.2461478056 | L59: 0.2461478056 | M59: 2.345819126e+13 | N59: 0 | O59: FALSE | P59: 0 | Q59: 7.977814375e-12 | R59: 7.977814375e-12 | S59: 7402657502 | T59: 0 | U59: FALSE | V59: 0 | W59: 2.587900687e-08 | X59: 2.587900687e-08 | Y59: 2342759.525 | Z59: 0 | AA59: FALSE | AB59: 0 | AC59: 7.46161813e-05 | AD59: 7.46161813e-05 | AE59: 812.0054006 | AF59: 0 | AG59: FALSE | AH59: 0 | AI59: 0.2358795009 | AJ59: 0.2358795009 | AK59: 0.2568631101 | AL59: 0 | AM59: TRUE | AN59: 0.2461478056 | AO59: 745.916476 | AP59: 0 | AQ59: 8.122724746e-05 | AR59: 8.122724746e-05 | AS59: FALSE | AT59: 0 | AU59: 2358795.009 | AV59: 0
B60: 3 | C60: 11 | D60: 1097.169827 | F60: 51 | G60: 9 | H60: 4 | I60: 355.7278986 | J60: 1 | K60: 0.2976271868 | L60: 0.2976271868 | M60: 2.919274369e+13 | N60: 0 | O60: FALSE | P60: 0 | Q60: 9.372529106e-12 | R60: 9.372529106e-12 | S60: 9212299477 | T60: 0 | U60: FALSE | V60: 0 | W60: 3.040328262e-08 | X60: 3.040328262e-08 | Y60: 2915466.823 | Z60: 0 | AA60: FALSE | AB60: 0 | AC60: 8.766089283e-05 | AD60: 8.766089283e-05 | AE60: 1010.50696 | AF60: 0 | AG60: FALSE | AH60: 0 | AI60: 0.2771169374 | AJ60: 0.2771169374 | AK60: 0.3196554608 | AL60: 0 | AM60: TRUE | AN60: 0.2976271868 | AO60: 876.3207005 | AP60: 0 | AQ60: 0.0001010839323 | AR60: 0.0001010839323 | AS60: FALSE | AT60: 0 | AU60: 2771169.374 | AV60: 0
B61: 3 | C61: 12 | D61: 1301.20749 | F61: 52 | G61: 4 | H61: 6 | I61: 361.5931566 | J61: 1 | K61: 0.3501018722 | L61: 0.3501018722 | M61: 4.153107002e+13 | N61: 0 | O61: FALSE | P61: 0 | Q61: 9.115956815e-12 | R61: 9.115956815e-12 | S61: 1.310588202e+10 | T61: 0 | U61: FALSE | V61: 0 | W61: 2.957099501e-08 | X61: 2.957099501e-08 | Y61: 4147690.195 | Z61: 0 | AA61: FALSE | AB61: 0 | AC61: 8.526118238e-05 | AD61: 8.526118238e-05 | AE61: 1437.598184 | AF61: 0 | AG61: FALSE | AH61: 0 | AI61: 0.2695308818 | AJ61: 0.2695308818 | AK61: 0.4547579859 | AL61: 0 | AM61: TRUE | AN61: 0.3501018722 | AO61: 852.3314862 | AP61: 0 | AQ61: 0.000143807102 | AR61: 0.000143807102 | AS61: FALSE | AT61: 0 | AU61: 2695308.818 | AV61: 0
B62: 3 | C62: 13 | D62: 1522.987559 | F62: 53 | G62: 5 | H62: 6 | I62: 385.3474515 | J62: 1 | K62: 0.3681185418 | L62: 0.3681185418 | M62: 9.150399303e+13 | N62: 0 | O62: FALSE | P62: 0 | Q62: 4.574270607e-12 | R62: 4.574270607e-12 | S62: 2.887574378e+10 | T62: 0 | U62: FALSE | V62: 0 | W62: 1.483834731e-08 | X62: 1.483834731e-08 | Y62: 9138464.634 | Z62: 0 | AA62: FALSE | AB62: 0 | AC62: 4.278297148e-05 | AD62: 4.278297148e-05 | AE62: 3167.411148 | AF62: 0 | AG62: FALSE | AH62: 0 | AI62: 0.1352471513 | AJ62: 0.1352471513 | AK62: 1.001952792 | AL62: 0 | AM62: TRUE | AN62: 0.3681185418 | AO62: 427.689045 | AP62: 0 | AQ62: 0.0003168452931 | AR62: 0.0003168452931 | AS62: FALSE | AT62: 0 | AU62: 1352471.513 | AV62: 0
B63: 3 | C63: 14 | D63: 1762.510033 | F63: 54 | G63: 12 | H63: 1 | I63: 388.9399221 | J63: 1 | K63: 0.2613537394 | L63: 0.2613537394 | M63: 7.236644452e+13 | N63: 0 | O63: FALSE | P63: 0 | Q63: 2.915457496e-12 | R63: 2.915457496e-12 | S63: 2.283654342e+10 | T63: 0 | U63: FALSE | V63: 0 | W63: 9.457370281e-09 | X63: 9.457370281e-09 | Y63: 7227205.852 | Z63: 0 | AA63: FALSE | AB63: 0 | AC63: 2.726815828e-05 | AD63: 2.726815828e-05 | AE63: 2504.964817 | AF63: 0 | AG63: FALSE | AH63: 0 | AI63: 0.08620113562 | AJ63: 0.08620113562 | AK63: 0.7923999679 | AL63: 0 | AM63: TRUE | AN63: 0.2613537394 | AO63: 272.5919255 | AP63: 0 | AQ63: 0.0002505788717 | AR63: 0.0002505788717 | AS63: FALSE | AT63: 0 | AU63: 862011.3562 | AV63: 0
B64: 3 | C64: 15 | D64: 2019.774913 | F64: 55 | G64: 8 | H64: 5 | I64: 390.6994995 | J64: 1 | K64: 0.4368039164 | L64: 0.4368039164 | M64: 1.274639368e+14 | N64: 0 | O64: FALSE | P64: 0 | Q64: 4.623514594e-12 | R64: 4.623514594e-12 | S64: 4.022355592e+10 | T64: 0 | U64: FALSE | V64: 0 | W64: 1.499808849e-08 | X64: 1.499808849e-08 | Y64: 12729768.83 | Z64: 0 | AA64: FALSE | AB64: 0 | AC64: 4.324354854e-05 | AD64: 4.324354854e-05 | AE64: 4412.164771 | AF64: 0 | AG64: FALSE | AH64: 0 | AI64: 0.1367031449 | AJ64: 0.1367031449 | AK64: 1.395707915 | AL64: 0 | AM64: TRUE | AN64: 0.4368039164 | AO64: 432.2933012 | AP64: 0 | AQ64: 0.0004413615961 | AR64: 0.0004413615961 | AS64: FALSE | AT64: 0 | AU64: 1367031.449 | AV64: 0
B65: 3 | C65: 16 | D65: 2294.782198 | F65: 56 | G65: 11 | H65: 3 | I65: 399.2041236 | J65: 1 | K65: 0.3035511904 | L65: 0.3035511904 | M65: 1.137805424e+14 | N65: 0 | O65: FALSE | P65: 0 | Q65: 2.501395672e-12 | R65: 2.501395672e-12 | S65: 3.590551278e+10 | T65: 0 | U65: FALSE | V65: 0 | W65: 8.114206816e-09 | X65: 8.114206816e-09 | Y65: 11363214.09 | Z65: 0 | AA65: FALSE | AB65: 0 | AC65: 2.339545446e-05 | AD65: 2.339545446e-05 | AE65: 3938.514011 | AF65: 0 | AG65: FALSE | AH65: 0 | AI65: 0.07395859752 | AJ65: 0.07395859752 | AK65: 1.24587713 | AL65: 0 | AM65: TRUE | AN65: 0.3035511904 | AO65: 233.8776207 | AP65: 0 | AQ65: 0.0003939809414 | AR65: 0.0003939809414 | AS65: FALSE | AT65: 0 | AU65: 739585.9752 | AV65: 0
B66: 3 | C66: 17 | D66: 2587.531889 | F66: 57 | G66: 10 | H66: 4 | I66: 405.8758546 | J66: 1 | K66: 7.075778797e-06 | L66: 7.075778797e-06 | M66: 3215895561 | N66: 0 | O66: FALSE | P66: 0 | Q66: 4.808759664e-17 | R66: 4.808759664e-17 | S66: 1014834.142 | T66: 0 | U66: FALSE | V66: 0 | W66: 1.559899974e-13 | X66: 1.559899974e-13 | Y66: 321.1701138 | Z66: 0 | AA66: FALSE | AB66: 0 | AC66: 4.497613833e-10 | AD66: 4.497613833e-10 | AE66: 0.1113182399 | AF66: 0 | AG66: FALSE | AH66: 0 | AI66: 1.421802734e-06 | AJ66: 1.421802734e-06 | AK66: 3.521349648e-05 | AL66: 0 | AM66: TRUE | AN66: 7.075778797e-06 | AO66: 0.004496135024 | AP66: 0 | AQ66: 1.113548533e-08 | AR66: 1.113548533e-08 | AS66: FALSE | AT66: 0 | AU66: 14.21802734 | AV66: 0
B67: 3 | C67: 18 | D67: 2898.023985 | F67: 58 | G67: 6 | H67: 6 | I67: 414.3804787 | J67: 1 | K67: 0.3501010365 | L67: 0.3501010365 | M67: 2.025034445e+14 | N67: 0 | O67: FALSE | P67: 0 | Q67: 1.869566389e-12 | R67: 1.869566389e-12 | S67: 6.390363288e+10 | T67: 0 | U67: FALSE | V67: 0 | W67: 6.06463364e-09 | X67: 6.06463364e-09 | Y67: 20223932.36 | Z67: 0 | AA67: FALSE | AB67: 0 | AC67: 1.748598025e-05 | AD67: 1.748598025e-05 | AE67: 7009.657681 | AF67: 0 | AG67: FALSE | AH67: 0 | AI67: 0.05527734363 | AJ67: 0.05527734363 | AK67: 2.21737746 | AL67: 0 | AM67: TRUE | AN67: 0.3501010365 | AO67: 174.8023089 | AP67: 0 | AQ67: 0.0007011963204 | AR67: 0.0007011963204 | AS67: FALSE | AT67: 0 | AU67: 552773.4363 | AV67: 0
B68: 3 | C68: 19 | D68: 3226.258486 | F68: 59 | G68: 12 | H68: 2 | I68: 415.5535303 | J68: 1 | K68: 0.4681949855 | L68: 0.4681949855 | M68: 2.798593365e+14 | N68: 0 | O68: FALSE | P68: 0 | Q68: 2.419358513e-12 | R68: 2.419358513e-12 | S68: 8.831468691e+10 | T68: 0 | U68: FALSE | V68: 0 | W68: 7.848088792e-09 | X68: 7.848088792e-09 | Y68: 27949432.2 | Z68: 0 | AA68: FALSE | AB68: 0 | AC68: 2.262816417e-05 | AD68: 2.262816417e-05 | AE68: 9687.332247 | AF68: 0 | AG68: FALSE | AH68: 0 | AI68: 0.07153301036 | AJ68: 0.07153301036 | AK68: 3.064411009 | AL68: 0 | AM68: TRUE | AN68: 0.4681949855 | AO68: 226.2072406 | AP68: 0 | AQ68: 0.0009690518475 | AR68: 0.0009690518475 | AS68: FALSE | AT68: 0 | AU68: 715330.1036 | AV68: 0
B69: 3 | C69: 20 | D69: 3572.235394 | F69: 60 | G69: 9 | H69: 5 | I69: 435.5687233 | J69: 1 | K69: 0.2296385934 | L69: 0.2296385934 | M69: 2.371859864e+14 | N69: 0 | O69: FALSE | P69: 0 | Q69: 6.867319339e-13 | R69: 6.867319339e-13 | S69: 7.484833771e+10 | T69: 0 | U69: FALSE | V69: 0 | W69: 2.227670337e-09 | X69: 2.227670337e-09 | Y69: 23687662.98 | Z69: 0 | AA69: FALSE | AB69: 0 | AC69: 6.422976529e-06 | AD69: 6.422976529e-06 | AE69: 8210.194034 | AF69: 0 | AG69: FALSE | AH69: 0 | AI69: 0.02030455688 | AJ69: 0.02030455688 | AK69: 2.597145255 | AL69: 0 | AM69: TRUE | AN69: 0.2296385934 | AO69: 64.20864663 | AP69: 0 | AQ69: 0.0008212894421 | AR69: 0.0008212894421 | AS69: FALSE | AT69: 0 | AU69: 203045.5688 | AV69: 0
B70: 4 | C70: 1 | D70: 51.10106045 | F70: 61 | G70: 1 | H70: 7 | I70: 437.3283007 | J70: 1 | K70: 0.02586025664 | L70: 0.02586025664 | M70: 2.799201754e+13 | N70: 0 | O70: FALSE | P70: 0 | Q70: 7.379347682e-14 | R70: 7.379347682e-14 | S70: 8833388572 | T70: 0 | U70: FALSE | V70: 0 | W70: 2.393765766e-10 | X70: 2.393765766e-10 | Y70: 2795550.815 | Z70: 0 | AA70: FALSE | AB70: 0 | AC70: 6.901874606e-07 | AD70: 6.901874606e-07 | AE70: 968.9438185 | AF70: 0 | AG70: FALSE | AH70: 0 | AI70: 0.002181846764 | AJ70: 0.002181846764 | AK70: 0.3065077184 | AL70: 0 | AM70: TRUE | AN70: 0.02586025664 | AO70: 6.899605279 | AP70: 0 | AQ70: 9.692625106e-05 | AR70: 9.692625106e-05 | AS70: FALSE | AT70: 0 | AU70: 21818.46764 | AV70: 0
B71: 4 | C71: 2 | D71: 77.71466869 | F71: 62 | G71: 2 | H71: 7 | I71: 445.246399 | J71: 1 | K71: 0.04918911944 | L71: 0.04918911944 | M71: 6.5595754e+13 | N71: 0 | O71: FALSE | P71: 0 | Q71: 1.139328289e-13 | R71: 1.139328289e-13 | S71: 2.069992929e+10 | T71: 0 | U71: FALSE | V71: 0 | W71: 3.695834879e-10 | X71: 3.695834879e-10 | Y71: 6551019.888 | Z71: 0 | AA71: FALSE | AB71: 0 | AC71: 1.065609228e-06 | AD71: 1.065609228e-06 | AE71: 2270.597333 | AF71: 0 | AG71: FALSE | AH71: 0 | AI71: 0.003368644287 | AJ71: 0.003368644287 | AK71: 0.7182620857 | AL71: 0 | AM71: TRUE | AN71: 0.04918911944 | AO71: 10.65258857 | AP71: 0 | AQ71: 0.0002271344148 | AR71: 0.0002271344148 | AS71: FALSE | AT71: 0 | AU71: 33686.44287 | AV71: 0
B72: 4 | C72: 3 | D72: 122.0706824 | F72: 63 | G72: 7 | H72: 6 | I72: 448.6922381 | J72: 1 | K72: 0.2978130436 | L72: 0.2978130436 | M72: 4.343885693e+14 | N72: 0 | O72: FALSE | P72: 0 | Q72: 6.306603896e-13 | R72: 6.306603896e-13 | S72: 1.370791876e+11 | T72: 0 | U72: FALSE | V72: 0 | W72: 2.045781437e-09 | X72: 2.045781437e-09 | Y72: 43382200.56 | Z72: 0 | AA72: FALSE | AB72: 0 | AC72: 5.8985416e-06 | AD72: 5.8985416e-06 | AE72: 15036.36237 | AF72: 0 | AG72: FALSE | AH72: 0 | AI72: 0.01864669331 | AJ72: 0.01864669331 | AK72: 4.756479203 | AL72: 0 | AM72: TRUE | AN72: 0.2978130436 | AO72: 58.96602168 | AP72: 0 | AQ72: 0.001504130793 | AR72: 0.001504130793 | AS72: FALSE | AT72: 0 | AU72: 186466.9331 | AV72: 0
B73: 4 | C73: 4 | D73: 184.1691016 | F73: 64 | G73: 13 | H73: 1 | I73: 454.9240747 | J73: 1 | K73: 0.359720693 | L73: 0.359720693 | M73: 6.159543773e+14 | N73: 0 | O73: FALSE | P73: 0 | Q73: 6.488866066e-13 | R73: 6.488866066e-13 | S73: 1.943755698e+11 | T73: 0 | U73: FALSE | V73: 0 | W73: 2.104904948e-09 | X73: 2.104904948e-09 | Y73: 61515100.13 | Z73: 0 | AA73: FALSE | AB73: 0 | AC73: 6.069010684e-06 | AD73: 6.069010684e-06 | AE73: 21321.26367 | AF73: 0 | AG73: FALSE | AH73: 0 | AI73: 0.01918558664 | AJ73: 0.01918558664 | AK73: 6.74459319 | AL73: 0 | AM73: TRUE | AN73: 0.359720693 | AO73: 60.67015202 | AP73: 0 | AQ73: 0.002132827637 | AR73: 0.002132827637 | AS73: FALSE | AT73: 0 | AU73: 191855.8664 | AV73: 0
B74: 4 | C74: 5 | D74: =3.1416/2*SQRT($H$2/$I$2)*(B74^2/$C$2^2+C74^2/$D$2^2) -> 264.0099264 | F74: 65 | G74: 3 | H74: 7 | I74: 458.4432295 | J74: 1 | K74: =ABS(SIN(G74*3.1416*$J$2/$C$2)*SIN(H74*3.1416*$K$2/$D$2))*(1/F74^$M$2)+(1-1/F74^$M$2) -> 0.06770298618 | L74: 0.06770298618 | M74: 1.267948234e+14 | N74: 0 | O74: FALSE | P74: 0 | Q74: 1.116607753e-13 | R74: 1.116607753e-13 | S74: 4.001240506e+10 | T74: 0 | U74: =AND($I74>44.548,$I74<89.095) -> FALSE | V74: 0 | W74: 3.622132375e-10 | X74: =IF($I74>89.095,W74,0) -> 3.622132375e-10 | Y74: 12662944.77 | Z74: 0 | AA74: FALSE | AB74: 0 | AC74: 1.044358801e-06 | AD74: 1.044358801e-06 | AE74: 4389.003408 | AF74: 0 | AG74: FALSE | AH74: 0 | AI74: 0.003301466632 | AJ74: 0.003301466632 | AK74: 1.38838124 | AL74: 0 | AM74: TRUE | AN74: 0.06770298618 | AO74: 10.44015417 | AP74: 0 | AQ74: 0.000439044698 | AR74: 0.000439044698 | AS74: FALSE | AT74: 0 | AU74: 33014.66632 | AV74: 0
B75: 4 | C75: 6 | D75: 361.5931566 | F75: 66 | G75: 12 | H75: 3 | I75: 459.909544 | J75: =IF(ABS(I75-I74)>0.0001,1,$L$2) -> 1 | K75: 0.5773813212 | L75: =$J75*$K75 -> 0.5773813212 | M75: =10^(LOG10($I75/22.27)/LOG10(2)*70/20)*$L75 -> 1.122227967e+15 | N75: =IF($I75<22.27,M75,0) -> 0 | O75: =AND($I75>22.27,$I75<44.45) -> FALSE | P75: =IF($O75=TRUE,$L75,0) -> 0 | Q75: =10^(LOG10(44.45/$I75)/LOG10(2)*70/20)*$L75 -> 9.175524215e-13 | R75: =IF($I75>44.45,Q75,0) -> 9.175524215e-13 | S75: =10^(LOG10($I75/44.548)/LOG10(2)*70/20)*$L75 -> 3.541393787e+11 | T75: =IF($I75<44.528,S75,0) -> 0 | U75: FALSE | V75: =IF($U75=TRUE,$L75,0) -> 0 | W75: =10^(LOG10(89.095/$I75)/LOG10(2)*70/20)*$L75 -> 2.976422402e-09 | X75: 2.976422402e-09 | Y75: =10^(LOG10($I75/89.09)/LOG10(2)*70/20)*$L75 -> 112076426.9 | Z75: =IF($I75<89.09,Y75,0) -> 0 | AA75: =AND($I75>89.09,$I75<176.78) -> FALSE | AB75: =IF($AA75=TRUE,$L75,0) -> 0 | AC75: =10^(LOG10(176.78/$I75)/LOG10(2)*70/20)*$L75 -> 8.58183139e-06 | AD75: =IF($I75>176.78,AC75,0) -> 8.58183139e-06 | AE75: =10^(LOG10($I75/176.78)/LOG10(2)*70/20)*$L75 -> 38845.92635 | AF75: =IF($I75<176.78,AE75,0) -> 0 | AG75: =AND($I75>176.78,$I75<353.55) -> FALSE | AH75: =IF($AG75=TRUE,$L75,0) -> 0 | AI75: =10^(LOG10(353.55/$I75)/LOG10(2)*70/20)*$L75 -> 0.02712921071 | AJ75: =IF($I75>353.55,AI75,0) -> 0.02712921071 | AK75: =10^(LOG10($I75/353.55)/LOG10(2)*70/20)*$L75 -> 12.28820085 | AL75: =IF($I75<353.55,AK75,0) -> 0 | AM75: =AND($I75>353.55,$I75<707.1) -> TRUE | AN75: =IF($AM75=TRUE,$L75,0) -> 0.5773813212 | AO75: =10^(LOG10(707.1/$I75)/LOG10(2)*70/20)*$L75 -> 85.79009696 | AP75: =IF($I75>707.1,AO75,0) -> 0 | AQ75: =10^(LOG10($I75/707.1)/LOG10(2)*70/20)*$L75 -> 0.003885870303 | AR75: =IF($I75<707.1,AQ75,0) -> 0.003885870303 | AS75: =AND($I75>707.1,$I75<1414.2) -> FALSE | AT75: =IF($AS75=TRUE,$L75,0) -> 0 | AU75: =10^(LOG10(1414.2/$I75)/LOG10(2)*70/20)*$L75 -> 271292.1071 | AV75: =IF($I75>1414.2,AU75,0) -> 0
B76: 4 | C76: 7 | D76: 476.9187923 | F76: 67 | G76: 11 | H76: 4 | I76: 461.3025428 | J76: 1 | K76: 0.2976406457 | L76: 0.2976406457 | M76: 5.992133409e+14 | N76: 0 | O76: FALSE | P76: 0 | Q76: 4.566563651e-13 | R76: 4.566563651e-13 | S76: 1.890926323e+11 | T76: 0 | U76: FALSE | V76: 0 | W76: 1.481334693e-09 | X76: 1.481334693e-09 | Y76: 59843179.99 | Z76: 0 | AA76: FALSE | AB76: 0 | AC76: 4.271088863e-06 | AD76: 4.271088863e-06 | AE76: 20741.77261 | AF76: 0 | AG76: FALSE | AH76: 0 | AI76: 0.01350192802 | AJ76: 0.01350192802 | AK76: 6.561281756 | AL76: 0 | AM76: TRUE | AN76: 0.2976406457 | AO76: 42.69684535 | AP76: 0 | AQ76: 0.002074859472 | AR76: 0.002074859472 | AS76: FALSE | AT76: 0 | AU76: 135019.2802 | AV76: 0
B77: 4 | C77: 8 | D77: 609.9868335 | F77: 68 | G77: 4 | H77: 7 | I77: 476.9187923 | J77: 1 | K77: 0.07958958217 | L77: 0.07958958217 | M77: 2.359672941e+14 | N77: 0 | O77: FALSE | P77: 0 | Q77: 8.291768157e-14 | R77: 8.291768157e-14 | S77: 7.446375725e+10 | T77: 0 | U77: FALSE | V77: 0 | W77: 2.689743268e-10 | X77: 2.689743268e-10 | Y77: 23565952.7 | Z77: 0 | AA77: FALSE | AB77: 0 | AC77: 7.755257856e-07 | AD77: 7.755257856e-07 | AE77: 8168.008992 | AF77: 0 | AG77: FALSE | AH77: 0 | AI77: 0.002451621512 | AJ77: 0.002451621512 | AK77: 2.583800786 | AL77: 0 | AM77: TRUE | AN77: 0.07958958217 | AO77: 7.752707938 | AP77: 0 | AQ77: 0.0008170695505 | AR77: 0.0008170695505 | AS77: FALSE | AT77: 0 | AU77: 24516.21512 | AV77: 0
B78: 4 | C78: 9 | D78: 760.7972802 | F78: 69 | G78: 13 | H78: 2 | I78: 481.537683 | J78: 1 | K78: 0.6444117656 | L78: 0.6444117656 | M78: 2.137109596e+15 | N78: 0 | O78: FALSE | P78: 0 | Q78: 6.001870785e-13 | R78: 6.001870785e-13 | S78: 6.744036743e+11 | T78: 0 | U78: FALSE | V78: 0 | W78: 1.946929923e-09 | X78: 1.946929923e-09 | Y78: 213432221 | Z78: 0 | AA78: FALSE | AB78: 0 | AC78: 5.61352593e-06 | AD78: 5.61352593e-06 | AE78: 73976.05869 | AF78: 0 | AG78: FALSE | AH78: 0 | AI78: 0.01774569097 | AJ78: 0.01774569097 | AK78: 23.40097798 | AL78: 0 | AM78: TRUE | AN78: 0.6444117656 | AO78: 56.11680211 | AP78: 0 | AQ78: 0.007400038991 | AR78: 0.007400038991 | AS78: FALSE | AT78: 0 | AU78: 177456.9097 | AV78: 0
B79: 4 | C79: 10 | D79: 929.3501323 | F79: 70 | G79: 10 | H79: 5 | I79: 485.7166793 | J79: 1 | K79: 5.459420248e-06 | L79: 5.459420248e-06 | M79: 2.001898275e+10 | N79: 0 | O79: FALSE | P79: 0 | Q79: 4.598726274e-18 | R79: 4.598726274e-18 | S79: 6317352.911 | T79: 0 | U79: FALSE | V79: 0 | W79: 1.491767836e-14 | X79: 1.491767836e-14 | Y79: 1999.287242 | Z79: 0 | AA79: FALSE | AB79: 0 | AC79: 4.301170436e-11 | AD79: 4.301170436e-11 | AE79: 0.692957182 | AF79: 0 | AG79: FALSE | AH79: 0 | AI79: 1.359702303e-07 | AJ79: 1.359702303e-07 | AK79: 0.0002192043757 | AL79: 0 | AM79: TRUE | AN79: 5.459420248e-06 | AO79: 0.0004299756217 | AP79: 0 | AQ79: 6.931851002e-08 | AR79: 6.931851002e-08 | AS79: FALSE | AT79: 0 | AU79: 1.359702303 | AV79: 0
B80: 4 | C80: 11 | D80: 1115.64539 | F80: 71 | G80: 8 | H80: 6 | I80: 488.2827297 | J80: 1 | K80: 0.2163728997 | L80: 0.2163728997 | M80: 8.435374608e+14 | N80: 0 | O80: FALSE | P80: 0 | Q80: 1.714304123e-13 | R80: 1.714304123e-13 | S80: 2.661935374e+11 | T80: 0 | U80: FALSE | V80: 0 | W80: 5.560982758e-10 | X80: 5.560982758e-10 | Y80: 84243725.31 | Z80: 0 | AA80: FALSE | AB80: 0 | AC80: 1.603381844e-06 | AD80: 1.603381844e-06 | AE80: 29199.05317 | AF80: 0 | AG80: FALSE | AH80: 0 | AI80: 0.005068671466 | AJ80: 0.005068671466 | AK80: 9.23658833 | AL80: 0 | AM80: TRUE | AN80: 0.2163728997 | AO80: 16.02854654 | AP80: 0 | AQ80: 0.002920865693 | AR80: 0.002920865693 | AS80: FALSE | AT80: 0 | AU80: 50686.71466 | AV80: 0
B81: 4 | C81: 12 | D81: 1319.683053 | F81: 72 | G81: 5 | H81: 7 | I81: 500.6730872 | J81: 1 | K81: 0.08368535919 | L81: 0.08368535919 | M81: 4.365998091e+14 | N81: 0 | O81: FALSE | P81: 0 | Q81: 4.95452405e-14 | R81: 4.95452405e-14 | S81: 1.377769844e+11 | T81: 0 | U81: FALSE | V81: 0 | W81: 1.607184072e-10 | X81: 1.607184072e-10 | Y81: 43603036.14 | Z81: 0 | AA81: FALSE | AB81: 0 | AC81: 4.633946684e-07 | AD81: 4.633946684e-07 | AE81: 15112.90444 | AF81: 0 | AG81: FALSE | AH81: 0 | AI81: 0.001464900792 | AJ81: 0.001464900792 | AK81: 4.780691894 | AL81: 0 | AM81: TRUE | AN81: 0.08368535919 | AO81: 4.632423049 | AP81: 0 | AQ81: 0.001511787518 | AR81: 0.001511787518 | AS81: FALSE | AT81: 0 | AU81: 14649.00792 | AV81: 0
B82: 4 | C82: 13 | D82: 1541.463122 | F82: 73 | G82: 12 | H82: 4 | I82: 522.0079633 | J82: 1 | K82: 0.5661389404 | L82: 0.5661389404 | M82: 4798077517509633 | N82: 0 | O82: FALSE | P82: 0 | Q82: 2.063313922e-13 | R82: 2.063313922e-13 | S82: 1.51412034e+12 | T82: 0 | U82: FALSE | V82: 0 | W82: 6.693125793e-10 | X82: 6.693125793e-10 | Y82: 479181948.8 | Z82: 0 | AA82: FALSE | AB82: 0 | AC82: 1.929809324e-06 | AD82: 1.929809324e-06 | AE82: 166085.4758 | AF82: 0 | AG82: FALSE | AH82: 0 | AI82: 0.00610058639 | AJ82: 0.00610058639 | AK82: 52.53811344 | AL82: 0 | AM82: TRUE | AN82: 0.5661389404 | AO82: 19.29174805 | AP82: 0 | AQ82: 0.01661401024 | AR82: 0.01661401024 | AS82: FALSE | AT82: 0 | AU82: 61005.8639 | AV82: 0
B83: 4 | C83: 14 | D83: 1780.985596 | F83: 74 | G83: 13 | H83: 3 | I83: 525.8936967 | J83: 1 | K83: 0.7946930833 | L83: 0.7946930833 | M83: 7341613698877052 | N83: 0 | O83: FALSE | P83: 0 | Q83: 2.657014047e-13 | R83: 2.657014047e-13 | S83: 2.316779291e+12 | T83: 0 | U83: FALSE | V83: 0 | W83: 8.619012871e-10 | X83: 8.619012871e-10 | Y83: 733203819 | Z83: 0 | AA83: FALSE | AB83: 0 | AC83: 2.485094695e-06 | AD83: 2.485094695e-06 | AE83: 254129.9927 | AF83: 0 | AG83: FALSE | AH83: 0 | AI83: 0.007855975555 | AJ83: 0.007855975555 | AK83: 80.38939177 | AL83: 0 | AM83: TRUE | AN83: 0.7946930833 | AO83: 24.842776 | AP83: 0 | AQ83: 0.02542135777 | AR83: 0.02542135777 | AS83: FALSE | AT83: 0 | AU83: 78559.75555 | AV83: 0
B84: 4 | C84: 15 | D84: 2038.250476 | F84: 75 | G84: 14 | H84: 1 | I84: 526.1869596 | J84: 1 | K84: 0.4228755155 | L84: 0.4228755155 | M84: 3.932055607e+15 | N84: 0 | O84: FALSE | P84: 0 | Q84: 1.404727041e-13 | R84: 1.404727041e-13 | S84: 1.240831427e+12 | T84: 0 | U84: FALSE | V84: 0 | W84: 4.5567544e-10 | X84: 4.5567544e-10 | Y84: 392692711.2 | Z84: 0 | AA84: FALSE | AB84: 0 | AC84: 1.313835628e-06 | AD84: 1.313835628e-06 | AE84: 136108.1233 | AF84: 0 | AG84: FALSE | AH84: 0 | AI84: 0.004153346991 | AJ84: 0.004153346991 | AK84: 43.0553243 | AL84: 0 | AM84: TRUE | AN84: 0.4228755155 | AO84: 13.13403641 | AP84: 0 | AQ84: 0.01361528902 | AR84: 0.01361528902 | AS84: FALSE | AT84: 0 | AU84: 41533.46991 | AV84: 0
B85: 4 | C85: 16 | D85: 2313.257761 | F85: 76 | G85: 6 | H85: 7 | I85: 529.7061144 | J85: 1 | K85: 0.07958939219 | L85: 0.07958939219 | M85: 7.996880992e+14 | N85: 0 | O85: FALSE | P85: 0 | Q85: 2.446674842e-14 | R85: 2.446674842e-14 | S85: 2.523560764e+11 | T85: 0 | U85: FALSE | V85: 0 | W85: 7.936699463e-11 | X85: 7.936699463e-11 | Y85: 79864508.33 | Z85: 0 | AA85: FALSE | AB85: 0 | AC85: 2.288365272e-07 | AD85: 2.288365272e-07 | AE85: 27681.20731 | AF85: 0 | AG85: FALSE | AH85: 0 | AI85: 0.0007234067044 | AJ85: 0.0007234067044 | AK85: 8.756445455 | AL85: 0 | AM85: TRUE | AN85: 0.07958939219 | AO85: 2.287612861 | AP85: 0 | AQ85: 0.002769031184 | AR85: 0.002769031184 | AS85: FALSE | AT85: 0 | AU85: 7234.067044 | AV85: 0
B86: 4 | C86: 17 | D86: 2606.007451 | F86: 77 | G86: 9 | H86: 6 | I86: 533.1519535 | J86: 1 | K86: 0.1137525706 | L86: 0.1137525706 | M86: 1232445734958954 | N86: 0 | O86: FALSE | P86: 0 | Q86: 3.242956672e-14 | R86: 3.242956672e-14 | S86: 3.889205934e+11 | T86: 0 | U86: FALSE | V86: 0 | W86: 1.051973561e-10 | X86: 1.051973561e-10 | Y86: 123083828.3 | Z86: 0 | AA86: FALSE | AB86: 0 | AC86: 3.033124507e-07 | AD86: 3.033124507e-07 | AE86: 42661.1149 | AF86: 0 | AG86: FALSE | AH86: 0 | AI86: 0.0009588428172 | AJ86: 0.0009588428172 | AK86: 13.49506622 | AL86: 0 | AM86: TRUE | AN86: 0.1137525706 | AO86: 3.03212722 | AP86: 0 | AQ86: 0.004267514643 | AR86: 0.004267514643 | AS86: FALSE | AT86: 0 | AU86: 9588.428172 | AV86: 0
B87: 4 | C87: 18 | D87: 2916.499548 | F87: 78 | G87: 11 | H87: 5 | I87: 541.1433675 | J87: 1 | K87: 0.2296489778 | L87: 0.2296489778 | M87: 2.957981276e+15 | N87: 0 | O87: FALSE | P87: 0 | Q87: 5.507064031e-14 | R87: 5.507064031e-14 | S87: 9.334446138e+11 | T87: 0 | U87: FALSE | V87: 0 | W87: 1.786420957e-10 | X87: 1.786420957e-10 | Y87: 295412324.5 | Z87: 0 | AA87: FALSE | AB87: 0 | AC87: 5.150735136e-07 | AD87: 5.150735136e-07 | AE87: 102390.5358 | AF87: 0 | AG87: FALSE | AH87: 0 | AI87: 0.001628269917 | AJ87: 0.001628269917 | AK87: 32.38937996 | AL87: 0 | AM87: TRUE | AN87: 0.2296489778 | AO87: 5.149041582 | AP87: 0 | AQ87: 0.01024242127 | AR87: 0.01024242127 | AS87: FALSE | AT87: 0 | AU87: 16282.69917 | AV87: 0
B88: 4 | C88: 19 | D88: 3244.734049 | F88: 79 | G88: 14 | H88: 2 | I88: 552.8005678 | J88: 1 | K88: 0.7575487396 | L88: 0.7575487396 | M88: 1.250144747e+16 | N88: 0 | O88: FALSE | P88: 0 | Q88: 1.417905779e-13 | R88: 1.417905779e-13 | S88: 3.945058376e+12 | T88: 0 | U88: FALSE | V88: 0 | W88: 4.599504537e-10 | X88: 4.599504537e-10 | Y88: 1248514210 | Z88: 0 | AA88: FALSE | AB88: 0 | AC88: 1.326161649e-06 | AD88: 1.326161649e-06 | AE88: 432737.663 | AF88: 0 | AG88: FALSE | AH88: 0 | AI88: 0.004192312478 | AJ88: 0.004192312478 | AK88: 136.8886732 | AL88: 0 | AM88: TRUE | AN88: 0.7575487396 | AO88: 13.25725609 | AP88: 0 | AQ88: 0.04328799933 | AR88: 0.04328799933 | AS88: FALSE | AT88: 0 | AU88: 41923.12478 | AV88: 0
B89: 4 | C89: 20 | D89: 3590.710956 | F89: 80 | G89: 7 | H89: 7 | I89: 564.0178738 | J89: 1 | K89: 0.06770262481 | L89: 0.06770262481 | M89: 1.411209443e+15 | N89: 0 | O89: FALSE | P89: 0 | Q89: 1.003242802e-14 | R89: 1.003242802e-14 | S89: 4.453327222e+11 | T89: 0 | U89: FALSE | V89: 0 | W89: 3.254391007e-11 | X89: 3.254391007e-11 | Y89: 140936883.3 | Z89: 0 | AA89: FALSE | AB89: 0 | AC89: 9.383290115e-08 | AD89: 9.383290115e-08 | AE89: 48849.02151 | AF89: 0 | AG89: FALSE | AH89: 0 | AI89: 0.0002966281241 | AJ89: 0.0002966281241 | AK89: 15.4524977 | AL89: 0 | AM89: TRUE | AN89: 0.06770262481 | AO89: 0.9380204902 | AP89: 0 | AQ89: 0.004886508828 | AR89: 0.004886508828 | AS89: FALSE | AT89: 0 | AU89: 2966.281241 | AV89: 0
B90: 5 | C90: 1 | D90: 74.85535541 | F90: 81 | G90: 1 | H90: 8 | I90: 570.3963419 | J90: 1 | K90: 0.1600817898 | L90: 0.1600817898 | M90: 3.802868978e+15 | N90: 0 | O90: FALSE | P90: 0 | Q90: 2.081416596e-14 | R90: 2.081416596e-14 | S90: 1.200064244e+12 | T90: 0 | U90: FALSE | V90: 0 | W90: 6.751848546e-11 | X90: 6.751848546e-11 | Y90: 379790897.8 | Z90: 0 | AA90: FALSE | AB90: 0 | AC90: 1.946740683e-07 | AD90: 1.946740683e-07 | AE90: 131636.3275 | AF90: 0 | AG90: FALSE | AH90: 0 | AI90: 0.0006154110444 | AJ90: 0.0006154110444 | AK90: 41.6407532 | AL90: 0 | AM90: TRUE | AN90: 0.1600817898 | AO90: 1.946100598 | AP90: 0 | AQ90: 0.01316796236 | AR90: 0.01316796236 | AS90: FALSE | AT90: 0 | AU90: 6154.110444 | AV90: 0
B91: 5 | C91: 2 | D91: 101.4689636 | F91: 82 | G91: 2 | H91: 8 | I91: 578.3144402 | J91: 1 | K91: 0.3044935859 | L91: 0.3044935859 | M91: 8491031813283839 | N91: 0 | O91: FALSE | P91: 0 | Q91: 3.372735958e-14 | R91: 3.372735958e-14 | S91: 2.679499014e+12 | T91: 0 | U91: FALSE | V91: 0 | W91: 1.094072298e-10 | X91: 1.094072298e-10 | Y91: 847995714.4 | Z91: 0 | AA91: FALSE | AB91: 0 | AC91: 3.154506558e-07 | AD91: 3.154506558e-07 | AE91: 293917.1061 | AF91: 0 | AG91: FALSE | AH91: 0 | AI91: 0.0009972145712 | AJ91: 0.0009972145712 | AK91: 92.97532001 | AL91: 0 | AM91: TRUE | AN91: 0.3044935859 | AO91: 3.153469361 | AP91: 0 | AQ91: 0.02940137774 | AR91: 0.02940137774 | AS91: FALSE | AT91: 0 | AU91: 9972.145712 | AV91: 0
B92: 5 | C92: 3 | D92: 145.8249774 | F92: 83 | G92: 10 | H92: 6 | I92: 583.2999095 | J92: 1 | K92: 2.704349813e-06 | L92: 2.704349813e-06 | M92: 8.332747512e+10 | N92: 0 | O92: FALSE | P92: 0 | Q92: 2.710965721e-19 | R92: 2.710965721e-19 | S92: 26295495.33 | T92: 0 | U92: FALSE | V92: 0 | W92: 8.794025184e-16 | X92: 8.794025184e-16 | Y92: 8321.879289 | Z92: 0 | AA92: FALSE | AB92: 0 | AC92: 2.535555482e-12 | AD92: 2.535555482e-12 | AE92: 2.884380943 | AF92: 0 | AG92: FALSE | AH92: 0 | AI92: 8.015494106e-09 | AJ92: 8.015494106e-09 | AK92: 0.0009124213446 | AL92: 0 | AM92: TRUE | AN92: 2.704349813e-06 | AO92: 2.534721795e-05 | AP92: 0 | AQ92: 2.885329635e-07 | AR92: 2.885329635e-07 | AS92: FALSE | AT92: 0 | AU92: 0.08015494106 | AV92: 0
B93: 5 | C93: 4 | D93: 207.9233966 | F93: 84 | G93: 13 | H93: 4 | I93: 587.9921159 | J93: 1 | K93: 0.7792193539 | L93: 0.7792193539 | M93: 2.635369088e+16 | N93: 0 | O93: FALSE | P93: 0 | Q93: 7.116468436e-14 | R93: 7.116468436e-14 | S93: 8.316384896e+12 | T93: 0 | U93: FALSE | V93: 0 | W93: 2.308491109e-10 | X93: 2.308491109e-10 | Y93: 2631931833 | Z93: 0 | AA93: FALSE | AB93: 0 | AC93: 6.65600469e-07 | AD93: 6.65600469e-07 | AE93: 912233.1335 | AF93: 0 | AG93: FALSE | AH93: 0 | AI93: 0.002104121434 | AJ93: 0.002104121434 | AK93: 288.5683267 | AL93: 0 | AM93: TRUE | AN93: 0.7792193539 | AO93: 6.653816206 | AP93: 0 | AQ93: 0.09125331731 | AR93: 0.09125331731 | AS93: FALSE | AT93: 0 | AU93: 21041.21434 | AV93: 0
B94: 5 | C94: 5 | D94: 287.7642213 | F94: 85 | G94: 3 | H94: 8 | I94: 591.5112707 | J94: 1 | K94: 0.4190992901 | L94: 0.4190992901 | M94: 1.519251267e+16 | N94: 0 | O94: FALSE | P94: 0 | Q94: 3.571007451e-14 | R94: 3.571007451e-14 | S94: 4.794272784e+12 | T94: 0 | U94: FALSE | V94: 0 | W94: 1.158389028e-10 | X94: 1.158389028e-10 | Y94: 1517269741 | Z94: 0 | AA94: FALSE | AB94: 0 | AC94: 3.339949099e-07 | AD94: 3.339949099e-07 | AE94: 525888.8976 | AF94: 0 | AG94: FALSE | AH94: 0 | AI94: 0.00105583737 | AJ94: 0.00105583737 | AK94: 166.3553686 | AL94: 0 | AM94: TRUE | AN94: 0.4190992901 | AO94: 3.338850929 | AP94: 0 | AQ94: 0.05260618659 | AR94: 0.05260618659 | AS94: FALSE | AT94: 0 | AU94: 10558.3737 | AV94: 0
B95: 5 | C95: 6 | D95: 385.3474515 | F95: 86 | G95: 14 | H95: 3 | I95: 597.1565816 | J95: 1 | K95: 0.9342143886 | L95: 0.9342143886 | M95: 3.782003146e+16 | N95: 0 | O95: FALSE | P95: 0 | Q95: 7.127836535e-14 | R95: 7.127836535e-14 | S95: 1.193479653e+13 | T95: 0 | U95: FALSE | V95: 0 | W95: 2.312178775e-10 | X95: 2.312178775e-10 | Y95: 3777070361 | Z95: 0 | AA95: FALSE | AB95: 0 | AC95: 6.666637228e-07 | AD95: 6.666637228e-07 | AE95: 1309140.567 | AF95: 0 | AG95: FALSE | AH95: 0 | AI95: 0.002107482632 | AJ95: 0.002107482632 | AK95: 414.1227598 | AL95: 0 | AM95: TRUE | AN95: 0.9342143886 | AO95: 6.664445247 | AP95: 0 | AQ95: 0.1309571152 | AR95: 0.1309571152 | AS95: FALSE | AT95: 0 | AU95: 21074.82632 | AV95: 0
B96: 5 | C96: 7 | D96: 500.6730872 | F96: 87 | G96: 12 | H96: 5 | I96: 601.848788 | J96: 1 | K96: 0.4368127499 | L96: 0.4368127499 | M96: 1.936831768e+16 | N96: 0 | O96: FALSE | P96: 0 | Q96: 3.042882806e-14 | R96: 3.042882806e-14 | S96: 6.112023751e+12 | T96: 0 | U96: FALSE | V96: 0 | W96: 9.870721647e-11 | X96: 9.870721647e-11 | Y96: 1934305600 | Z96: 0 | AA96: FALSE | AB96: 0 | AC96: 2.845996214e-07 | AD96: 2.845996214e-07 | AE96: 670434.4073 | AF96: 0 | AG96: FALSE | AH96: 0 | AI96: 0.0008996871118 | AJ96: 0.0008996871118 | AK96: 212.0797064 | AL96: 0 | AM96: TRUE | AN96: 0.4368127499 | AO96: 2.845060455 | AP96: 0 | AQ96: 0.06706549177 | AR96: 0.06706549177 | AS96: FALSE | AT96: 0 | AU96: 8996.871118 | AV96: 0
B97: 5 | C97: 8 | D97: 633.7411284 | F97: 88 | G97: 15 | H97: 1 | I97: 602.7285767 | J97: 1 | K97: 0.4446361443 | L97: 0.4446361443 | M97: 2.005290421e+16 | N97: 0 | O97: FALSE | P97: 0 | Q97: 3.045220613e-14 | R97: 3.045220613e-14 | S97: 6.328057441e+12 | T97: 0 | U97: FALSE | V97: 0 | W97: 9.878305194e-11 | X97: 9.878305194e-11 | Y97: 2002674964 | Z97: 0 | AA97: FALSE | AB97: 0 | AC97: 2.848182756e-07 | AD97: 2.848182756e-07 | AE97: 694131.3733 | AF97: 0 | AG97: FALSE | AH97: 0 | AI97: 0.0009003783297 | AJ97: 0.0009003783297 | AK97: 219.5758097 | AL97: 0 | AM97: TRUE | AN97: 0.4446361443 | AO97: 2.847246278 | AP97: 0 | AQ97: 0.06943596777 | AR97: 0.06943596777 | AS97: FALSE | AT97: 0 | AU97: 9003.783297 | AV97: 0
B98: 5 | C98: 9 | D98: 784.5515751 | F98: 89 | G98: 8 | H98: 7 | I98: 603.6083654 | J98: 1 | K98: 0.04918862207 | L98: 0.04918862207 | M98: 2.256328538e+15 | N98: 0 | O98: FALSE | P98: 0 | Q98: 3.312176644e-15 | R98: 3.312176644e-15 | S98: 7.120253727e+11 | T98: 0 | U98: FALSE | V98: 0 | W98: 1.074427633e-11 | X98: 1.074427633e-11 | Y98: 225338565.7 | Z98: 0 | AA98: FALSE | AB98: 0 | AC98: 3.097865673e-08 | AD98: 3.097865673e-08 | AE98: 78102.82293 | AF98: 0 | AG98: FALSE | AH98: 0 | AI98: 9.793090398e-05 | AJ98: 9.793090398e-05 | AK98: 24.70640464 | AL98: 0 | AM98: TRUE | AN98: 0.04918862207 | AO98: 0.3096847099 | AP98: 0 | AQ98: 0.007812851147 | AR98: 0.007812851147 | AS98: FALSE | AT98: 0 | AU98: 979.3090398 | AV98: 0
B99: 5 | C99: 10 | D99: 953.1044273 | F99: 90 | G99: 4 | H99: 8 | I99: 609.9868335 | J99: 1 | K99: 0.4926804455 | L99: 0.4926804455 | M99: 2.553768719e+16 | N99: 0 | O99: FALSE | P99: 0 | Q99: 2.935861753e-14 | R99: 2.935861753e-14 | S99: 8.058880139e+12 | T99: 0 | U99: FALSE | V99: 0 | W99: 9.523559073e-11 | X99: 9.523559073e-11 | Y99: 2550437893 | Z99: 0 | AA99: FALSE | AB99: 0 | AC99: 2.745899848e-07 | AD99: 2.745899848e-07 | AE99: 883987.162 | AF99: 0 | AG99: FALSE | AH99: 0 | AI99: 0.000868044269 | AJ99: 0.000868044269 | AK99: 279.6332284 | AL99: 0 | AM99: TRUE | AN99: 0.4926804455 | AO99: 2.744997 | AP99: 0 | AQ99: 0.08842779112 | AR99: 0.08842779112 | AS99: FALSE | AT99: 0 | AU99: 8680.44269 | AV99: 0
B100: 5 | C100: 11 | D100: 1139.399685 | F100: 91 | G100: 15 | H100: 2 | I100: 629.3421849 | J100: 1 | K100: 0.7965312209 | L100: 0.7965312209 | M100: 5.936793699e+16 | N100: 0 | O100: FALSE | P100: 0 | Q100: 3.30095924e-14 | R100: 3.30095924e-14 | S100: 1.873462874e+13 | T100: 0 | U100: FALSE | V100: 0 | W100: 1.070788851e-10 | X100: 1.070788851e-10 | Y100: 5929050467 | Z100: 0 | AA100: FALSE | AB100: 0 | AC100: 3.087374079e-07 | AD100: 3.087374079e-07 | AE100: 2055021.418 | AF100: 0 | AG100: FALSE | AH100: 0 | AI100: 0.0009759923975 | AJ100: 0.0009759923975 | AK100: 650.0685737 | AL100: 0 | AM100: TRUE | AN100: 0.7965312209 | AO100: 3.086358955 | AP100: 0 | AQ100: 0.2055697328 | AR100: 0.2055697328 | AS100: FALSE | AT100: 0 | AU100: 9759.923975 | AV100: 0
B101: 5 | C101: 12 | D101: 1343.437348 | F101: 92 | G101: 5 | H101: 8 | I101: 633.7411284 | J101: 1 | K101: 0.5180343824 | L101: 0.5180343824 | M101: 4.186771182e+16 | N101: 0 | O101: FALSE | P101: 0 | Q101: 1.979814303e-14 | R101: 1.979814303e-14 | S101: 1.321211544e+13 | T101: 0 | U101: FALSE | V101: 0 | W101: 6.422263737e-11 | X101: 6.422263737e-11 | Y101: 4181310466 | Z101: 0 | AA101: FALSE | AB101: 0 | AC101: 1.851712462e-07 | AD101: 1.851712462e-07 | AE101: 1449251.041 | AF101: 0 | AG101: FALSE | AH101: 0 | AI101: 0.000585370363 | AJ101: 0.000585370363 | AK101: 458.4441549 | AL101: 0 | AM101: TRUE | AN101: 0.5180343824 | AO101: 1.851103622 | AP101: 0 | AQ101: 0.144972771 | AR101: 0.144972771 | AS101: FALSE | AT101: 0 | AU101: 5853.70363 | AV101: 0
B102: 5 | C102: 13 | D102: 1565.217417 | F102: 93 | G102: 11 | H102: 6 | I102: 638.7265977 | J102: 1 | K102: 0.1137577146 | L102: 0.1137577146 | M102: 1.007090701e+16 | N102: 0 | O102: FALSE | P102: 0 | Q102: 3.968986704e-15 | R102: 3.968986704e-15 | S102: 3.178057271e+12 | T102: 0 | U102: FALSE | V102: 0 | W102: 1.287488394e-11 | X102: 1.287488394e-11 | Y102: 1005777174 | Z102: 0 | AA102: FALSE | AB102: 0 | AC102: 3.712177516e-08 | AD102: 3.712177516e-08 | AE102: 348604.4933 | AF102: 0 | AG102: FALSE | AH102: 0 | AI102: 0.0001173507628 | AJ102: 0.0001173507628 | AK102: 110.2746783 | AL102: 0 | AM102: TRUE | AN102: 0.1137577146 | AO102: 0.3710956957 | AP102: 0 | AQ102: 0.03487191517 | AR102: 0.03487191517 | AS102: FALSE | AT102: 0 | AU102: 1173.507628 | AV102: 0
B103: 5 | C103: 14 | D103: 1804.739891 | F103: 94 | G103: 9 | H103: 7 | I103: 648.4775892 | J103: 1 | K103: 0.02585967194 | L103: 0.02585967194 | M103: 2.730325339e+15 | N103: 0 | O103: FALSE | P103: 0 | Q103: 7.565160318e-16 | R103: 7.565160318e-16 | S103: 8.616036559e+11 | T103: 0 | U103: FALSE | V103: 0 | W103: 2.454041003e-12 | X103: 2.454041003e-12 | Y103: 272676423.4 | Z103: 0 | AA103: FALSE | AB103: 0 | AC103: 7.075664428e-09 | AD103: 7.075664428e-09 | AE103: 94510.22442 | AF103: 0 | AG103: FALSE | AH103: 0 | AI103: 2.236785861e-05 | AJ103: 2.236785861e-05 | AK103: 29.89658709 | AL103: 0 | AM103: TRUE | AN103: 0.02585967194 | AO103: 0.07073337959 | AP103: 0 | AQ103: 0.009454130947 | AR103: 0.009454130947 | AS103: FALSE | AT103: 0 | AU103: 223.6785861 | AV103: 0
B104: 5 | C104: 15 | D104: 2062.004771 | F104: 95 | G104: 14 | H104: 4 | I104: 659.2550008 | J104: 1 | K104: 0.9160239942 | L104: 0.9160239942 | M104: 1.171461075e+17 | N104: 0 | O104: FALSE | P104: 0 | Q104: 2.212444322e-14 | R104: 2.212444322e-14 | S104: 3.696757783e+13 | T104: 0 | U104: FALSE | V104: 0 | W104: 7.17688569e-11 | X104: 7.17688569e-11 | Y104: 1.169933163e+10 | Z104: 0 | AA104: FALSE | AB104: 0 | AC104: 2.069290396e-07 | AD104: 2.069290396e-07 | AE104: 4055013.06 | AF104: 0 | AG104: FALSE | AH104: 0 | AI104: 0.0006541519242 | AJ104: 0.0006541519242 | AK104: 1282.729481 | AL104: 0 | AM104: TRUE | AN104: 0.9160239942 | AO104: 2.068610016 | AP104: 0 | AQ104: 0.4056346781 | AR104: 0.4056346781 | AS104: FALSE | AT104: 0 | AU104: 6541.519242 | AV104: 0
B105: 5 | C105: 16 | D105: 2337.012056 | F105: 96 | G105: 6 | H105: 8 | I105: 662.7741556 | J105: 1 | K105: 0.4926792694 | L105: 0.4926792694 | M105: 6.702979347e+16 | N105: 0 | O105: FALSE | P105: 0 | Q105: 1.1185289e-14 | R105: 1.1185289e-14 | S105: 2.115246644e+13 | T105: 0 | U105: FALSE | V105: 0 | W105: 3.628364326e-11 | X105: 3.628364326e-11 | Y105: 6694236796 | Z105: 0 | AA105: FALSE | AB105: 0 | AC105: 1.046155642e-07 | AD105: 1.046155642e-07 | AE105: 2320236.616 | AF105: 0 | AG105: FALSE | AH105: 0 | AI105: 0.0003307146872 | AJ105: 0.0003307146872 | AK105: 733.9645681 | AL105: 0 | AM105: TRUE | AN105: 0.4926792694 | AO105: 1.045811667 | AP105: 0 | AQ105: 0.2320999757 | AR105: 0.2320999757 | AS105: FALSE | AT105: 0 | AU105: 3307.146872 | AV105: 0
B106: 5 | C106: 17 | D106: 2629.761746 | F106: 97 | G106: 13 | H106: 5 | I106: 667.8329406 | J106: 1 | K106: 0.6012180483 | L106: 0.6012180483 | M106: 8.935735041e+16 | N106: 0 | O106: FALSE | P106: 0 | Q106: 1.249453936e-14 | R106: 1.249453936e-14 | S106: 2.819833179e+13 | T106: 0 | U106: FALSE | V106: 0 | W106: 4.053068356e-11 | X106: 4.053068356e-11 | Y106: 8924080355 | Z106: 0 | AA106: FALSE | AB106: 0 | AC106: 1.168609308e-07 | AD106: 1.168609308e-07 | AE106: 3093105.104 | AF106: 0 | AG106: FALSE | AH106: 0 | AI106: 0.0003694252045 | AJ106: 0.0003694252045 | AK106: 978.4474293 | AL106: 0 | AM106: TRUE | AN106: 0.6012180483 | AO106: 1.168225071 | AP106: 0 | AQ106: 0.3094122447 | AR106: 0.3094122447 | AS106: FALSE | AT106: 0 | AU106: 3694.252045 | AV106: 0
B107: 5 | C107: 18 | D107: 2940.253843 | F107: 98 | G107: 15 | H107: 3 | I107: 673.6981987 | J107: 1 | K107: 0.9822878564 | L107: 0.9822878564 | M107: 1.616181757e+17 | N107: 0 | O107: FALSE | P107: 0 | Q107: 1.844054971e-14 | R107: 1.844054971e-14 | S107: 5.100154514e+13 | T107: 0 | U107: FALSE | V107: 0 | W107: 5.981877872e-11 | X107: 5.981877872e-11 | Y107: 1.614073805e+10 | Z107: 0 | AA107: FALSE | AB107: 0 | AC107: 1.724737298e-07 | AD107: 1.724737298e-07 | AE107: 5594413.909 | AF107: 0 | AG107: FALSE | AH107: 0 | AI107: 0.0005452304926 | AJ107: 0.0005452304926 | AK107: 1769.690884 | AL107: 0 | AM107: TRUE | AN107: 0.9822878564 | AO107: 1.724170206 | AP107: 0 | AQ107: 0.5596253949 | AR107: 0.5596253949 | AS107: FALSE | AT107: 0 | AU107: 5452.304926 | AV107: 0
B108: 5 | C108: 19 | D108: 3268.488344 | F108: 99 | G108: 16 | H108: 1 | I108: 684.548926 | J108: 1 | K108: 0.4228724873 | L108: 0.4228724873 | M108: 8.377995241e+16 | N108: 0 | O108: FALSE | P108: 0 | Q108: 6.592729614e-15 | R108: 6.592729614e-15 | S108: 2.643828274e+13 | T108: 0 | U108: FALSE | V108: 0 | W108: 2.138596951e-11 | X108: 2.138596951e-11 | Y108: 8367068003 | Z108: 0 | AA108: FALSE | AB108: 0 | AC108: 6.166153848e-08 | AD108: 6.166153848e-08 | AE108: 2900043.446 | AF108: 0 | AG108: FALSE | AH108: 0 | AI108: 0.0001949267929 | AJ108: 0.0001949267929 | AK108: 917.3758922 | AL108: 0 | AM108: TRUE | AN108: 0.4228724873 | AO108: 0.6164126425 | AP108: 0 | AQ108: 0.290099729 | AR108: 0.290099729 | AS108: FALSE | AT108: 0 | AU108: 1949.267929 | AV108: 0
B109: 5 | C109: 20 | D109: 3614.465251 | F109: 100 | G109: 7 | H109: 8 | I109: 697.085915 | J109: 1 | K109: 0.4190970532 | L109: 0.4190970532 | M109: 1.025380743e+17 | N109: 0 | O109: FALSE | P109: 0 | Q109: 5.290912395e-15 | R109: 5.290912395e-15 | S109: 3.235774815e+13 | T109: 0 | U109: FALSE | V109: 0 | W109: 1.716304138e-11 | X109: 1.716304138e-11 | Y109: 1.024043361e+10 | Z109: 0 | AA109: FALSE | AB109: 0 | AC109: 4.948569369e-08 | AD109: 4.948569369e-08 | AE109: 3549355.923 | AF109: 0 | AG109: FALSE | AH109: 0 | AI109: 0.0001564360508 | AJ109: 0.0001564360508 | AK109: 1122.774061 | AL109: 0 | AM109: TRUE | AN109: 0.4190970532 | AO109: 0.4946942286 | AP109: 0 | AQ109: 0.355052333 | AR109: 0.355052333 | AS109: FALSE | AT109: 0 | AU109: 1564.360508 | AV109: 0
B110: 6 | C110: 1 | D110: 103.8883826 | F110: 101 | G110: 10 | H110: 7 | I110: 698.6255452 | J110: 1 | K110: 6.147869769e-07 | L110: 6.147869769e-07 | M110: 1.543246935e+11 | N110: 0 | O110: FALSE | P110: 0 | Q110: 7.564851525e-21 | R110: 7.564851525e-21 | S110: 48699954.63 | T110: 0 | U110: FALSE | V110: 0 | W110: 2.453940834e-17 | X110: 2.453940834e-17 | Y110: 15412.34111 | Z110: 0 | AA110: FALSE | AB110: 0 | AC110: 7.075375614e-14 | AD110: 7.075375614e-14 | AE110: 5.341949991 | AF110: 0 | AG110: FALSE | AH110: 0 | AI110: 2.236694561e-10 | AJ110: 2.236694561e-10 | AK110: 0.001689828525 | AL110: 0 | AM110: TRUE | AN110: 6.147869769e-07 | AO110: 7.073049241e-07 | AP110: 0 | AQ110: 5.343706994e-07 | AR110: 5.343706994e-07 | AS110: FALSE | AT110: 0 | AU110: 0.002236694561 | AV110: 0
B111: 6 | C111: 2 | D111: 130.5019908 | F111: 102 | G111: 12 | H111: 6 | I111: 699.4320182 | J111: 1 | K111: 0.2163772754 | L111: 0.2163772754 | M111: 5.504881416e+16 | N111: 0 | O111: FALSE | P111: 0 | Q111: 2.627010696e-15 | R111: 2.627010696e-15 | S111: 1.737165123e+13 | T111: 0 | U111: FALSE | V111: 0 | W111: 8.521685849e-12 | X111: 8.521685849e-12 | Y111: 5497701518 | Z111: 0 | AA111: FALSE | AB111: 0 | AC111: 2.45703268e-08 | AD111: 2.45703268e-08 | AE111: 1905514.961 | AF111: 0 | AG111: FALSE | AH111: 0 | AI111: 7.76726485e-05 | AJ111: 7.76726485e-05 | AK111: 602.7749306 | AL111: 0 | AM111: TRUE | AN111: 0.2163772754 | AO111: 0.2456224812 | AP111: 0 | AQ111: 0.1906141697 | AR111: 0.1906141697 | AS111: FALSE | AT111: 0 | AU111: 776.726485 | AV111: 0
B112: 6 | C112: 3 | D112: 174.8580045 | F112: 103 | G112: 16 | H112: 2 | I112: 711.1625342 | J112: 1 | K112: 0.7575433148 | L112: 0.7575433148 | M112: 2.338449383e+17 | N112: 0 | O112: FALSE | P112: 0 | Q112: 7.580074593e-15 | R112: 7.580074593e-15 | S112: 7.379400941e+13 | T112: 0 | U112: FALSE | V112: 0 | W112: 2.458879002e-11 | X112: 2.458879002e-11 | Y112: 2.335399394e+10 | Z112: 0 | AA112: FALSE | AB112: 0 | AC112: 7.08961369e-08 | AD112: 7.08961369e-08 | AE112: 8094543.637 | AF112: 0 | AG112: FALSE | AH112: 0 | AI112: 0.0002241195555 | AJ112: 0.0002241195555 | AK112: 2560.56136 | AL112: 0 | AM112: FALSE | AN112: 0 | AO112: 0.7087282635 | AP112: 0.7087282635 | AQ112: 0.8097205987 | AR112: 0 | AS112: TRUE | AT112: 0.7575433148 | AU112: 2241.195555 | AV112: 0
B113: 6 | C113: 4 | D113: 236.9564238 | F113: 104 | G113: 1 | H113: 9 | I113: 721.2067886 | J113: 1 | K113: 0.2609138734 | L113: 0.2609138734 | M113: 9.480592262e+16 | N113: 0 | O113: FALSE | P113: 0 | Q113: 2.217917505e-15 | R113: 2.217917505e-15 | S113: 2.991772752e+13 | T113: 0 | U113: FALSE | V113: 0 | W113: 7.194639992e-12 | X113: 7.194639992e-12 | Y113: 9468226930 | Z113: 0 | AA113: FALSE | AB113: 0 | AC113: 2.074409441e-08 | AD113: 2.074409441e-08 | AE113: 3281707.457 | AF113: 0 | AG113: FALSE | AH113: 0 | AI113: 6.557701763e-05 | AJ113: 6.557701763e-05 | AK113: 1038.108346 | AL113: 0 | AM113: FALSE | AN113: 0 | AO113: 0.2073727379 | AP113: 0.2073727379 | AQ113: 0.3282786832 | AR113: 0 | AS113: TRUE | AT113: 0.2609138734 | AU113: 655.7701763 | AV113: 0
B114: 6 | C114: 5 | D114: 316.7972485 | F114: 105 | G114: 2 | H114: 9 | I114: 729.1248869 | J114: 1 | K114: 0.4962875605 | L114: 0.4962875605 | M114: 2.047420638e+17 | N114: 0 | O114: FALSE | P114: 0 | Q114: 3.715747686e-15 | R114: 3.715747686e-15 | S114: 6.461006979e+13 | T114: 0 | U114: FALSE | V114: 0 | W114: 1.205340904e-11 | X114: 1.205340904e-11 | Y114: 2.044750231e+10 | Z114: 0 | AA114: FALSE | AB114: 0 | AC114: 3.475324066e-08 | AD114: 3.475324066e-08 | AE114: 7087147.5 | AF114: 0 | AG114: FALSE | AH114: 0 | AI114: 0.0001098632618 | AJ114: 0.0001098632618 | AK114: 2241.889951 | AL114: 0 | AM114: FALSE | AN114: 0 | AO114: 0.3474181385 | AP114: 0.3474181385 | AQ114: 0.708947851 | AR114: 0 | AS114: TRUE | AT114: 0.4962875605 | AU114: 1098.632618 | AV114: 0
B115: 6 | C115: 6 | D115: 414.3804787 | F115: 106 | G115: 15 | H115: 4 | I115: 735.7966179 | J115: 1 | K115: 0.9631614077 | L115: 0.9631614077 | M115: 4.417398798e+17 | N115: 0 | O115: FALSE | P115: 0 | Q115: 6.486613927e-15 | R115: 6.486613927e-15 | S115: 1.393990269e+14 | T115: 0 | U115: FALSE | V115: 0 | W115: 2.104174383e-11 | X115: 2.104174383e-11 | Y115: 4.41163728e+10 | Z115: 0 | AA115: FALSE | AB115: 0 | AC115: 6.066904267e-08 | AD115: 6.066904267e-08 | AE115: 15290828.01 | AF115: 0 | AG115: FALSE | AH115: 0 | AI115: 0.0001917892775 | AJ115: 0.0001917892775 | AK115: 4836.974774 | AL115: 0 | AM115: FALSE | AN115: 0 | AO115: 0.6064909478 | AP115: 0.6064909478 | AQ115: 1.529585727 | AR115: 0 | AS115: TRUE | AT115: 0.9631614077 | AU115: 1917.892775 | AV115: 0
B116: 6 | C116: 7 | D116: 529.7061144 | F116: 107 | G116: 8 | H116: 8 | I116: 736.6764066 | J116: 1 | K116: 0.3044905071 | L116: 0.3044905071 | M116: 1.416039182e+17 | N116: 0 | O116: FALSE | P116: 0 | Q116: 2.022361354e-15 | R116: 2.022361354e-15 | S116: 4.468568338e+13 | T116: 0 | U116: FALSE | V116: 0 | W116: 6.560280914e-12 | X116: 6.560280914e-12 | Y116: 1.414192273e+10 | Z116: 0 | AA116: FALSE | AB116: 0 | AC116: 1.89150655e-08 | AD116: 1.89150655e-08 | AE116: 4901620.293 | AF116: 0 | AG116: FALSE | AH116: 0 | AI116: 5.979502208e-05 | AJ116: 5.979502208e-05 | AK116: 1550.53825 | AL116: 0 | AM116: FALSE | AN116: 0 | AO116: 0.1890884625 | AP116: 0.1890884625 | AQ116: 0.4903232469 | AR116: 0 | AS116: TRUE | AT116: 0.3044905071 | AU116: 597.9502208 | AV116: 0
B117: 6 | C117: 8 | D117: 662.7741556 | F117: 108 | G117: 14 | H117: 5 | I117: 739.0958255 | J117: 1 | K117: 0.7067716622 | L117: 0.7067716622 | M117: 3.414577667e+17 | N117: 0 | O117: FALSE | P117: 0 | Q117: 4.518640331e-15 | R117: 4.518640331e-15 | S117: 1.077531882e+14 | T117: 0 | U117: FALSE | V117: 0 | W117: 1.465788983e-11 | X117: 1.465788983e-11 | Y117: 3.410124107e+10 | Z117: 0 | AA117: FALSE | AB117: 0 | AC117: 4.226266372e-08 | AD117: 4.226266372e-08 | AE117: 11819562.2 | AF117: 0 | AG117: FALSE | AH117: 0 | AI117: 0.0001336023346 | AJ117: 0.0001336023346 | AK117: 3738.903095 | AL117: 0 | AM117: FALSE | AN117: 0 | AO117: 0.4224876782 | AP117: 0.4224876782 | AQ117: 1.182344973 | AR117: 0 | AS117: TRUE | AT117: 0.7067716622 | AU117: 1336.023346 | AV117: 0
B118: 6 | C118: 9 | D118: 813.5846023 | F118: 109 | G118: 3 | H118: 9 | I118: 742.3217174 | J118: 1 | K118: 0.683080938 | L118: 0.683080938 | M118: 3.471531134e+17 | N118: 0 | O118: FALSE | P118: 0 | Q118: 4.151545299e-15 | R118: 4.151545299e-15 | S118: 1.095504581e+14 | T118: 0 | U118: FALSE | V118: 0 | W118: 1.346708062e-11 | X118: 1.346708062e-11 | Y118: 3.46700329e+10 | Z118: 0 | AA118: FALSE | AB118: 0 | AC118: 3.882923845e-08 | AD118: 3.882923845e-08 | AE118: 12016706.65 | AF118: 0 | AG118: FALSE | AH118: 0 | AI118: 0.0001227484605 | AJ118: 0.0001227484605 | AK118: 3801.266149 | AL118: 0 | AM118: FALSE | AN118: 0 | AO118: 0.3881647145 | AP118: 0.3881647145 | AQ118: 1.202065902 | AR118: 0 | AS118: TRUE | AT118: 0.683080938 | AU118: 1227.484605 | AV118: 0
B119: 6 | C119: 10 | D119: 982.1374545 | F119: 110 | G119: 11 | H119: 7 | I119: 754.0522334 | J119: 1 | K119: 0.02586084134 | L119: 0.02586084134 | M119: 1.577106961e+16 | N119: 0 | O119: FALSE | P119: 0 | Q119: 1.309817125e-16 | R119: 1.309817125e-16 | S119: 4.976846914e+12 | T119: 0 | U119: FALSE | V119: 0 | W119: 4.248878801e-13 | X119: 4.248878801e-13 | Y119: 1575049975 | Z119: 0 | AA119: FALSE | AB119: 0 | AC119: 1.225066759e-09 | AD119: 1.225066759e-09 | AE119: 545915.6487 | AF119: 0 | AG119: FALSE | AH119: 0 | AI119: 3.87272748e-06 | AJ119: 3.87272748e-06 | AK119: 172.6904664 | AL119: 0 | AM119: FALSE | AN119: 0 | AO119: 0.01224663959 | AP119: 0.01224663959 | AQ119: 0.0546095204 | AR119: 0 | AS119: TRUE | AT119: 0.02586084134 | AU119: 38.7272748 | AV119: 0
B120: 6 | C120: 11 | D120: 1168.432712 | F120: 111 | G120: 16 | H120: 3 | I120: 755.518548 | J120: 1 | K120: 0.9342076987 | L120: 0.9342076987 | M120: 5.827354375e+17 | N120: 0 | O120: FALSE | P120: 0 | Q120: 4.625961008e-15 | R120: 4.625961008e-15 | S120: 1.838927311e+14 | T120: 0 | U120: FALSE | V120: 0 | W120: 1.500602434e-11 | X120: 1.500602434e-11 | Y120: 5.819753883e+10 | Z120: 0 | AA120: FALSE | AB120: 0 | AC120: 4.326642975e-08 | AD120: 4.326642975e-08 | AE120: 20171389.91 | AF120: 0 | AG120: FALSE | AH120: 0 | AI120: 0.0001367754779 | AJ120: 0.0001367754779 | AK120: 6380.851583 | AL120: 0 | AM120: FALSE | AN120: 0 | AO120: 0.4325220381 | AP120: 0.4325220381 | AQ120: 2.017802441 | AR120: 0 | AS120: TRUE | AT120: 0.9342076987 | AU120: 1367.754779 | AV120: 0
B121: 6 | C121: 12 | D121: 1372.470375 | F121: 112 | G121: 4 | H121: 9 | I121: 760.7972802 | J121: 1 | K121: 0.8030092838 | L121: 0.8030092838 | M121: 5.431324552e+17 | N121: 0 | O121: FALSE | P121: 0 | Q121: 3.667092719e-15 | R121: 3.667092719e-15 | S121: 1.713952921e+14 | T121: 0 | U121: FALSE | V121: 0 | W121: 1.189557857e-11 | X121: 1.189557857e-11 | Y121: 5.424240593e+10 | Z121: 0 | AA121: FALSE | AB121: 0 | AC121: 3.429817269e-08 | AD121: 3.429817269e-08 | AE121: 18800532.49 | AF121: 0 | AG121: FALSE | AH121: 0 | AI121: 0.0001084246837 | AJ121: 0.0001084246837 | AK121: 5947.205821 | AL121: 0 | AM121: FALSE | AN121: 0 | AO121: 0.342868955 | AP121: 0.342868955 | AQ121: 1.880671611 | AR121: 0 | AS121: TRUE | AT121: 0.8030092838 | AU121: 1084.246837 | AV121: 0
B122: 6 | C122: 13 | D122: 1594.250444 | F122: 113 | G122: 13 | H122: 6 | I122: 765.4161709 | J122: 1 | K122: 0.2978162227 | L122: 0.2978162227 | M122: 2.161207983e+17 | N122: 0 | O122: FALSE | P122: 0 | Q122: 1.267612906e-15 | R122: 1.267612906e-15 | S122: 6.820083574e+13 | T122: 0 | U122: FALSE | V122: 0 | W122: 4.111973727e-12 | X122: 4.111973727e-12 | Y122: 2.158389166e+10 | Z122: 0 | AA122: FALSE | AB122: 0 | AC122: 1.185593321e-08 | AD122: 1.185593321e-08 | AE122: 7481022.449 | AF122: 0 | AG122: FALSE | AH122: 0 | AI122: 3.74794255e-05 | AJ122: 3.74794255e-05 | AK122: 2366.485113 | AL122: 0 | AM122: FALSE | AN122: 0 | AO122: 0.11852035 | AP122: 0.11852035 | AQ122: 0.7483483007 | AR122: 0 | AS122: TRUE | AT122: 0.2978162227 | AU122: 374.794255 | AV122: 0
B123: 6 | C123: 14 | D123: 1833.772918 | F123: 114 | G123: 17 | H123: 1 | I123: 771.6480075 | J123: 1 | K123: 0.359714933 | L123: 0.359714933 | M123: 2.868477873e+17 | N123: 0 | O123: FALSE | P123: 0 | Q123: 1.393323441e-15 | R123: 1.393323441e-15 | S123: 9.052001926e+13 | T123: 0 | U123: FALSE | V123: 0 | W123: 4.519762583e-12 | X123: 4.519762583e-12 | Y123: 2.864736579e+10 | Z123: 0 | AA123: FALSE | AB123: 0 | AC123: 1.303169886e-08 | AD123: 1.303169886e-08 | AE123: 9929237.505 | AF123: 0 | AG123: FALSE | AH123: 0 | AI123: 4.119630043e-05 | AJ123: 4.119630043e-05 | AK123: 3140.933329 | AL123: 0 | AM123: FALSE | AN123: 0 | AO123: 0.1302741405 | AP123: 0.1302741405 | AQ123: 0.9932503298 | AR123: 0 | AS123: TRUE | AT123: 0.359714933 | AU123: 411.9630043 | AV123: 0
B124: 6 | C124: 15 | D124: 2091.037798 | F124: 115 | G124: 9 | H124: 8 | I124: 781.5456304 | J124: 1 | K124: 0.1600781703 | L124: 0.1600781703 | M124: 1.480404394e+17 | N124: 0 | O124: FALSE | P124: 0 | Q124: 5.346509851e-16 | R124: 5.346509851e-16 | S124: 4.671684433e+13 | T124: 0 | U124: FALSE | V124: 0 | W124: 1.73433924e-12 | X124: 1.73433924e-12 | Y124: 1.478473535e+10 | Z124: 0 | AA124: FALSE | AB124: 0 | AC124: 5.000569449e-09 | AD124: 5.000569449e-09 | AE124: 5124420.506 | AF124: 0 | AG124: FALSE | AH124: 0 | AI124: 1.58079897e-05 | AJ124: 1.58079897e-05 | AK124: 1621.017037 | AL124: 0 | AM124: FALSE | AN124: 0 | AO124: 0.04998925269 | AP124: 0.04998925269 | AQ124: 0.5126105962 | AR124: 0 | AS124: TRUE | AT124: 0.1600781703 | AU124: 158.079897 | AV124: 0
B125: 6 | C125: 16 | D125: 2366.045083 | F125: 116 | G125: 5 | H125: 9 | I125: 784.5515751 | J125: 1 | K125: 0.8443331215 | L125: 0.8443331215 | M125: 8.164803219e+17 | N125: 0 | O125: FALSE | P125: 0 | Q125: 2.696922355e-15 | R125: 2.696922355e-15 | S125: 2.576551667e+14 | T125: 0 | U125: FALSE | V125: 0 | W125: 8.748470307e-12 | X125: 8.748470307e-12 | Y125: 8.154154042e+10 | Z125: 0 | AA125: FALSE | AB125: 0 | AC125: 2.522420778e-08 | AD125: 2.522420778e-08 | AE125: 28262470.18 | AF125: 0 | AG125: FALSE | AH125: 0 | AI125: 7.973972182e-05 | AJ125: 7.973972182e-05 | AK125: 8940.31737 | AL125: 0 | AM125: FALSE | AN125: 0 | AO125: 0.2521591409 | AP125: 0.2521591409 | AQ125: 2.827176589 | AR125: 0 | AS125: TRUE | AT125: 0.8443331215 | AU125: 797.3972182 | AV125: 0
B126: 6 | C126: 17 | D126: 2658.794774 | F126: 117 | G126: 17 | H126: 2 | I126: 798.2616157 | J126: 1 | K126: 0.644401447 | L126: 0.644401447 | M126: 7.621933042e+17 | N126: 0 | O126: FALSE | P126: 0 | Q126: 1.682807342e-15 | R126: 1.682807342e-15 | S126: 2.405239141e+14 | T126: 0 | U126: FALSE | V126: 0 | W126: 5.458811237e-12 | X126: 5.458811237e-12 | Y126: 7.611991919e+10 | Z126: 0 | AA126: FALSE | AB126: 0 | AC126: 1.573923029e-08 | AD126: 1.573923029e-08 | AE126: 26383324.8 | AF126: 0 | AG126: FALSE | AH126: 0 | AI126: 4.975545144e-05 | AJ126: 4.975545144e-05 | AK126: 8345.883977 | AL126: 0 | AM126: FALSE | AN126: 0 | AO126: 0.1573405526 | AP126: 0.1573405526 | AQ126: 2.639200246 | AR126: 0 | AS126: TRUE | AT126: 0.644401447 | AU126: 497.5545144 | AV126: 0
B127: 6 | C127: 18 | D127: 2969.28687 | F127: 118 | G127: 6 | H127: 9 | I127: 813.5846023 | J127: 1 | K127: 0.8030073671 | L127: 0.8030073671 | M127: 1.184774565e+18 | N127: 0 | O127: FALSE | P127: 0 | Q127: 1.681085687e-15 | R127: 1.681085687e-15 | S127: 3.738770915e+14 | T127: 0 | U127: FALSE | V127: 0 | W127: 5.453226411e-12 | X127: 5.453226411e-12 | Y127: 1.183229289e+11 | Z127: 0 | AA127: FALSE | AB127: 0 | AC127: 1.572312773e-08 | AD127: 1.572312773e-08 | AE127: 41010977.13 | AF127: 0 | AG127: FALSE | AH127: 0 | AI127: 4.97045474e-05 | AJ127: 4.97045474e-05 | AK127: 12973.07521 | AL127: 0 | AM127: FALSE | AN127: 0 | AO127: 0.1571795798 | AP127: 0.1571795798 | AQ127: 4.102446592 | AR127: 0 | AS127: TRUE | AT127: 0.8030073671 | AU127: 497.045474 | AV127: 0
B128: 6 | C128: 19 | D128: 3297.521371 | F128: 119 | G128: 12 | H128: 7 | I128: 814.7576539 | J128: 1 | K128: 0.04918961681 | L128: 0.04918961681 | M128: 7.380143688e+16 | N128: 0 | O128: FALSE | P128: 0 | Q128: 1.01267147e-16 | R128: 1.01267147e-16 | S128: 2.328938128e+13 | T128: 0 | U128: FALSE | V128: 0 | W128: 3.284976397e-13 | X128: 3.284976397e-13 | Y128: 7370517926 | Z128: 0 | AA128: FALSE | AB128: 0 | AC128: 9.471476074e-10 | AD128: 9.471476074e-10 | AE128: 2554637.084 | AF128: 0 | AG128: FALSE | AH128: 0 | AI128: 2.994158921e-06 | AJ128: 2.994158921e-06 | AK128: 808.1128845 | AL128: 0 | AM128: FALSE | AN128: 0 | AO128: 0.009468361866 | AP128: 0.009468361866 | AQ128: 0.2555477322 | AR128: 0 | AS128: TRUE | AT128: 0.04918961681 | AU128: 29.94158921 | AV128: 0
B129: 6 | C129: 20 | D129: 3643.498278 | F129: 120 | G129: 15 | H129: 5 | I129: 815.6374426 | J129: 1 | K129: 0.7431412206 | L129: 0.7431412206 | M129: 1.12904759e+18 | N129: 0 | O129: FALSE | P129: 0 | Q129: 1.51083476e-15 | R129: 1.51083476e-15 | S129: 3.562914344e+14 | T129: 0 | U129: FALSE | V129: 0 | W129: 4.900954233e-12 | X129: 4.900954233e-12 | Y129: 1.127574998e+11 | Z129: 0 | AA129: FALSE | AB129: 0 | AC129: 1.413077756e-08 | AD129: 1.413077756e-08 | AE129: 39081987.63 | AF129: 0 | AG129: FALSE | AH129: 0 | AI129: 4.467074968e-05 | AJ129: 4.467074968e-05 | AK129: 12362.87454 | AL129: 0 | AM129: FALSE | AN129: 0 | AO129: 0.1412613138 | AP129: 0.1412613138 | AQ129: 3.909484196 | AR129: 0 | AS129: TRUE | AT129: 0.7431412206 | AU129: 446.7074968 | AV129: 0
B130: 7 | C130: 1 | D130: 138.200142 | F130: 121 | G130: 16 | H130: 4 | I130: 817.6169672 | J130: 1 | K130: 0.9160174346 | L130: 0.9160174346 | M130: 1.431477718e+18 | N130: 0 | O130: FALSE | P130: 0 | Q130: 1.810545321e-15 | R130: 1.810545321e-15 | S130: 4.517287436e+14 | T130: 0 | U130: FALSE | V130: 0 | W130: 5.873176864e-12 | X130: 5.873176864e-12 | Y130: 1.429610672e+11 | Z130: 0 | AA130: FALSE | AB130: 0 | AC130: 1.693395855e-08 | AD130: 1.693395855e-08 | AE130: 49550607.92 | AF130: 0 | AG130: FALSE | AH130: 0 | AI130: 5.353227169e-05 | AJ130: 5.353227169e-05 | AK130: 15674.43178 | AL130: 0 | AM130: FALSE | AN130: 0 | AO130: 0.1692839069 | AP130: 0.1692839069 | AQ130: 4.956690544 | AR130: 0 | AS130: TRUE | AT130: 0.9160174346 | AU130: 535.3227169 | AV130: 0
B131: 7 | C131: 2 | D131: 164.8137502 | F131: 122 | G131: 10 | H131: 8 | I131: 831.6935864 | J131: 1 | K131: 3.805693074e-06 | L131: 3.805693074e-06 | M131: 7.252855286e+12 | N131: 0 | O131: FALSE | P131: 0 | Q131: 6.168009314e-21 | R131: 6.168009314e-21 | S131: 2288769965 | T131: 0 | U131: FALSE | V131: 0 | W131: 2.000823132e-17 | X131: 2.000823132e-17 | Y131: 724339.5543 | Z131: 0 | AA131: FALSE | AB131: 0 | AC131: 5.768914637e-14 | AD131: 5.768914637e-14 | AE131: 251.0576198 | AF131: 0 | AG131: FALSE | AH131: 0 | AI131: 1.823691164e-10 | AJ131: 1.823691164e-10 | AK131: 0.07941750261 | AL131: 0 | AM131: FALSE | AN131: 0 | AO131: 5.767017827e-07 | AP131: 5.767017827e-07 | AQ131: 2.511401943e-05 | AR131: 0 | AS131: TRUE | AT131: 3.805693074e-06 | AU131: 0.001823691164 | AV131: 0
B132: 7 | C132: 3 | D132: 209.1697639 | F132: 123 | G132: 14 | H132: 6 | I132: 836.6790557 | J132: 1 | K132: 0.3501027079 | L132: 0.3501027079 | M132: 7.152345288e+17 | N132: 0 | O132: FALSE | P132: 0 | Q132: 5.293330131e-16 | R132: 5.293330131e-16 | S132: 2.257052213e+14 | T132: 0 | U132: FALSE | V132: 0 | W132: 1.717088421e-12 | X132: 1.717088421e-12 | Y132: 7.143016638e+10 | Z132: 0 | AA132: FALSE | AB132: 0 | AC132: 4.950830668e-09 | AD132: 4.950830668e-09 | AE132: 24757846.57 | AF132: 0 | AG132: FALSE | AH132: 0 | AI132: 1.565075358e-05 | AJ132: 1.565075358e-05 | AK132: 7831.693563 | AL132: 0 | AM132: FALSE | AN132: 0 | AO132: 0.04949202842 | AP132: 0.04949202842 | AQ132: 2.476598959 | AR132: 0 | AS132: TRUE | AT132: 0.3501027079 | AU132: 156.5075358 | AV132: 0
B133: 7 | C133: 4 | D133: 271.2681832 | F133: 124 | G133: 17 | H133: 3 | I133: 842.6176295 | J133: 1 | K133: 0.7946803584 | L133: 0.7946803584 | M133: 1.762620066e+18 | N133: 0 | O133: FALSE | P133: 0 | Q133: 1.106656301e-15 | R133: 1.106656301e-15 | S133: 5.562267146e+14 | T133: 0 | U133: FALSE | V133: 0 | W133: 3.58985114e-12 | X133: 3.58985114e-12 | Y133: 1.760321119e+11 | Z133: 0 | AA133: FALSE | AB133: 0 | AC133: 1.035051248e-08 | AD133: 1.035051248e-08 | AE133: 61013101.87 | AF133: 0 | AG133: FALSE | AH133: 0 | AI133: 3.27204324e-05 | AJ133: 3.27204324e-05 | AK133: 19300.38284 | AL133: 0 | AM133: FALSE | AN133: 0 | AO133: 0.1034710924 | AP133: 0.1034710924 | AQ133: 6.103316948 | AR133: 0 | AS133: TRUE | AT133: 0.7946803584 | AU133: 327.204324 | AV133: 0
B134: 7 | C134: 5 | D134: 351.1090079 | F134: 125 | G134: 7 | H134: 9 | I134: 847.8963617 | J134: 1 | K134: 0.6830772921 | L134: 0.6830772921 | M134: 1.629185362e+18 | N134: 0 | O134: FALSE | P134: 0 | Q134: 8.846178737e-16 | R134: 8.846178737e-16 | S134: 5.141189748e+14 | T134: 0 | U134: FALSE | V134: 0 | W134: 2.869586952e-12 | X134: 2.869586952e-12 | Y134: 1.627060451e+11 | Z134: 0 | AA134: FALSE | AB134: 0 | AC134: 8.273795872e-09 | AD134: 8.273795872e-09 | AE134: 56394258.96 | AF134: 0 | AG134: FALSE | AH134: 0 | AI134: 2.615543715e-05 | AJ134: 2.615543715e-05 | AK134: 17839.29606 | AL134: 0 | AM134: FALSE | AN134: 0 | AO134: 0.08271075459 | AP134: 0.08271075459 | AQ134: 5.641280741 | AR134: 0 | AS134: TRUE | AT134: 0.6830772921 | AU134: 261.5543715 | AV134: 0
B135: 7 | C135: 6 | D135: 448.6922381 | F135: 126 | G135: 18 | H135: 1 | I135: 864.0258212 | J135: 1 | K135: 0.2613458115 | L135: 0.2613458115 | M135: 7.760128621e+17 | N135: 0 | O135: FALSE | P135: 0 | Q135: 2.718621092e-16 | R135: 2.718621092e-16 | S135: 2.448849262e+14 | T135: 0 | U135: FALSE | V135: 0 | W135: 8.818858226e-13 | X135: 8.818858226e-13 | Y135: 7.750007253e+10 | Z135: 0 | AA135: FALSE | AB135: 0 | AC135: 2.54271552e-09 | AD135: 2.54271552e-09 | AE135: 26861688.87 | AF135: 0 | AG135: FALSE | AH135: 0 | AI135: 8.038128691e-06 | AJ135: 8.038128691e-06 | AK135: 8497.205731 | AL135: 0 | AM135: FALSE | AN135: 0 | AO135: 0.02541879479 | AP135: 0.02541879479 | AQ135: 2.687052386 | AR135: 0 | AS135: TRUE | AT135: 0.2613458115 | AU135: 80.38128691 | AV135: 0
B136: 7 | C136: 7 | D136: 564.0178738 | F136: 127 | G136: 13 | H136: 7 | I136: 880.7418066 | J136: 1 | K136: 0.06770334754 | L136: 0.06770334754 | M136: 2.512002349e+17 | N136: 0 | O136: FALSE | P136: 0 | Q136: 5.636204693e-17 | R136: 5.636204693e-17 | S136: 7.927078787e+13 | T136: 0 | U136: FALSE | V136: 0 | W136: 1.828312532e-13 | X136: 1.828312532e-13 | Y136: 2.508725998e+10 | Z136: 0 | AA136: FALSE | AB136: 0 | AC136: 5.271519885e-10 | AD136: 5.271519885e-10 | AE136: 8695297.31 | AF136: 0 | AG136: FALSE | AH136: 0 | AI136: 1.666452849e-06 | AJ136: 1.666452849e-06 | AK136: 2750.598836 | AL136: 0 | AM136: FALSE | AN136: 0 | AO136: 0.005269786617 | AP136: 0.005269786617 | AQ136: 0.8698157251 | AR136: 0 | AS136: TRUE | AT136: 0.06770334754 | AU136: 16.66452849 | AV136: 0
B137: 7 | C137: 8 | D137: 697.085915 | F137: 128 | G137: 11 | H137: 8 | I137: 887.1202746 | J137: 1 | K137: 0.1600854092 | L137: 0.1600854092 | M137: 6.459496051e+17 | N137: 0 | O137: FALSE | P137: 0 | Q137: 1.225438095e-16 | R137: 1.225438095e-16 | S137: 2.038411077e+14 | T137: 0 | U137: FALSE | V137: 0 | W137: 3.975164048e-13 | X137: 3.975164048e-13 | Y137: 6.45107107e+10 | Z137: 0 | AA137: FALSE | AB137: 0 | AC137: 1.146147388e-09 | AD137: 1.146147388e-09 | AE137: 22359548.62 | AF137: 0 | AG137: FALSE | AH137: 0 | AI137: 3.623244571e-06 | AJ137: 3.623244571e-06 | AK137: 7073.035712 | AL137: 0 | AM137: FALSE | AN137: 0 | AO137: 0.01145770536 | AP137: 0.01145770536 | AQ137: 2.236690282 | AR137: 0 | AS137: TRUE | AT137: 0.1600854092 | AU137: 36.23244571 | AV137: 0
B138: 7 | C138: 9 | D138: =3.1416/2*SQRT($H$2/$I$2)*(B138^2/$C$2^2+C138^2/$D$2^2) -> 847.8963617 | F138: 129 | G138: 8 | H138: 9 | I138: 887.4868533 | J138: 1 | K138: =ABS(SIN(G138*3.1416*$J$2/$C$2)*SIN(H138*3.1416*$K$2/$D$2))*(1/F138^$M$2)+(1-1/F138^$M$2) -> 0.4962825423 | L138: 0.4962825423 | M138: 2.012157614e+18 | N138: 0 | O138: FALSE | P138: 0 | Q138: 3.780789634e-16 | R138: 3.780789634e-16 | S138: 6.349728114e+14 | T138: 0 | U138: =AND($I138>44.548,$I138<89.095) -> FALSE | V138: 0 | W138: 1.226439678e-12 | X138: =IF($I138>89.095,W138,0) -> 1.226439678e-12 | Y138: 2.0095332e+11 | Z138: 0 | AA138: FALSE | AB138: 0 | AC138: 3.536157542e-09 | AD138: 3.536157542e-09 | AE138: 69650845.26 | AF138: 0 | AG138: FALSE | AH138: 0 | AI138: 1.117863527e-05 | AJ138: 1.117863527e-05 | AK138: 22032.77554 | AL138: 0 | AM138: FALSE | AN138: 0 | AO138: 0.03534994859 | AP138: 0.03534994859 | AQ138: 6.967375389 | AR138: 0 | AS138: TRUE | AT138: 0.4962825423 | AU138: 111.7863527 | AV138: 0
B139: 7 | C139: 10 | D139: 1016.449214 | F139: 130 | G139: 1 | H139: 10 | I139: 889.7596408 | J139: =IF(ABS(I139-I138)>0.0001,1,$L$2) -> 1 | K139: 0.3073252098 | L139: =$J139*$K139 -> 0.3073252098 | M139: =10^(LOG10($I139/22.27)/LOG10(2)*70/20)*$L139 -> 1.283647782e+18 | N139: =IF($I139<22.27,M139,0) -> 0 | O139: =AND($I139>22.27,$I139<44.45) -> FALSE | P139: =IF($O139=TRUE,$L139,0) -> 0 | Q139: =10^(LOG10(44.45/$I139)/LOG10(2)*70/20)*$L139 -> 2.272673313e-16 | R139: =IF($I139>44.45,Q139,0) -> 2.272673313e-16 | S139: =10^(LOG10($I139/44.548)/LOG10(2)*70/20)*$L139 -> 4.050783274e+14 | T139: =IF($I139<44.528,S139,0) -> 0 | U139: FALSE | V139: =IF($U139=TRUE,$L139,0) -> 0 | W139: =10^(LOG10(89.095/$I139)/LOG10(2)*70/20)*$L139 -> 7.372260813e-13 | X139: 7.372260813e-13 | Y139: =10^(LOG10($I139/89.09)/LOG10(2)*70/20)*$L139 -> 1.281973548e+11 | Z139: =IF($I139<89.09,Y139,0) -> 0 | AA139: =AND($I139>89.09,$I139<176.78) -> FALSE | AB139: =IF($AA139=TRUE,$L139,0) -> 0 | AC139: =10^(LOG10(176.78/$I139)/LOG10(2)*70/20)*$L139 -> 2.125622332e-09 | AD139: =IF($I139>176.78,AC139,0) -> 2.125622332e-09 | AE139: =10^(LOG10($I139/176.78)/LOG10(2)*70/20)*$L139 -> 44433473.99 | AF139: =IF($I139<176.78,AE139,0) -> 0 | AG139: =AND($I139>176.78,$I139<353.55) -> FALSE | AH139: =IF($AG139=TRUE,$L139,0) -> 0 | AI139: =10^(LOG10(353.55/$I139)/LOG10(2)*70/20)*$L139 -> 6.719597893e-06 | AJ139: =IF($I139>353.55,AI139,0) -> 6.719597893e-06 | AK139: =10^(LOG10($I139/353.55)/LOG10(2)*70/20)*$L139 -> 14055.71972 | AL139: =IF($I139<353.55,AK139,0) -> 0 | AM139: =AND($I139>353.55,$I139<707.1) -> FALSE | AN139: =IF($AM139=TRUE,$L139,0) -> 0 | AO139: =10^(LOG10(707.1/$I139)/LOG10(2)*70/20)*$L139 -> 0.0212492343 | AP139: =IF($I139>707.1,AO139,0) -> 0.0212492343 | AQ139: =10^(LOG10($I139/707.1)/LOG10(2)*70/20)*$L139 -> 4.444808846 | AR139: =IF($I139<707.1,AQ139,0) -> 0 | AS139: =AND($I139>707.1,$I139<1414.2) -> TRUE | AT139: =IF($AS139=TRUE,$L139,0) -> 0.3073252098 | AU139: =10^(LOG10(1414.2/$I139)/LOG10(2)*70/20)*$L139 -> 67.19597893 | AV139: =IF($I139>1414.2,AU139,0) -> 0
B140: 7 | C140: 11 | D140: 1202.744472 | F140: 131 | G140: 18 | H140: 2 | I140: 890.6394295 | J140: 1 | K140: 0.4681807833 | L140: 0.4681807833 | M140: 1.978115527e+18 | N140: 0 | O140: FALSE | P140: 0 | Q140: 3.422646364e-16 | R140: 3.422646364e-16 | S140: 6.242302138e+14 | T140: 0 | U140: FALSE | V140: 0 | W140: 1.110262593e-12 | X140: 1.110262593e-12 | Y140: 1.975535513e+11 | Z140: 0 | AA140: FALSE | AB140: 0 | AC140: 3.201187563e-09 | AD140: 3.201187563e-09 | AE140: 68472478.26 | AF140: 0 | AG140: FALSE | AH140: 0 | AI140: 1.011971547e-05 | AJ140: 1.011971547e-05 | AK140: 21660.02062 | AL140: 0 | AM140: FALSE | AN140: 0 | AO140: 0.03200135017 | AP140: 0.03200135017 | AQ140: 6.849499931 | AR140: 0 | AS140: TRUE | AT140: 0.4681807833 | AU140: 101.1971547 | AV140: 0
B141: 7 | C141: 12 | D141: 1406.782135 | F141: 132 | G141: 16 | H141: 5 | I141: 897.4577919 | J141: 1 | K141: 0.7067666011 | L141: 0.7067666011 | M141: 3.263046106e+18 | N141: 0 | O141: FALSE | P141: 0 | Q141: 4.728412313e-16 | R141: 4.728412313e-16 | S141: 1.029713351e+15 | T141: 0 | U141: FALSE | V141: 0 | W141: 1.533836324e-12 | X141: 1.533836324e-12 | Y141: 3.258790185e+11 | Z141: 0 | AA141: FALSE | AB141: 0 | AC141: 4.422465274e-09 | AD141: 4.422465274e-09 | AE141: 112950356.3 | AF141: 0 | AG141: FALSE | AH141: 0 | AI141: 1.398046487e-05 | AJ141: 1.398046487e-05 | AK141: 35729.78674 | AL141: 0 | AM141: FALSE | AN141: 0 | AO141: 0.04421011174 | AP141: 0.04421011174 | AQ141: 11.29875064 | AR141: 0 | AS141: TRUE | AT141: 0.7067666011 | AU141: 139.8046487 | AV141: 0
B142: 7 | C142: 13 | D142: 1628.562203 | F142: 133 | G142: 2 | H142: 10 | I142: 897.6777391 | J142: 1 | K142: 0.5845671473 | L142: 0.5845671473 | M142: 2.706568043e+18 | N142: 0 | O142: FALSE | P142: 0 | Q142: 3.899746458e-16 | R142: 3.899746458e-16 | S142: 8.541066104e+14 | T142: 0 | U142: FALSE | V142: 0 | W142: 1.265027746e-12 | X142: 1.265027746e-12 | Y142: 2.703037924e+11 | Z142: 0 | AA142: FALSE | AB142: 0 | AC142: 3.647417388e-09 | AD142: 3.647417388e-09 | AE142: 93687865.51 | AF142: 0 | AG142: FALSE | AH142: 0 | AI142: 1.153035411e-05 | AJ142: 1.153035411e-05 | AK142: 29636.44883 | AL142: 0 | AM142: FALSE | AN142: 0 | AO142: 0.03646218123 | AP142: 0.03646218123 | AQ142: 9.371868007 | AR142: 0 | AS142: TRUE | AT142: 0.5845671473 | AU142: 115.3035411 | AV142: 0
B143: 7 | C143: 14 | D143: 1868.084678 | F143: 134 | G143: 17 | H143: 4 | I143: 904.7160487 | J143: 1 | K143: 0.7792068768 | L143: 0.7792068768 | M143: 3.950693863e+18 | N143: 0 | O143: FALSE | P143: 0 | Q143: 4.746994067e-16 | R143: 4.746994067e-16 | S143: 1246713066597792 | T143: 0 | U143: FALSE | V143: 0 | W143: 1.539864007e-12 | X143: 1.539864007e-12 | Y143: 3.945541058e+11 | Z143: 0 | AA143: FALSE | AB143: 0 | AC143: 4.439844715e-09 | AD143: 4.439844715e-09 | AE143: 136753286.6 | AF143: 0 | AG143: FALSE | AH143: 0 | AI143: 1.403540542e-05 | AJ143: 1.403540542e-05 | AK143: 43259.40996 | AL143: 0 | AM143: FALSE | AN143: 0 | AO143: 0.044383849 | AP143: 0.044383849 | AQ143: 13.67982657 | AR143: 0 | AS143: TRUE | AT143: 0.7792068768 | AU143: 140.3540542 | AV143: 0
B144: 7 | C144: 15 | D144: 2125.349557 | F144: 135 | G144: 3 | H144: 10 | I144: 910.8745696 | J144: 1 | K144: 0.8045873141 | L144: 0.8045873141 | M144: 4.414174251e+18 | N144: 0 | O144: FALSE | P144: 0 | Q144: 4.529845625e-16 | R144: 4.529845625e-16 | S144: 1.392972705e+15 | T144: 0 | U144: FALSE | V144: 0 | W144: 1.469423837e-12 | X144: 1.469423837e-12 | Y144: 4.408416939e+11 | Z144: 0 | AA144: FALSE | AB144: 0 | AC144: 4.236746639e-09 | AD144: 4.236746639e-09 | AE144: 152796662.4 | AF144: 0 | AG144: FALSE | AH144: 0 | AI144: 1.339336408e-05 | AJ144: 1.339336408e-05 | AK144: 48334.43951 | AL144: 0 | AM144: FALSE | AN144: 0 | AO144: 0.04235353603 | AP144: 0.04235353603 | AQ144: 15.28469183 | AR144: 0 | AS144: TRUE | AT144: 0.8045873141 | AU144: 133.9336408 | AV144: 0
B145: 7 | C145: 16 | D145: 2400.356842 | F145: 136 | G145: 15 | H145: 6 | I145: 913.2206728 | J145: 1 | K145: 0.3681185418 | L145: 0.3681185418 | M145: 2.080908033e+18 | N145: 0 | O145: FALSE | P145: 0 | Q145: 2.01144894e-16 | R145: 2.01144894e-16 | S145: 6.566682525e+14 | T145: 0 | U145: FALSE | V145: 0 | W145: 6.524882441e-13 | X145: 6.524882441e-13 | Y145: 2.07819395e+11 | Z145: 0 | AA145: FALSE | AB145: 0 | AC145: 1.881300212e-09 | AD145: 1.881300212e-09 | AE145: 72030641.34 | AF145: 0 | AG145: FALSE | AH145: 0 | AI145: 5.947237546e-06 | AJ145: 5.947237546e-06 | AK145: 22785.58066 | AL145: 0 | AM145: FALSE | AN145: 0 | AO145: 0.01880681643 | AP145: 0.01880681643 | AQ145: 7.20543327 | AR145: 0 | AS145: TRUE | AT145: 0.3681185418 | AU145: 59.47237546 | AV145: 0
B146: 7 | C146: 17 | D146: 2693.106533 | F146: 137 | G146: 4 | H146: 10 | I146: 929.3501323 | J146: 1 | K146: 0.9458485034 | L146: 0.9458485034 | M146: 6.553786331e+18 | N146: 0 | O146: FALSE | P146: 0 | Q146: 4.216357208e-16 | R146: 4.216357208e-16 | S146: 2068166083750634 | T146: 0 | U146: FALSE | V146: 0 | W146: 1.367732214e-12 | X146: 1.367732214e-12 | Y146: 6.545238369e+11 | Z146: 0 | AA146: FALSE | AB146: 0 | AC146: 3.943542166e-09 | AD146: 3.943542166e-09 | AE146: 226859344.6 | AF146: 0 | AG146: FALSE | AH146: 0 | AI146: 1.246647499e-05 | AJ146: 1.246647499e-05 | AK146: 71762.81927 | AL146: 0 | AM146: FALSE | AN146: 0 | AO146: 0.03942245535 | AP146: 0.03942245535 | AQ146: 22.69339602 | AR146: 0 | AS146: TRUE | AT146: 0.9458485034 | AU146: 124.6647499 | AV146: 0
B147: 7 | C147: 18 | D147: 3003.598629 | F147: 138 | G147: 9 | H147: 9 | I147: 932.3560771 | J147: 1 | K147: 0.2609079741 | L147: 0.2609079741 | M147: 1.876998285e+18 | N147: 0 | O147: FALSE | P147: 0 | Q147: 1.120204577e-16 | R147: 1.120204577e-16 | S147: 5.923208351e+14 | T147: 0 | U147: FALSE | V147: 0 | W147: 3.633800009e-13 | X147: 3.633800009e-13 | Y147: 1.874550157e+11 | Z147: 0 | AA147: FALSE | AB147: 0 | AC147: 1.047722896e-09 | AD147: 1.047722896e-09 | AE147: 64972304.46 | AF147: 0 | AG147: FALSE | AH147: 0 | AI147: 3.312101335e-06 | AJ147: 3.312101335e-06 | AK147: 20552.80442 | AL147: 0 | AM147: FALSE | AN147: 0 | AO147: 0.01047378406 | AP147: 0.01047378406 | AQ147: 6.499367428 | AR147: 0 | AS147: TRUE | AT147: 0.2609079741 | AU147: 33.12101335 | AV147: 0
B148: 7 | C148: 19 | D148: 3331.833131 | F148: 139 | G148: 18 | H148: 3 | I148: 934.9954432 | J148: 1 | K148: 0.5773638069 | L148: 0.5773638069 | M148: 4.292399178e+18 | N148: 0 | O148: FALSE | P148: 0 | Q148: 2.39875295e-16 | R148: 2.39875295e-16 | S148: 1.354544373e+15 | T148: 0 | U148: FALSE | V148: 0 | W148: 7.781246989e-13 | X148: 7.781246989e-13 | Y148: 4.286800694e+11 | Z148: 0 | AA148: FALSE | AB148: 0 | AC148: 2.243544116e-09 | AD148: 2.243544116e-09 | AE148: 148581417.7 | AF148: 0 | AG148: FALSE | AH148: 0 | AI148: 7.092376708e-06 | AJ148: 7.092376708e-06 | AK148: 47001.02366 | AL148: 0 | AM148: FALSE | AN148: 0 | AO148: 0.02242806442 | AP148: 0.02242806442 | AQ148: 14.86302871 | AR148: 0 | AS148: TRUE | AT148: 0.5773638069 | AU148: 70.92376708 | AV148: 0
B149: 7 | C149: 20 | D149: 3677.810038 | F149: 140 | G149: 12 | H149: 8 | I149: 947.8256951 | J149: 1 | K149: 0.3044966648 | L149: 0.3044966648 | M149: 2.652476969e+18 | N149: 0 | O149: FALSE | P149: 0 | Q149: 1.07969222e-16 | R149: 1.07969222e-16 | S149: 8.370371916e+14 | T149: 0 | U149: FALSE | V149: 0 | W149: 3.502383116e-13 | X149: 3.502383116e-13 | Y149: 2.6490174e+11 | Z149: 0 | AA149: FALSE | AB149: 0 | AC149: 1.009831849e-09 | AD149: 1.009831849e-09 | AE149: 91815502.74 | AF149: 0 | AG149: FALSE | AH149: 0 | AI149: 3.192318721e-06 | AJ149: 3.192318721e-06 | AK149: 29044.16099 | AL149: 0 | AM149: FALSE | AN149: 0 | AO149: 0.01009499817 | AP149: 0.01009499817 | AQ149: 9.184570147 | AR149: 0 | AS149: TRUE | AT149: 0.3044966648 | AU149: 31.92318721 | AV149: 0
B150: 8 | C150: 1 | D150: 177.7906336 | F150: 141 | G150: 14 | H150: 7 | I150: 952.0046914 | J150: 1 | K150: 0.07958977215 | L150: 0.07958977215 | M150: 7.296935893e+17 | N150: 0 | O150: FALSE | P150: 0 | Q150: 2.681393209e-17 | R150: 2.681393209e-17 | S150: 2.3026804e+14 | T150: 0 | U150: FALSE | V150: 0 | W150: 8.698095749e-14 | X150: 8.698095749e-14 | Y150: 7.287418657e+10 | Z150: 0 | AA150: FALSE | AB150: 0 | AC150: 2.507896429e-10 | AD150: 2.507896429e-10 | AE150: 25258347.02 | AF150: 0 | AG150: FALSE | AH150: 0 | AI150: 7.928057261e-07 | AJ150: 7.928057261e-07 | AK150: 7990.017758 | AL150: 0 | AM150: FALSE | AN150: 0 | AO150: 0.002507071836 | AP150: 0.002507071836 | AQ150: 2.526665466 | AR150: 0 | AS150: TRUE | AT150: 0.07958977215 | AU150: 7.928057261 | AV150: 0
B151: 8 | C151: 2 | D151: 204.4042418 | F151: 142 | G151: 5 | H151: 10 | I151: 953.1044273 | J151: 1 | K151: 0.9945230216 | L151: 0.9945230216 | M151: 9.24118666e+18 | N151: 0 | O151: FALSE | P151: 0 | Q151: 3.305890407e-16 | R151: 3.305890407e-16 | S151: 2916223974685005 | T151: 0 | U151: FALSE | V151: 0 | W151: 1.072388458e-12 | X151: 1.072388458e-12 | Y151: 9.22913358e+11 | Z151: 0 | AA151: FALSE | AB151: 0 | AC151: 3.09198618e-09 | AD151: 3.09198618e-09 | AE151: 319883719.7 | AF151: 0 | AG151: FALSE | AH151: 0 | AI151: 9.774503923e-06 | AJ151: 9.774503923e-06 | AK151: 101189.385 | AL151: 0 | AM151: FALSE | AN151: 0 | AO151: 0.0309096954 | AP151: 0.0309096954 | AQ151: 31.99889315 | AR151: 0 | AS151: TRUE | AT151: 0.9945230216 | AU151: 97.74503923 | AV151: 0
B152: 8 | C152: 3 | D152: 248.7602555 | F152: 143 | G152: 19 | H152: 1 | I152: 961.6823672 | J152: 1 | K152: 0.1373942223 | L152: 0.1373942223 | M152: 1.41684709e+18 | N152: 0 | O152: FALSE | P152: 0 | Q152: 4.115290249e-17 | R152: 4.115290249e-17 | S152: 4.471117839e+14 | T152: 0 | U152: FALSE | V152: 0 | W152: 1.334947388e-13 | X152: 1.334947388e-13 | Y152: 1.414999127e+11 | Z152: 0 | AA152: FALSE | AB152: 0 | AC152: 3.849014641e-10 | AD152: 3.849014641e-10 | AE152: 49044168.68 | AF152: 0 | AG152: FALSE | AH152: 0 | AI152: 1.216765099e-06 | AJ152: 1.216765099e-06 | AK152: 15514.22895 | AL152: 0 | AM152: FALSE | AN152: 0 | AO152: 0.003847749091 | AP152: 0.003847749091 | AQ152: 4.906029964 | AR152: 0 | AS152: TRUE | AT152: 0.1373942223 | AU152: 12.16765099 | AV152: 0
B153: 8 | C153: 4 | D153: 310.8586748 | F153: 144 | G153: 6 | H153: 10 | I153: 982.1374545 | J153: 1 | K153: 0.9458462456 | L153: 0.9458462456 | M153: 1.245806948e+19 | N153: 0 | O153: FALSE | P153: 0 | Q153: 2.218078198e-16 | R153: 2.218078198e-16 | S153: 3.931369665e+15 | T153: 0 | U153: FALSE | V153: 0 | W153: 7.195161262e-13 | X153: 7.195161262e-13 | Y153: 1.244182069e+12 | Z153: 0 | AA153: FALSE | AB153: 0 | AC153: 2.074559738e-09 | AD153: 2.074559738e-09 | AE153: 431236133.7 | AF153: 0 | AG153: FALSE | AH153: 0 | AI153: 6.558176885e-06 | AJ153: 6.558176885e-06 | AK153: 136413.6918 | AL153: 0 | AM153: FALSE | AN153: 0 | AO153: 0.02073877626 | AP153: 0.02073877626 | AQ153: 43.13779701 | AR153: 0 | AS153: TRUE | AT153: 0.9458462456 | AU153: 65.58176885 | AV153: 0
B154: 8 | C154: 5 | D154: 390.6994995 | F154: 145 | G154: 10 | H154: 9 | I154: 982.5040331 | J154: 1 | K154: 6.202817462e-06 | L154: 6.202817462e-06 | M154: 8.205471338e+13 | N154: 0 | O154: FALSE | P154: 0 | Q154: 1.448308175e-21 | R154: 1.448308175e-21 | S154: 2.589385229e+10 | T154: 0 | U154: FALSE | V154: 0 | W154: 4.698126009e-18 | X154: 4.698126009e-18 | Y154: 8194769.119 | Z154: 0 | AA154: FALSE | AB154: 0 | AC154: 1.354596889e-14 | AD154: 1.354596889e-14 | AE154: 2840.324289 | AF154: 0 | AG154: FALSE | AH154: 0 | AI154: 4.282203036e-11 | AJ154: 4.282203036e-11 | AK154: 0.8984848252 | AL154: 0 | AM154: FALSE | AN154: 0 | AO154: 1.3541515e-07 | AP154: 1.3541515e-07 | AQ154: 0.0002841258491 | AR154: 0 | AS154: TRUE | AT154: 6.202817462e-06 | AU154: 0.0004282203036 | AV154: 0
B155: 8 | C155: 6 | D155: 488.2827297 | F155: 146 | G155: 17 | H155: 5 | I155: 984.5568734 | J155: 1 | K155: 0.6012084214 | L155: 0.6012084214 | M155: 8.148522082e+18 | N155: 0 | O155: FALSE | P155: 0 | Q155: 1.370117385e-16 | R155: 1.370117385e-16 | S155: 2571413859146772 | T155: 0 | U155: FALSE | V155: 0 | W155: 4.444485114e-13 | X155: 4.444485114e-13 | Y155: 8.13789414e+11 | Z155: 0 | AA155: FALSE | AB155: 0 | AC155: 1.281465354e-09 | AD155: 1.281465354e-09 | AE155: 282061130.1 | AF155: 0 | AG155: FALSE | AH155: 0 | AI155: 4.051016855e-06 | AJ155: 4.051016855e-06 | AK155: 89224.89808 | AL155: 0 | AM155: FALSE | AN155: 0 | AO155: 0.0128104401 | AP155: 0.0128104401 | AQ155: 28.21539019 | AR155: 0 | AS155: TRUE | AT155: 0.6012084214 | AU155: 40.51016855 | AV155: 0
B156: 8 | C156: 7 | D156: 603.6083654 | F156: 147 | G156: 19 | H156: 2 | I156: 988.2959754 | J156: 1 | K156: 0.2461311098 | L156: 0.2461311098 | M156: 3.48626558e+18 | N156: 0 | O156: FALSE | P156: 0 | Q156: 5.367339481e-17 | R156: 5.367339481e-17 | S156: 1.100154303e+15 | T156: 0 | U156: FALSE | V156: 0 | W156: 1.741096105e-13 | X156: 1.741096105e-13 | Y156: 3.481718519e+11 | Z156: 0 | AA156: FALSE | AB156: 0 | AC156: 5.020051319e-10 | AD156: 5.020051319e-10 | AE156: 120677099.4 | AF156: 0 | AG156: FALSE | AH156: 0 | AI156: 1.586957653e-06 | AJ156: 1.586957653e-06 | AK156: 38174.00112 | AL156: 0 | AM156: FALSE | AN156: 0 | AO156: 0.005018400734 | AP156: 0.005018400734 | AQ156: 12.07167909 | AR156: 0 | AS156: TRUE | AT156: 0.2461311098 | AU156: 15.86957653 | AV156: 0
B157: 8 | C157: 8 | D157: 736.6764066 | F157: 148 | G157: 16 | H157: 6 | I157: 995.0410221 | J157: 1 | K157: 0.3501002008 | L157: 0.3501002008 | M157: 5.366995774e+18 | N157: 0 | O157: FALSE | P157: 0 | Q157: 7.054073488e-17 | R157: 7.054073488e-17 | S157: 1.693652809e+15 | T157: 0 | U157: FALSE | V157: 0 | W157: 2.288250988e-13 | X157: 2.288250988e-13 | Y157: 5.359995717e+11 | Z157: 0 | AA157: FALSE | AB157: 0 | AC157: 6.597646943e-10 | AD157: 6.597646943e-10 | AE157: 185778583.9 | AF157: 0 | AG157: FALSE | AH157: 0 | AI157: 2.085673162e-06 | AJ157: 2.085673162e-06 | AK157: 58767.66929 | AL157: 0 | AM157: FALSE | AN157: 0 | AO157: 0.006595477646 | AP157: 0.006595477646 | AQ157: 18.58396878 | AR157: 0 | AS157: TRUE | AT157: 0.3501002008 | AU157: 20.85673162 | AV157: 0
B158: 8 | C158: 9 | D158: 887.4868533 | F158: 149 | G158: 18 | H158: 4 | I158: 997.0938624 | J158: 1 | K158: 0.5661217671 | L158: 0.5661217671 | M158: 8.889050103e+18 | N158: 0 | O158: FALSE | P158: 0 | Q158: 1.1136555e-16 | R158: 1.1136555e-16 | S158: 2805100900531855 | T158: 0 | U158: FALSE | V158: 0 | W158: 3.612555643e-13 | X158: 3.612555643e-13 | Y158: 8.877456307e+11 | Z158: 0 | AA158: FALSE | AB158: 0 | AC158: 1.04159757e-09 | AD158: 1.04159757e-09 | AE158: 307694511.1 | AF158: 0 | AG158: FALSE | AH158: 0 | AI158: 3.292737724e-06 | AJ158: 3.292737724e-06 | AK158: 97333.55098 | AL158: 0 | AM158: FALSE | AN158: 0 | AO158: 0.01041255095 | AP158: 0.01041255095 | AQ158: 30.77957139 | AR158: 0 | AS158: TRUE | AT158: 0.5661217671 | AU158: 32.92737724 | AV158: 0
B159: 8 | C159: 10 | D159: 1056.039705 | F159: 150 | G159: 13 | H159: 8 | I159: 1013.809848 | J159: 1 | K159: 0.419101527 | L159: 0.419101527 | M159: 7.983902857e+18 | N159: 0 | O159: FALSE | P159: 0 | Q159: 6.795317537e-17 | R159: 6.795317537e-17 | S159: 2.519465278e+15 | T159: 0 | U159: FALSE | V159: 0 | W159: 2.204313876e-13 | X159: 2.204313876e-13 | Y159: 7.973489625e+11 | Z159: 0 | AA159: FALSE | AB159: 0 | AC159: 6.355633529e-10 | AD159: 6.355633529e-10 | AE159: 276362834.9 | AF159: 0 | AG159: FALSE | AH159: 0 | AI159: 2.009166964e-06 | AJ159: 2.009166964e-06 | AK159: 87422.34623 | AL159: 0 | AM159: FALSE | AN159: 0 | AO159: 0.006353543806 | AP159: 0.006353543806 | AQ159: 27.64537325 | AR159: 0 | AS159: TRUE | AT159: 0.419101527 | AU159: 20.09166964 | AV159: 0
B160: 8 | C160: 11 | D160: 1242.334963 | F160: 151 | G160: 7 | H160: 10 | I160: 1016.449214 | J160: 1 | K160: 0.8045830196 | L160: 0.8045830196 | M160: 1.579776109e+19 | N160: 0 | O160: FALSE | P160: 0 | Q160: 1.265705587e-16 | R160: 1.265705587e-16 | S160: 4985269893926149 | T160: 0 | U160: FALSE | V160: 0 | W160: 4.105786627e-13 | X160: 4.105786627e-13 | Y160: 1.577715641e+12 | Z160: 0 | AA160: FALSE | AB160: 0 | AC160: 1.183809413e-09 | AD160: 1.183809413e-09 | AE160: 546839574.4 | AF160: 0 | AG160: FALSE | AH160: 0 | AI160: 3.742303191e-06 | AJ160: 3.742303191e-06 | AK160: 172982.7334 | AL160: 0 | AM160: FALSE | AN160: 0 | AO160: 0.01183420178 | AP160: 0.01183420178 | AQ160: 54.70194336 | AR160: 0 | AS160: TRUE | AT160: 0.8045830196 | AU160: 37.42303191 | AV160: 0
B161: 8 | C161: 12 | D161: 1446.372626 | F161: 152 | G161: 15 | H161: 7 | I161: 1028.546309 | J161: 1 | K161: 0.08368535919 | L161: 0.08368535919 | M161: 1.885446965e+18 | N161: 0 | O161: FALSE | P161: 0 | Q161: 1.147284593e-17 | R161: 1.147284593e-17 | S161: 5.949869692e+14 | T161: 0 | U161: FALSE | V161: 0 | W161: 3.721644108e-14 | X161: 3.721644108e-14 | Y161: 1.882987817e+11 | Z161: 0 | AA161: FALSE | AB161: 0 | AC161: 1.073050727e-10 | AD161: 1.073050727e-10 | AE161: 65264755.56 | AF161: 0 | AG161: FALSE | AH161: 0 | AI161: 3.392168636e-07 | AJ161: 3.392168636e-07 | AK161: 20645.316 | AL161: 0 | AM161: FALSE | AN161: 0 | AO161: 0.00107269791 | AP161: 0.00107269791 | AQ161: 6.528622157 | AR161: 0 | AS161: TRUE | AT161: 0.08368535919 | AU161: 3.392168636 | AV161: 0
B162: 8 | C162: 13 | D162: 1668.152695 | F162: 153 | G162: 19 | H162: 3 | I162: 1032.651989 | J162: 1 | K162: 0.3035306011 | L162: 0.3035306011 | M162: 7.162805779e+18 | N162: 0 | O162: FALSE | P162: 0 | Q162: 3.972906111e-17 | R162: 3.972906111e-17 | S162: 2260353210595479 | T162: 0 | U162: FALSE | V162: 0 | W162: 1.2887598e-13 | X162: 1.2887598e-13 | Y162: 7.153463485e+11 | Z162: 0 | AA162: FALSE | AB162: 0 | AC162: 3.715843322e-10 | AD162: 3.715843322e-10 | AE162: 247940555.7 | AF162: 0 | AG162: FALSE | AH162: 0 | AI162: 1.174666477e-06 | AJ162: 1.174666477e-06 | AK162: 78431.47618 | AL162: 0 | AM162: FALSE | AN162: 0 | AO162: 0.003714621558 | AP162: 0.003714621558 | AQ162: 24.8022105 | AR162: 0 | AS162: TRUE | AT162: 0.3035306011 | AU162: 11.74666477 | AV162: 0
B163: 8 | C163: 14 | D163: 1907.675169 | F163: 154 | G163: 11 | H163: 9 | I163: 1037.930721 | J163: 1 | K163: 0.2609197726 | L163: 0.2609197726 | M163: 6.533317021e+18 | N163: 0 | O163: FALSE | P163: 0 | Q163: 3.218598197e-17 | R163: 3.218598197e-17 | S163: 2.061706622e+15 | T163: 0 | U163: FALSE | V163: 0 | W163: 1.044071984e-13 | X163: 1.044071984e-13 | Y163: 6.524795757e+11 | Z163: 0 | AA163: FALSE | AB163: 0 | AC163: 3.010342122e-10 | AD163: 3.010342122e-10 | AE163: 226150799.4 | AF163: 0 | AG163: FALSE | AH163: 0 | AI163: 9.516407633e-07 | AJ163: 9.516407633e-07 | AK163: 71538.68388 | AL163: 0 | AM163: FALSE | AN163: 0 | AO163: 0.003009352326 | AP163: 0.003009352326 | AQ163: 22.62251819 | AR163: 0 | AS163: TRUE | AT163: 0.2609197726 | AU163: 9.516407633 | AV163: 0
B164: 8 | C164: 15 | D164: 2164.940049 | F164: 155 | G164: 8 | H164: 10 | I164: 1056.039705 | J164: 1 | K164: 0.5845612365 | L164: 0.5845612365 | M164: 1.789762893e+19 | N164: 0 | O164: FALSE | P164: 0 | Q164: 5.897270376e-17 | R164: 5.897270376e-17 | S164: 5647921255797016 | T164: 0 | U164: FALSE | V164: 0 | W164: 1.912998892e-13 | X164: 1.912998892e-13 | Y164: 1.787428544e+12 | Z164: 0 | AA164: FALSE | AB164: 0 | AC164: 5.515693582e-10 | AD164: 5.515693582e-10 | AE164: 619526509.4 | AF164: 0 | AG164: FALSE | AH164: 0 | AI164: 1.743641964e-06 | AJ164: 1.743641964e-06 | AK164: 195975.9206 | AL164: 0 | AM164: FALSE | AN164: 0 | AO164: 0.00551388003 | AP164: 0.00551388003 | AQ164: 61.97302758 | AR164: 0 | AS164: TRUE | AT164: 0.5845612365 | AU164: 17.43641964 | AV164: 0
B165: 8 | C165: 16 | D165: 2439.947334 | F165: 156 | G165: 20 | H165: 1 | I165: 1064.617645 | J165: 1 | K165: 6.532959017e-06 | L165: 6.532959017e-06 | M165: 2.197480277e+14 | N165: 0 | O165: FALSE | P165: 0 | Q165: 5.999034988e-22 | R165: 5.999034988e-22 | S165: 6.934547373e+10 | T165: 0 | U165: FALSE | V165: 0 | W165: 1.946010027e-18 | X165: 1.946010027e-18 | Y165: 21946141.51 | Z165: 0 | AA165: FALSE | AB165: 0 | AC165: 5.610873621e-15 | AD165: 5.610873621e-15 | AE165: 7606.579012 | AF165: 0 | AG165: FALSE | AH165: 0 | AI165: 1.773730639e-11 | AJ165: 1.773730639e-11 | AK165: 2.406202644 | AL165: 0 | AM165: FALSE | AN165: 0 | AO165: 5.609028773e-08 | AP165: 5.609028773e-08 | AQ165: 0.0007609080866 | AR165: 0 | AS165: TRUE | AT165: 6.532959017e-06 | AU165: 0.0001773730639 | AV165: 0
B166: 8 | C166: 17 | D166: 2732.697025 | F166: 157 | G166: 1 | H166: 11 | I166: 1076.054898 | J166: 1 | K166: 0.2896354415 | L166: 0.2896354415 | M166: 1.103122662e+19 | N166: 0 | O166: FALSE | P166: 0 | Q166: 2.348908577e-17 | R166: 2.348908577e-17 | S166: 3481103534431960 | T166: 0 | U166: FALSE | V166: 0 | W166: 7.619558233e-14 | X166: 7.619558233e-14 | Y166: 1.101683883e+12 | Z166: 0 | AA166: FALSE | AB166: 0 | AC166: 2.196924871e-10 | AD166: 2.196924871e-10 | AE166: 381845961.3 | AF166: 0 | AG166: FALSE | AH166: 0 | AI166: 6.945002184e-07 | AJ166: 6.945002184e-07 | AK166: 120790.0109 | AL166: 0 | AM166: FALSE | AN166: 0 | AO166: 0.002196202526 | AP166: 0.002196202526 | AQ166: 38.1971553 | AR166: 0 | AS166: TRUE | AT166: 0.2896354415 | AU166: 6.945002184 | AV166: 0
B167: 8 | C167: 18 | D167: 3043.189121 | F167: 158 | G167: 18 | H167: 5 | I167: 1076.934687 | J167: 1 | K167: 0.4367994996 | L167: 0.4367994996 | M167: 1.679503812e+19 | N167: 0 | O167: FALSE | P167: 0 | Q167: 3.508890243e-17 | R167: 3.508890243e-17 | S167: 5299978738124184 | T167: 0 | U167: FALSE | V167: 0 | W167: 1.138239002e-13 | X167: 1.138239002e-13 | Y167: 1.677313271e+12 | Z167: 0 | AA167: FALSE | AB167: 0 | AC167: 3.281851121e-10 | AD167: 3.281851121e-10 | AE167: 581360323.3 | AF167: 0 | AG167: FALSE | AH167: 0 | AI167: 1.037471217e-06 | AJ167: 1.037471217e-06 | AK167: 183902.7433 | AL167: 0 | AM167: FALSE | AN167: 0 | AO167: 0.003280772053 | AP167: 0.003280772053 | AQ167: 58.15515366 | AR167: 0 | AS167: TRUE | AT167: 0.4367994996 | AU167: 10.37471217 | AV167: 0
B168: 8 | C168: 19 | D168: 3371.423622 | F168: 159 | G168: 17 | H168: 6 | I168: 1082.140104 | J168: 1 | K168: 0.297811454 | L168: 0.297811454 | M168: 1.211122694e+19 | N168: 0 | O168: FALSE | P168: 0 | Q168: 2.261940439e-17 | R168: 2.261940439e-17 | S168: 3821917214408740 | T168: 0 | U168: FALSE | V168: 0 | W168: 7.337444745e-14 | X168: 7.337444745e-14 | Y168: 1.209543053e+12 | Z168: 0 | AA168: FALSE | AB168: 0 | AC168: 2.115583917e-10 | AD168: 2.115583917e-10 | AE168: 419230177.6 | AF168: 0 | AG168: FALSE | AH168: 0 | AI168: 6.687864076e-07 | AJ168: 6.687864076e-07 | AK168: 132615.8264 | AL168: 0 | AM168: FALSE | AN168: 0 | AO168: 0.002114888316 | AP168: 0.002114888316 | AQ168: 41.93680652 | AR168: 0 | AS168: TRUE | AT168: 0.297811454 | AU168: 6.687864076 | AV168: 0
B169: 8 | C169: 20 | D169: 3717.400529 | F169: 160 | G169: 2 | H169: 11 | I169: 1083.972997 | J169: 1 | K169: 0.5509192164 | L169: 0.5509192164 | M169: 2.284967322e+19 | N169: 0 | O169: FALSE | P169: 0 | Q169: 4.102819036e-17 | R169: 4.102819036e-17 | S169: 7210628604374822 | T169: 0 | U169: FALSE | V169: 0 | W169: 1.330901887e-13 | X169: 1.330901887e-13 | Y169: 2.281987089e+12 | Z169: 0 | AA169: FALSE | AB169: 0 | AC169: 3.837350365e-10 | AD169: 3.837350365e-10 | AE169: 790941546 | AF169: 0 | AG169: FALSE | AH169: 0 | AI169: 1.213077744e-06 | AJ169: 1.213077744e-06 | AK169: 250199.9435 | AL169: 0 | AM169: FALSE | AN169: 0 | AO169: 0.003836088649 | AP169: 0.003836088649 | AQ169: 79.1201692 | AR169: 0 | AS169: TRUE | AT169: 0.5509192164 | AU169: 12.13077744 | AV169: 0
B170: 9 | C170: 1 | D170: 222.6598574 | F170: 161 | G170: 14 | H170: 8 | I170: 1085.072733 | J170: 1 | K170: 0.4926816215 | L170: 0.4926816215 | M170: 2.067657961e+19 | N170: 0 | O170: FALSE | P170: 0 | Q170: 3.626106368e-17 | R170: 3.626106368e-17 | S170: 6524869520841383 | T170: 0 | U170: FALSE | V170: 0 | W170: 1.17626241e-13 | X170: 1.17626241e-13 | Y170: 2.064961159e+12 | Z170: 0 | AA170: FALSE | AB170: 0 | AC170: 3.391482897e-10 | AD170: 3.391482897e-10 | AE170: 715719900.4 | AF170: 0 | AG170: FALSE | AH170: 0 | AI170: 1.07212843e-06 | AJ170: 1.07212843e-06 | AK170: 226404.9468 | AL170: 0 | AM170: FALSE | AN170: 0 | AO170: 0.003390367783 | AP170: 0.003390367783 | AQ170: 71.59553054 | AR170: 0 | AS170: TRUE | AT170: 0.4926816215 | AU170: 10.7212843 | AV170: 0
B171: 9 | C171: 2 | D171: 249.2734656 | F171: 162 | G171: 20 | H171: 2 | I171: 1091.231254 | J171: 1 | K171: 1.170329018e-05 | L171: 1.170329018e-05 | M171: 5.245636932e+14 | N171: 0 | O171: FALSE | P171: 0 | Q171: 8.064997402e-22 | R171: 8.064997402e-22 | S171: 1.655355827e+11 | T171: 0 | U171: FALSE | V171: 0 | W171: 2.616181743e-18 | X171: 2.616181743e-18 | Y171: 52387951.61 | Z171: 0 | AA171: FALSE | AB171: 0 | AC171: 7.543160068e-15 | AD171: 7.543160068e-15 | AE171: 18157.7747 | AF171: 0 | AG171: FALSE | AH171: 0 | AI171: 2.384572355e-11 | AJ171: 2.384572355e-11 | AK171: 5.74388111 | AL171: 0 | AM171: FALSE | AN171: 0 | AO171: 7.540679888e-08 | AP171: 7.540679888e-08 | AQ171: 0.001816374692 | AR171: 0 | AS171: TRUE | AT171: 1.170329018e-05 | AU171: 0.0002384572355 | AV171: 0
B172: 9 | C172: 3 | D172: 293.6294793 | F172: 163 | G172: 19 | H172: 4 | I172: 1094.750408 | J172: 1 | K172: 0.2976204573 | L172: 0.2976204573 | M172: 1.384876189e+19 | N172: 0 | O172: FALSE | P172: 0 | Q172: 1.975609584e-17 | R172: 1.975609584e-17 | S172: 4.370227864e+15 | T172: 0 | U172: FALSE | V172: 0 | W172: 6.408624168e-14 | X172: 6.408624168e-14 | Y172: 1.383069925e+12 | Z172: 0 | AA172: FALSE | AB172: 0 | AC172: 1.847779805e-10 | AD172: 1.847779805e-10 | AE172: 479374957.8 | AF172: 0 | AG172: FALSE | AH172: 0 | AI172: 5.841271566e-07 | AJ172: 5.841271566e-07 | AK172: 151641.5315 | AL172: 0 | AM172: FALSE | AN172: 0 | AO172: 0.001847172258 | AP172: 0.001847172258 | AQ172: 47.95326274 | AR172: 0 | AS172: TRUE | AT172: 0.2976204573 | AU172: 5.841271566 | AV172: 0
B173: 9 | C173: 4 | D173: 355.7278986 | F173: 164 | G173: 3 | H173: 11 | I173: 1097.169827 | J173: 1 | K173: 0.7582749298 | L173: 0.7582749298 | M173: 3.620111056e+19 | N173: 0 | O173: FALSE | P173: 0 | Q173: 4.905892353e-17 | R173: 4.905892353e-17 | S173: 1.142391669e+16 | T173: 0 | U173: FALSE | V173: 0 | W173: 1.591408573e-13 | X173: 1.591408573e-13 | Y173: 3.615389423e+12 | Z173: 0 | AA173: FALSE | AB173: 0 | AC173: 4.588461651e-10 | AD173: 4.588461651e-10 | AE173: 1253101612 | AF173: 0 | AG173: FALSE | AH173: 0 | AI173: 1.450521891e-06 | AJ173: 1.450521891e-06 | AK173: 396395.8578 | AL173: 0 | AM173: FALSE | AN173: 0 | AO173: 0.004586952972 | AP173: 0.004586952972 | AQ173: 125.3513766 | AR173: 0 | AS173: TRUE | AT173: 0.7582749298 | AU173: 14.50521891 | AV173: 0
B174: 9 | C174: 5 | D174: 435.5687233 | F174: 165 | G174: 12 | H174: 9 | I174: 1098.636142 | J174: 1 | K174: 0.4962925787 | L174: 0.4962925787 | M174: 2.406449736e+19 | N174: 0 | O174: FALSE | P174: 0 | Q174: 3.16144245e-17 | R174: 3.16144245e-17 | S174: 7593988381300382 | T174: 0 | U174: FALSE | V174: 0 | W174: 1.025531393e-13 | X174: 1.025531393e-13 | Y174: 2.403311055e+12 | Z174: 0 | AA174: FALSE | AB174: 0 | AC174: 2.956884579e-10 | AD174: 2.956884579e-10 | AE174: 832992689 | AF174: 0 | AG174: FALSE | AH174: 0 | AI174: 9.347415619e-07 | AJ174: 9.347415619e-07 | AK174: 263502.0562 | AL174: 0 | AM174: FALSE | AN174: 0 | AO174: 0.002955912359 | AP174: 0.002955912359 | AQ174: 83.32666659 | AR174: 0 | AS174: TRUE | AT174: 0.4962925787 | AU174: 9.347415619 | AV174: 0
B175: 9 | C175: 6 | D175: 533.1519535 | F175: 166 | G175: 9 | H175: 10 | I175: 1100.908929 | J175: 1 | K175: 0.3073182612 | L175: 0.3073182612 | M175: 1.526379523e+19 | N175: 0 | O175: FALSE | P175: 0 | Q175: 1.911176148e-17 | R175: 1.911176148e-17 | S175: 4816767286872651 | T175: 0 | U175: FALSE | V175: 0 | W175: 6.199610364e-14 | X175: 6.199610364e-14 | Y175: 1.524388699e+12 | Z175: 0 | AA175: FALSE | AB175: 0 | AC175: 1.787515468e-10 | AD175: 1.787515468e-10 | AE175: 528356343.6 | AF175: 0 | AG175: FALSE | AH175: 0 | AI175: 5.650761659e-07 | AJ175: 5.650761659e-07 | AK175: 167135.9002 | AL175: 0 | AM175: FALSE | AN175: 0 | AO175: 0.001786927736 | AP175: 0.001786927736 | AQ175: 52.85301235 | AR175: 0 | AS175: TRUE | AT175: 0.3073182612 | AU175: 5.650761659 | AV175: 0
B176: 9 | C176: 7 | D176: 648.4775892 | F176: 167 | G176: 16 | H176: 7 | I176: 1110.366658 | J176: 1 | K176: 0.07958920221 | L176: 0.07958920221 | M176: 4.366383681e+18 | N176: 0 | O176: FALSE | P176: 0 | Q176: 4.480979126e-18 | R176: 4.480979126e-18 | S176: 1.377891524e+15 | T176: 0 | U176: FALSE | V176: 0 | W176: 1.453572171e-14 | X176: 1.453572171e-14 | Y176: 4.360688701e+11 | Z176: 0 | AA176: FALSE | AB176: 0 | AC176: 4.191041996e-11 | AD176: 4.191041996e-11 | AE176: 151142391.6 | AF176: 0 | AG176: FALSE | AH176: 0 | AI176: 1.324888083e-07 | AJ176: 1.324888083e-07 | AK176: 47811.14109 | AL176: 0 | AM176: FALSE | AN176: 0 | AO176: 0.0004189663988 | AP176: 0.0004189663988 | AQ176: 15.11921034 | AR176: 0 | AS176: TRUE | AT176: 0.07958920221 | AU176: 1.324888083 | AV176: 0
B177: 9 | C177: 8 | D177: 781.5456304 | F177: 168 | G177: 4 | H177: 11 | I177: 1115.64539 | J177: 1 | K177: 0.8914050656 | L177: 0.8914050656 | M177: 5.167627337e+19 | N177: 0 | O177: FALSE | P177: 0 | Q177: 4.749474078e-17 | R177: 4.749474078e-17 | S177: 1.630738485e+16 | T177: 0 | U177: FALSE | V177: 0 | W177: 1.540668491e-13 | X177: 1.540668491e-13 | Y177: 5.160887312e+12 | Z177: 0 | AA177: FALSE | AB177: 0 | AC177: 4.44216426e-10 | AD177: 4.44216426e-10 | AE177: 1788774445 | AF177: 0 | AG177: FALSE | AH177: 0 | AI177: 1.404273805e-06 | AJ177: 1.404273805e-06 | AK177: 565846.1962 | AL177: 0 | AM177: FALSE | AN177: 0 | AO177: 0.004440703683 | AP177: 0.004440703683 | AQ177: 178.9362785 | AR177: 0 | AS177: TRUE | AT177: 0.8914050656 | AU177: 14.04273805 | AV177: 0
B178: 9 | C178: 9 | D178: 932.3560771 | F178: 169 | G178: 20 | H178: 3 | I178: 1135.587267 | J178: 1 | K178: 1.443257907e-05 | L178: 1.443257907e-05 | M178: 1.028064066e+15 | N178: 0 | O178: FALSE | P178: 0 | Q178: 6.258268971e-22 | R178: 6.258268971e-22 | S178: 3.244242528e+11 | T178: 0 | U178: FALSE | V178: 0 | W178: 2.030102207e-18 | X178: 2.030102207e-18 | Y178: 102672318.4 | Z178: 0 | AA178: FALSE | AB178: 0 | AC178: 5.853334136e-15 | AD178: 5.853334136e-15 | AE178: 35586.44248 | AF178: 0 | AG178: FALSE | AH178: 0 | AI178: 1.850378176e-11 | AJ178: 1.850378176e-11 | AK178: 11.25712253 | AL178: 0 | AM178: FALSE | AN178: 0 | AO178: 5.851409569e-08 | AP178: 5.851409569e-08 | AQ178: 0.00355981471 | AR178: 0 | AS178: TRUE | AT178: 1.443257907e-05 | AU178: 0.0001850378176 | AV178: 0
B179: 9 | C179: 10 | D179: 1100.908929 | F179: 170 | G179: 5 | H179: 11 | I179: 1139.399685 | J179: 1 | K179: 0.9372778581 | L179: 0.9372778581 | M179: 6.941738698e+19 | N179: 0 | O179: FALSE | P179: 0 | Q179: 3.908903657e-17 | R179: 3.908903657e-17 | S179: 2.190591486e+16 | T179: 0 | U179: FALSE | V179: 0 | W179: 1.267998224e-13 | X179: 1.267998224e-13 | Y179: 6.932684738e+12 | Z179: 0 | AA179: FALSE | AB179: 0 | AC179: 3.65598208e-10 | AD179: 3.65598208e-10 | AE179: 2402883176 | AF179: 0 | AG179: FALSE | AH179: 0 | AI179: 1.155742914e-06 | AJ179: 1.155742914e-06 | AK179: 760108.3014 | AL179: 0 | AM179: FALSE | AN179: 0 | AO179: 0.003654779998 | AP179: 0.003654779998 | AQ179: 240.3673501 | AR179: 0 | AS179: TRUE | AT179: 0.9372778581 | AU179: 11.55742914 | AV179: 0
B180: 9 | C180: 11 | D180: 1287.204187 | F180: 171 | G180: 10 | H180: 10 | I180: 1151.056885 | J180: 1 | K180: 7.306174076e-06 | L180: 7.306174076e-06 | M180: 609099429527558 | N180: 0 | O180: FALSE | P180: 0 | Q180: 2.706938266e-22 | R180: 2.706938266e-22 | S180: 1.922123667e+11 | T180: 0 | U180: FALSE | V180: 0 | W180: 8.780960637e-19 | X180: 8.780960637e-19 | Y180: 60830499.43 | Z180: 0 | AA180: FALSE | AB180: 0 | AC180: 2.531788619e-15 | AD180: 2.531788619e-15 | AE180: 21083.97961 | AF180: 0 | AG180: FALSE | AH180: 0 | AI180: 8.003586158e-12 | AJ180: 8.003586158e-12 | AK180: 6.669532705 | AL180: 0 | AM180: FALSE | AN180: 0 | AO180: 2.530956171e-08 | AP180: 2.530956171e-08 | AQ180: 0.002109091428 | AR180: 0 | AS180: TRUE | AT180: 7.306174076e-06 | AU180: 8.003586158e-05 | AV180: 0
B181: 9 | C181: 12 | D181: 1491.24185 | F181: 172 | G181: 15 | H181: 8 | I181: 1161.61435 | J181: 1 | K181: 0.5180343824 | L181: 0.5180343824 | M181: 4.802406607e+19 | N181: 0 | O181: FALSE | P181: 0 | Q181: 1.726015756e-17 | R181: 1.726015756e-17 | S181: 1.515486463e+16 | T181: 0 | U181: FALSE | V181: 0 | W181: 5.598973793e-14 | X181: 5.598973793e-14 | Y181: 4.796142931e+12 | Z181: 0 | AA181: FALSE | AB181: 0 | AC181: 1.614335688e-10 | AD181: 1.614335688e-10 | AE181: 1662353272 | AF181: 0 | AG181: FALSE | AH181: 0 | AI181: 5.103299172e-07 | AJ181: 5.103299172e-07 | AK181: 525855.1621 | AL181: 0 | AM181: FALSE | AN181: 0 | AO181: 0.001613804896 | AP181: 0.001613804896 | AQ181: 166.2900032 | AR181: 0 | AS181: TRUE | AT181: 0.5180343824 | AU181: 5.103299172 | AV181: 0
B182: 9 | C182: 13 | D182: 1713.021919 | F182: 173 | G182: 13 | H182: 9 | I182: 1164.620294 | J182: 1 | K182: 0.6830845839 | L182: 0.6830845839 | M182: 6.525661161e+19 | N182: 0 | O182: FALSE | P182: 0 | Q182: 2.208568948e-17 | R182: 2.208568948e-17 | S182: 2.059290676e+16 | T182: 0 | U182: FALSE | V182: 0 | W182: 7.164314473e-14 | X182: 7.164314473e-14 | Y182: 6.517149882e+12 | Z182: 0 | AA182: FALSE | AB182: 0 | AC182: 2.065665774e-10 | AD182: 2.065665774e-10 | AE182: 2258857917 | AF182: 0 | AG182: FALSE | AH182: 0 | AI182: 6.530060949e-07 | AJ182: 6.530060949e-07 | AK182: 714548.5354 | AL182: 0 | AM182: FALSE | AN182: 0 | AO182: 0.002064986586 | AP182: 0.002064986586 | AQ182: 225.9600871 | AR182: 0 | AS182: TRUE | AT182: 0.6830845839 | AU182: 6.530060949 | AV182: 0
B183: 9 | C183: 14 | D183: 1952.544393 | F183: 174 | G183: 6 | H183: 11 | I183: 1168.432712 | J183: 1 | K183: 0.8914029378 | L183: 0.8914029378 | M183: 8.845585044e+19 | N183: 0 | O183: FALSE | P183: 0 | Q183: 2.774649137e-17 | R183: 2.774649137e-17 | S183: 2.791384713e+16 | T183: 0 | U183: FALSE | V183: 0 | W183: 9.000606021e-14 | X183: 9.000606021e-14 | Y183: 8.834047938e+12 | Z183: 0 | AA183: FALSE | AB183: 0 | AC183: 2.595118329e-10 | AD183: 2.595118329e-10 | AE183: 3061899678 | AF183: 0 | AG183: FALSE | AH183: 0 | AI183: 8.203786436e-07 | AJ183: 8.203786436e-07 | AK183: 968576.1615 | AL183: 0 | AM183: FALSE | AN183: 0 | AO183: 0.002594265057 | AP183: 0.002594265057 | AQ183: 306.2906758 | AR183: 0 | AS183: TRUE | AT183: 0.8914029378 | AU183: 8.203786436 | AV183: 0
B184: 9 | C184: 15 | D184: 2209.809273 | F184: 175 | G184: 18 | H184: 6 | I184: 1174.517917 | J184: 1 | K184: 0.2163707118 | L184: 0.2163707118 | M184: 2.280763275e+19 | N184: 0 | O184: FALSE | P184: 0 | Q184: 6.340204259e-18 | R184: 6.340204259e-18 | S184: 7197361969716469 | T184: 0 | U184: FALSE | V184: 0 | W184: 2.056680964e-14 | X184: 2.056680964e-14 | Y184: 2.277788524e+12 | Z184: 0 | AA184: FALSE | AB184: 0 | AC184: 5.929967886e-11 | AD184: 5.929967886e-11 | AE184: 789486314.7 | AF184: 0 | AG184: FALSE | AH184: 0 | AI184: 1.874603927e-07 | AJ184: 1.874603927e-07 | AK184: 249739.6076 | AL184: 0 | AM184: FALSE | AN184: 0 | AO184: 0.0005928018121 | AP184: 0.0005928018121 | AQ184: 78.9745982 | AR184: 0 | AS184: TRUE | AT184: 0.2163707118 | AU184: 1.874603927 | AV184: 0
B185: 9 | C185: 16 | D185: 2484.816558 | F185: 176 | G185: 19 | H185: 5 | I185: 1174.591233 | J185: 1 | K185: 0.2296334012 | L185: 0.2296334012 | M185: 2.422322602e+19 | N185: 0 | O185: FALSE | P185: 0 | Q185: 6.723952679e-18 | R185: 6.723952679e-18 | S185: 7644078088977373 | T185: 0 | U185: FALSE | V185: 0 | W185: 2.181164031e-14 | X185: 2.181164031e-14 | Y185: 2.419163219e+12 | Z185: 0 | AA185: FALSE | AB185: 0 | AC185: 6.28888626e-11 | AD185: 6.28888626e-11 | AE185: 838487082.5 | AF185: 0 | AG185: FALSE | AH185: 0 | AI185: 1.988066564e-07 | AJ185: 1.988066564e-07 | AK185: 265240.1075 | AL185: 0 | AM185: FALSE | AN185: 0 | AO185: 0.0006286818484 | AP185: 0.0006286818484 | AQ185: 83.87628665 | AR185: 0 | AS185: TRUE | AT185: 0.2296334012 | AU185: 1.988066564 | AV185: 0
B186: 9 | C186: 17 | D186: 2777.566248 | F186: 177 | G186: 17 | H186: 7 | I186: 1197.465739 | J186: 1 | K186: 0.06770226345 | L186: 0.06770226345 | M186: 8.936958225e+18 | N186: 0 | O186: FALSE | P186: 0 | Q186: 1.584175025e-18 | R186: 1.584175025e-18 | S186: 2.820219177e+15 | T186: 0 | U186: FALSE | V186: 0 | W186: 5.138860649e-15 | X186: 5.138860649e-15 | Y186: 8.925301943e+11 | Z186: 0 | AA186: FALSE | AB186: 0 | AC186: 1.481672615e-11 | AD186: 1.481672615e-11 | AE186: 309352850.9 | AF186: 0 | AG186: FALSE | AH186: 0 | AI186: 4.683919637e-08 | AJ186: 4.683919637e-08 | AK186: 97858.13657 | AL186: 0 | AM186: FALSE | AN186: 0 | AO186: 0.0001481185443 | AP186: 0.0001481185443 | AQ186: 30.94545991 | AR186: 0 | AS186: TRUE | AT186: 0.06770226345 | AU186: 0.4683919637 | AV186: 0
B187: 9 | C187: 18 | D187: 3088.058344 | F187: 178 | G187: 20 | H187: 4 | I187: 1197.685686 | J187: 1 | K187: 1.415155759e-05 | L187: 1.415155759e-05 | M187: 1.8720531e+15 | N187: 0 | O187: FALSE | P187: 0 | Q187: 3.30427996e-22 | R187: 3.30427996e-22 | S187: 5.907602923e+11 | T187: 0 | U187: FALSE | V187: 0 | W187: 1.07186605e-18 | X187: 1.07186605e-18 | Y187: 186961142.2 | Z187: 0 | AA187: FALSE | AB187: 0 | AC187: 3.090479935e-15 | AD187: 3.090479935e-15 | AE187: 64801.12685 | AF187: 0 | AG187: FALSE | AH187: 0 | AI187: 9.769742324e-12 | AJ187: 9.769742324e-12 | AK187: 20.49865551 | AL187: 0 | AM187: FALSE | AN187: 0 | AO187: 3.08946379e-08 | AP187: 3.08946379e-08 | AQ187: 0.006482244038 | AR187: 0 | AS187: TRUE | AT187: 1.415155759e-05 | AU187: 9.769742324e-05 | AV187: 0
B188: 9 | C188: 19 | D188: 3416.292846 | F188: 179 | G188: 7 | H188: 11 | I188: 1202.744472 | J188: 1 | K188: 0.7582708825 | L188: 0.7582708825 | M188: 1.053467588e+20 | N188: 0 | O188: FALSE | P188: 0 | Q188: 1.685831226e-17 | R188: 1.685831226e-17 | S188: 3.324407947e+16 | T188: 0 | U188: FALSE | V188: 0 | W188: 5.468620331e-14 | X188: 5.468620331e-14 | Y188: 1.052093573e+13 | Z188: 0 | AA188: FALSE | AB188: 0 | AC188: 1.576751256e-10 | AD188: 1.576751256e-10 | AE188: 3646578552 | AF188: 0 | AG188: FALSE | AH188: 0 | AI188: 4.984485843e-07 | AJ188: 4.984485843e-07 | AK188: 1153528.668 | AL188: 0 | AM188: FALSE | AN188: 0 | AO188: 0.001576232823 | AP188: 0.001576232823 | AQ188: 364.7777936 | AR188: 0 | AS188: TRUE | AT188: 0.7582708825 | AU188: 4.984485843 | AV188: 0
B189: 9 | C189: 20 | D189: 3762.269753 | F189: 180 | G189: 11 | H189: 10 | I189: 1206.483574 | J189: 1 | K189: 0.3073321584 | L189: 0.3073321584 | M189: 4.426680452e+19 | N189: 0 | O189: FALSE | P189: 0 | Q189: 6.590590872e-18 | R189: 6.590590872e-18 | S189: 1.396919263e+16 | T189: 0 | U189: FALSE | V189: 0 | W189: 2.137903171e-14 | X189: 2.137903171e-14 | Y189: 4.420906828e+12 | Z189: 0 | AA189: FALSE | AB189: 0 | AC189: 6.164153491e-11 | AD189: 6.164153491e-11 | AE189: 1532295646 | AF189: 0 | AG189: FALSE | AH189: 0 | AI189: 1.948635569e-07 | AJ189: 1.948635569e-07 | AK189: 484713.8024 | AL189: 0 | AM189: FALSE | AN189: 0 | AO189: 0.0006162126726 | AP189: 0.0006162126726 | AQ189: 153.2799629 | AR189: 0 | AS189: TRUE | AT189: 0.3073321584 | AU189: 1.948635569 | AV189: 0
B190: 10 | C190: 1 | D190: 272.8078134 | F190: 181 | G190: 14 | H190: 9 | I190: 1235.883179 | J190: 1 | K190: 0.8030112006 | L190: 0.8030112006 | M190: 1.530245619e+20 | N190: 0 | O190: FALSE | P190: 0 | Q190: 1.30157313e-17 | R190: 1.30157313e-17 | S190: 4.828967453e+16 | T190: 0 | U190: FALSE | V190: 0 | W190: 4.222136339e-14 | X190: 4.222136339e-14 | Y190: 1.528249753e+13 | Z190: 0 | AA190: FALSE | AB190: 0 | AC190: 1.217356184e-10 | AD190: 1.217356184e-10 | AE190: 5296945929 | AF190: 0 | AG190: FALSE | AH190: 0 | AI190: 3.848352516e-07 | AJ190: 3.848352516e-07 | AK190: 1675592.31 | AL190: 0 | AM190: FALSE | AN190: 0 | AO190: 0.001216955919 | AP190: 0.001216955919 | AQ190: 529.868813 | AR190: 0 | AS190: TRUE | AT190: 0.8030112006 | AU190: 3.848352516 | AV190: 0
B191: 10 | C191: 2 | D191: 299.4214216 | F191: 182 | G191: 8 | H191: 11 | I191: 1242.334963 | J191: 1 | K191: 0.5509136458 | L191: 0.5509136458 | M191: 1.115358494e+20 | N191: 0 | O191: FALSE | P191: 0 | Q191: 8.405026629e-18 | R191: 8.405026629e-18 | S191: 3.51971592e+16 | T191: 0 | U191: FALSE | V191: 0 | W191: 2.726482865e-14 | X191: 2.726482865e-14 | Y191: 1.113903756e+13 | Z191: 0 | AA191: FALSE | AB191: 0 | AC191: 7.861188055e-11 | AD191: 7.861188055e-11 | AE191: 3860813951 | AF191: 0 | AG191: FALSE | AH191: 0 | AI191: 2.485108568e-07 | AJ191: 2.485108568e-07 | AK191: 1221298.132 | AL191: 0 | AM191: FALSE | AN191: 0 | AO191: 0.0007858603308 | AP191: 0.0007858603308 | AQ191: 386.2083798 | AR191: 0 | AS191: TRUE | AT191: 0.5509136458 | AU191: 2.485108568 | AV191: 0
B192: 10 | C192: 3 | D192: 343.7774354 | F192: 183 | G192: 16 | H192: 8 | I192: 1243.434699 | J192: 1 | K192: 0.4926780934 | L192: 0.4926780934 | M192: 1.007771488e+20 | N192: 0 | O192: FALSE | P192: 0 | Q192: 7.439623375e-18 | R192: 7.439623375e-18 | S192: 3.180205619e+16 | T192: 0 | U192: FALSE | V192: 0 | W192: 2.413318428e-14 | X192: 2.413318428e-14 | Y192: 1.006457073e+13 | Z192: 0 | AA192: FALSE | AB192: 0 | AC192: 6.958250223e-11 | AD192: 6.958250223e-11 | AE192: 3488401479 | AF192: 0 | AG192: FALSE | AH192: 0 | AI192: 2.199668438e-07 | AJ192: 2.199668438e-07 | AK192: 1103492.233 | AL192: 0 | AM192: FALSE | AN192: 0 | AO192: 0.000695596236 | AP192: 0.000695596236 | AQ192: 348.9548838 | AR192: 0 | AS192: TRUE | AT192: 0.4926780934 | AU192: 2.199668438 | AV192: 0
B193: 10 | C193: 4 | D193: 405.8758546 | F193: 184 | G193: 12 | H193: 10 | I193: 1267.188994 | J193: 1 | K193: 0.5845730581 | L193: 0.5845730581 | M193: 1.490016207e+20 | N193: 0 | O193: FALSE | P193: 0 | Q193: 7.083911264e-18 | R193: 7.083911264e-18 | S193: 4.70201625e+16 | T193: 0 | U193: FALSE | V193: 0 | W193: 2.29792998e-14 | X193: 2.29792998e-14 | Y193: 1.488072811e+13 | Z193: 0 | AA193: FALSE | AB193: 0 | AC193: 6.625554096e-11 | AD193: 6.625554096e-11 | AE193: 5157691799 | AF193: 0 | AG193: FALSE | AH193: 0 | AI193: 2.094495277e-07 | AJ193: 2.094495277e-07 | AK193: 1631541.804 | AL193: 0 | AM193: FALSE | AN193: 0 | AO193: 0.0006623375624 | AP193: 0.0006623375624 | AQ193: 515.9388198 | AR193: 0 | AS193: TRUE | AT193: 0.5845730581 | AU193: 2.094495277 | AV193: 0
B194: 10 | C194: 5 | D194: 485.7166793 | F194: 185 | G194: 19 | H194: 6 | I194: 1272.174463 | J194: 1 | K194: 0.1137499986 | L194: 0.1137499986 | M194: 3.034802783e+19 | N194: 0 | O194: FALSE | P194: 0 | Q194: 1.31691832e-18 | R194: 1.31691832e-18 | S194: 9576870330893930 | T194: 0 | U194: FALSE | V194: 0 | W194: 4.271914168e-15 | X194: 4.271914168e-15 | Y194: 3.030844555e+12 | Z194: 0 | AA194: FALSE | AB194: 0 | AC194: 1.231708479e-11 | AD194: 1.231708479e-11 | AE194: 1050497126 | AF194: 0 | AG194: FALSE | AH194: 0 | AI194: 3.893723536e-08 | AJ194: 3.893723536e-08 | AK194: 332305.621 | AL194: 0 | AM194: FALSE | AN194: 0 | AO194: 0.0001231303495 | AP194: 0.0001231303495 | AQ194: 105.0842641 | AR194: 0 | AS194: TRUE | AT194: 0.1137499986 | AU194: 0.3893723536 | AV194: 0
B195: 10 | C195: 6 | D195: 583.2999095 | F195: 186 | G195: 20 | H195: 5 | I195: 1277.526511 | J195: 1 | K195: 1.09188405e-05 | L195: 1.09188405e-05 | M195: 3058820826474821 | N195: 0 | O195: FALSE | P195: 0 | Q195: 1.203886428e-22 | R195: 1.203886428e-22 | S195: 9.65266362e+11 | T195: 0 | U195: FALSE | V195: 0 | W195: 3.905253203e-19 | X195: 3.905253203e-19 | Y195: 305483127.2 | Z195: 0 | AA195: FALSE | AB195: 0 | AC195: 1.125990199e-15 | AD195: 1.125990199e-15 | AE195: 105881.0973 | AF195: 0 | AG195: FALSE | AH195: 0 | AI195: 3.5595229e-12 | AJ195: 3.5595229e-12 | AK195: 33.49355549 | AL195: 0 | AM195: FALSE | AN195: 0 | AO195: 1.125619975e-08 | AP195: 1.125619975e-08 | AQ195: 0.01059159223 | AR195: 0 | AS195: TRUE | AT195: 1.09188405e-05 | AU195: 3.5595229e-05 | AV195: 0
B196: 10 | C196: 7 | D196: 698.6255452 | F196: 187 | G196: 1 | H196: 12 | I196: 1280.092562 | J196: 1 | K196: 0.2115342549 | L196: 0.2115342549 | M196: 6.065832054e+19 | N196: 0 | O196: FALSE | P196: 0 | Q196: 2.27854464e-18 | R196: 2.27854464e-18 | S196: 1.914183266e+16 | T196: 0 | U196: FALSE | V196: 0 | W196: 7.391306645e-15 | X196: 7.391306645e-15 | Y196: 6.05792052e+12 | Z196: 0 | AA196: FALSE | AB196: 0 | AC196: 2.131113761e-11 | AD196: 2.131113761e-11 | AE196: 2099688050 | AF196: 0 | AG196: FALSE | AH196: 0 | AI196: 6.736957607e-08 | AJ196: 6.736957607e-08 | AK196: 664198.0489 | AL196: 0 | AM196: FALSE | AN196: 0 | AO196: 0.0002130413054 | AP196: 0.0002130413054 | AQ196: 210.0378652 | AR196: 0 | AS196: TRUE | AT196: 0.2115342549 | AU196: 0.6736957607 | AV196: 0
B197: 10 | C197: 8 | D197: 831.6935864 | F197: 188 | G197: 9 | H197: 11 | I197: 1287.204187 | J197: 1 | K197: 0.2896288928 | L197: 0.2896288928 | M197: 8.857809348e+19 | N197: 0 | O197: FALSE | P197: 0 | Q197: 2.925121789e-18 | R197: 2.925121789e-18 | S197: 2.795242314e+16 | T197: 0 | U197: FALSE | V197: 0 | W197: 9.48872001e-15 | X197: 9.48872001e-15 | Y197: 8.846256298e+12 | Z197: 0 | AA197: FALSE | AB197: 0 | AC197: 2.735854803e-11 | AD197: 2.735854803e-11 | AE197: 3066131122 | AF197: 0 | AG197: FALSE | AH197: 0 | AI197: 8.648687913e-08 | AJ197: 8.648687913e-08 | AK197: 969914.7015 | AL197: 0 | AM197: FALSE | AN197: 0 | AO197: 0.0002734955258 | AP197: 0.0002734955258 | AQ197: 306.7139593 | AR197: 0 | AS197: TRUE | AT197: 0.2896288928 | AU197: 0.8648687913 | AV197: 0
B198: 10 | C198: 9 | D198: 982.5040331 | F198: 189 | G198: 2 | H198: 12 | I198: 1288.01066 | J198: 1 | K198: 0.402361967 | L198: 0.402361967 | M198: 1.239549861e+20 | N198: 0 | O198: FALSE | P198: 0 | Q198: 4.034190082e-18 | R198: 4.034190082e-18 | S198: 3.911624292e+16 | T198: 0 | U198: FALSE | V198: 0 | W198: 1.308639534e-14 | X198: 1.308639534e-14 | Y198: 1.237933143e+13 | Z198: 0 | AA198: FALSE | AB198: 0 | AC198: 3.773161976e-11 | AD198: 3.773161976e-11 | AE198: 4290702426 | AF198: 0 | AG198: FALSE | AH198: 0 | AI198: 1.192786267e-07 | AJ198: 1.192786267e-07 | AK198: 1357285.516 | AL198: 0 | AM198: FALSE | AN198: 0 | AO198: 0.0003771921366 | AP198: 0.0003771921366 | AQ198: 429.2113667 | AR198: 0 | AS198: TRUE | AT198: 0.402361967 | AU198: 1.192786267 | AV198: 0
B199: 10 | C199: 10 | D199: 1151.056885 | F199: 190 | G199: 18 | H199: 7 | I199: 1289.843553 | J199: 1 | K199: 0.04918812469 | L199: 0.04918812469 | M199: 1.540592538e+19 | N199: 0 | O199: FALSE | P199: 0 | Q199: 4.85086573e-19 | R199: 4.85086573e-19 | S199: 4861619033383313 | T199: 0 | U199: FALSE | V199: 0 | W199: 1.573558642e-15 | X199: 1.573558642e-15 | Y199: 1.538583177e+12 | Z199: 0 | AA199: FALSE | AB199: 0 | AC199: 4.536995469e-12 | AD199: 4.536995469e-12 | AE199: 533276179.6 | AF199: 0 | AG199: FALSE | AH199: 0 | AI199: 1.434252207e-08 | AJ199: 1.434252207e-08 | AK199: 168692.2007 | AL199: 0 | AM199: FALSE | AN199: 0 | AO199: 4.535503712e-05 | AP199: 4.535503712e-05 | AQ199: 53.34515777 | AR199: 0 | AS199: TRUE | AT199: 0.04918812469 | AU199: 0.1434252207 | AV199: 0
B200: 10 | C200: 11 | D200: 1337.352143 | F200: 191 | G200: 3 | H200: 12 | I200: 1301.20749 | J200: 1 | K200: 0.5538035036 | L200: 0.5538035036 | M200: 1.920770705e+20 | N200: 0 | O200: FALSE | P200: 0 | Q200: 4.931992277e-18 | R200: 4.931992277e-18 | S200: 6.061340155e+16 | T200: 0 | U200: FALSE | V200: 0 | W200: 1.599875054e-14 | X200: 1.599875054e-14 | Y200: 1.918265485e+13 | Z200: 0 | AA200: FALSE | AB200: 0 | AC200: 4.612872807e-11 | AD200: 4.612872807e-11 | AE200: 6648748696 | AF200: 0 | AG200: FALSE | AH200: 0 | AI200: 1.458238838e-07 | AJ200: 1.458238838e-07 | AK200: 2103210.48 | AL200: 0 | AM200: FALSE | AN200: 0 | AO200: 0.0004611356101 | AP200: 0.0004611356101 | AQ200: 665.0935514 | AR200: 0 | AS200: TRUE | AT200: 0.5538035036 | AU200: 1.458238838 | AV200: 0
B201: 10 | C201: 12 | D201: 1541.389806 | F201: 192 | G201: 15 | H201: 9 | I201: 1312.424796 | J201: 1 | K201: 0.8443331215 | L201: 0.8443331215 | M201: 3.235762861e+20 | N201: 0 | O201: FALSE | P201: 0 | Q201: 6.805146506e-18 | R201: 6.805146506e-18 | S201: 1.021103629e+17 | T201: 0 | U201: FALSE | V201: 0 | W201: 2.207502267e-14 | X201: 2.207502267e-14 | Y201: 3.231542525e+13 | Z201: 0 | AA201: FALSE | AB201: 0 | AC201: 6.364826524e-11 | AD201: 6.364826524e-11 | AE201: 1.120059466e+10 | AF201: 0 | AG201: FALSE | AH201: 0 | AI201: 2.012073089e-07 | AJ201: 2.012073089e-07 | AK201: 3543103.996 | AL201: 0 | AM201: FALSE | AN201: 0 | AO201: 0.0006362733779 | AP201: 0.0006362733779 | AQ201: 1120.427861 | AR201: 0 | AS201: TRUE | AT201: 0.8443331215 | AU201: 2.012073089 | AV201: 0
... 208 more rows

Sheet 計算表s-2 (hidden)
B1: ヤング率 | C1: 辺長ｘ | D1: 辺長ｙ | E1: 板厚 | F1: ポアソン比 | G1: 密度 | H1: 曲げ剛性 | I1: 面密度 | J1: 加振点ｘ | K1: 加振点ｙ | L1: 縮退重み | M1: 周波数重み
B2: ='Calculation Sheet'!D7 -> 29000000000 | C2: ='Calculation Sheet'!D9 -> 11 | D2: ='Calculation Sheet'!F9 -> 6 | E2: =('Calculation Sheet'!L9)/1000 -> 0.2 | F2: ='Calculation Sheet'!L7 -> 0.16 | G2: ='Calculation Sheet'!G7 -> 2400 | H2: =B2*E2^3/12/(1-F2^2) -> 19841269.84 | I2: =G2*E2 -> 480 | J2: ='Calculation Sheet'!D19 -> 2.2 | K2: ='Calculation Sheet'!F19 -> 1.75 | L2: 1 | M2: 0
B4: 周波数 | C4: 31.5Hz | D4: 63Hz | E4: 125Hz | F4: 250Hz | G4: 500Hz | H4: 1000Hz | I4: (2000Hz) | J4: (4000Hz)
B5: モード数１ | C5: =M8 -> 2.212899508 | D5: =S8 -> 3.678674835 | E5: =Y8 -> 6.625511683 | F5: =AE8 -> 15.22219534 | G5: =AK8 -> 28.46372311 | H5: =AQ8 -> 49.95353617 | I5: =H6*I7/H7 -> 65.72285453 | J5: =H6*J7/H7 -> 132.7285553
B6: モード数２ | C6: =C5*($D$7^2+$C$7^2)/2/$D$7^2 -> 1.435641416 | D6: =D5*($D$7^2+$C$7^2)/2/$D$7^2 -> 2.386578302 | E6: 4.298369149 | F6: 9.875556478 | G6: 18.46613442 | H6: 32.40787264 | I6: 42.63838083 | J6: 86.10902139
C7: =MIN(C2,D2) -> 6 | D7: =MAX(C2,D2) -> 11 | H7: =0.354*SQRT(I2/H2)*C2*D2*1000-0.139*SQRT(SQRT(I2/H2*1000^2))*(C2+D2) -> 109.6760758 | I7: =0.354*SQRT(I2/H2)*C2*D2*2000-0.139*SQRT(SQRT(I2/H2*2000^2))*(C2+D2) -> 222.4220287 | J7: =0.354*SQRT(I2/H2)*C2*D2*4000-0.139*SQRT(SQRT(I2/H2*4000^2))*(C2+D2) -> 449.185519
M8: =M9+O9+Q9 -> 2.212899508 | S8: =S9+U9+W9 -> 3.678674835 | Y8: =Y9+AA9+AC9 -> 6.625511683 | AE8: =AE9+AG9+AI9 -> 15.22219534 | AK8: =AK9+AM9+AO9 -> 28.46372311 | AQ8: =AQ9+AS9+AU9 -> 49.95353617
B9: m | C9: n | D9: fi | F9: No. | G9: m | H9: n | I9: fi | J9: 縮退ﾁｪｯｸ | K9: 周波数重み | L9: 重み | M9: =SUM(N10:N409) -> 0.1545548843 | O9: =SUM(P10:P409) -> 1.322281476 | Q9: =SUM(R10:R409) -> 0.7360631477 | S9: =SUM(T10:T409) -> 0.1130975833 | U9: =SUM(V10:V409) -> 3.096306123 | W9: =SUM(X10:X409) -> 0.469271128 | Y9: =SUM(Z10:Z409) -> 0.2169552437 | AA9: =SUM(AB10:AB409) -> 5.13000956 | AC9: =SUM(AD10:AD409) -> 1.278546879 | AE9: =SUM(AF10:AF409) -> 1.0071047 | AG9: =SUM(AH10:AH409) -> 12.00293649 | AI9: =SUM(AJ10:AJ409) -> 2.21215415 | AK9: =SUM(AL10:AL409) -> 2.366513345 | AM9: =SUM(AN10:AN409) -> 20.90095039 | AO9: =SUM(AP10:AP409) -> 5.196259378 | AQ9: =SUM(AR10:AR409) -> 3.357388698 | AS9: =SUM(AT10:AT409) -> 40.88209191 | AU9: =SUM(AV10:AV409) -> 5.71405556
B10: 1 | C10: 1 | D10: =3.1416/2*SQRT($H$2/$I$2)*(B10^2/$C$2^2+C10^2/$D$2^2) -> 11.51056885 | F10: 1 | G10: 1 | H10: 1 | I10: 11.51056885 | J10: =1 -> 1 | K10: =ABS(SIN(G10*3.1416*$J$2/$C$2)*SIN(H10*3.1416*$K$2/$D$2))*(1/F10^$M$2)+(1-1/F10^$M$2) -> 0.466323103 | L10: =$J10*$K10 -> 0.466323103 | M10: =10^(LOG10($I10/22.27)/LOG10(2)*70/20)*$L10 -> 0.00021686449 | N10: =IF($I10<22.27,M10,0) -> 0.00021686449 | O10: =AND($I10>22.27,$I10<44.45) -> FALSE | P10: =IF($O10=TRUE,$L10,0) -> 0 | Q10: =10^(LOG10(44.45/$I10)/LOG10(2)*70/20)*$L10 -> 3097219.126 | R10: =IF($I10>44.45,Q10,0) -> 0 | S10: =10^(LOG10($I10/44.548)/LOG10(2)*70/20)*$L10 -> 6.843552114e-08 | T10: =IF($I10<44.528,S10,0) -> 6.843552114e-08 | U10: =AND($I10>44.548,$I10<89.095) -> FALSE | V10: =IF($U10=TRUE,$L10,0) -> 0 | W10: =10^(LOG10(89.095/$I10)/LOG10(2)*70/20)*$L10 -> 1.00469817e+10 | X10: =IF($I10>89.095,W10,0) -> 0 | Y10: =10^(LOG10($I10/89.09)/LOG10(2)*70/20)*$L10 -> 2.165816383e-11 | Z10: =IF($I10<89.09,Y10,0) -> 2.165816383e-11 | AA10: =AND($I10>89.09,$I10<176.78) -> FALSE | AB10: =IF($AA10=TRUE,$L10,0) -> 0 | AC10: =10^(LOG10(176.78/$I10)/LOG10(2)*70/20)*$L10 -> 2.896816759e+13 | AD10: =IF($I10>176.78,AC10,0) -> 0 | AE10: =10^(LOG10($I10/176.78)/LOG10(2)*70/20)*$L10 -> 7.506765341e-15 | AF10: =IF($I10<176.78,AE10,0) -> 7.506765341e-15 | AG10: =AND($I10>176.78,$I10<353.55) -> FALSE | AH10: =IF($AG10=TRUE,$L10,0) -> 0 | AI10: =10^(LOG10(353.55/$I10)/LOG10(2)*70/20)*$L10 -> 9.157526949e+16 | AJ10: =IF($I10>353.55,AI10,0) -> 0 | AK10: =10^(LOG10($I10/353.55)/LOG10(2)*70/20)*$L10 -> 2.374628408e-18 | AL10: =IF($I10<353.55,AK10,0) -> 2.374628408e-18 | AM10: =AND($I10>353.55,$I10<707.1) -> FALSE | AN10: =IF($AM10=TRUE,$L10,0) -> 0 | AO10: =10^(LOG10(707.1/$I10)/LOG10(2)*70/20)*$L10 -> 2.895864289e+20 | AP10: =IF($I10>707.1,AO10,0) -> 0 | AQ10: =10^(LOG10($I10/707.1)/LOG10(2)*70/20)*$L10 -> 7.509234366e-22 | AR10: =IF($I10<707.1,AQ10,0) -> 7.509234366e-22 | AS10: =AND($I10>707.1,$I10<1414.2) -> FALSE | AT10: =IF($AS10=TRUE,$L10,0) -> 0 | AU10: =10^(LOG10(1414.2/$I10)/LOG10(2)*70/20)*$L10 -> 9.157526949e+23 | AV10: =IF($I10>1414.2,AU10,0) -> 0
B11: 1 | C11: 2 | D11: 38.12417709 | F11: 2 | G11: 2 | H11: 1 | I11: 19.42866717 | J11: =IF(ABS(I11-I10)>0.0001,1,$L$2) -> 1 | K11: 0.754525825 | L11: 0.754525825 | M11: 0.1543380198 | N11: 0.1543380198 | O11: FALSE | P11: 0 | Q11: 11393.622 | R11: 0 | S11: 4.870415999e-05 | T11: 4.870415999e-05 | U11: FALSE | V11: 0 | W11: 36959448.82 | X11: 0 | Y11: 1.541367201e-08 | Z11: 1.541367201e-08 | AA11: FALSE | AB11: 0 | AC11: 1.065640945e+11 | AD11: 0 | AE11: 5.342411281e-12 | AF11: 5.342411281e-12 | AG11: FALSE | AH11: 0 | AI11: 3.368744551e+14 | AJ11: 0 | AK11: 1.689974446e-15 | AL11: 1.689974446e-15 | AM11: FALSE | AN11: 0 | AO11: 1.065290564e+18 | AP11: 0 | AQ11: 5.344168436e-19 | AR11: 5.344168436e-19 | AS11: FALSE | AT11: 0 | AU11: 3.368744551e+21 | AV11: 0
B12: 1 | C12: 3 | D12: 82.48019082 | F12: 3 | G12: 3 | H12: 1 | I12: 32.6254977 | J12: 1 | K12: 0.7545240239 | L12: 0.7545240239 | M12: 63.94657738 | N12: 0 | O12: TRUE | P12: 0.7545240239 | Q12: 27.49890198 | R12: 0 | S12: 0.02017950171 | T12: 0.02017950171 | U12: FALSE | V12: 0 | W12: 89202.91197 | X12: 0 | Y12: 6.386317324e-06 | Z12: 6.386317324e-06 | AA12: FALSE | AB12: 0 | AC12: 257196139.1 | AD12: 0 | AE12: 2.213511076e-09 | AF12: 2.213511076e-09 | AG12: FALSE | AH12: 0 | AI12: 8.130581847e+11 | AJ12: 0 | AK12: 7.002038887e-13 | AL12: 7.002038887e-13 | AM12: FALSE | AN12: 0 | AO12: 2.571115734e+15 | AP12: 0 | AQ12: 2.214239115e-16 | AR12: 2.214239115e-16 | AS12: FALSE | AT12: 0 | AU12: 8.130581847e+18 | AV12: 0
B13: 1 | C13: 4 | D13: 144.57861 | F13: 4 | G13: 1 | H13: 2 | I13: 38.12417709 | J13: 1 | K13: 0.5677574517 | L13: 0.5677574517 | M13: 294.2924229 | N13: 0 | O13: TRUE | P13: 0.5677574517 | Q13: 3.383242429 | R13: 0 | S13: 0.09286930897 | T13: 0.09286930897 | U13: FALSE | V13: 0 | W13: 10974.80462 | X13: 0 | Y13: 2.939085836e-05 | Z13: 2.939085836e-05 | AA13: FALSE | AB13: 0 | AC13: 31643332.2 | AD13: 0 | AE13: 1.01869336e-08 | AF13: 1.01869336e-08 | AG13: FALSE | AH13: 0 | AI13: 1.000321013e+11 | AJ13: 0 | AK13: 3.222450792e-12 | AL13: 3.222450792e-12 | AM13: FALSE | AN13: 0 | AO13: 3.163292792e+14 | AP13: 0 | AQ13: 1.019028415e-15 | AR13: 1.019028415e-15 | AS13: FALSE | AT13: 0 | AU13: 1.000321013e+18 | AV13: 0
B14: 1 | C14: 5 | D14: 224.4194348 | F14: 5 | G14: 2 | H14: 2 | I14: 46.04227541 | J14: 1 | K14: 0.9186498736 | L14: 0.9186498736 | M14: 4272.199577 | N14: 0 | O14: FALSE | P14: 0 | Q14: 0.610147758 | R14: 0.610147758 | S14: 1.348170023 | T14: 0 | U14: TRUE | V14: 0.9186498736 | W14: 1979.241091 | X14: 0 | Y14: 0.0004266627439 | Z14: 0.0004266627439 | AA14: FALSE | AB14: 0 | AC14: 5706687.77 | AD14: 0 | AE14: 1.478822084e-07 | AF14: 1.478822084e-07 | AG14: FALSE | AH14: 0 | AI14: 1.804019771e+10 | AJ14: 0 | AK14: 4.677984155e-11 | AL14: 4.677984155e-11 | AM14: FALSE | AN14: 0 | AO14: 5.70481142e+13 | AP14: 0 | AQ14: 1.479308479e-14 | AR14: 1.479308479e-14 | AS14: FALSE | AT14: 0 | AU14: 1.804019771e+17 | AV14: 0
B15: 1 | C15: 6 | D15: 322.002665 | F15: 6 | G15: 4 | H15: 1 | I15: 51.10106045 | J15: 1 | K15: 0.4663183878 | L15: 0.4663183878 | M15: 7287.245376 | N15: 0 | O15: FALSE | P15: 0 | Q15: 0.09216970588 | R15: 0.09216970588 | S15: 2.299622381 | T15: 0 | U15: TRUE | V15: 0.4663183878 | W15: 298.9867074 | X15: 0 | Y15: 0.0007277740779 | Z15: 0.0007277740779 | AA15: FALSE | AB15: 0 | AC15: 862059.6018 | AD15: 0 | AE15: 2.522480329e-07 | AF15: 2.522480329e-07 | AG15: FALSE | AH15: 0 | AI15: 2725175492 | AJ15: 0 | AK15: 7.979406811e-11 | AL15: 7.979406811e-11 | AM15: FALSE | AN15: 0 | AO15: 8.617761579e+12 | AP15: 0 | AQ15: 2.52330999e-14 | AR15: 2.52330999e-14 | AS15: FALSE | AT15: 0 | AU15: 2.725175492e+16 | AV15: 0
B16: 1 | C16: 7 | D16: 437.3283007 | F16: 7 | G16: 3 | H16: 2 | I16: 59.23910594 | J16: 1 | K16: 0.9186476808 | L16: 0.9186476808 | M16: 80023.59623 | N16: 0 | O16: FALSE | P16: 0 | Q16: 0.03257364918 | R16: 0.03257364918 | S16: 25.25289646 | T16: 0 | U16: TRUE | V16: 0.9186476808 | W16: 105.6647412 | X16: 0 | Y16: 0.007991922318 | Z16: 0.007991922318 | AA16: FALSE | AB16: 0 | AC16: 304660.0482 | AD16: 0 | AE16: 2.77001716e-06 | AF16: 2.77001716e-06 | AG16: FALSE | AH16: 0 | AI16: 963102893.5 | AJ16: 0 | AK16: 8.762444461e-10 | AL16: 8.762444461e-10 | AM16: FALSE | AN16: 0 | AO16: 3.045598765e+12 | AP16: 0 | AQ16: 2.770928237e-13 | AR16: 2.770928237e-13 | AS16: FALSE | AT16: 0 | AU16: 9631028934865014 | AV16: 0
B17: 1 | C17: 8 | D17: 570.3963419 | F17: 8 | G17: 5 | H17: 1 | I17: 74.85535541 | J17: 1 | K17: 5.828308659e-06 | L17: 5.828308659e-06 | M17: 7.71003702 | N17: 0 | O17: FALSE | P17: 0 | Q17: 1.360865288e-08 | R17: 1.360865288e-08 | S17: 0.002433041949 | T17: 0 | U17: TRUE | V17: 5.828308659e-06 | W17: 4.414472497e-05 | X17: 0 | Y17: 7.699980985e-07 | Z17: 7.699980985e-07 | AA17: FALSE | AB17: 0 | AC17: 0.1272811904 | AD17: 0 | AE17: 2.668829677e-10 | AF17: 2.668829677e-10 | AG17: FALSE | AH17: 0 | AI17: 402.3661241 | AJ17: 0 | AK17: 8.4423563e-14 | AL17: 8.4423563e-14 | AM17: FALSE | AN17: 0 | AO17: 1272393.405 | AP17: 0 | AQ17: 2.669707473e-17 | AR17: 2.669707473e-17 | AS17: FALSE | AT17: 0 | AU17: 4023661241 | AV17: 0
B18: 1 | C18: 9 | D18: 721.2067886 | F18: 9 | G18: 4 | H18: 2 | I18: 77.71466869 | J18: 1 | K18: 0.5677517109 | L18: 0.5677517109 | M18: 1161334.336 | N18: 0 | O18: FALSE | P18: 0 | Q18: 0.0008573263062 | R18: 0.0008573263062 | S18: 366.4801024 | T18: 0 | U18: TRUE | V18: 0.5677517109 | W18: 2.781056606 | X18: 0 | Y18: 0.1159819633 | Z18: 0.1159819633 | AA18: FALSE | AB18: 0 | AC18: 8018.538924 | AD18: 0 | AE18: 4.01995935e-05 | AF18: 4.01995935e-05 | AG18: FALSE | AH18: 0 | AI18: 25348509.21 | AJ18: 0 | AK18: 1.271640878e-08 | AL18: 1.271640878e-08 | AM18: FALSE | AN18: 0 | AO18: 8.01590244e+10 | AP18: 0 | AQ18: 4.021281541e-12 | AR18: 4.021281541e-12 | AS18: FALSE | AT18: 0 | AU18: 2.534850921e+14 | AV18: 0
B19: 1 | C19: 10 | D19: 889.7596408 | F19: 10 | G19: 1 | H19: 3 | I19: 82.48019082 | J19: 1 | K19: 0.224932642 | L19: 0.224932642 | M19: 919102.3524 | N19: 0 | O19: FALSE | P19: 0 | Q19: 0.0001700308024 | R19: 0.0001700308024 | S19: 290.0394088 | T19: 0 | U19: TRUE | V19: 0.224932642 | W19: 0.5515581207 | X19: 0 | Y19: 0.0917903587 | Z19: 0.0917903587 | AA19: FALSE | AB19: 0 | AC19: 1590.291348 | AD19: 0 | AE19: 3.181473224e-05 | AF19: 3.181473224e-05 | AG19: FALSE | AH19: 0 | AI19: 5027289.294 | AJ19: 0 | AK19: 1.006401074e-08 | AL19: 1.006401074e-08 | AM19: FALSE | AN19: 0 | AO19: 1.589768462e+10 | AP19: 0 | AQ19: 3.182519632e-12 | AR19: 3.182519632e-12 | AS19: FALSE | AT19: 0 | AU19: 5.027289294e+13 | AV19: 0
B20: 1 | C20: 11 | D20: 1076.054898 | F20: 11 | G20: 2 | H20: 3 | I20: 90.39828914 | J20: 1 | K20: 0.3639482714 | L20: 0.3639482714 | M20: 4317360.843 | N20: 0 | O20: FALSE | P20: 0 | Q20: 9.476489525e-05 | R20: 9.476489525e-05 | S20: 1362.421479 | T20: 0 | U20: FALSE | V20: 0 | W20: 0.3074051689 | X20: 0.3074051689 | Y20: 0.4311729803 | Z20: 0 | AA20: TRUE | AB20: 0.3639482714 | AC20: 886.332305 | AD20: 0 | AE20: 0.0001494454659 | AF20: 0.0001494454659 | AG20: FALSE | AH20: 0 | AI20: 2801907.282 | AJ20: 0 | AK20: 4.727434955e-08 | AL20: 4.727434955e-08 | AM20: FALSE | AN20: 0 | AO20: 8860408803 | AP20: 0 | AQ20: 1.494946195e-11 | AR20: 1.494946195e-11 | AS20: FALSE | AT20: 0 | AU20: 2.801907282e+13 | AV20: 0
B21: 1 | C21: 12 | D21: 1280.092562 | F21: 12 | G21: 5 | H21: 2 | I21: 101.4689636 | J21: 1 | K21: 7.096079201e-06 | L21: 7.096079201e-06 | M21: 322.5121963 | N21: 0 | O21: FALSE | P21: 0 | Q21: 4.822555992e-10 | R21: 4.822555992e-10 | S21: 0.10177457 | T21: 0 | U21: FALSE | V21: 0 | W21: 1.564375326e-06 | X21: 1.564375326e-06 | Y21: 3.220915506e-05 | Z21: 0 | AA21: TRUE | AB21: 7.096079201e-06 | AC21: 0.004510517483 | AD21: 0 | AE21: 1.116376119e-08 | AF21: 1.116376119e-08 | AG21: FALSE | AH21: 0 | AI21: 14.25881885 | AJ21: 0 | AK21: 3.531452398e-12 | AL21: 3.531452398e-12 | AM21: FALSE | AN21: 0 | AO21: 45090.34432 | AP21: 0 | AQ21: 1.116743302e-15 | AR21: 1.116743302e-15 | AS21: FALSE | AT21: 0 | AU21: 142588188.5 | AV21: 0
B22: 1 | C22: 13 | D22: 1501.87263 | F22: 13 | G22: 3 | H22: 3 | I22: 103.5951197 | J22: 1 | K22: 0.3639474026 | L22: 0.3639474026 | M22: 21051238.06 | N22: 0 | O22: FALSE | P22: 0 | Q22: 1.943507046e-05 | R22: 1.943507046e-05 | S22: 6643.099785 | T22: 0 | U22: FALSE | V22: 0 | W22: 0.0630448765 | X22: 0.0630448765 | Y22: 2.102378138 | Z22: 0 | AA22: TRUE | AB22: 0.3639474026 | AC22: 181.7754428 | AD22: 0 | AE22: 0.0007286887042 | AF22: 0.0007286887042 | AG22: FALSE | AH22: 0 | AI22: 574635.4206 | AJ22: 0 | AK22: 2.305073915e-07 | AL22: 2.305073915e-07 | AM22: FALSE | AN22: 0 | AO22: 1817156753 | AP22: 0 | AQ22: 7.289283747e-11 | AR22: 7.289283747e-11 | AS22: FALSE | AT22: 0 | AU22: 5.746354206e+12 | AV22: 0
B23: 1 | C23: 14 | D23: 1741.395104 | F23: 14 | G23: 6 | H23: 1 | I23: 103.8883826 | J23: 1 | K23: 0.4663278182 | L23: 0.4663278182 | M23: 27874325.4 | N23: 0 | O23: FALSE | P23: 0 | Q23: 2.409710082e-05 | R23: 2.409710082e-05 | S23: 8796.248686 | T23: 0 | U23: FALSE | V23: 0 | W23: 0.07816790518 | X23: 0.07816790518 | Y23: 2.783796952 | Z23: 0 | AA23: TRUE | AB23: 0.4663278182 | AC23: 225.3792278 | AD23: 0 | AE23: 0.0009648699048 | AF23: 0.0009648699048 | AG23: FALSE | AH23: 0 | AI23: 712477.3584 | AJ23: 0 | AK23: 3.052190101e-07 | AL23: 3.052190101e-07 | AM23: FALSE | AN23: 0 | AO23: 2253051234 | AP23: 0 | AQ23: 9.65187257e-11 | AR23: 9.65187257e-11 | AS23: FALSE | AT23: 0 | AU23: 7.124773584e+12 | AV23: 0
B24: 1 | C24: 15 | D24: 1998.659984 | F24: 15 | G24: 4 | H24: 3 | I24: 122.0706824 | J24: 1 | K24: 0.2249303676 | L24: 0.2249303676 | M24: 87689905.44 | N24: 0 | O24: FALSE | P24: 0 | Q24: 1.782104215e-06 | R24: 1.782104215e-06 | S24: 27672.1393 | T24: 0 | U24: FALSE | V24: 0 | W24: 0.005780917563 | X24: 0.005780917563 | Y24: 8.757553339 | Z24: 0 | AA24: TRUE | AB24: 0.2249303676 | AC24: 16.66795001 | AD24: 0 | AE24: 0.003035386489 | AF24: 0.003035386489 | AG24: FALSE | AH24: 0 | AI24: 52691.35542 | AJ24: 0 | AK24: 9.601891971e-07 | AL24: 9.601891971e-07 | AM24: FALSE | AN24: 0 | AO24: 166624696.1 | AP24: 0 | AQ24: 3.036384848e-10 | AR24: 3.036384848e-10 | AS24: FALSE | AT24: 0 | AU24: 5.269135542e+11 | AV24: 0
B25: 1 | C25: 16 | D25: 2273.667269 | F25: 16 | G25: 6 | H25: 2 | I25: 130.5019908 | J25: 1 | K25: 0.5677631926 | L25: 0.5677631926 | M25: 481184319.8 | N25: 0 | O25: FALSE | P25: 0 | Q25: 2.069233568e-06 | R25: 2.069233568e-06 | S25: 151846.435 | T25: 0 | U25: FALSE | V25: 0 | W25: 0.006712328366 | X25: 0.006712328366 | Y25: 48.05567215 | Z25: 0 | AA25: TRUE | AB25: 0.5677631926 | AC25: 19.35345945 | AD25: 0 | AE25: 0.01665619749 | AF25: 0.01665619749 | AG25: FALSE | AH25: 0 | AI25: 61180.88968 | AJ25: 0 | AK25: 5.268884525e-06 | AL25: 5.268884525e-06 | AM25: FALSE | AN25: 0 | AO25: 193470960.7 | AP25: 0 | AQ25: 1.666167583e-09 | AR25: 1.666167583e-09 | AS25: FALSE | AT25: 0 | AU25: 6.118088968e+11 | AV25: 0
B26: 1 | C26: 17 | D26: 2566.41696 | F26: 17 | G26: 7 | H26: 1 | I26: 138.200142 | J26: 1 | K26: 0.754527626 | L26: 0.754527626 | M26: 1245159155 | N26: 0 | O26: FALSE | P26: 0 | Q26: 1.412251154e-06 | R26: 1.412251154e-06 | S26: 392932.5435 | T26: 0 | U26: FALSE | V26: 0 | W26: 0.004581161657 | X26: 0.004581161657 | Y26: 124.3535121 | Z26: 0 | AA26: TRUE | AB26: 0.754527626 | AC26: 13.208729 | AD26: 0 | AE26: 0.04310118999 | AF26: 0.04310118999 | AG26: FALSE | AH26: 0 | AI26: 41755.93485 | AJ26: 0 | AK26: 1.363427595e-05 | AL26: 1.363427595e-05 | AM26: FALSE | AN26: 0 | AO26: 132043859.9 | AP26: 0 | AQ26: 4.311536626e-09 | AR26: 4.311536626e-09 | AS26: FALSE | AT26: 0 | AU26: 4.175593485e+11 | AV26: 0
B27: 1 | C27: 18 | D27: 2876.909056 | F27: 18 | G27: 1 | H27: 4 | I27: 144.57861 | J27: 1 | K27: 0.2938975833 | L27: 0.2938975833 | M27: 819555434.1 | N27: 0 | O27: FALSE | P27: 0 | Q27: 3.255368891e-07 | R27: 3.255368891e-07 | S27: 258625.5741 | T27: 0 | U27: FALSE | V27: 0 | W27: 0.001055999926 | X27: 0.001055999926 | Y27: 81.84865056 | Z27: 0 | AA27: TRUE | AB27: 0.2938975833 | AC27: 3.044733607 | AD27: 0 | AE27: 0.0283689152 | AF27: 0.0283689152 | AG27: FALSE | AH27: 0 | AI27: 9625.127297 | AJ27: 0 | AK27: 8.973989313e-06 | AL27: 8.973989313e-06 | AM27: FALSE | AN27: 0 | AO27: 30437325.03 | AP27: 0 | AQ27: 2.837824593e-09 | AR27: 2.837824593e-09 | AS27: FALSE | AT27: 0 | AU27: 9.625127297e+10 | AV27: 0
B28: 1 | C28: 19 | D28: 3205.143558 | F28: 19 | G28: 5 | H28: 3 | I28: 145.8249774 | J28: 1 | K28: 2.811305845e-06 | L28: 2.811305845e-06 | M28: 8662.304584 | N28: 0 | O28: FALSE | P28: 0 | Q28: 2.818183409e-12 | R28: 2.818183409e-12 | S28: 2.733547242 | T28: 0 | U28: FALSE | V28: 0 | W28: 9.141825617e-09 | X28: 9.141825617e-09 | Y28: 0.0008651006527 | Z28: 0 | AA28: TRUE | AB28: 2.811305845e-06 | AC28: 2.63583576e-05 | AD28: 0 | AE28: 2.998457139e-07 | AF28: 2.998457139e-07 | AG28: FALSE | AH28: 0 | AI28: 0.08332503924 | AJ28: 0 | AK28: 9.485072703e-11 | AL28: 9.485072703e-11 | AM28: FALSE | AN28: 0 | AO28: 263.4969101 | AP28: 0 | AQ28: 2.999443351e-14 | AR28: 2.999443351e-14 | AS28: FALSE | AT28: 0 | AU28: 833250.3924 | AV28: 0
B29: 1 | C29: 20 | D29: 3551.120465 | F29: 20 | G29: 2 | H29: 4 | I29: 152.4967084 | J29: 1 | K29: 0.4755357714 | L29: 0.4755357714 | M29: 2464900706 | N29: 0 | O29: FALSE | P29: 0 | Q29: 2.833697371e-07 | R29: 2.833697371e-07 | S29: 777844.1014 | T29: 0 | U29: FALSE | V29: 0 | W29: 0.0009192150921 | X29: 0.0009192150921 | Y29: 246.1685789 | Z29: 0 | AA29: TRUE | AB29: 0.4755357714 | AC29: 2.650345908 | AD29: 0 | AE29: 0.08532254951 | AF29: 0.08532254951 | AG29: FALSE | AH29: 0 | AI29: 8378.373952 | AJ29: 0 | AK29: 2.699023357e-05 | AL29: 2.699023357e-05 | AM29: FALSE | AN29: 0 | AO29: 26494744.78 | AP29: 0 | AQ29: 8.535061266e-09 | AR29: 8.535061266e-09 | AS29: FALSE | AT29: 0 | AU29: 8.378373952e+10 | AV29: 0
B30: 2 | C30: 1 | D30: 19.42866717 | F30: 21 | G30: 7 | H30: 2 | I30: 164.8137502 | J30: 1 | K30: 0.9186520664 | L30: 0.9186520664 | M30: 1.174821996e+10 | N30: 0 | O30: FALSE | P30: 0 | Q30: 2.218791824e-07 | R30: 2.218791824e-07 | S30: 3707363.778 | T30: 0 | U30: FALSE | V30: 0 | W30: 0.000719747617 | X30: 0.000719747617 | Y30: 1173.289701 | Z30: 0 | AA30: TRUE | AB30: 0.9186520664 | AC30: 2.075227188 | AD30: 0 | AE30: 0.4066646889 | AF30: 0.4066646889 | AG30: FALSE | AH30: 0 | AI30: 6560.286856 | AJ30: 0 | AK30: 0.0001286409631 | AL30: 0.0001286409631 | AM30: FALSE | AN30: 0 | AO30: 20745448.57 | AP30: 0 | AQ30: 4.067984437e-08 | AR30: 4.067984437e-08 | AS30: FALSE | AT30: 0 | AU30: 6.560286856e+10 | AV30: 0
B31: 2 | C31: 2 | D31: 46.04227541 | F31: 22 | G31: 3 | H31: 4 | I31: 165.6935389 | J31: 1 | K31: 0.4755346363 | L31: 0.4755346363 | M31: 6469723903 | N31: 0 | O31: FALSE | P31: 0 | Q31: 1.079605468e-07 | R31: 1.079605468e-07 | S31: 2041638.661 | T31: 0 | U31: FALSE | V31: 0 | W31: 0.0003502101707 | X31: 0.0003502101707 | Y31: 646.1285582 | Z31: 0 | AA31: TRUE | AB31: 0.4755346363 | AC31: 1.009750711 | AD31: 0 | AE31: 0.2239495233 | AF31: 0.2239495233 | AG31: FALSE | AH31: 0 | AI31: 3192.062225 | AJ31: 0 | AK31: 7.084235031e-05 | AL31: 7.084235031e-05 | AM31: FALSE | AN31: 0 | AO31: 10094187.06 | AP31: 0 | AQ31: 2.240231818e-08 | AR31: 2.240231818e-08 | AS31: FALSE | AT31: 0 | AU31: 3.192062225e+10 | AV31: 0
B32: 2 | C32: 3 | D32: 90.39828914 | F32: 23 | G32: 6 | H32: 3 | I32: 174.8580045 | J32: 1 | K32: 0.2249349164 | L32: 0.2249349164 | M32: 5722597433 | N32: 0 | O32: FALSE | P32: 0 | Q32: 2.730907995e-08 | R32: 2.730907995e-08 | S32: 1805869.359 | T32: 0 | U32: FALSE | V32: 0 | W32: 8.858715363e-05 | X32: 8.858715363e-05 | Y32: 571.5133573 | Z32: 0 | AA32: TRUE | AB32: 0.2249349164 | AC32: 0.2554207411 | AD32: 0 | AE32: 0.198087737 | AF32: 0.198087737 | AG32: FALSE | AH32: 0 | AI32: 807.4457293 | AJ32: 0 | AK32: 6.266144555e-05 | AL32: 6.266144555e-05 | AM32: FALSE | AN32: 0 | AO32: 2553367.592 | AP32: 0 | AQ32: 1.981528894e-08 | AR32: 1.981528894e-08 | AS32: FALSE | AT32: 0 | AU32: 8074457293 | AV32: 0
B33: 2 | C33: 4 | D33: 152.4967084 | F33: 24 | G33: 8 | H33: 1 | I33: 177.7906336 | J33: 1 | K33: 0.7545222228 | L33: 0.7545222228 | M33: 2.329123618e+10 | N33: 0 | O33: FALSE | P33: 0 | Q33: 7.549845163e-08 | R33: 7.549845163e-08 | S33: 7349971.8 | T33: 0 | U33: FALSE | V33: 0 | W33: 0.0002449072963 | X33: 0.0002449072963 | Y33: 2326.085793 | Z33: 0 | AA33: FALSE | AB33: 0 | AC33: 0.7061340224 | AD33: 0.7061340224 | AE33: 0.8062262498 | AF33: 0 | AG33: TRUE | AH33: 0.7545222228 | AI33: 2232.25764 | AJ33: 0 | AK33: 0.000255034981 | AL33: 0.000255034981 | AM33: FALSE | AN33: 0 | AO33: 7059018.465 | AP33: 0 | AQ33: 8.064914231e-08 | AR33: 8.064914231e-08 | AS33: FALSE | AT33: 0 | AU33: 2.23225764e+10 | AV33: 0
B34: 2 | C34: 5 | D34: 232.3375331 | F34: 25 | G34: 4 | H34: 4 | I34: 184.1691016 | J34: 1 | K34: 0.2938946116 | L34: 0.2938946116 | M34: 1.366762759e+10 | N34: 0 | O34: FALSE | P34: 0 | Q34: 1.951985664e-08 | R34: 1.951985664e-08 | S34: 4313067.651 | T34: 0 | U34: FALSE | V34: 0 | W34: 6.3319912e-05 | X34: 6.3319912e-05 | Y34: 1364.980119 | Z34: 0 | AA34: FALSE | AB34: 0 | AC34: 0.1825684446 | AD34: 0.1825684446 | AE34: 0.4731049931 | AF34: 0 | AG34: TRUE | AH34: 0.2938946116 | AI34: 577.1422879 | AJ34: 0 | AK34: 0.0001496581424 | AL34: 0.0001496581424 | AM34: FALSE | AN34: 0 | AO34: 1825084.164 | AP34: 0 | AQ34: 4.732606005e-08 | AR34: 4.732606005e-08 | AS34: FALSE | AT34: 0 | AU34: 5771422879 | AV34: 0
B35: 2 | C35: 6 | D35: 329.9207633 | F35: 26 | G35: 8 | H35: 2 | I35: 204.4042418 | J35: 1 | K35: 0.9186454879 | L35: 0.9186454879 | M35: 1.435584626e+11 | N35: 0 | O35: FALSE | P35: 0 | Q35: 1.815739774e-08 | R35: 1.815739774e-08 | S35: 45302475.3 | T35: 0 | U35: FALSE | V35: 0 | W35: 5.890027004e-05 | X35: 5.890027004e-05 | Y35: 14337.12224 | Z35: 0 | AA35: FALSE | AB35: 0 | AC35: 0.1698254206 | AD35: 0.1698254206 | AE35: 4.969276857 | AF35: 0 | AG35: TRUE | AH35: 0.9186454879 | AI35: 536.8585574 | AJ35: 0 | AK35: 0.001571940171 | AL35: 0.001571940171 | AM35: FALSE | AN35: 0 | AO35: 1697695.823 | AP35: 0 | AQ35: 4.970911286e-07 | AR35: 4.970911286e-07 | AS35: FALSE | AT35: 0 | AU35: 5368585574 | AV35: 0
B36: 2 | C36: 7 | D36: 445.246399 | F36: 27 | G36: 5 | H36: 4 | I36: 207.9233966 | J36: 1 | K36: 3.673259632e-06 | L36: 3.673259632e-06 | M36: 700046.4835 | N36: 0 | O36: FALSE | P36: 0 | Q36: 5.95337017e-14 | R36: 5.95337017e-14 | S36: 220.9123583 | T36: 0 | U36: FALSE | V36: 0 | W36: 1.931196946e-10 | X36: 1.931196946e-10 | Y36: 0.0699133428 | Z36: 0 | AA36: FALSE | AB36: 0 | AC36: 5.568163497e-07 | AD36: 5.568163497e-07 | AE36: 2.423211231e-05 | AF36: 0 | AG36: TRUE | AH36: 3.673259632e-06 | AI36: 0.001760228953 | AJ36: 0 | AK36: 7.665387111e-09 | AL36: 7.665387111e-09 | AM36: FALSE | AN36: 0 | AO36: 5.566332693 | AP36: 0 | AQ36: 2.424008242e-12 | AR36: 2.424008242e-12 | AS36: FALSE | AT36: 0 | AU36: 17602.28953 | AV36: 0
B37: 2 | C37: 8 | D37: 578.3144402 | F37: 28 | G37: 7 | H37: 3 | I37: 209.1697639 | J37: 1 | K37: 0.3639491401 | L37: 0.3639491401 | M37: 7.43521789e+10 | N37: 0 | O37: FALSE | P37: 0 | Q37: 5.502679374e-09 | R37: 5.502679374e-09 | S37: 23463177.91 | T37: 0 | U37: FALSE | V37: 0 | W37: 1.784998631e-05 | X37: 1.784998631e-05 | Y37: 7425.520296 | Z37: 0 | AA37: FALSE | AB37: 0 | AC37: 0.05146634184 | AD37: 0.05146634184 | AE37: 2.573701022 | AF37: 0 | AG37: TRUE | AH37: 0.3639491401 | AI37: 162.6973508 | AJ37: 0 | AK37: 0.0008141434137 | AL37: 0.0008141434137 | AM37: FALSE | AN37: 0 | AO37: 514494.1978 | AP37: 0 | AQ37: 2.574547529e-07 | AR37: 2.574547529e-07 | AS37: FALSE | AT37: 0 | AU37: 1626973508 | AV37: 0
B38: 2 | C38: 9 | D38: 729.1248869 | F38: 29 | G38: 9 | H38: 1 | I38: 222.6598574 | J38: 1 | K38: 0.4663136726 | L38: 0.4663136726 | M38: 1.970226778e+11 | N38: 0 | O38: FALSE | P38: 0 | Q38: 3.408996808e-09 | R38: 3.408996808e-09 | S38: 62174077.6 | T38: 0 | U38: FALSE | V38: 0 | W38: 1.105834853e-05 | X38: 1.105834853e-05 | Y38: 19676.57054 | Z38: 0 | AA38: FALSE | AB38: 0 | AC38: 0.03188421188 | AD38: 0.03188421188 | AE38: 6.819940918 | AF38: 0 | AG38: TRUE | AH38: 0.4663136726 | AI38: 100.7935793 | AJ38: 0 | AK38: 0.002157364019 | AL38: 0.002157364019 | AM38: FALSE | AN38: 0 | AO38: 318737.284 | AP38: 0 | AQ38: 6.822184042e-07 | AR38: 6.822184042e-07 | AS38: FALSE | AT38: 0 | AU38: 1007935793 | AV38: 0
B39: 2 | C39: 10 | D39: 897.6777391 | F39: 30 | G39: 1 | H39: 5 | I39: 224.4194348 | J39: 1 | K39: 0.5827586684 | L39: 0.5827586684 | M39: 2.698194717e+11 | N39: 0 | O39: FALSE | P39: 0 | Q39: 3.887681789e-09 | R39: 3.887681789e-09 | S39: 85146425.57 | T39: 0 | U39: FALSE | V39: 0 | W39: 1.261114122e-05 | X39: 1.261114122e-05 | Y39: 26946.75519 | Z39: 0 | AA39: FALSE | AB39: 0 | AC39: 0.03636133351 | AD39: 0.03636133351 | AE39: 9.339802279 | AF39: 0 | AG39: TRUE | AH39: 0.5827586684 | AI39: 114.9468259 | AJ39: 0 | AK39: 0.002954476237 | AL39: 0.002954476237 | AM39: FALSE | AN39: 0 | AO39: 363493.7796 | AP39: 0 | AQ39: 9.342874203e-07 | AR39: 9.342874203e-07 | AS39: FALSE | AT39: 0 | AU39: 1149468259 | AV39: 0
B40: 2 | C40: 11 | D40: 1083.972997 | F40: 31 | G40: 2 | H40: 5 | I40: 232.3375331 | J40: 1 | K40: 0.9429223261 | L40: 0.9429223261 | M40: 6.533510843e+11 | N40: 0 | O40: FALSE | P40: 0 | Q40: 4.203313038e-09 | R40: 4.203313038e-09 | S40: 206176778.6 | T40: 0 | U40: FALSE | V40: 0 | W40: 1.363500852e-05 | X40: 1.363500852e-05 | Y40: 65249.89326 | Z40: 0 | AA40: FALSE | AB40: 0 | AC40: 0.03931342006 | AD40: 0.03931342006 | AE40: 22.61575085 | AF40: 0 | AG40: TRUE | AH40: 0.9429223261 | AI40: 124.2790738 | AJ40: 0 | AK40: 0.00715408062 | AL40: 0.00715408062 | AM40: FALSE | AN40: 0 | AO40: 393004.9386 | AP40: 0 | AQ40: 2.262318932e-06 | AR40: 2.262318932e-06 | AS40: FALSE | AT40: 0 | AU40: 1242790738 | AV40: 0
B41: 2 | C41: 12 | D41: 1288.01066 | F41: 32 | G41: 6 | H41: 4 | I41: 236.9564238 | J41: 1 | K41: 0.2939005551 | L41: 0.2939005551 | M41: 2.56017403e+11 | N41: 0 | O41: FALSE | P41: 0 | Q41: 1.042120257e-09 | R41: 1.042120257e-09 | S41: 80790932.6 | T41: 0 | U41: FALSE | V41: 0 | W41: 3.380504488e-06 | X41: 3.380504488e-06 | Y41: 25568.3485 | Z41: 0 | AA41: FALSE | AB41: 0 | AC41: 0.009746909414 | AD41: 0.009746909414 | AE41: 8.862043607 | AF41: 0 | AG41: TRUE | AH41: 0.2939005551 | AI41: 30.81229952 | AJ41: 0 | AK41: 0.002803345988 | AL41: 0.002803345988 | AM41: FALSE | AN41: 0 | AO41: 97437.04644 | AP41: 0 | AQ41: 8.864958393e-07 | AR41: 8.864958393e-07 | AS41: FALSE | AT41: 0 | AU41: 308122995.2 | AV41: 0
B42: 2 | C42: 13 | D42: 1509.790729 | F42: 33 | G42: 3 | H42: 5 | I42: 245.5343636 | J42: 1 | K42: 0.9429200754 | L42: 0.9429200754 | M42: 1.241952788e+12 | N42: 0 | O42: FALSE | P42: 0 | Q42: 2.211216117e-09 | R42: 2.211216117e-09 | S42: 391920716.3 | T42: 0 | U42: FALSE | V42: 0 | W42: 7.172901548e-06 | X42: 7.172901548e-06 | Y42: 124033.2936 | Z42: 0 | AA42: FALSE | AB42: 0 | AC42: 0.0206814166 | AD42: 0.0206814166 | AE42: 42.99020158 | AF42: 0 | AG42: TRUE | AH42: 0.9429200754 | AI42: 65.37887814 | AJ42: 0 | AK42: 0.01359916679 | AL42: 0.01359916679 | AM42: FALSE | AN42: 0 | AO42: 206746.1658 | AP42: 0 | AQ42: 4.300434135e-06 | AR42: 4.300434135e-06 | AS42: FALSE | AT42: 0 | AU42: 653788781.4 | AV42: 0
B43: 2 | C43: 14 | D43: 1749.313203 | F43: 34 | G43: 8 | H43: 3 | I43: 248.7602555 | J43: 1 | K43: 0.3639465339 | L43: 0.3639465339 | M43: 5.579258466e+11 | N43: 0 | O43: FALSE | P43: 0 | Q43: 7.333059477e-10 | R43: 7.333059477e-10 | S43: 176063614.9 | T43: 0 | U43: FALSE | V43: 0 | W43: 2.378750466e-06 | X43: 2.378750466e-06 | Y43: 55719.81559 | Z43: 0 | AA43: FALSE | AB43: 0 | AC43: 0.006858581431 | AD43: 0.006858581431 | AE43: 19.3126058 | AF43: 0 | AG43: TRUE | AH43: 0.3639465339 | AI43: 21.68160761 | AJ43: 0 | AK43: 0.006109190881 | AL43: 0.006109190881 | AM43: FALSE | AN43: 0 | AO43: 68563.2634 | AP43: 0 | AQ43: 1.931895784e-06 | AR43: 1.931895784e-06 | AS43: FALSE | AT43: 0 | AU43: 216816076.1 | AV43: 0
B44: 2 | C44: 15 | D44: 2006.578082 | F44: 35 | G44: 9 | H44: 2 | I44: 249.2734656 | J44: 1 | K44: 0.56774597 | L44: 0.56774597 | M44: 8.914552781e+11 | N44: 0 | O44: FALSE | P44: 0 | Q44: 1.116850577e-09 | R44: 1.116850577e-09 | S44: 281314873.3 | T44: 0 | U44: FALSE | V44: 0 | W44: 3.622920063e-06 | X44: 3.622920063e-06 | Y44: 89029.25722 | Z44: 0 | AA44: FALSE | AB44: 0 | AC44: 0.01044585913 | AD44: 0.01044585913 | AE44: 30.85772864 | AF44: 0 | AG44: TRUE | AH44: 0.56774597 | AI44: 33.02184586 | AJ44: 0 | AK44: 0.009761280087 | AL44: 0.009761280087 | AM44: FALSE | AN44: 0 | AO44: 104424.2455 | AP44: 0 | AQ44: 3.086787795e-06 | AR44: 3.086787795e-06 | AS44: FALSE | AT44: 0 | AU44: 330218458.6 | AV44: 0
B45: 2 | C45: 16 | D45: 2281.585368 | F45: 36 | G45: 4 | H45: 5 | I45: 264.0099264 | J45: 1 | K45: 0.5827527759 | L45: 0.5827527759 | M45: 1.784225892e+12 | N45: 0 | O45: FALSE | P45: 0 | Q45: 5.879025955e-10 | R45: 5.879025955e-10 | S45: 563044824.8 | T45: 0 | U45: FALSE | V45: 0 | W45: 1.907080636e-06 | X45: 1.907080636e-06 | Y45: 178189.8765 | Z45: 0 | AA45: FALSE | AB45: 0 | AC45: 0.005498629648 | AD45: 0.005498629648 | AE45: 61.76098765 | AF45: 0 | AG45: TRUE | AH45: 0.5827527759 | AI45: 17.38247648 | AJ45: 0 | AK45: 0.01953696288 | AL45: 0.01953696288 | AM45: FALSE | AN45: 0 | AO45: 54968.21707 | AP45: 0 | AQ45: 6.178130125e-06 | AR45: 6.178130125e-06 | AS45: FALSE | AT45: 0 | AU45: 173824764.8 | AV45: 0
B46: 2 | C46: 17 | D46: 2574.335058 | F46: 37 | G46: 7 | H46: 4 | I46: 271.2681832 | J46: 1 | K46: 0.4755369065 | L46: 0.4755369065 | M46: 1.995706005e+12 | N46: 0 | O46: FALSE | P46: 0 | Q46: 3.499922322e-10 | R46: 3.499922322e-10 | S46: 629781208 | T46: 0 | U46: FALSE | V46: 0 | W46: 1.135329923e-06 | X46: 1.135329923e-06 | Y46: 199310.3049 | Z46: 0 | AA46: FALSE | AB46: 0 | AC46: 0.00327346346 | AD46: 0.00327346346 | AE46: 69.08137274 | AF46: 0 | AG46: TRUE | AH46: 0.4755369065 | AI46: 10.34819678 | AJ46: 0 | AK46: 0.02185263329 | AL46: 0.02185263329 | AM46: FALSE | AN46: 0 | AO46: 32723.8715 | AP46: 0 | AQ46: 6.910409406e-06 | AR46: 6.910409406e-06 | AS46: FALSE | AT46: 0 | AU46: 103481967.8 | AV46: 0
B47: 2 | C47: 18 | D47: 2884.827154 | F47: 38 | G47: 10 | H47: 1 | I47: 272.8078134 | J47: 1 | K47: 1.165661732e-05 | L47: 1.165661732e-05 | M47: 52247172.68 | N47: 0 | O47: FALSE | P47: 0 | Q47: 8.032834094e-15 | R47: 8.032834094e-15 | S47: 16487.54248 | T47: 0 | U47: FALSE | V47: 0 | W47: 2.605748379e-11 | X47: 2.605748379e-11 | Y47: 5.217902782 | Z47: 0 | AA47: FALSE | AB47: 0 | AC47: 7.513077854e-08 | AD47: 7.513077854e-08 | AE47: 0.001808536128 | AF47: 0 | AG47: TRUE | AH47: 1.165661732e-05 | AI47: 0.0002375062652 | AJ47: 0 | AK47: 5.720974443e-07 | AL47: 5.720974443e-07 | AM47: FALSE | AN47: 0 | AO47: 0.7510607565 | AP47: 0 | AQ47: 1.809130967e-10 | AR47: 1.809130967e-10 | AS47: FALSE | AT47: 0 | AU47: 2375.062652 | AV47: 0
B48: 2 | C48: 19 | D48: 3213.061656 | F48: 39 | G48: 5 | H48: 5 | I48: 287.7642213 | J48: 1 | K48: 7.283570922e-06 | L48: 7.283570922e-06 | M48: 60721505.5 | N48: 0 | O48: FALSE | P48: 0 | Q48: 2.698563795e-15 | R48: 2.698563795e-15 | S48: 19161.77182 | T48: 0 | U48: FALSE | V48: 0 | W48: 8.753794926e-12 | X48: 8.753794926e-12 | Y48: 6.064230774 | Z48: 0 | AA48: FALSE | AB48: 0 | AC48: 2.52395601e-08 | AD48: 2.52395601e-08 | AE48: 0.002101875198 | AF48: 0 | AG48: TRUE | AH48: 7.283570922e-06 | AI48: 7.978825415e-05 | AJ48: 0 | AK48: 6.648899131e-07 | AL48: 6.648899131e-07 | AM48: FALSE | AN48: 0 | AO48: 0.2523126136 | AP48: 0 | AQ48: 2.102566519e-10 | AR48: 2.102566519e-10 | AS48: FALSE | AT48: 0 | AU48: 797.8825415 | AV48: 0
B49: 2 | C49: 20 | D49: 3559.038563 | F49: 40 | G49: 9 | H49: 3 | I49: 293.6294793 | J49: 1 | K49: 0.2249280932 | L49: 0.2249280932 | M49: 2.370966616e+12 | N49: 0 | O49: FALSE | P49: 0 | Q49: 6.590956985e-11 | R49: 6.590956985e-11 | S49: 748201496.5 | T49: 0 | U49: FALSE | V49: 0 | W49: 2.138021933e-07 | X49: 2.138021933e-07 | Y49: 236787.4215 | Z49: 0 | AA49: FALSE | AB49: 0 | AC49: 0.0006164495916 | AD49: 0.0006164495916 | AE49: 82.07102055 | AF49: 0 | AG49: TRUE | AH49: 0.2249280932 | AI49: 1.948743817 | AJ49: 0 | AK49: 0.02596167164 | AL49: 0.02596167164 | AM49: FALSE | AN49: 0 | AO49: 6162.469038 | AP49: 0 | AQ49: 8.209801426e-06 | AR49: 8.209801426e-06 | AS49: FALSE | AT49: 0 | AU49: 19487438.17 | AV49: 0
B50: 3 | C50: 1 | D50: 32.6254977 | F50: 41 | G50: 10 | H50: 2 | I50: 299.4214216 | J50: 1 | K50: 1.41921584e-05 | L50: 1.41921584e-05 | M50: 187742401.9 | N50: 0 | O50: FALSE | P50: 0 | Q50: 3.313759936e-15 | R50: 3.313759936e-15 | S50: 59245.51831 | T50: 0 | U50: FALSE | V50: 0 | W50: 1.074941233e-11 | X50: 1.074941233e-11 | Y50: 18.74975335 | Z50: 0 | AA50: FALSE | AB50: 0 | AC50: 3.09934652e-08 | AD50: 3.09934652e-08 | AE50: 0.006498704124 | AF50: 0 | AG50: TRUE | AH50: 1.41921584e-05 | AI50: 9.797771708e-05 | AJ50: 0 | AK50: 2.055746614e-06 | AL50: 2.055746614e-06 | AM50: FALSE | AN50: 0 | AO50: 0.3098327459 | AP50: 0 | AQ50: 6.500841591e-10 | AR50: 6.500841591e-10 | AS50: FALSE | AT50: 0 | AU50: 979.7771708 | AV50: 0
B51: 3 | C51: 2 | D51: 59.23910594 | F51: 42 | G51: 8 | H51: 4 | I51: 310.8586748 | J51: 1 | K51: 0.4755335012 | L51: 0.4755335012 | M51: 9.727022787e+12 | N51: 0 | O51: FALSE | P51: 0 | Q51: 7.180733625e-11 | R51: 7.180733625e-11 | S51: 3069538372 | T51: 0 | U51: FALSE | V51: 0 | W51: 2.329337913e-07 | X51: 2.329337913e-07 | Y51: 971433.6041 | Z51: 0 | AA51: FALSE | AB51: 0 | AC51: 0.0006716111666 | AD51: 0.0006716111666 | AE51: 336.7009395 | AF51: 0 | AG51: TRUE | AH51: 0.4755335012 | AI51: 2.123122679 | AJ51: 0 | AK51: 0.106509206 | AL51: 0.106509206 | AM51: FALSE | AN51: 0 | AO51: 6713.903418 | AP51: 0 | AQ51: 3.368116827e-05 | AR51: 3.368116827e-05 | AS51: FALSE | AT51: 0 | AU51: 21231226.79 | AV51: 0
B52: 3 | C52: 3 | D52: 103.5951197 | F52: 43 | G52: 6 | H52: 5 | I52: 316.7972485 | J52: 1 | K52: 0.5827645609 | L52: 0.5827645609 | M52: 1.485406534e+13 | N52: 0 | O52: FALSE | P52: 0 | Q52: 7.061995725e-11 | R52: 7.061995725e-11 | S52: 4687469594 | T52: 0 | U52: FALSE | V52: 0 | W52: 2.29082086e-07 | X52: 2.29082086e-07 | Y52: 1483469.151 | Z52: 0 | AA52: FALSE | AB52: 0 | AC52: 0.000660505658 | AD52: 0.000660505658 | AE52: 514.1735417 | AF52: 0 | AG52: TRUE | AH52: 0.5827645609 | AI52: 2.088015524 | AJ52: 0 | AK52: 0.1626494293 | AL52: 0.1626494293 | AM52: FALSE | AN52: 0 | AO52: 6602.884847 | AP52: 0 | AQ52: 5.143426568e-05 | AR52: 5.143426568e-05 | AS52: FALSE | AT52: 0 | AU52: 20880155.24 | AV52: 0
B53: 3 | C53: 4 | D53: 165.6935389 | F53: 44 | G53: 1 | H53: 6 | I53: 322.002665 | J53: 1 | K53: 0.4156224349 | L53: 0.4156224349 | M53: 1.280401165e+13 | N53: 0 | O53: FALSE | P53: 0 | Q53: 4.167143125e-11 | R53: 4.167143125e-11 | S53: 4040537988 | T53: 0 | U53: FALSE | V53: 0 | W53: 1.351767797e-07 | X53: 1.351767797e-07 | Y53: 1278731.166 | Z53: 0 | AA53: FALSE | AB53: 0 | AC53: 0.000389751243 | AD53: 0.000389751243 | AE53: 443.2109235 | AF53: 0 | AG53: TRUE | AH53: 0.4156224349 | AI53: 1.232096404 | AJ53: 0 | AK53: 0.1402016983 | AL53: 0.1402016983 | AM53: FALSE | AN53: 0 | AO53: 3896.230934 | AP53: 0 | AQ53: 4.433566986e-05 | AR53: 4.433566986e-05 | AS53: FALSE | AT53: 0 | AU53: 12320964.04 | AV53: 0
B54: 3 | C54: 5 | D54: 245.5343636 | F54: 45 | G54: 11 | H54: 1 | I54: 328.2345016 | J54: 1 | K54: 0.4663325334 | L54: 0.4663325334 | M54: 1.795282167e+13 | N54: 0 | O54: FALSE | P54: 0 | Q54: 3.741495489e-11 | R54: 3.741495489e-11 | S54: 5665338325 | T54: 0 | U54: FALSE | V54: 0 | W54: 1.213693161e-07 | X54: 1.213693161e-07 | Y54: 1792940.619 | Z54: 0 | AA54: FALSE | AB54: 0 | AC54: 0.0003499405884 | AD54: 0.0003499405884 | AE54: 621.4370063 | AF54: 0 | AG54: TRUE | AH54: 0.4663325334 | AI54: 1.106245454 | AJ54: 0 | AK54: 0.1965802715 | AL54: 0.1965802715 | AM54: FALSE | AN54: 0 | AO54: 3498.255285 | AP54: 0 | AQ54: 6.216414011e-05 | AR54: 6.216414011e-05 | AS54: FALSE | AT54: 0 | AU54: 11062454.54 | AV54: 0
B55: 3 | C55: 6 | D55: 343.1175938 | F55: 46 | G55: 2 | H55: 6 | I55: 329.9207633 | J55: 1 | K55: 0.6724905082 | L55: 0.6724905082 | M55: 2.747878665e+13 | N55: 0 | O55: FALSE | P55: 0 | Q55: 5.083481868e-11 | R55: 5.083481868e-11 | S55: 8671429264 | T55: 0 | U55: FALSE | V55: 0 | W55: 1.649016335e-07 | X55: 1.649016335e-07 | Y55: 2744294.667 | Z55: 0 | AA55: FALSE | AB55: 0 | AC55: 0.000475456042 | AD55: 0.000475456042 | AE55: 951.1783291 | AF55: 0 | AG55: TRUE | AH55: 0.6724905082 | AI55: 1.503029664 | AJ55: 0 | AK55: 0.3008879296 | AL55: 0.3008879296 | AM55: FALSE | AN55: 0 | AO55: 4752.997128 | AP55: 0 | AQ55: 9.51491178e-05 | AR55: 9.51491178e-05 | AS55: FALSE | AT55: 0 | AU55: 15030296.64 | AV55: 0
B56: 3 | C56: 7 | D56: 458.4432295 | F56: 47 | G56: 3 | H56: 6 | I56: 343.1175938 | J56: 1 | K56: 0.672488903 | L56: 0.672488903 | M56: 4.335496748e+13 | N56: 0 | O56: FALSE | P56: 0 | Q56: 3.221943296e-11 | R56: 3.221943296e-11 | S56: 1.368144593e+10 | T56: 0 | U56: FALSE | V56: 0 | W56: 1.045157092e-07 | X56: 1.045157092e-07 | Y56: 4329842.054 | Z56: 0 | AA56: FALSE | AB56: 0 | AC56: 0.0003013470781 | AD56: 0.0003013470781 | AE56: 1500.732403 | AF56: 0 | AG56: TRUE | AH56: 0.672488903 | AI56: 0.9526298066 | AJ56: 0 | AK56: 0.4747293455 | AL56: 0.4747293455 | AM56: FALSE | AN56: 0 | AO56: 3012.479956 | AP56: 0 | AQ56: 0.0001501226004 | AR56: 0.0001501226004 | AS56: FALSE | AT56: 0 | AU56: 9526298.066 | AV56: 0
B57: 3 | C57: 8 | D57: 591.5112707 | F57: 48 | G57: 10 | H57: 3 | I57: 343.7774354 | J57: 1 | K57: 5.622611689e-06 | L57: 5.622611689e-06 | M57: 370674709.7 | N57: 0 | O57: FALSE | P57: 0 | Q57: 2.634327342e-16 | R57: 2.634327342e-16 | S57: 116973.1242 | T57: 0 | U57: FALSE | V57: 0 | W57: 8.545420108e-13 | X57: 8.545420108e-13 | Y57: 37.01912467 | Z57: 0 | AA57: FALSE | AB57: 0 | AC57: 2.46387591e-09 | AD57: 2.46387591e-09 | AE57: 0.01283090682 | AF57: 0 | AG57: TRUE | AH57: 5.622611689e-06 | AI57: 7.788897926e-06 | AJ57: 0 | AK57: 4.058823534e-06 | AL57: 4.058823534e-06 | AM57: FALSE | AN57: 0 | AO57: 0.02463065791 | AP57: 0 | AQ57: 1.283512699e-09 | AR57: 1.283512699e-09 | AS57: FALSE | AT57: 0 | AU57: 77.88897926 | AV57: 0
B58: 3 | C58: 9 | D58: 742.3217174 | F58: 49 | G58: 7 | H58: 5 | I58: 351.1090079 | J58: 1 | K58: 0.9429245769 | L58: 0.9429245769 | M58: 7.944862188e+13 | N58: 0 | O58: FALSE | P58: 0 | Q58: 3.456639242e-11 | R58: 3.456639242e-11 | S58: 2.507145288e+10 | T58: 0 | U58: FALSE | V58: 0 | W58: 1.121289447e-07 | X58: 1.121289447e-07 | Y58: 7934499.876 | Z58: 0 | AA58: FALSE | AB58: 0 | AC58: 0.0003232980967 | AD58: 0.0003232980967 | AE58: 2750.11442 | AF58: 0 | AG58: TRUE | AH58: 0.9429245769 | AI58: 1.022022199 | AJ58: 0 | AK58: 0.869948577 | AL58: 0.869948577 | AM58: FALSE | AN58: 0 | AO58: 3231.917968 | AP58: 0 | AQ58: 0.0002751018951 | AR58: 0.0002751018951 | AS58: FALSE | AT58: 0 | AU58: 10220221.99 | AV58: 0
B59: 3 | C59: 10 | D59: 910.8745696 | F59: 50 | G59: 11 | H59: 2 | I59: 354.8481099 | J59: 1 | K59: 0.5677689333 | L59: 0.5677689333 | M59: 5.410908376e+13 | N59: 0 | O59: FALSE | P59: 0 | Q59: 1.840176941e-11 | R59: 1.840176941e-11 | S59: 1.707510227e+10 | T59: 0 | U59: FALSE | V59: 0 | W59: 5.969298038e-08 | X59: 5.969298038e-08 | Y59: 5403851.045 | Z59: 0 | AA59: FALSE | AB59: 0 | AC59: 0.0001721110191 | AD59: 0.0001721110191 | AE59: 1872.986189 | AF59: 0 | AG59: FALSE | AH59: 0 | AI59: 0.5440838779 | AJ59: 0.5440838779 | AK59: 0.5924850464 | AL59: 0 | AM59: TRUE | AN59: 0.5677689333 | AO59: 1720.544292 | AP59: 0 | AQ59: 0.0001873602226 | AR59: 0.0001873602226 | AS59: FALSE | AT59: 0 | AU59: 5440838.779 | AV59: 0
B60: 3 | C60: 11 | D60: 1097.169827 | F60: 51 | G60: 9 | H60: 4 | I60: 355.7278986 | J60: 1 | K60: 0.2938916399 | L60: 0.2938916399 | M60: 2.882634281e+13 | N60: 0 | O60: FALSE | P60: 0 | Q60: 9.254893607e-12 | R60: 9.254893607e-12 | S60: 9096675036 | T60: 0 | U60: FALSE | V60: 0 | W60: 3.002168815e-08 | X60: 3.002168815e-08 | Y60: 2878874.523 | Z60: 0 | AA60: FALSE | AB60: 0 | AC60: 8.656065268e-05 | AD60: 8.656065268e-05 | AE60: 997.8239917 | AF60: 0 | AG60: FALSE | AH60: 0 | AI60: 0.2736388166 | AJ60: 0.2736388166 | AK60: 0.3156434349 | AL60: 0 | AM60: TRUE | AN60: 0.2938916399 | AO60: 865.3219166 | AP60: 0 | AQ60: 9.981521827e-05 | AR60: 9.981521827e-05 | AS60: FALSE | AT60: 0 | AU60: 2736388.166 | AV60: 0
B61: 3 | C61: 12 | D61: 1301.20749 | F61: 52 | G61: 4 | H61: 6 | I61: 361.5931566 | J61: 1 | K61: 0.4156182323 | L61: 0.4156182323 | M61: 4.930299229e+13 | N61: 0 | O61: FALSE | P61: 0 | Q61: 1.08218726e-11 | R61: 1.08218726e-11 | S61: 1.555845298e+10 | T61: 0 | U61: FALSE | V61: 0 | W61: 3.510476707e-08 | X61: 3.510476707e-08 | Y61: 4923868.747 | Z61: 0 | AA61: FALSE | AB61: 0 | AC61: 0.000101216545 | AD61: 0.000101216545 | AE61: 1706.62331 | AF61: 0 | AG61: FALSE | AH61: 0 | AI61: 0.3199695789 | AJ61: 0.3199695789 | AK61: 0.5398591816 | AL61: 0 | AM61: TRUE | AN61: 0.4156182323 | AO61: 1011.832651 | AP61: 0 | AQ61: 0.000170718463 | AR61: 0.000170718463 | AS61: FALSE | AT61: 0 | AU61: 3199695.789 | AV61: 0
B62: 3 | C62: 13 | D62: 1522.987559 | F62: 53 | G62: 5 | H62: 6 | I62: 385.3474515 | J62: 1 | K62: 5.19462969e-06 | L62: 5.19462969e-06 | M62: 1291239927 | N62: 0 | O62: FALSE | P62: 0 | Q62: 6.454888631e-17 | R62: 6.454888631e-17 | S62: 407474.1664 | T62: 0 | U62: FALSE | V62: 0 | W62: 2.093883104e-13 | X62: 2.093883104e-13 | Y62: 128.955579 | Z62: 0 | AA62: FALSE | AB62: 0 | AC62: 6.037231724e-10 | AD62: 6.037231724e-10 | AE62: 0.04469627613 | AF62: 0 | AG62: FALSE | AH62: 0 | AI62: 1.908512578e-06 | AJ62: 1.908512578e-06 | AK62: 1.413885238e-05 | AL62: 0 | AM62: TRUE | AN62: 5.19462969e-06 | AO62: 0.006035246691 | AP62: 0 | AQ62: 4.471097703e-09 | AR62: 4.471097703e-09 | AS62: FALSE | AT62: 0 | AU62: 19.08512578 | AV62: 0
B63: 3 | C63: 14 | D63: 1762.510033 | F63: 54 | G63: 12 | H63: 1 | I63: 388.9399221 | J63: 1 | K63: 0.754529427 | L63: 0.754529427 | M63: 2.089222524e+14 | N63: 0 | O63: FALSE | P63: 0 | Q63: 8.416938969e-12 | R63: 8.416938969e-12 | S63: 6.592920409e+10 | T63: 0 | U63: FALSE | V63: 0 | W63: 2.730347075e-08 | X63: 2.730347075e-08 | Y63: 20864975.96 | Z63: 0 | AA63: FALSE | AB63: 0 | AC63: 7.872329619e-05 | AD63: 7.872329619e-05 | AE63: 7231.844748 | AF63: 0 | AG63: FALSE | AH63: 0 | AI63: 0.2488630682 | AJ63: 0.2488630682 | AK63: 2.287662289 | AL63: 0 | AM63: TRUE | AN63: 0.754529427 | AO63: 786.9741209 | AP63: 0 | AQ63: 0.0007234223351 | AR63: 0.0007234223351 | AS63: FALSE | AT63: 0 | AU63: 2488630.682 | AV63: 0
B64: 3 | C64: 15 | D64: 2019.774913 | F64: 55 | G64: 8 | H64: 5 | I64: 390.6994995 | J64: 1 | K64: 0.9429178246 | L64: 0.9429178246 | M64: 2.751532518e+14 | N64: 0 | O64: FALSE | P64: 0 | Q64: 9.980666745e-12 | R64: 9.980666745e-12 | S64: 8.682959657e+10 | T64: 0 | U64: FALSE | V64: 0 | W64: 3.237600315e-08 | X64: 3.237600315e-08 | Y64: 27479437.53 | Z64: 0 | AA64: FALSE | AB64: 0 | AC64: 9.334878004e-05 | AD64: 9.334878004e-05 | AE64: 9524.431102 | AF64: 0 | AG64: FALSE | AH64: 0 | AI64: 0.2950977021 | AJ64: 0.2950977021 | AK64: 3.012880201 | AL64: 0 | AM64: TRUE | AN64: 0.9429178246 | AO64: 933.1808709 | AP64: 0 | AQ64: 0.0009527563751 | AR64: 0.0009527563751 | AS64: FALSE | AT64: 0 | AU64: 2950977.021 | AV64: 0
B65: 3 | C65: 16 | D65: 2294.782198 | F65: 56 | G65: 11 | H65: 3 | I65: 399.2041236 | J65: 1 | K65: 0.2249371907 | L65: 0.2249371907 | M65: 8.431354047e+13 | N65: 0 | O65: FALSE | P65: 0 | Q65: 1.853581647e-12 | R65: 1.853581647e-12 | S65: 2.660666613e+10 | T65: 0 | U65: FALSE | V65: 0 | W65: 6.012781185e-09 | X65: 6.012781185e-09 | Y65: 8420357.214 | Z65: 0 | AA65: FALSE | AB65: 0 | AC65: 1.733647559e-05 | AD65: 1.733647559e-05 | AE65: 2918.513599 | AF65: 0 | AG65: FALSE | AH65: 0 | AI65: 0.05480472383 | AJ65: 0.05480472383 | AK65: 0.9232185885 | AL65: 0 | AM65: TRUE | AN65: 0.2249371907 | AO65: 173.3077538 | AP65: 0 | AQ65: 0.0002919473518 | AR65: 0.0002919473518 | AS65: FALSE | AT65: 0 | AU65: 548047.2383 | AV65: 0
B66: 3 | C66: 17 | D66: 2587.531889 | F66: 57 | G66: 10 | H66: 4 | I66: 405.8758546 | J66: 1 | K66: 7.346519264e-06 | L66: 7.346519264e-06 | M66: 3338945347 | N66: 0 | O66: FALSE | P66: 0 | Q66: 4.992757197e-17 | R66: 4.992757197e-17 | S66: 1053664.733 | T66: 0 | U66: FALSE | V66: 0 | W66: 1.619586415e-13 | X66: 1.619586415e-13 | Y66: 333.4590433 | Z66: 0 | AA66: FALSE | AB66: 0 | AC66: 4.669705995e-10 | AD66: 4.669705995e-10 | AE66: 0.1155776089 | AF66: 0 | AG66: FALSE | AH66: 0 | AI66: 1.476205161e-06 | AJ66: 1.476205161e-06 | AK66: 3.656087021e-05 | AL66: 0 | AM66: TRUE | AN66: 7.346519264e-06 | AO66: 0.004668170602 | AP66: 0 | AQ66: 1.156156231e-08 | AR66: 1.156156231e-08 | AS66: FALSE | AT66: 0 | AU66: 14.76205161 | AV66: 0
B67: 3 | C67: 18 | D67: 2898.023985 | F67: 58 | G67: 6 | H67: 6 | I67: 414.3804787 | J67: 1 | K67: 0.4156266374 | L67: 0.4156266374 | M67: 2.404043887e+14 | N67: 0 | O67: FALSE | P67: 0 | Q67: 2.219478124e-12 | R67: 2.219478124e-12 | S67: 7.586396291e+10 | T67: 0 | U67: FALSE | V67: 0 | W67: 7.199702439e-09 | X67: 7.199702439e-09 | Y67: 24009083.45 | Z67: 0 | AA67: FALSE | AB67: 0 | AC67: 2.075869082e-05 | AD67: 2.075869082e-05 | AE67: 8321.599045 | AF67: 0 | AG67: FALSE | AH67: 0 | AI67: 0.06562316034 | AJ67: 0.06562316034 | AK67: 2.6323862 | AL67: 0 | AM67: TRUE | AN67: 0.4156266374 | AO67: 207.5186539 | AP67: 0 | AQ67: 0.0008324336074 | AR67: 0.0008324336074 | AS67: FALSE | AT67: 0 | AU67: 656231.6034 | AV67: 0
B68: 3 | C68: 19 | D68: 3226.258486 | F68: 59 | G68: 12 | H68: 2 | I68: 415.5535303 | J68: 1 | K68: 0.9186542591 | L68: 0.9186542591 | M68: 549117310870341 | N68: 0 | O68: FALSE | P68: 0 | Q68: 4.747069214e-12 | R68: 4.747069214e-12 | S68: 1.732839218e+11 | T68: 0 | U68: FALSE | V68: 0 | W68: 1.539888384e-08 | X68: 1.539888384e-08 | Y68: 54840110.9 | Z68: 0 | AA68: FALSE | AB68: 0 | AC68: 4.439915e-05 | AD68: 4.439915e-05 | AE68: 19007.6983 | AF68: 0 | AG68: FALSE | AH68: 0 | AI68: 0.1403562761 | AJ68: 0.1403562761 | AK68: 6.012738949 | AL68: 0 | AM68: TRUE | AN68: 0.9186542591 | AO68: 443.8455162 | AP68: 0 | AQ68: 0.001901395005 | AR68: 0.001901395005 | AS68: FALSE | AT68: 0 | AU68: 1403562.761 | AV68: 0
B69: 3 | C69: 20 | D69: 3572.235394 | F69: 60 | G69: 9 | H69: 5 | I69: 435.5687233 | J69: 1 | K69: 0.5827468833 | L69: 0.5827468833 | M69: 6.018996733e+14 | N69: 0 | O69: FALSE | P69: 0 | Q69: 1.74269877e-12 | R69: 1.74269877e-12 | S69: 1.899403531e+11 | T69: 0 | U69: FALSE | V69: 0 | W69: 5.65309135e-09 | X69: 5.65309135e-09 | Y69: 60111462.85 | Z69: 0 | AA69: FALSE | AB69: 0 | AC69: 1.629939244e-05 | AD69: 1.629939244e-05 | AE69: 20834.76002 | AF69: 0 | AG69: FALSE | AH69: 0 | AI69: 0.05152625726 | AJ69: 0.05152625726 | AK69: 6.590696628 | AL69: 0 | AM69: TRUE | AN69: 0.5827468833 | AO69: 162.9403323 | AP69: 0 | AQ69: 0.002084161271 | AR69: 0.002084161271 | AS69: FALSE | AT69: 0 | AU69: 515262.5726 | AV69: 0
B70: 4 | C70: 1 | D70: 51.10106045 | F70: 61 | G70: 1 | H70: 7 | I70: 437.3283007 | J70: 1 | K70: 0.07673026671 | L70: 0.07673026671 | M70: 8.305543913e+13 | N70: 0 | O70: FALSE | P70: 0 | Q70: 2.189534789e-13 | R70: 2.189534789e-13 | S70: 2.620964944e+10 | T70: 0 | U70: FALSE | V70: 0 | W70: 7.102570102e-10 | X70: 7.102570102e-10 | Y70: 8294711.171 | Z70: 0 | AA70: FALSE | AB70: 0 | AC70: 2.0478632e-06 | AD70: 2.0478632e-06 | AE70: 2874.964416 | AF70: 0 | AG70: FALSE | AH70: 0 | AI70: 0.006473782779 | AJ70: 0.006473782779 | AK70: 0.9094425979 | AL70: 0 | AM70: TRUE | AN70: 0.07673026671 | AO70: 20.47189866 | AP70: 0 | AQ70: 0.0002875910011 | AR70: 0.0002875910011 | AS70: FALSE | AT70: 0 | AU70: 64737.82779 | AV70: 0
B71: 4 | C71: 2 | D71: 77.71466869 | F71: 62 | G71: 2 | H71: 7 | I71: 445.246399 | J71: 1 | K71: 0.124152047 | L71: 0.124152047 | M71: 1.655619622e+14 | N71: 0 | O71: FALSE | P71: 0 | Q71: 2.875634711e-13 | R71: 2.875634711e-13 | S71: 5.224607847e+10 | T71: 0 | U71: FALSE | V71: 0 | W71: 9.328190274e-10 | X71: 9.328190274e-10 | Y71: 16534602.33 | Z71: 0 | AA71: FALSE | AB71: 0 | AC71: 2.689569735e-06 | AD71: 2.689569735e-06 | AE71: 5730.928098 | AF71: 0 | AG71: FALSE | AH71: 0 | AI71: 0.008502369802 | AJ71: 0.008502369802 | AK71: 1.81287466 | AL71: 0 | AM71: TRUE | AN71: 0.124152047 | AO71: 26.88685408 | AP71: 0 | AQ71: 0.0005732813039 | AR71: 0.0005732813039 | AS71: FALSE | AT71: 0 | AU71: 85023.69802 | AV71: 0
B72: 4 | C72: 3 | D72: 122.0706824 | F72: 63 | G72: 7 | H72: 6 | I72: 448.6922381 | J72: 1 | K72: 0.6724921134 | L72: 0.6724921134 | M72: 9.80893528e+14 | N72: 0 | O72: FALSE | P72: 0 | Q72: 1.424095242e-12 | R72: 1.424095242e-12 | S72: 3.095387344e+11 | T72: 0 | U72: FALSE | V72: 0 | W72: 4.619582359e-09 | X72: 4.619582359e-09 | Y72: 97961416.97 | Z72: 0 | AA72: FALSE | AB72: 0 | AC72: 1.331950629e-05 | AD72: 1.331950629e-05 | AE72: 33953.63408 | AF72: 0 | AG72: FALSE | AH72: 0 | AI72: 0.04210612819 | AJ72: 0.04210612819 | AK72: 10.74061335 | AL72: 0 | AM72: TRUE | AN72: 0.6724921134 | AO72: 133.1512685 | AP72: 0 | AQ72: 0.003396480166 | AR72: 0.003396480166 | AS72: FALSE | AT72: 0 | AU72: 421061.2819 | AV72: 0
B73: 4 | C73: 4 | D73: 184.1691016 | F73: 64 | G73: 13 | H73: 1 | I73: 454.9240747 | J73: 1 | K73: 0.7545204217 | L73: 0.7545204217 | M73: 1.291975039e+15 | N73: 0 | O73: FALSE | P73: 0 | Q73: 1.361050964e-12 | R73: 1.361050964e-12 | S73: 4.077061446e+11 | T73: 0 | U73: FALSE | V73: 0 | W73: 4.415074806e-09 | X73: 4.415074806e-09 | Y73: 129028994.4 | Z73: 0 | AA73: FALSE | AB73: 0 | AC73: 1.272985566e-05 | AD73: 1.272985566e-05 | AE73: 44721.72206 | AF73: 0 | AG73: FALSE | AH73: 0 | AI73: 0.04024210228 | AJ73: 0.04024210228 | AK73: 14.14690174 | AL73: 0 | AM73: TRUE | AN73: 0.7545204217 | AO73: 127.256701 | AP73: 0 | AQ73: 0.004473643133 | AR73: 0.004473643133 | AS73: FALSE | AT73: 0 | AU73: 402421.0228 | AV73: 0
B74: 4 | C74: 5 | D74: =3.1416/2*SQRT($H$2/$I$2)*(B74^2/$C$2^2+C74^2/$D$2^2) -> 264.0099264 | F74: 65 | G74: 3 | H74: 7 | I74: 458.4432295 | J74: 1 | K74: =ABS(SIN(G74*3.1416*$J$2/$C$2)*SIN(H74*3.1416*$K$2/$D$2))*(1/F74^$M$2)+(1-1/F74^$M$2) -> 0.1241517506 | L74: =$J74*$K74 -> 0.1241517506 | M74: =10^(LOG10($I74/22.27)/LOG10(2)*70/20)*$L74 -> 2.325126288e+14 | N74: =IF($I74<22.27,M74,0) -> 0 | O74: =AND($I74>22.27,$I74<44.45) -> FALSE | P74: =IF($O74=TRUE,$L74,0) -> 0 | Q74: =10^(LOG10(44.45/$I74)/LOG10(2)*70/20)*$L74 -> 2.047602553e-13 | R74: =IF($I74>44.45,Q74,0) -> 2.047602553e-13 | S74: =10^(LOG10($I74/44.548)/LOG10(2)*70/20)*$L74 -> 7.337357501e+10 | T74: =IF($I74<44.528,S74,0) -> 0 | U74: =AND($I74>44.548,$I74<89.095) -> FALSE | V74: =IF($U74=TRUE,$L74,0) -> 0 | W74: =10^(LOG10(89.095/$I74)/LOG10(2)*70/20)*$L74 -> 6.642160127e-10 | X74: =IF($I74>89.095,W74,0) -> 6.642160127e-10 | Y74: =10^(LOG10($I74/89.09)/LOG10(2)*70/20)*$L74 -> 23220936.76 | Z74: =IF($I74<89.09,Y74,0) -> 0 | AA74: =AND($I74>89.09,$I74<176.78) -> FALSE | AB74: =IF($AA74=TRUE,$L74,0) -> 0 | AC74: =10^(LOG10(176.78/$I74)/LOG10(2)*70/20)*$L74 -> 1.915114543e-06 | AD74: =IF($I74>176.78,AC74,0) -> 1.915114543e-06 | AE74: =10^(LOG10($I74/176.78)/LOG10(2)*70/20)*$L74 -> 8048.425739 | AF74: =IF($I74<176.78,AE74,0) -> 0 | AG74: =AND($I74>176.78,$I74<353.55) -> FALSE | AH74: =IF($AG74=TRUE,$L74,0) -> 0 | AI74: =10^(LOG10(353.55/$I74)/LOG10(2)*70/20)*$L74 -> 0.006054132691 | AJ74: =IF($I74>353.55,AI74,0) -> 0.006054132691 | AK74: =10^(LOG10($I74/353.55)/LOG10(2)*70/20)*$L74 -> 2.545972804 | AL74: =IF($I74<353.55,AK74,0) -> 0 | AM74: =AND($I74>353.55,$I74<707.1) -> TRUE | AN74: =IF($AM74=TRUE,$L74,0) -> 0.1241517506 | AO74: =10^(LOG10(707.1/$I74)/LOG10(2)*70/20)*$L74 -> 19.14484856 | AP74: =IF($I74>707.1,AO74,0) -> 0 | AQ74: =10^(LOG10($I74/707.1)/LOG10(2)*70/20)*$L74 -> 0.000805107292 | AR74: =IF($I74<707.1,AQ74,0) -> 0.000805107292 | AS74: =AND($I74>707.1,$I74<1414.2) -> FALSE | AT74: =IF($AS74=TRUE,$L74,0) -> 0 | AU74: =10^(LOG10(1414.2/$I74)/LOG10(2)*70/20)*$L74 -> 60541.32691 | AV74: =IF($I74>1414.2,AU74,0) -> 0
B75: 4 | C75: 6 | D75: 361.5931566 | F75: 66 | G75: 12 | H75: 3 | I75: 459.909544 | J75: =IF(ABS(I75-I74)>0.0001,1,$L$2) -> 1 | K75: 0.3639500088 | L75: 0.3639500088 | M75: 707391914901583 | N75: 0 | O75: FALSE | P75: 0 | Q75: 5.783755027e-13 | R75: 5.783755027e-13 | S75: 2.232303423e+11 | T75: 0 | U75: FALSE | V75: 0 | W75: 1.876175968e-09 | X75: 1.876175968e-09 | Y75: 70646927.89 | Z75: 0 | AA75: FALSE | AB75: 0 | AC75: 5.409523127e-06 | AD75: 5.409523127e-06 | AE75: 24486.37446 | AF75: 0 | AG75: FALSE | AH75: 0 | AI75: 0.01710078957 | AJ75: 0.01710078957 | AK75: 7.745818306 | AL75: 0 | AM75: TRUE | AN75: 0.3639500088 | AO75: 54.07744483 | AP75: 0 | AQ75: 0.002449442819 | AR75: 0.002449442819 | AS75: FALSE | AT75: 0 | AU75: 171007.8957 | AV75: 0
B76: 4 | C76: 7 | D76: 476.9187923 | F76: 67 | G76: 11 | H76: 4 | I76: 461.3025428 | J76: 1 | K76: 0.2939035268 | L76: 0.2939035268 | M76: 5.916897329e+14 | N76: 0 | O76: FALSE | P76: 0 | Q76: 4.509226752e-13 | R76: 4.509226752e-13 | S76: 1.867184214e+11 | T76: 0 | U76: FALSE | V76: 0 | W76: 1.462735339e-09 | X76: 1.462735339e-09 | Y76: 59091800.48 | Z76: 0 | AA76: FALSE | AB76: 0 | AC76: 4.217461889e-06 | AD76: 4.217461889e-06 | AE76: 20481.34288 | AF76: 0 | AG76: FALSE | AH76: 0 | AI76: 0.0133324004 | AJ76: 0.0133324004 | AK76: 6.478899558 | AL76: 0 | AM76: TRUE | AN76: 0.2939035268 | AO76: 42.16075193 | AP76: 0 | AQ76: 0.002048807934 | AR76: 0.002048807934 | AS76: FALSE | AT76: 0 | AU76: 133324.004 | AV76: 0
B77: 4 | C77: 8 | D77: 609.9868335 | F77: 68 | G77: 4 | H77: 7 | I77: 476.9187923 | J77: 1 | K77: 0.07672949085 | L77: 0.07672949085 | M77: 2.274876917e+14 | N77: 0 | O77: FALSE | P77: 0 | Q77: 7.993799334e-14 | R77: 7.993799334e-14 | S77: 7.178786501e+10 | T77: 0 | U77: FALSE | V77: 0 | W77: 2.593086003e-10 | X77: 2.593086003e-10 | Y77: 22719098.44 | Z77: 0 | AA77: FALSE | AB77: 0 | AC77: 7.476568798e-07 | AD77: 7.476568798e-07 | AE77: 7874.487516 | AF77: 0 | AG77: FALSE | AH77: 0 | AI77: 0.00236352127 | AJ77: 0.00236352127 | AK77: 2.490950617 | AL77: 0 | AM77: TRUE | AN77: 0.07672949085 | AO77: 7.474110513 | AP77: 0 | AQ77: 0.0007877077488 | AR77: 0.0007877077488 | AS77: FALSE | AT77: 0 | AU77: 23635.2127 | AV77: 0
B78: 4 | C78: 9 | D78: 760.7972802 | F78: 69 | G78: 13 | H78: 2 | I78: 481.537683 | J78: 1 | K78: 0.918643295 | L78: 0.918643295 | M78: 3046563556822980 | N78: 0 | O78: FALSE | P78: 0 | Q78: 8.55598648e-13 | R78: 8.55598648e-13 | S78: 9.613983584e+11 | T78: 0 | U78: FALSE | V78: 0 | W78: 2.775452305e-09 | X78: 2.775452305e-09 | Y78: 304258999 | Z78: 0 | AA78: FALSE | AB78: 0 | AC78: 8.002380205e-06 | AD78: 8.002380205e-06 | AE78: 105456.8118 | AF78: 0 | AG78: FALSE | AH78: 0 | AI78: 0.02529742766 | AJ78: 0.02529742766 | AK78: 33.35934052 | AL78: 0 | AM78: TRUE | AN78: 0.918643295 | AO78: 79.99749034 | AP78: 0 | AQ78: 0.01054914973 | AR78: 0.01054914973 | AS78: FALSE | AT78: 0 | AU78: 252974.2766 | AV78: 0
B79: 4 | C79: 10 | D79: 929.3501323 | F79: 70 | G79: 10 | H79: 5 | I79: 485.7166793 | J79: 1 | K79: 1.456714184e-05 | L79: 1.456714184e-05 | M79: 5.341581121e+10 | N79: 0 | O79: FALSE | P79: 0 | Q79: 1.227058825e-17 | R79: 1.227058825e-17 | S79: 16856327.55 | T79: 0 | U79: FALSE | V79: 0 | W79: 3.980421487e-14 | X79: 3.980421487e-14 | Y79: 5334.614212 | Z79: 0 | AA79: FALSE | AB79: 0 | AC79: 1.14766325e-10 | AD79: 1.14766325e-10 | AE79: 1.848988556 | AF79: 0 | AG79: FALSE | AH79: 0 | AI79: 3.62803657e-07 | AJ79: 3.62803657e-07 | AK79: 0.0005848938327 | AL79: 0 | AM79: TRUE | AN79: 1.456714184e-05 | AO79: 0.0011472859 | AP79: 0 | AQ79: 1.849596701e-07 | AR79: 1.849596701e-07 | AS79: FALSE | AT79: 0 | AU79: 3.62803657 | AV79: 0
B80: 4 | C80: 11 | D80: 1115.64539 | F80: 71 | G80: 8 | H80: 6 | I80: 488.2827297 | J80: 1 | K80: 0.6724872977 | L80: 0.6724872977 | M80: 2.621715697e+15 | N80: 0 | O80: FALSE | P80: 0 | Q80: 5.328059794e-13 | R80: 5.328059794e-13 | S80: 8.273299147e+11 | T80: 0 | U80: FALSE | V80: 0 | W80: 1.728354278e-09 | X80: 1.728354278e-09 | Y80: 261829625 | Z80: 0 | AA80: FALSE | AB80: 0 | AC80: 4.983313184e-06 | AD80: 4.983313184e-06 | AE80: 90750.70118 | AF80: 0 | AG80: FALSE | AH80: 0 | AI80: 0.01575343854 | AJ80: 0.01575343854 | AK80: 28.70733043 | AL80: 0 | AM80: TRUE | AN80: 0.6724872977 | AO80: 49.81674677 | AP80: 0 | AQ80: 0.009078054969 | AR80: 0.009078054969 | AS80: FALSE | AT80: 0 | AU80: 157534.3854 | AV80: 0
B81: 4 | C81: 12 | D81: 1319.683053 | F81: 72 | G81: 5 | H81: 7 | I81: 500.6730872 | J81: 1 | K81: 9.590081962e-07 | L81: 9.590081962e-07 | M81: 5003298061 | N81: 0 | O81: FALSE | P81: 0 | Q81: 5.677730511e-19 | R81: 5.677730511e-19 | S81: 1578881.403 | T81: 0 | U81: FALSE | V81: 0 | W81: 1.841782975e-15 | X81: 1.841782975e-15 | Y81: 499.6772367 | Z81: 0 | AA81: FALSE | AB81: 0 | AC81: 5.310358818e-12 | AD81: 5.310358818e-12 | AE81: 0.1731891859 | AF81: 0 | AG81: FALSE | AH81: 0 | AI81: 1.67873076e-08 | AJ81: 1.67873076e-08 | AK81: 5.478524266e-05 | AL81: 0 | AM81: TRUE | AN81: 9.590081962e-07 | AO81: 5.308612779e-05 | AP81: 0 | AQ81: 1.73246149e-08 | AR81: 1.73246149e-08 | AS81: FALSE | AT81: 0 | AU81: 0.167873076 | AV81: 0
B82: 4 | C82: 13 | D82: 1541.463122 | F82: 73 | G82: 12 | H82: 4 | I82: 522.0079633 | J82: 1 | K82: 0.4755380416 | L82: 0.4755380416 | M82: 4.030226899e+15 | N82: 0 | O82: FALSE | P82: 0 | Q82: 1.733115657e-13 | R82: 1.733115657e-13 | S82: 1.271811158e+12 | T82: 0 | U82: FALSE | V82: 0 | W82: 5.622004961e-10 | X82: 5.622004961e-10 | Y82: 402497036.1 | Z82: 0 | AA82: FALSE | AB82: 0 | AC82: 1.620976197e-06 | AD82: 1.620976197e-06 | AE82: 139506.323 | AF82: 0 | AG82: FALSE | AH82: 0 | AI82: 0.005124291402 | AJ82: 0.005124291402 | AK82: 44.13028285 | AL82: 0 | AM82: TRUE | AN82: 0.4755380416 | AO82: 16.20443222 | AP82: 0 | AQ82: 0.01395522076 | AR82: 0.01395522076 | AS82: FALSE | AT82: 0 | AU82: 51242.91402 | AV82: 0
B83: 4 | C83: 14 | D83: 1780.985596 | F83: 74 | G83: 13 | H83: 3 | I83: 525.8936967 | J83: 1 | K83: 0.3639456651 | L83: 0.3639456651 | M83: 3362239506905399 | N83: 0 | O83: FALSE | P83: 0 | Q83: 1.21683297e-13 | R83: 1.21683297e-13 | S83: 1.061015627e+12 | T83: 0 | U83: FALSE | V83: 0 | W83: 3.947250124e-10 | X83: 3.947250124e-10 | Y83: 335785421 | Z83: 0 | AA83: FALSE | AB83: 0 | AC83: 1.138099048e-06 | AD83: 1.138099048e-06 | AE83: 116383.9363 | AF83: 0 | AG83: FALSE | AH83: 0 | AI83: 0.003597801854 | AJ83: 0.003597801854 | AK83: 36.81593721 | AL83: 0 | AM83: TRUE | AN83: 0.3639456651 | AO83: 11.37724843 | AP83: 0 | AQ83: 0.01164222158 | AR83: 0.01164222158 | AS83: FALSE | AT83: 0 | AU83: 35978.01854 | AV83: 0
B84: 4 | C84: 15 | D84: 2038.250476 | F84: 75 | G84: 14 | H84: 1 | I84: 526.1869596 | J84: 1 | K84: 0.4663089573 | L84: 0.4663089573 | M84: 4.335916086e+15 | N84: 0 | O84: FALSE | P84: 0 | Q84: 1.549006215e-13 | R84: 1.549006215e-13 | S84: 1.368276922e+12 | T84: 0 | U84: FALSE | V84: 0 | W84: 5.024777541e-10 | X84: 5.024777541e-10 | Y84: 433026084.4 | Z84: 0 | AA84: FALSE | AB84: 0 | AC84: 1.448779367e-06 | AD84: 1.448779367e-06 | AE84: 150087.7557 | AF84: 0 | AG84: FALSE | AH84: 0 | AI84: 0.004579936255 | AJ84: 0.004579936255 | AK84: 47.47752623 | AL84: 0 | AM84: TRUE | AN84: 0.4663089573 | AO84: 14.4830301 | AP84: 0 | AQ84: 0.01501371206 | AR84: 0.01501371206 | AS84: FALSE | AT84: 0 | AU84: 45799.36255 | AV84: 0
B85: 4 | C85: 16 | D85: 2313.257761 | F85: 76 | G85: 6 | H85: 7 | I85: 529.7061144 | J85: 1 | K85: 0.07673104256 | L85: 0.07673104256 | M85: 7.7096834e+14 | N85: 0 | O85: FALSE | P85: 0 | Q85: 2.358805694e-14 | R85: 2.358805694e-14 | S85: 2.432930358e+11 | T85: 0 | U85: FALSE | V85: 0 | W85: 7.651663212e-11 | X85: 7.651663212e-11 | Y85: 76996278.26 | Z85: 0 | AA85: FALSE | AB85: 0 | AC85: 2.206181606e-07 | AD85: 2.206181606e-07 | AE85: 26687.07271 | AF85: 0 | AG85: FALSE | AH85: 0 | AI85: 0.0006974264924 | AJ85: 0.0006974264924 | AK85: 8.441969091 | AL85: 0 | AM85: TRUE | AN85: 0.07673104256 | AO85: 2.205456216 | AP85: 0 | AQ85: 0.002669585027 | AR85: 0.002669585027 | AS85: FALSE | AT85: 0 | AU85: 6974.264924 | AV85: 0
B86: 4 | C86: 17 | D86: 2606.007451 | F86: 77 | G86: 9 | H86: 6 | I86: 533.1519535 | J86: 1 | K86: 0.4156140297 | L86: 0.4156140297 | M86: 4502946489520370 | N86: 0 | O86: FALSE | P86: 0 | Q86: 1.184868424e-13 | R86: 1.184868424e-13 | S86: 1.420986394e+12 | T86: 0 | U86: FALSE | V86: 0 | W86: 3.843561238e-10 | X86: 3.843561238e-10 | Y86: 449707339.4 | Z86: 0 | AA86: FALSE | AB86: 0 | AC86: 1.108202736e-06 | AD86: 1.108202736e-06 | AE86: 155869.5139 | AF86: 0 | AG86: FALSE | AH86: 0 | AI86: 0.003503292498 | AJ86: 0.003503292498 | AK86: 49.30648006 | AL86: 0 | AM86: TRUE | AN86: 0.4156140297 | AO86: 11.0783836 | AP86: 0 | AQ86: 0.01559207804 | AR86: 0.01559207804 | AS86: FALSE | AT86: 0 | AU86: 35032.92498 | AV86: 0
B87: 4 | C87: 18 | D87: 2916.499548 | F87: 78 | G87: 11 | H87: 5 | I87: 541.1433675 | J87: 1 | K87: 0.5827704534 | L87: 0.5827704534 | M87: 7506343401202498 | N87: 0 | O87: FALSE | P87: 0 | Q87: 1.39750424e-13 | R87: 1.39750424e-13 | S87: 2.368762735e+12 | T87: 0 | U87: FALSE | V87: 0 | W87: 4.533324559e-10 | X87: 4.533324559e-10 | Y87: 749655303.9 | Z87: 0 | AA87: FALSE | AB87: 0 | AC87: 1.30708017e-06 | AD87: 1.30708017e-06 | AE87: 259832.1121 | AF87: 0 | AG87: FALSE | AH87: 0 | AI87: 0.004131991383 | AJ87: 0.004131991383 | AK87: 82.19315333 | AL87: 0 | AM87: TRUE | AN87: 0.5827704534 | AO87: 13.06650404 | AP87: 0 | AQ87: 0.02599175726 | AR87: 0.02599175726 | AS87: FALSE | AT87: 0 | AU87: 41319.91383 | AV87: 0
B88: 4 | C88: 19 | D88: 3244.734049 | F88: 79 | G88: 14 | H88: 2 | I88: 552.8005678 | J88: 1 | K88: 0.5677402291 | L88: 0.5677402291 | M88: 9369132678458862 | N88: 0 | O88: FALSE | P88: 0 | Q88: 1.062640738e-13 | R88: 1.062640738e-13 | S88: 2.95659966e+12 | T88: 0 | U88: FALSE | V88: 0 | W88: 3.447070298e-10 | X88: 3.447070298e-10 | Y88: 935691272.1 | Z88: 0 | AA88: FALSE | AB88: 0 | AC88: 9.938836661e-07 | AD88: 9.938836661e-07 | AE88: 324312.5717 | AF88: 0 | AG88: FALSE | AH88: 0 | AI88: 0.003141902721 | AJ88: 0.003141902721 | AK88: 102.5903716 | AL88: 0 | AM88: TRUE | AN88: 0.5677402291 | AO88: 9.935568786 | AP88: 0 | AQ88: 0.03244192402 | AR88: 0.03244192402 | AS88: FALSE | AT88: 0 | AU88: 31419.02721 | AV88: 0
B89: 4 | C89: 20 | D89: 3590.710956 | F89: 80 | G89: 7 | H89: 7 | I89: 564.0178738 | J89: 1 | K89: 0.1241523433 | L89: 0.1241523433 | M89: 2.587860659e+15 | N89: 0 | O89: FALSE | P89: 0 | Q89: 1.839735831e-14 | R89: 1.839735831e-14 | S89: 8.166463438e+11 | T89: 0 | U89: FALSE | V89: 0 | W89: 5.967867135e-11 | X89: 5.967867135e-11 | Y89: 258448536.9 | Z89: 0 | AA89: FALSE | AB89: 0 | AC89: 1.720697623e-07 | AD89: 1.720697623e-07 | AE89: 89578.80888 | AF89: 0 | AG89: FALSE | AH89: 0 | AI89: 0.0005439534553 | AJ89: 0.0005439534553 | AK89: 28.33662366 | AL89: 0 | AM89: TRUE | AN89: 0.1241523433 | AO89: 1.72013186 | AP89: 0 | AQ89: 0.008960827195 | AR89: 0.008960827195 | AS89: FALSE | AT89: 0 | AU89: 5439.534553 | AV89: 0
B90: 5 | C90: 1 | D90: 74.85535541 | F90: 81 | G90: 1 | H90: 8 | I90: 570.3963419 | J90: 1 | K90: 0.5090430276 | L90: 0.5090430276 | M90: 1.209271798e+16 | N90: 0 | O90: FALSE | P90: 0 | Q90: 6.618682906e-14 | R90: 6.618682906e-14 | S90: 3.816076377e+12 | T90: 0 | U90: FALSE | V90: 0 | W90: 2.147015866e-10 | X90: 2.147015866e-10 | Y90: 1207694571 | Z90: 0 | AA90: FALSE | AB90: 0 | AC90: 6.190427859e-07 | AD90: 6.190427859e-07 | AE90: 418589.4898 | AF90: 0 | AG90: FALSE | AH90: 0 | AI90: 0.001956941522 | AJ90: 0.001956941522 | AK90: 132.4131565 | AL90: 0 | AM90: TRUE | AN90: 0.5090430276 | AO90: 6.188392456 | AP90: 0 | AQ90: 0.04187271667 | AR90: 0.04187271667 | AS90: FALSE | AT90: 0 | AU90: 19569.41522 | AV90: 0
B91: 5 | C91: 2 | D91: 101.4689636 | F91: 82 | G91: 2 | H91: 8 | I91: 578.3144402 | J91: 1 | K91: 0.8236480412 | L91: 0.8236480412 | M91: 2.296804282e+16 | N91: 0 | O91: FALSE | P91: 0 | Q91: 9.123172024e-14 | R91: 9.123172024e-14 | S91: 7.247982276e+12 | T91: 0 | U91: FALSE | V91: 0 | W91: 2.959440022e-10 | X91: 2.959440022e-10 | Y91: 2293808610 | Z91: 0 | AA91: FALSE | AB91: 0 | AC91: 8.532866594e-07 | AD91: 8.532866594e-07 | AE91: 795038.9101 | AF91: 0 | AG91: FALSE | AH91: 0 | AI91: 0.002697442134 | AJ91: 0.002697442134 | AK91: 251.49607 | AL91: 0 | AM91: TRUE | AN91: 0.8236480412 | AO91: 8.530061 | AP91: 0 | AQ91: 0.07953004037 | AR91: 0.07953004037 | AS91: FALSE | AT91: 0 | AU91: 26974.42134 | AV91: 0
B92: 5 | C92: 3 | D92: 145.8249774 | F92: 83 | G92: 10 | H92: 6 | I92: 583.2999095 | J92: 1 | K92: 1.038925938e-05 | L92: 1.038925938e-05 | M92: 3.201178887e+11 | N92: 0 | O92: FALSE | P92: 0 | Q92: 1.041467561e-18 | R92: 1.041467561e-18 | S92: 101019002.9 | T92: 0 | U92: FALSE | V92: 0 | W92: 3.378387226e-15 | X92: 3.378387226e-15 | Y92: 31970.03659 | Z92: 0 | AA92: FALSE | AB92: 0 | AC92: 9.740804775e-12 | AD92: 9.740804775e-12 | AE92: 11.08088222 | AF92: 0 | AG92: FALSE | AH92: 0 | AI92: 3.079300131e-08 | AJ92: 3.079300131e-08 | AK92: 0.003505235147 | AL92: 0 | AM92: TRUE | AN92: 1.038925938e-05 | AO92: 9.737602013e-05 | AP92: 0 | AQ92: 1.10845268e-06 | AR92: 1.10845268e-06 | AS92: FALSE | AT92: 0 | AU92: 0.3079300131 | AV92: 0
B93: 5 | C93: 4 | D93: 207.9233966 | F93: 84 | G93: 13 | H93: 4 | I93: 587.9921159 | J93: 1 | K93: 0.475532366 | L93: 0.475532366 | M93: 1.608280507e+16 | N93: 0 | O93: FALSE | P93: 0 | Q93: 4.342950488e-14 | R93: 4.342950488e-14 | S93: 5.075220689e+12 | T93: 0 | U93: FALSE | V93: 0 | W93: 1.408797451e-10 | X93: 1.408797451e-10 | Y93: 1606182862 | Z93: 0 | AA93: FALSE | AB93: 0 | AC93: 4.061944358e-07 | AD93: 4.061944358e-07 | AE93: 556706.3731 | AF93: 0 | AG93: FALSE | AH93: 0 | AI93: 0.001284077249 | AJ93: 0.001284077249 | AK93: 176.1039154 | AL93: 0 | AM93: TRUE | AN93: 0.475532366 | AO93: 4.060608797 | AP93: 0 | AQ93: 0.05568894775 | AR93: 0.05568894775 | AS93: FALSE | AT93: 0 | AU93: 12840.77249 | AV93: 0
B94: 5 | C94: 5 | D94: 287.7642213 | F94: 85 | G94: 3 | H94: 8 | I94: 591.5112707 | J94: 1 | K94: 0.8236460751 | L94: 0.8236460751 | M94: 2.985749136e+16 | N94: 0 | O94: FALSE | P94: 0 | Q94: 7.018017784e-14 | R94: 7.018017784e-14 | S94: 9.422072655e+12 | T94: 0 | U94: FALSE | V94: 0 | W94: 2.27655498e-10 | X94: 2.27655498e-10 | Y94: 2981854888 | Z94: 0 | AA94: FALSE | AB94: 0 | AC94: 6.563924186e-07 | AD94: 6.563924186e-07 | AE94: 1033517.204 | AF94: 0 | AG94: FALSE | AH94: 0 | AI94: 0.002075012596 | AJ94: 0.002075012596 | AK94: 326.934332 | AL94: 0 | AM94: TRUE | AN94: 0.8236460751 | AO94: 6.561765978 | AP94: 0 | AQ94: 0.1033857134 | AR94: 0.1033857134 | AS94: FALSE | AT94: 0 | AU94: 20750.12596 | AV94: 0
B95: 5 | C95: 6 | D95: 385.3474515 | F95: 86 | G95: 14 | H95: 3 | I95: 597.1565816 | J95: 1 | K95: 0.2249258187 | L95: 0.2249258187 | M95: 9105727385363712 | N95: 0 | O95: FALSE | P95: 0 | Q95: 1.716131209e-14 | R95: 1.716131209e-14 | S95: 2.873477345e+12 | T95: 0 | U95: FALSE | V95: 0 | W95: 5.566909591e-11 | X95: 5.566909591e-11 | Y95: 909385098.2 | Z95: 0 | AA95: FALSE | AB95: 0 | AC95: 1.60509071e-07 | AD95: 1.60509071e-07 | AE95: 315194.7962 | AF95: 0 | AG95: FALSE | AH95: 0 | AI95: 0.0005074073599 | AJ95: 0.0005074073599 | AK95: 99.7061295 | AL95: 0 | AM95: TRUE | AN95: 0.2249258187 | AO95: 1.604562959 | AP95: 0 | AQ95: 0.03152984659 | AR95: 0.03152984659 | AS95: FALSE | AT95: 0 | AU95: 5074.073599 | AV95: 0
B96: 5 | C96: 7 | D96: 500.6730872 | F96: 87 | G96: 12 | H96: 5 | I96: 601.848788 | J96: 1 | K96: 0.9429268275 | L96: 0.9429268275 | M96: 4.180946262e+16 | N96: 0 | O96: FALSE | P96: 0 | Q96: 6.568525829e-14 | R96: 6.568525829e-14 | S96: 1.319373385e+13 | T96: 0 | U96: FALSE | V96: 0 | W96: 2.130745554e-10 | X96: 2.130745554e-10 | Y96: 4175493144 | Z96: 0 | AA96: FALSE | AB96: 0 | AC96: 6.143516145e-07 | AD96: 6.143516145e-07 | AE96: 1447234.745 | AF96: 0 | AG96: FALSE | AH96: 0 | AI96: 0.001942111612 | AJ96: 0.001942111612 | AK96: 457.8063363 | AL96: 0 | AM96: TRUE | AN96: 0.9429268275 | AO96: 6.141496165 | AP96: 0 | AQ96: 0.144771075 | AR96: 0.144771075 | AS96: FALSE | AT96: 0 | AU96: 19421.11612 | AV96: 0
B97: 5 | C97: 8 | D97: 633.7411284 | F97: 88 | G97: 15 | H97: 1 | I97: 602.7285767 | J97: 1 | K97: 1.748492598e-05 | L97: 1.748492598e-05 | M97: 7.885628512e+11 | N97: 0 | O97: FALSE | P97: 0 | Q97: 1.197506269e-18 | R97: 1.197506269e-18 | S97: 248845302.8 | T97: 0 | U97: FALSE | V97: 0 | W97: 3.884556785e-15 | X97: 3.884556785e-15 | Y97: 78753.43457 | Z97: 0 | AA97: FALSE | AB97: 0 | AC97: 1.120022861e-11 | AD97: 1.120022861e-11 | AE97: 27.2961068 | AF97: 0 | AG97: FALSE | AH97: 0 | AI97: 3.540658727e-08 | AJ97: 3.540658727e-08 | AK97: 0.008634625927 | AL97: 0 | AM97: TRUE | AN97: 1.748492598e-05 | AO97: 0.00011196546 | AP97: 0 | AQ97: 2.730508467e-06 | AR97: 2.730508467e-06 | AS97: FALSE | AT97: 0 | AU97: 0.3540658727 | AV97: 0
B98: 5 | C98: 9 | D98: 784.5515751 | F98: 89 | G98: 8 | H98: 7 | I98: 603.6083654 | J98: 1 | K98: 0.1241514543 | L98: 0.1241514543 | M98: 5694944429345958 | N98: 0 | O98: FALSE | P98: 0 | Q98: 8.359891574e-15 | R98: 8.359891574e-15 | S98: 1.797142953e+12 | T98: 0 | U98: FALSE | V98: 0 | W98: 2.711841631e-11 | X98: 2.711841631e-11 | Y98: 568751663.6 | Z98: 0 | AA98: FALSE | AB98: 0 | AC98: 7.818973417e-08 | AD98: 7.818973417e-08 | AE98: 197130.5282 | AF98: 0 | AG98: FALSE | AH98: 0 | AI98: 0.0002471763517 | AJ98: 0.0002471763517 | AK98: 62.35864997 | AL98: 0 | AM98: TRUE | AN98: 0.1241514543 | AO98: 0.781640255 | AP98: 0 | AQ98: 0.01971953657 | AR98: 0.01971953657 | AS98: FALSE | AT98: 0 | AU98: 2471.763517 | AV98: 0
B99: 5 | C99: 10 | D99: 953.1044273 | F99: 90 | G99: 4 | H99: 8 | I99: 609.9868335 | J99: 1 | K99: 0.5090378804 | L99: 0.5090378804 | M99: 2.638556143e+16 | N99: 0 | O99: FALSE | P99: 0 | Q99: 3.03333501e-14 | R99: 3.03333501e-14 | S99: 8.326442225e+12 | T99: 0 | U99: FALSE | V99: 0 | W99: 9.83974982e-11 | X99: 9.83974982e-11 | Y99: 2635114731 | Z99: 0 | AA99: FALSE | AB99: 0 | AC99: 2.837066198e-07 | AD99: 2.837066198e-07 | AE99: 913336.3327 | AF99: 0 | AG99: FALSE | AH99: 0 | AI99: 0.0008968641213 | AJ99: 0.0008968641213 | AK99: 288.9173037 | AL99: 0 | AM99: TRUE | AN99: 0.5090378804 | AO99: 2.836133375 | AP99: 0 | AQ99: 0.09136367351 | AR99: 0.09136367351 | AS99: FALSE | AT99: 0 | AU99: 8968.641213 | AV99: 0
B100: 5 | C100: 11 | D100: 1139.399685 | F100: 91 | G100: 15 | H100: 2 | I100: 629.3421849 | J100: 1 | K100: 2.12882376e-05 | L100: 2.12882376e-05 | M100: 1.586678231e+12 | N100: 0 | O100: FALSE | P100: 0 | Q100: 8.822203422e-19 | R100: 8.822203422e-19 | S100: 500705079.2 | T100: 0 | U100: FALSE | V100: 0 | W100: 2.861809667e-15 | X100: 2.861809667e-15 | Y100: 158460.8761 | Z100: 0 | AA100: FALSE | AB100: 0 | AC100: 8.251371854e-12 | AD100: 8.251371854e-12 | AE100: 54.92287443 | AF100: 0 | AG100: FALSE | AH100: 0 | AI100: 2.60845495e-08 | AJ100: 2.60845495e-08 | AK100: 0.01737385038 | AL100: 0 | AM100: TRUE | AN100: 2.12882376e-05 | AO100: 8.248658815e-05 | AP100: 0 | AQ100: 5.494093893e-06 | AR100: 5.494093893e-06 | AS100: FALSE | AT100: 0 | AU100: 0.260845495 | AV100: 0
B101: 5 | C101: 12 | D101: 1343.437348 | F101: 92 | G101: 5 | H101: 8 | I101: 633.7411284 | J101: 1 | K101: 6.362240829e-06 | L101: 6.362240829e-06 | M101: 5.141984289e+11 | N101: 0 | O101: FALSE | P101: 0 | Q101: 2.431509533e-19 | R101: 2.431509533e-19 | S101: 162264635.6 | T101: 0 | U101: FALSE | V101: 0 | W101: 7.887505145e-16 | X101: 7.887505145e-16 | Y101: 51352.7771 | Z101: 0 | AA101: FALSE | AB101: 0 | AC101: 2.274181219e-12 | AD101: 2.274181219e-12 | AE101: 17.79898103 | AF101: 0 | AG101: FALSE | AH101: 0 | AI101: 7.189227877e-09 | AJ101: 7.189227877e-09 | AK101: 0.005630383271 | AL101: 0 | AM101: TRUE | AN101: 6.362240829e-06 | AO101: 2.273433471e-05 | AP101: 0 | AQ101: 1.780483524e-06 | AR101: 1.780483524e-06 | AS101: FALSE | AT101: 0 | AU101: 0.07189227877 | AV101: 0
B102: 5 | C102: 13 | D102: 1565.217417 | F102: 93 | G102: 11 | H102: 6 | I102: 638.7265977 | J102: 1 | K102: 0.4156308399 | L102: 0.4156308399 | M102: 3.679556638e+16 | N102: 0 | O102: FALSE | P102: 0 | Q102: 1.450128709e-14 | R102: 1.450128709e-14 | S102: 1.1611508e+13 | T102: 0 | U102: FALSE | V102: 0 | W102: 4.704031589e-11 | X102: 4.704031589e-11 | Y102: 3674757472 | Z102: 0 | AA102: FALSE | AB102: 0 | AC102: 1.356299628e-07 | AD102: 1.356299628e-07 | AE102: 1273678.703 | AF102: 0 | AG102: FALSE | AH102: 0 | AI102: 0.0004287585797 | AJ102: 0.0004287585797 | AK102: 402.9050455 | AL102: 0 | AM102: TRUE | AN102: 0.4156308399 | AO102: 1.355853678 | AP102: 0 | AQ102: 0.1274097625 | AR102: 0.1274097625 | AS102: FALSE | AT102: 0 | AU102: 4287.585797 | AV102: 0
B103: 5 | C103: 14 | D103: 1804.739891 | F103: 94 | G103: 9 | H103: 7 | I103: 648.4775892 | J103: 1 | K103: 0.07672871499 | L103: 0.07672871499 | M103: 8101199242433816 | N103: 0 | O103: FALSE | P103: 0 | Q103: 2.24467283e-15 | R103: 2.24467283e-15 | S103: 2.556480279e+12 | T103: 0 | U103: FALSE | V103: 0 | W103: 7.281430835e-12 | X103: 7.281430835e-12 | Y103: 809063302.3 | Z103: 0 | AA103: FALSE | AB103: 0 | AC103: 2.099433591e-08 | AD103: 2.099433591e-08 | AE103: 280423.0498 | AF103: 0 | AG103: FALSE | AH103: 0 | AI103: 6.636809052e-05 | AJ103: 6.636809052e-05 | AK103: 88.70672123 | AL103: 0 | AM103: TRUE | AN103: 0.07672871499 | AO103: 0.20987433 | AP103: 0 | AQ103: 0.02805152828 | AR103: 0.02805152828 | AS103: FALSE | AT103: 0 | AU103: 663.6809052 | AV103: 0
B104: 5 | C104: 15 | D104: 2062.004771 | F104: 95 | G104: 14 | H104: 4 | I104: 659.2550008 | J104: 1 | K104: 0.2938886681 | L104: 0.2938886681 | M104: 3.75840739e+16 | N104: 0 | O104: FALSE | P104: 0 | Q104: 7.098201786e-15 | R104: 7.098201786e-15 | S104: 1.186033584e+13 | T104: 0 | U104: FALSE | V104: 0 | W104: 2.302565642e-11 | X104: 2.302565642e-11 | Y104: 3753505380 | Z104: 0 | AA104: FALSE | AB104: 0 | AC104: 6.638919965e-08 | AD104: 6.638919965e-08 | AE104: 1300972.895 | AF104: 0 | AG104: FALSE | AH104: 0 | AI104: 0.0002098720546 | AJ104: 0.0002098720546 | AK104: 411.5390655 | AL104: 0 | AM104: TRUE | AN104: 0.2938886681 | AO104: 0.6636737097 | AP104: 0 | AQ104: 0.1301400793 | AR104: 0.1301400793 | AS104: FALSE | AT104: 0 | AU104: 2098.720546 | AV104: 0
B105: 5 | C105: 16 | D105: 2337.012056 | F105: 96 | G105: 6 | H105: 8 | I105: 662.7741556 | J105: 1 | K105: 0.5090481748 | L105: 0.5090481748 | M105: 6.925680892e+16 | N105: 0 | O105: FALSE | P105: 0 | Q105: 1.155691197e-14 | R105: 1.155691197e-14 | S105: 2.185524154e+13 | T105: 0 | U105: FALSE | V105: 0 | W105: 3.748914055e-11 | X105: 3.748914055e-11 | Y105: 6916647875 | Z105: 0 | AA105: FALSE | AB105: 0 | AC105: 1.080913391e-07 | AD105: 1.080913391e-07 | AE105: 2397324.766 | AF105: 0 | AG105: FALSE | AH105: 0 | AI105: 0.0003417024387 | AJ105: 0.0003417024387 | AK105: 758.3499995 | AL105: 0 | AM105: TRUE | AN105: 0.5090481748 | AO105: 1.080557988 | AP105: 0 | AQ105: 0.2398113262 | AR105: 0.2398113262 | AS105: FALSE | AT105: 0 | AU105: 3417.024387 | AV105: 0
B106: 5 | C106: 17 | D106: 2629.761746 | F106: 97 | G106: 13 | H106: 5 | I106: 667.8329406 | J106: 1 | K106: 0.9429155737 | L106: 0.9429155737 | M106: 1.401428942e+17 | N106: 0 | O106: FALSE | P106: 0 | Q106: 1.959571204e-14 | R106: 1.959571204e-14 | S106: 4.422463077e+13 | T106: 0 | U106: FALSE | V106: 0 | W106: 6.356597718e-11 | X106: 6.356597718e-11 | Y106: 1.399601088e+10 | Z106: 0 | AA106: FALSE | AB106: 0 | AC106: 1.832779171e-07 | AD106: 1.832779171e-07 | AE106: 4851046.941 | AF106: 0 | AG106: FALSE | AH106: 0 | AI106: 0.0005793850993 | AJ106: 0.0005793850993 | AK106: 1534.540291 | AL106: 0 | AM106: TRUE | AN106: 0.9429155737 | AO106: 1.832176556 | AP106: 0 | AQ106: 0.4852642482 | AR106: 0.4852642482 | AS106: FALSE | AT106: 0 | AU106: 5793.850993 | AV106: 0
B107: 5 | C107: 18 | D107: 2940.253843 | F107: 98 | G107: 15 | H107: 3 | I107: 673.6981987 | J107: 1 | K107: 8.433917534e-06 | L107: 8.433917534e-06 | M107: 1.387652669e+12 | N107: 0 | O107: FALSE | P107: 0 | Q107: 1.583304472e-19 | R107: 1.583304472e-19 | S107: 437898955 | T107: 0 | U107: FALSE | V107: 0 | W107: 5.136036687e-16 | X107: 5.136036687e-16 | Y107: 138584.2783 | Z107: 0 | AA107: FALSE | AB107: 0 | AC107: 1.48085839e-12 | AD107: 1.48085839e-12 | AE107: 48.03360365 | AF107: 0 | AG107: FALSE | AH107: 0 | AI107: 4.681345679e-09 | AJ107: 4.681345679e-09 | AK107: 0.01519455512 | AL107: 0 | AM107: TRUE | AN107: 8.433917534e-06 | AO107: 1.480371486e-05 | AP107: 0 | AQ107: 4.804940222e-06 | AR107: 4.804940222e-06 | AS107: FALSE | AT107: 0 | AU107: 0.04681345679 | AV107: 0
B108: 5 | C108: 19 | D108: 3268.488344 | F108: 99 | G108: 16 | H108: 1 | I108: 684.548926 | J108: 1 | K108: 0.4663372485 | L108: 0.4663372485 | M108: 9.239123768e+16 | N108: 0 | O108: FALSE | P108: 0 | Q108: 7.270360404e-15 | R108: 7.270360404e-15 | S108: 2.915572992e+13 | T108: 0 | U108: FALSE | V108: 0 | W108: 2.358411691e-11 | X108: 2.358411691e-11 | Y108: 9227073378 | Z108: 0 | AA108: FALSE | AB108: 0 | AC108: 6.799939238e-08 | AD108: 6.799939238e-08 | AE108: 3198123.126 | AF108: 0 | AG108: FALSE | AH108: 0 | AI108: 0.0002149622569 | AJ108: 0.0002149622569 | AK108: 1011.667967 | AL108: 0 | AM108: TRUE | AN108: 0.4663372485 | AO108: 0.6797703428 | AP108: 0 | AQ108: 0.319917501 | AR108: 0.319917501 | AS108: FALSE | AT108: 0 | AU108: 2149.622569 | AV108: 0
B109: 5 | C109: 20 | D109: 3614.465251 | F109: 100 | G109: 7 | H109: 8 | I109: 697.085915 | J109: 1 | K109: 0.8236500072 | L109: 0.8236500072 | M109: 2.015177272e+17 | N109: 0 | O109: FALSE | P109: 0 | Q109: 1.039821206e-14 | R109: 1.039821206e-14 | S109: 6.359257191e+13 | T109: 0 | U109: FALSE | V109: 0 | W109: 3.37304666e-11 | X109: 3.37304666e-11 | Y109: 2.012548919e+10 | Z109: 0 | AA109: FALSE | AB109: 0 | AC109: 9.725406478e-08 | AD109: 9.725406478e-08 | AE109: 6975537.072 | AF109: 0 | AG109: FALSE | AH109: 0 | AI109: 0.0003074432363 | AJ109: 0.0003074432363 | AK109: 2206.584027 | AL109: 0 | AM109: TRUE | AN109: 0.8236500072 | AO109: 0.9722208779 | AP109: 0 | AQ109: 0.6977831373 | AR109: 0.6977831373 | AS109: FALSE | AT109: 0 | AU109: 3074.432363 | AV109: 0
